Workbook

Sheet Stump
A1: Sample name | B1: 207/235 | C1: 2 sigma | D1: 206/238 | E1: 2 sigma | F1: 207/206 | G1: 2 sigma | H1: 207/235 | I1: 2 sigma | J1: 206/238 | K1: 2 sigma | L1: 207/206 | M1: 2 sigma | N1: % | O1: 207/235 | P1: 2 sigma | Q1: 206/238 | R1: 2 sigma | S1: RHO | T1: 206/238 | U1: 238/206 | V1: 2 sigma | W1: 207/206 | X1: 2 sigma | Y1: sample | Z1: 238U | AA1: 1 sigma | AB1: 207Pb | AC1: 1 sigma | AD1: 206/238 | AE1: 1 sigma | AF1: 207/206 | AG1: 1 sigma | AH1: Best age | AI1: 1 sigma | AJ1: %
B2: intercept | C2: abs err | D2: intercept | E2: abs err | F2: average | G2: abs err | H2: age | I2: abs err | J2: age | K2: abs err | L2: age | M2: abs err | N2: discordant | O2: intercept | P2: abs err | Q2: intercept | R2: abs err | T2: %err | U2: intercept | V2: abs err | W2: average | X2: abs err | Y2: name | Z2: 206Pb | AA2: % error | AB2: 206Pb | AC2: % error | AD2: age | AE2: abs err | AF2: age | AG2: abs err | AI2: % error | AJ2: discordant
A3: All Analyses | Y3: All Analyses
A4: KP82_080A | B4: 0.1554603582 | C4: 0.005002403313 | D4: 0.02296997168 | E4: 0.0006321405254 | F4: 0.04908645389 | G4: 0.0005966657714 | H4: 146.7216765 | I4: 4.386469832 | J4: 146.3989257 | K4: 3.982307596 | L4: 151.9624921 | M4: 28.23274232 | N4: =(1- ((L4-J4)/L4))*100 -> 96.33885552 | O4: =B4 -> 0.1554603582 | P4: =C4 -> 0.005002403313 | Q4: =D4 -> 0.02296997168 | R4: =E4 -> 0.0006321405254 | S4: =((P4/O4)^2+(R4/Q4)^2-(G4/F4)^2)/(2*(P4/O4)*(R4/Q4)) -> 0.9288239012 | T4: =E4/D4 -> 0.0275203006 | U4: =1/D4 -> 43.53509938 | V4: =U4*T4 -> 1.198099021 | W4: =F4 -> 0.04908645389 | X4: =G4 -> 0.0005966657714 | Y4: =A4 -> KP82_080A | Z4: =U4 -> 43.53509938 | AA4: =V4/U4/2 -> 0.0137601503 | AB4: =W4 -> 0.04908645389 | AC4: =X4/W4/2 -> 0.006077702951 | AD4: =J4 -> 146.3989257 | AE4: =K4 -> 3.982307596 | AF4: =L4 -> 151.9624921 | AG4: =M4 -> 28.23274232 | AH4: 146.3989257 | AI4: 3.982307596
A5: KP82_093A | B5: 0.1607092535 | C5: 0.00557435786 | D5: 0.0233127589 | E5: 0.000736152314 | F5: 0.04999668473 | G5: 0.0004458418105 | H5: 151.3237992 | I5: 4.864750053 | J5: 148.5586941 | K5: 4.635764155 | L5: 194.8390042 | M5: 20.59739591 | N5: =(1- ((L5-J5)/L5))*100 -> 76.24689662 | O5: 0.1607092535 | P5: 0.00557435786 | Q5: 0.0233127589 | R5: 0.000736152314 | S5: 0.9681105618 | T5: 0.03157722846 | U5: 42.89496598 | V5: 1.354504141 | W5: 0.04999668473 | X5: 0.0004458418105 | Y5: KP82_093A | Z5: 42.89496598 | AA5: 0.01578861423 | AB5: 0.04999668473 | AC5: 0.004458713742 | AD5: 148.5586941 | AE5: 4.635764155 | AF5: 194.8390042 | AG5: 20.59739591 | AH5: 148.5586941 | AI5: 4.635764155
A6: KP82_095A | B6: 0.160165116 | C6: 0.005967738191 | D6: 0.02345727494 | E6: 0.0008028091255 | F6: 0.04952042581 | G6: 0.0004591228025 | H6: 150.8476787 | I6: 5.209610803 | J6: 149.4690164 | K6: 5.054643283 | L6: 172.5452086 | M6: 21.4969092 | N6: 86.62600236 | O6: 0.160165116 | P6: 0.005967738191 | Q6: 0.02345727494 | R6: 0.0008028091255 | S6: 0.9699090437 | T6: 0.03422431324 | U6: 42.63069783 | V6: 1.459006356 | W6: 0.04952042581 | X6: 0.0004591228025 | Y6: KP82_095A | Z6: 42.63069783 | AA6: 0.01711215662 | AB6: 0.04952042581 | AC6: 0.004635691183 | AD6: 149.4690164 | AE6: 5.054643283 | AF6: 172.5452086 | AG6: 21.4969092 | AH6: 149.4690164 | AI6: 5.054643283
A7: KP82_056A | B7: 0.1691339792 | C7: 0.006915433076 | D7: 0.02347227848 | E7: 0.0008561056076 | F7: 0.05225787128 | G7: 0.00062401027 | H7: 158.6670924 | I7: 5.988302603 | J7: 149.563518 | K7: 5.389989126 | L7: 296.7098528 | M7: 27.02231724 | N7: 50.40733114 | O7: 0.1691339792 | P7: 0.006915433076 | Q7: 0.02347227848 | R7: 0.0008561056076 | S7: 0.9587264057 | T7: 0.03647305089 | U7: 42.60344818 | V7: 1.553877734 | W7: 0.05225787128 | X7: 0.00062401027 | Y7: KP82_056A | Z7: 42.60344818 | AA7: 0.01823652545 | AB7: 0.05225787128 | AC7: 0.005970490711 | AD7: 149.563518 | AE7: 5.389989126 | AF7: 296.7098528 | AG7: 27.02231724 | AH7: 149.563518 | AI7: 5.389989126
A8: KP82_083A | B8: 0.161438715 | C8: 0.004555494649 | D8: 0.02363955232 | E8: 0.0006064670396 | F8: 0.0495302932 | G8: 0.0004213591355 | H8: 151.9617284 | I8: 3.974832464 | J8: 150.6170183 | K8: 3.818121377 | L8: 173.0102053 | M8: 19.73381009 | N8: 87.05672482 | O8: 0.161438715 | P8: 0.004555494649 | Q8: 0.02363955232 | R8: 0.0006064670396 | S8: 0.9545535338 | T8: 0.02565475993 | U8: 42.30198552 | V8: 1.085247283 | W8: 0.0495302932 | X8: 0.0004213591355 | Y8: KP82_083A | Z8: 42.30198552 | AA8: 0.01282737996 | AB8: 0.0495302932 | AC8: 0.00425354978 | AD8: 150.6170183 | AE8: 3.818121377 | AF8: 173.0102053 | AG8: 19.73381009 | AH8: 150.6170183 | AI8: 3.818121377
A9: KP82_059A | B9: 0.1618727851 | C9: 0.006439262864 | D9: 0.0236453924 | E9: 0.0008537080536 | F9: 0.04964818893 | G9: 0.0005204194566 | H9: 152.3411415 | I9: 5.611859572 | J9: 150.6537964 | K9: 5.373991964 | L9: 178.5557754 | M9: 24.25677142 | N9: 84.37352195 | O9: 0.1618727851 | P9: 0.006439262864 | Q9: 0.0236453924 | R9: 0.0008537080536 | S9: 0.966450929 | T9: 0.03610462618 | U9: 42.29153752 | V9: 1.526920153 | W9: 0.04964818893 | X9: 0.0005204194566 | Y9: KP82_059A | Z9: 42.29153752 | AA9: 0.01805231309 | AB9: 0.04964818893 | AC9: 0.005241071908 | AD9: 150.6537964 | AE9: 5.373991964 | AF9: 178.5557754 | AG9: 24.25677142 | AH9: 150.6537964 | AI9: 5.373991964
A10: KP82_013A | B10: 0.1609988864 | C10: 0.00411024308 | D10: 0.02388586507 | E10: 0.0004930553685 | F10: 0.04888470756 | G10: 0.0005003603251 | H10: 151.5771372 | I10: 3.588376364 | J10: 152.1679969 | K10: 3.103543257 | L10: 142.305007 | M10: 23.84812182 | N10: 106.9308804 | O10: 0.1609988864 | P10: 0.00411024308 | Q10: 0.02388586507 | R10: 0.0004930553685 | S10: 0.9232634629 | T10: 0.0206421399 | U10: 41.86576442 | V10: 0.8641989662 | W10: 0.04888470756 | X10: 0.0005003603251 | Y10: KP82_013A | Z10: 41.86576442 | AA10: 0.01032106995 | AB10: 0.04888470756 | AC10: 0.005117759214 | AD10: 152.1679969 | AE10: 3.103543257 | AF10: 142.305007 | AG10: 23.84812182 | AH10: 152.1679969 | AI10: 3.103543257
A11: KP82_006A | B11: 0.1639312737 | C11: 0.003548862341 | D11: 0.02392623107 | E11: 0.0004438332005 | F11: 0.04969110388 | G11: 0.0003548175686 | H11: 154.1385027 | I11: 3.091224009 | J11: 152.4221373 | K11: 2.79367071 | L11: 180.5697393 | M11: 16.55677137 | N11: 84.41178349 | O11: 0.1639312737 | P11: 0.003548862341 | Q11: 0.02392623107 | R11: 0.0004438332005 | S11: 0.9484710102 | T11: 0.01855006746 | U11: 41.79513258 | V11: 0.775302529 | W11: 0.04969110388 | X11: 0.0003548175686 | Y11: KP82_006A | Z11: 41.79513258 | AA11: 0.009275033731 | AB11: 0.04969110388 | AC11: 0.003570232304 | AD11: 152.4221373 | AE11: 2.79367071 | AF11: 180.5697393 | AG11: 16.55677137 | AH11: 152.4221373 | AI11: 2.79367071
A12: KP82_102A | B12: 0.1595229563 | C12: 0.006346173142 | D12: 0.02400008507 | E12: 0.0008289101011 | F12: 0.04820636716 | G12: 0.0006379190754 | H12: 150.2855013 | I12: 5.542130034 | J12: 152.8870891 | K12: 5.216148262 | L12: 109.4091509 | M12: 30.95403835 | N12: 139.7388498 | O12: 0.1595229563 | P12: 0.006346173142 | Q12: 0.02400008507 | R12: 0.0008289101011 | S12: 0.9462838195 | T12: 0.03453779846 | U12: 41.66651898 | V12: 1.439069835 | W12: 0.04820636716 | X12: 0.0006379190754 | Y12: KP82_102A | Z12: 41.66651898 | AA12: 0.01726889923 | AB12: 0.04820636716 | AC12: 0.006616543758 | AD12: 152.8870891 | AE12: 5.216148262 | AF12: 109.4091509 | AG12: 30.95403835 | AH12: 152.8870891 | AI12: 5.216148262
A13: KP82_025A | B13: 0.1642641605 | C13: 0.004029964828 | D13: 0.0240054922 | E13: 0.0005375581419 | F13: 0.0496276396 | G13: 0.000354309136 | H13: 154.4288628 | I13: 3.508561469 | J13: 152.9211286 | K13: 3.383197847 | L13: 177.5905315 | M13: 16.56322355 | N13: 86.10882989 | O13: 0.1642641605 | P13: 0.004029964828 | Q13: 0.0240054922 | R13: 0.0005375581419 | S13: 0.9577802534 | T13: 0.02239313143 | U13: 41.65713378 | V13: 0.9328336716 | W13: 0.0496276396 | X13: 0.000354309136 | Y13: KP82_025A | Z13: 41.65713378 | AA13: 0.01119656571 | AB13: 0.0496276396 | AC13: 0.003569675476 | AD13: 152.9211286 | AE13: 3.383197847 | AF13: 177.5905315 | AG13: 16.56322355 | AH13: 152.9211286 | AI13: 3.383197847
A14: KP82_075A | B14: 0.1637990939 | C14: 0.005404817233 | D14: 0.0240059708 | E14: 0.0007609566045 | F14: 0.04948560701 | G14: 0.0003209280077 | H14: 154.023186 | I14: 4.704640011 | J14: 152.9241415 | K14: 4.788663182 | L14: 170.8919716 | M14: 15.07477677 | N14: 89.48585479 | O14: 0.1637990939 | P14: 0.005404817233 | Q14: 0.0240059708 | R14: 0.0007609566045 | S14: 0.9806997654 | T14: 0.0316986391 | U14: 41.65630328 | V14: 1.320448124 | W14: 0.04948560701 | X14: 0.0003209280077 | Y14: KP82_075A | Z14: 41.65630328 | AA14: 0.01584931955 | AB14: 0.04948560701 | AC14: 0.003242639902 | AD14: 152.9241415 | AE14: 4.788663182 | AF14: 170.8919716 | AG14: 15.07477677 | AH14: 152.9241415 | AI14: 4.788663182
A15: KP82_060A | B15: 0.1674793353 | C15: 0.0067341354 | D15: 0.02403783946 | E15: 0.0008646905759 | F15: 0.05052913871 | G15: 0.000582261172 | H15: 157.2290302 | I15: 5.840002408 | J15: 153.1247609 | K15: 5.441011369 | L15: 219.4169515 | M15: 26.44568149 | N15: 69.78711528 | O15: 0.1674793353 | P15: 0.0067341354 | Q15: 0.02403783946 | R15: 0.0008646905759 | S15: 0.9603024933 | T15: 0.03597205886 | U15: 41.60107657 | V15: 1.496476375 | W15: 0.05052913871 | X15: 0.000582261172 | Y15: KP82_060A | Z15: 41.60107657 | AA15: 0.01798602943 | AB15: 0.05052913871 | AC15: 0.00576163761 | AD15: 153.1247609 | AE15: 5.441011369 | AF15: 219.4169515 | AG15: 26.44568149 | AH15: 153.1247609 | AI15: 5.441011369
A16: KP82_008A | B16: 0.1595964257 | C16: 0.004152122355 | D16: 0.02411736867 | E16: 0.0004929246089 | F16: 0.04799371437 | G16: 0.0005312036107 | H16: 150.3498357 | I16: 3.629249388 | J16: 153.6253853 | K16: 3.10201918 | L16: 98.95927823 | M16: 25.98013636 | N16: 155.2410123 | O16: 0.1595964257 | P16: 0.004152122355 | Q16: 0.02411736867 | R16: 0.0004929246089 | S16: 0.91406211 | T16: 0.02043857336 | U16: 41.46389324 | V16: 0.8474628238 | W16: 0.04799371437 | X16: 0.0005312036107 | Y16: KP82_008A | Z16: 41.46389324 | AA16: 0.01021928668 | AB16: 0.04799371437 | AC16: 0.005534095639 | AD16: 153.6253853 | AE16: 3.10201918 | AF16: 98.95927823 | AG16: 25.98013636 | AH16: 153.6253853 | AI16: 3.10201918
A17: KP82_029A | B17: 0.1653148818 | C17: 0.003905071959 | D17: 0.02420686466 | E17: 0.0005327382084 | F17: 0.0495296005 | G17: 0.0002986860937 | H17: 155.3448091 | I17: 3.396948743 | J17: 154.1887025 | K17: 3.352211757 | L17: 172.9775664 | M17: 14.01343255 | N17: 89.13797655 | O17: 0.1653148818 | P17: 0.003905071959 | Q17: 0.02420686466 | R17: 0.0005327382084 | S17: 0.9675297151 | T17: 0.02200773276 | U17: 41.31059574 | V17: 0.9091525514 | W17: 0.0495296005 | X17: 0.0002986860937 | Y17: KP82_029A | Z17: 41.31059574 | AA17: 0.01100386638 | AB17: 0.0495296005 | AC17: 0.003015228174 | AD17: 154.1887025 | AE17: 3.352211757 | AF17: 172.9775664 | AG17: 14.01343255 | AH17: 154.1887025 | AI17: 3.352211757
A18: KP82_010A | B18: 0.1667780137 | C18: 0.004150042569 | D18: 0.02422139702 | E18: 0.0005183100834 | F18: 0.0499379526 | G18: 0.0004197481164 | H18: 156.6188918 | I18: 3.605147265 | J18: 154.2801694 | K18: 3.261400655 | L18: 192.1061448 | M18: 19.43139711 | N18: 80.30985658 | O18: 0.1667780137 | P18: 0.004150042569 | Q18: 0.02422139702 | R18: 0.0005183100834 | S18: 0.9450619559 | T18: 0.02139885173 | U18: 41.2858102 | V18: 0.883468931 | W18: 0.0499379526 | X18: 0.0004197481164 | Y18: KP82_010A | Z18: 41.2858102 | AA18: 0.01069942586 | AB18: 0.0499379526 | AC18: 0.004202696492 | AD18: 154.2801694 | AE18: 3.261400655 | AF18: 192.1061448 | AG18: 19.43139711 | AH18: 154.2801694 | AI18: 3.261400655
A19: KP82_055A | B19: 0.1728747135 | C19: 0.00692606193 | D19: 0.02426060541 | E19: 0.0008487556314 | F19: 0.05167802843 | G19: 0.0006603382304 | H19: 161.9107025 | I19: 5.978407357 | J19: 154.5269409 | K19: 5.339622168 | L19: 271.1895962 | M19: 29.0314964 | N19: 56.98114644 | O19: 0.1728747135 | P19: 0.00692606193 | Q19: 0.02426060541 | R19: 0.0008487556314 | S19: 0.9509580971 | T19: 0.03498493203 | U19: 41.21908679 | V19: 1.44204695 | W19: 0.05167802843 | X19: 0.0006603382304 | Y19: KP82_055A | Z19: 41.21908679 | AA19: 0.01749246601 | AB19: 0.05167802843 | AC19: 0.006388965005 | AD19: 154.5269409 | AE19: 5.339622168 | AF19: 271.1895962 | AG19: 29.0314964 | AH19: 154.5269409 | AI19: 5.339622168
A20: KP82_094A | B20: 0.1662090021 | C20: 0.006027502776 | D20: 0.02428144305 | E20: 0.000800954509 | F20: 0.04964483191 | G20: 0.0004729623903 | H20: 156.1235913 | I20: 5.23444973 | J20: 154.6580859 | K20: 5.038914678 | L20: 178.3981282 | M20: 22.06179921 | N20: 86.69266179 | O20: 0.1662090021 | P20: 0.006027502776 | Q20: 0.02428144305 | R20: 0.000800954509 | S20: 0.9665555234 | T20: 0.03298628123 | U20: 41.18371376 | V20: 1.358497564 | W20: 0.04964483191 | X20: 0.0004729623903 | Y20: KP82_094A | Z20: 41.18371376 | AA20: 0.01649314061 | AB20: 0.04964483191 | AC20: 0.004763460487 | AD20: 154.6580859 | AE20: 5.038914678 | AF20: 178.3981282 | AG20: 22.06179921 | AH20: 154.6580859 | AI20: 5.038914678
A21: KP82_005A | B21: 0.1750241738 | C21: 0.004673508719 | D21: 0.02432164845 | E21: 0.0005625359407 | F21: 0.05219106434 | G21: 0.0004658282997 | H21: 163.7698339 | I21: 4.030546343 | J21: 154.9111175 | K21: 3.539263552 | L21: 293.7899181 | M21: 20.2512009 | N21: 52.72853424 | O21: 0.1750241738 | P21: 0.004673508719 | Q21: 0.02432164845 | R21: 0.0005625359407 | S21: 0.9458407008 | T21: 0.02312902194 | U21: 41.11563417 | V21: 0.9509644049 | W21: 0.05219106434 | X21: 0.0004658282997 | Y21: KP82_005A | Z21: 41.11563417 | AA21: 0.01156451097 | AB21: 0.05219106434 | AC21: 0.004462720827 | AD21: 154.9111175 | AE21: 3.539263552 | AF21: 293.7899181 | AG21: 20.2512009 | AH21: 154.9111175 | AI21: 3.539263552
A22: KP82_103A | B22: 0.1672778055 | C22: 0.00589866423 | D22: 0.02434202324 | E22: 0.0007740541985 | F22: 0.04983972596 | G22: 0.0004809706549 | H22: 157.0537401 | I22: 5.118165683 | J22: 155.0393419 | K22: 4.869457149 | L22: 187.5253142 | M22: 22.3084766 | N22: 82.67648694 | O22: 0.1672778055 | P22: 0.00589866423 | Q22: 0.02434202324 | R22: 0.0007740541985 | S22: 0.9638227109 | T22: 0.03179909044 | U22: 41.08121951 | V22: 1.306345415 | W22: 0.04983972596 | X22: 0.0004809706549 | Y22: KP82_103A | Z22: 41.08121951 | AA22: 0.01589954522 | AB22: 0.04983972596 | AC22: 0.004825173551 | AD22: 155.0393419 | AE22: 4.869457149 | AF22: 187.5253142 | AG22: 22.3084766 | AH22: 155.0393419 | AI22: 4.869457149
A23: KP82_030A | B23: 0.1659735572 | C23: 0.004363097766 | D23: 0.02435270009 | E23: 0.0005807676833 | F23: 0.04942915632 | G23: 0.0003919288182 | H23: 155.9185759 | I23: 3.79249353 | J23: 155.1065334 | K23: 3.653827551 | L23: 168.2502146 | M23: 18.41214616 | N23: 92.18801523 | O23: 0.1659735572 | P23: 0.004363097766 | Q23: 0.02435270009 | R23: 0.0005807676833 | S23: 0.9546046537 | T23: 0.02384818444 | U23: 41.06320844 | V23: 0.9792829684 | W23: 0.04942915632 | X23: 0.0003919288182 | Y23: KP82_030A | Z23: 41.06320844 | AA23: 0.01192409222 | AB23: 0.04942915632 | AC23: 0.003964550959 | AD23: 155.1065334 | AE23: 3.653827551 | AF23: 168.2502146 | AG23: 18.41214616 | AH23: 155.1065334 | AI23: 3.653827551
A24: KP82_019A | B24: 0.1625937551 | C24: 0.004306047538 | D24: 0.02441705756 | E24: 0.0005935592306 | F24: 0.04829497555 | G24: 0.0003626062414 | H24: 152.9710157 | I24: 3.753856852 | J24: 155.5115325 | K24: 3.734046141 | L24: 113.7438494 | M24: 17.62015893 | N24: 136.7208278 | O24: 0.1625937551 | P24: 0.004306047538 | Q24: 0.02441705756 | R24: 0.0005935592306 | S24: 0.9598900343 | T24: 0.02430920389 | U24: 40.95497574 | V24: 0.9955828557 | W24: 0.04829497555 | X24: 0.0003626062414 | Y24: KP82_019A | Z24: 40.95497574 | AA24: 0.01215460195 | AB24: 0.04829497555 | AC24: 0.00375407832 | AD24: 155.5115325 | AE24: 3.734046141 | AF24: 113.7438494 | AG24: 17.62015893 | AH24: 155.5115325 | AI24: 3.734046141
A25: KP82_092A | B25: 0.1656403844 | C25: 0.00764752734 | D25: 0.02451284316 | E25: 0.0009330032782 | F25: 0.04900795032 | G25: 0.0008867083424 | H25: 155.6283923 | I25: 6.639961854 | J25: 156.1142604 | K25: 5.867948472 | L25: 148.2113406 | M25: 41.87736225 | N25: 105.3321964 | O25: 0.1656403844 | P25: 0.00764752734 | Q25: 0.02451284316 | R25: 0.0009330032782 | S25: 0.9255593202 | T25: 0.03806181405 | U25: 40.79494138 | V25: 1.552729473 | W25: 0.04900795032 | X25: 0.0008867083424 | Y25: KP82_092A | Z25: 40.79494138 | AA25: 0.01903090702 | AB25: 0.04900795032 | AC25: 0.009046576491 | AD25: 156.1142604 | AE25: 5.867948472 | AF25: 148.2113406 | AG25: 41.87736225 | AH25: 156.1142604 | AI25: 5.867948472
A26: KP82_112A | B26: 0.1685039306 | C26: 0.007242602725 | D26: 0.02451287806 | E26: 0.000964466524 | F26: 0.04985908776 | G26: 0.0005355462348 | H26: 158.119753 | I26: 6.274107294 | J26: 156.11448 | K26: 6.065737357 | L26: 188.429276 | M26: 24.80698079 | N26: 82.85043773 | O26: 0.1685039306 | P26: 0.007242602725 | Q26: 0.02451287806 | R26: 0.000964466524 | S26: 0.9697985906 | T26: 0.0393452993 | U26: 40.79488331 | V26: 1.605086894 | W26: 0.04985908776 | X26: 0.0005355462348 | Y26: KP82_112A | Z26: 40.79488331 | AA26: 0.01967264965 | AB26: 0.04985908776 | AC26: 0.005370598008 | AD26: 156.11448 | AE26: 6.065737357 | AF26: 188.429276 | AG26: 24.80698079 | AH26: 156.11448 | AI26: 6.065737357
A27: KP82_039A | B27: 0.1672423901 | C27: 0.007651549377 | D27: 0.02455927822 | E27: 0.001057874178 | F27: 0.04938993122 | G27: 0.0004766044069 | H27: 157.0229328 | I27: 6.63435438 | J27: 156.4064313 | K27: 6.652593996 | L27: 166.3832265 | M27: 22.39364174 | N27: 94.00372539 | O27: 0.1672423901 | P27: 0.007651549377 | Q27: 0.02455927822 | R27: 0.001057874178 | S27: 0.9781922587 | T27: 0.04307431872 | U27: 40.71780901 | V27: 1.753891883 | W27: 0.04938993122 | X27: 0.0004766044069 | Y27: KP82_039A | Z27: 40.71780901 | AA27: 0.02153715936 | AB27: 0.04938993122 | AC27: 0.004824914665 | AD27: 156.4064313 | AE27: 6.652593996 | AF27: 166.3832265 | AG27: 22.39364174 | AH27: 156.4064313 | AI27: 6.652593996
A28: KP82_014A | B28: 0.167249751 | C28: 0.004314145699 | D28: 0.02457588013 | E28: 0.0005486154786 | F28: 0.04935686011 | G28: 0.0004238998988 | H28: 157.029336 | I28: 3.745929398 | J28: 156.5108879 | K28: 3.450848454 | L28: 164.8179041 | M28: 19.95132523 | N28: 94.95988241 | O28: 0.167249751 | P28: 0.004314145699 | Q28: 0.02457588013 | R28: 0.0005486154786 | S28: 0.9464141091 | T28: 0.02232332985 | U28: 40.69030263 | V28: 0.9083430473 | W28: 0.04935686011 | X28: 0.0004238998988 | Y28: KP82_014A | Z28: 40.69030263 | AA28: 0.01116166492 | AB28: 0.04935686011 | AC28: 0.004294234863 | AD28: 156.5108879 | AE28: 3.450848454 | AF28: 164.8179041 | AG28: 19.95132523 | AH28: 156.5108879 | AI28: 3.450848454
A29: KP82_058A | B29: 0.1658182339 | C29: 0.006116255596 | D29: 0.02467032547 | E29: 0.0008330454442 | F29: 0.04874538485 | G29: 0.000433824366 | H29: 155.7833042 | I29: 5.313099533 | J29: 157.1050905 | K29: 5.238732963 | L29: 135.6022887 | M29: 20.78129177 | N29: 115.8572558 | O29: 0.1658182339 | P29: 0.006116255596 | Q29: 0.02467032547 | R29: 0.0008330454442 | S29: 0.9721064617 | T29: 0.03376710394 | U29: 40.53452807 | V29: 1.368733622 | W29: 0.04874538485 | X29: 0.000433824366 | Y29: KP82_058A | Z29: 40.53452807 | AA29: 0.01688355197 | AB29: 0.04874538485 | AC29: 0.004449901948 | AD29: 157.1050905 | AE29: 5.238732963 | AF29: 135.6022887 | AG29: 20.78129177 | AH29: 157.1050905 | AI29: 5.238732963
A30: KP82_081A | B30: 0.1726426969 | C30: 0.005226942479 | D30: 0.02467693385 | E30: 0.0006468073357 | F30: 0.05074105224 | G30: 0.0005596971294 | H30: 161.7098208 | I30: 4.515915514 | J30: 157.1466651 | K30: 4.067889509 | L30: 229.0838097 | M30: 25.28263533 | N30: 68.59789233 | O30: 0.1726426969 | P30: 0.005226942479 | Q30: 0.02467693385 | R30: 0.0006468073357 | S30: 0.9337507739 | T30: 0.02621100901 | U30: 40.52367308 | V30: 1.06216636 | W30: 0.05074105224 | X30: 0.0005596971294 | Y30: KP82_081A | Z30: 40.52367308 | AA30: 0.01310550451 | AB30: 0.05074105224 | AC30: 0.005515229825 | AD30: 157.1466651 | AE30: 4.067889509 | AF30: 229.0838097 | AG30: 25.28263533 | AH30: 157.1466651 | AI30: 4.067889509
A31: KP82_084A | B31: 0.1708965325 | C31: 0.005021004763 | D31: 0.0246770676 | E31: 0.0006681364719 | F31: 0.05022756851 | G31: 0.000414428935 | H31: 160.1967025 | I31: 4.344827305 | J31: 157.1475065 | K31: 4.201988086 | L31: 205.5380671 | M31: 19.03002111 | N31: 76.45664318 | O31: 0.1708965325 | P31: 0.005021004763 | Q31: 0.0246770676 | R31: 0.0006681364719 | S31: 0.960548603 | T31: 0.02707519721 | U31: 40.52345344 | V31: 1.097180493 | W31: 0.05022756851 | X31: 0.000414428935 | Y31: KP82_084A | Z31: 40.52345344 | AA31: 0.0135375986 | AB31: 0.05022756851 | AC31: 0.004125512615 | AD31: 157.1475065 | AE31: 4.201988086 | AF31: 205.5380671 | AG31: 19.03002111 | AH31: 157.1475065 | AI31: 4.201988086
A32: KP82_082A | B32: 0.1654300366 | C32: 0.004969786577 | D32: 0.02468924353 | E32: 0.0006730680572 | F32: 0.04859695265 | G32: 0.000444836562 | H32: 155.445143 | I32: 4.320729665 | J32: 157.2241068 | K32: 4.232942937 | L32: 128.4310079 | M32: 21.39831784 | N32: 122.4191178 | O32: 0.1654300366 | P32: 0.004969786577 | Q32: 0.02468924353 | R32: 0.0006730680572 | S32: 0.9535645504 | T32: 0.02726159092 | U32: 40.5034686 | V32: 1.104188992 | W32: 0.04859695265 | X32: 0.000444836562 | Y32: KP82_082A | Z32: 40.5034686 | AA32: 0.01363079546 | AB32: 0.04859695265 | AC32: 0.004576794817 | AD32: 157.2241068 | AE32: 4.232942937 | AF32: 128.4310079 | AG32: 21.39831784 | AH32: 157.2241068 | AI32: 4.232942937
A33: KP82_024A | B33: 0.167769811 | C33: 0.003985625044 | D33: 0.02469700794 | E33: 0.0005508461556 | F33: 0.04926754138 | G33: 0.0002815879266 | H33: 157.4816321 | I33: 3.459625021 | J33: 157.2729533 | K33: 3.464466407 | L33: 160.5827614 | M33: 13.31471997 | N33: 97.9388771 | O33: 0.167769811 | P33: 0.003985625044 | Q33: 0.02469700794 | R33: 0.0005508461556 | S33: 0.9711650727 | T33: 0.02230416562 | U33: 40.49073484 | V33: 0.903112056 | W33: 0.04926754138 | X33: 0.0002815879266 | Y33: KP82_024A | Z33: 40.49073484 | AA33: 0.01115208281 | AB33: 0.04926754138 | AC33: 0.002857742833 | AD33: 157.2729533 | AE33: 3.464466407 | AF33: 160.5827614 | AG33: 13.31471997 | AH33: 157.2729533 | AI33: 3.464466407
A34: KP82_020A | B34: 0.1671459237 | C34: 0.004059282685 | D34: 0.02469853658 | E34: 0.0005443196193 | F34: 0.04908129175 | G34: 0.0003572576437 | H34: 156.9390133 | I34: 3.525331105 | J34: 157.2825701 | K34: 3.423424502 | L34: 151.7160927 | M34: 16.96561141 | N34: 103.6690092 | O34: 0.1671459237 | P34: 0.004059282685 | Q34: 0.02469853658 | R34: 0.0005443196193 | S34: 0.955222679 | T34: 0.02203853728 | U34: 40.48822879 | V34: 0.8923013398 | W34: 0.04908129175 | X34: 0.0003572576437 | Y34: KP82_020A | Z34: 40.48822879 | AA34: 0.01101926864 | AB34: 0.04908129175 | AC34: 0.00363944826 | AD34: 157.2825701 | AE34: 3.423424502 | AF34: 151.7160927 | AG34: 16.96561141 | AH34: 157.2825701 | AI34: 3.423424502
A35: KP82_117A | B35: 0.1669569968 | C35: 0.007158987797 | D35: 0.02472258731 | E35: 0.0009701380878 | F35: 0.04898231443 | G35: 0.0005253378329 | H35: 156.774639 | I35: 6.210090505 | J35: 157.4338723 | K35: 6.100142109 | L35: 146.9845113 | M35: 24.95855309 | N35: 107.1091579 | O35: 0.1669569968 | P35: 0.007158987797 | Q35: 0.02472258731 | R35: 0.0009701380878 | S35: 0.969752656 | T35: 0.03924096113 | U35: 40.44884087 | V35: 1.587251392 | W35: 0.04898231443 | X35: 0.0005253378329 | Y35: KP82_117A | Z35: 40.44884087 | AA35: 0.01962048057 | AB35: 0.04898231443 | AC35: 0.005362525628 | AD35: 157.4338723 | AE35: 6.100142109 | AF35: 146.9845113 | AG35: 24.95855309 | AH35: 157.4338723 | AI35: 6.100142109
A36: KP82_062A | B36: 0.1711810389 | C36: 0.005437971684 | D36: 0.02476866226 | E36: 0.0007515714123 | F36: 0.05012331506 | G36: 0.0003334219143 | H36: 160.443392 | I36: 4.703666453 | J36: 157.723718 | K36: 4.726105514 | L36: 200.7156949 | M36: 15.37294905 | N36: 78.58066013 | O36: =B36 -> 0.1711810389 | P36: =C36 -> 0.005437971684 | Q36: =D36 -> 0.02476866226 | R36: =E36 -> 0.0007515714123 | S36: =((P36/O36)^2+(R36/Q36)^2-(G36/F36)^2)/(2*(P36/O36)*(R36/Q36)) -> 0.9780989343 | T36: =E36/D36 -> 0.03034364167 | U36: =1/D36 -> 40.37359747 | V36: =U36*T36 -> 1.225081975 | W36: =F36 -> 0.05012331506 | X36: =G36 -> 0.0003334219143 | Y36: =A36 -> KP82_062A | Z36: =U36 -> 40.37359747 | AA36: =V36/U36/2 -> 0.01517182084 | AB36: =W36 -> 0.05012331506 | AC36: =X36/W36/2 -> 0.003326016186 | AD36: =J36 -> 157.723718 | AE36: =K36 -> 4.726105514 | AF36: =L36 -> 200.7156949 | AG36: =M36 -> 15.37294905 | AH36: 157.723718 | AI36: 4.726105514
A37: KP82_118A | B37: 0.1695609731 | C37: 0.006995130071 | D37: 0.0247869541 | E37: 0.0009299306662 | F37: 0.04961709517 | G37: 0.0005258715429 | H37: 159.0378654 | I37: 6.054904632 | J37: 157.8387837 | K37: 5.847068932 | L37: 177.0950168 | M37: 24.53078158 | N37: 89.12660933 | O37: 0.1695609731 | P37: 0.006995130071 | Q37: 0.0247869541 | R37: 0.0009299306662 | S37: 0.9682239724 | T37: 0.03751693986 | U37: 40.34380327 | V37: 1.513576041 | W37: 0.04961709517 | X37: 0.0005258715429 | Y37: KP82_118A | Z37: 40.34380327 | AA37: 0.01875846993 | AB37: 0.04961709517 | AC37: 0.005299297964 | AD37: 157.8387837 | AE37: 5.847068932 | AF37: 177.0950168 | AG37: 24.53078158 | AH37: 157.8387837 | AI37: 5.847068932
A38: KP82_114A | B38: 0.1804040207 | C38: 0.007858027509 | D38: 0.02481455396 | E38: 0.001001662093 | F38: 0.0527312828 | G38: 0.000524101656 | H38: 168.4081539 | I38: 6.737072263 | J38: 158.0123981 | K38: 6.297700525 | L38: 317.2517895 | M38: 22.44128392 | N38: 49.80662154 | O38: 0.1804040207 | P38: 0.007858027509 | Q38: 0.02481455396 | R38: 0.001001662093 | S38: 0.9748055096 | T38: 0.04036591168 | U38: 40.29893109 | V38: 1.626703093 | W38: 0.0527312828 | X38: 0.000524101656 | Y38: KP82_114A | Z38: 40.29893109 | AA38: 0.02018295584 | AB38: 0.0527312828 | AC38: 0.004969551547 | AD38: 158.0123981 | AE38: 6.297700525 | AF38: 317.2517895 | AG38: 22.44128392 | AH38: 158.0123981 | AI38: 6.297700525
A39: KP82_035A | B39: 0.1706320159 | C39: 0.007781404815 | D39: 0.02488773923 | E39: 0.001077339792 | F39: 0.04972590876 | G39: 0.0004327762592 | H39: 159.967292 | I39: 6.727103151 | J39: 158.4727406 | K39: 6.772771885 | L39: 182.201282 | M39: 20.15209389 | N39: 86.97674294 | O39: 0.1706320159 | P39: 0.007781404815 | Q39: 0.02488773923 | R39: 0.001077339792 | S39: 0.9821727165 | T39: 0.04328797333 | U39: 40.18042742 | V39: 1.739329271 | W39: 0.04972590876 | X39: 0.0004327762592 | Y39: KP82_035A | Z39: 40.18042742 | AA39: 0.02164398666 | AB39: 0.04972590876 | AC39: 0.004351617396 | AD39: 158.4727406 | AE39: 6.772771885 | AF39: 182.201282 | AG39: 20.15209389 | AH39: 158.4727406 | AI39: 6.772771885
A40: KP82_072A | B40: 0.1734112707 | C40: 0.005908421 | D40: 0.02499009815 | E40: 0.0007785473292 | F40: 0.05032642014 | G40: 0.0004996438848 | H40: 162.3751054 | I40: 5.099880321 | J40: 159.1165331 | K40: 4.894616494 | L40: 210.0974312 | M40: 22.85193816 | N40: 75.73463998 | O40: 0.1734112707 | P40: 0.005908421 | Q40: 0.02499009815 | R40: 0.0007785473292 | S40: 0.95758054 | T40: 0.03115423255 | U40: 40.01584924 | V40: 1.246663073 | W40: 0.05032642014 | X40: 0.0004996438848 | Y40: KP82_072A | Z40: 40.01584924 | AA40: 0.01557711628 | AB40: 0.05032642014 | AC40: 0.00496403165 | AD40: 159.1165331 | AE40: 4.894616494 | AF40: 210.0974312 | AG40: 22.85193816 | AH40: 159.1165331 | AI40: 4.894616494
A41: KP82_009A | B41: 0.1713970837 | C41: 0.004191981045 | D41: 0.02506601563 | E41: 0.000532747666 | F41: 0.04959172854 | G41: 0.000392912168 | H41: 160.6306799 | I41: 3.627180366 | J41: 159.5939791 | K41: 3.349462304 | L41: 175.9023452 | M41: 18.37661258 | N41: 90.72873869 | O41: 0.1713970837 | P41: 0.004191981045 | Q41: 0.02506601563 | R41: 0.000532747666 | S41: 0.9494941866 | T41: 0.02125378336 | U41: 39.89465317 | V41: 0.8479123159 | W41: 0.04959172854 | X41: 0.000392912168 | Y41: KP82_009A | Z41: 39.89465317 | AA41: 0.01062689168 | AB41: 0.04959172854 | AC41: 0.003961468773 | AD41: 159.5939791 | AE41: 3.349462304 | AF41: 175.9023452 | AG41: 18.37661258 | AH41: 159.5939791 | AI41: 3.349462304
A42: KP82_032A | B42: 0.1724488057 | C42: 0.007837361291 | D42: 0.02507020775 | E42: 0.001082132325 | F42: 0.04988958748 | G42: 0.0004287400133 | H42: 161.5419179 | I42: 6.764853131 | J42: 159.6203424 | K42: 6.801674273 | L42: 189.8522292 | M42: 19.87242144 | N42: 84.07609593 | O42: 0.1724488057 | P42: 0.007837361291 | Q42: 0.02507020775 | R42: 0.001082132325 | S42: 0.9825051714 | T42: 0.04316407491 | U42: 39.88798218 | V42: 1.721727851 | W42: 0.04988958748 | X42: 0.0004287400133 | Y42: KP82_032A | Z42: 39.88798218 | AA42: 0.02158203746 | AB42: 0.04988958748 | AC42: 0.00429688874 | AD42: 159.6203424 | AE42: 6.801674273 | AF42: 189.8522292 | AG42: 19.87242144 | AH42: 159.6203424 | AI42: 6.801674273
A43: KP82_111A | B43: 0.1737840924 | C43: 0.007165649552 | D43: 0.02526509928 | E43: 0.0009549720055 | F43: 0.04989047148 | G43: 0.0004992769464 | H43: 162.6976665 | I43: 6.179808073 | J43: 160.8458507 | K43: 6.001647599 | L43: 189.8934533 | M43: 23.11819758 | N43: 84.70321009 | O43: 0.1737840924 | P43: 0.007165649552 | Q43: 0.02526509928 | R43: 0.0009549720055 | S43: 0.9716559402 | T43: 0.03779807057 | U43: 39.58029173 | V43: 1.49605866 | W43: 0.04989047148 | X43: 0.0004992769464 | Y43: KP82_111A | Z43: 39.58029173 | AA43: 0.01889903529 | AB43: 0.04989047148 | AC43: 0.005003730488 | AD43: 160.8458507 | AE43: 6.001647599 | AF43: 189.8934533 | AG43: 23.11819758 | AH43: 160.8458507 | AI43: 6.001647599
A44: KP82_064A | B44: 0.1739377967 | C44: 0.005819842664 | D44: 0.02547177024 | E44: 0.0008006974536 | F44: 0.04952466151 | G44: 0.0004061462961 | H44: 162.8306198 | I44: 5.021364758 | J44: 162.1451755 | K44: 5.031453324 | L44: 172.7448304 | M44: 19.0285478 | N44: 93.86398141 | O44: 0.1739377967 | P44: 0.005819842664 | Q44: 0.02547177024 | R44: 0.0008006974536 | S44: 0.9699769866 | T44: 0.0314346999 | U44: 39.25914809 | V44: 1.234099539 | W44: 0.04952466151 | X44: 0.0004061462961 | Y44: KP82_064A | Z44: 39.25914809 | AA44: 0.01571734995 | AB44: 0.04952466151 | AC44: 0.004100444947 | AD44: 162.1451755 | AE44: 5.031453324 | AF44: 172.7448304 | AG44: 19.0285478 | AH44: 162.1451755 | AI44: 5.031453324
A45: KP82_011A | B45: 0.175676817 | C45: 0.004710069924 | D45: 0.02560442251 | E45: 0.0005425715321 | F45: 0.04976117115 | G45: 0.0005634581829 | H45: 164.3336511 | I45: 4.059764211 | J45: 162.9790124 | K45: 3.40941975 | L45: 183.8493002 | M45: 26.16399901 | N45: 88.64815487 | O45: 0.175676817 | P45: 0.004710069924 | Q45: 0.02560442251 | R45: 0.0005425715321 | S45: 0.9149623375 | T45: 0.02119053972 | U45: 39.05575295 | V45: 0.8276124841 | W45: 0.04976117115 | X45: 0.0005634581829 | Y45: KP82_011A | Z45: 39.05575295 | AA45: 0.01059526986 | AB45: 0.04976117115 | AC45: 0.005661625017 | AD45: 162.9790124 | AE45: 3.40941975 | AF45: 183.8493002 | AG45: 26.16399901 | AH45: 162.9790124 | AI45: 3.40941975
A46: KP82_116A | B46: 0.1689100317 | C46: 0.007473952942 | D46: 0.02562164733 | E46: 0.001025402795 | F46: 0.04781641273 | G46: 0.000577482634 | H46: 158.4725773 | I46: 6.471641334 | J46: 163.0872777 | K46: 6.441818928 | L46: 90.19544528 | M46: 28.37403971 | N46: 180.815425 | O46: 0.1689100317 | P46: 0.007473952942 | Q46: 0.02562164733 | R46: 0.001025402795 | S46: 0.9638629244 | T46: 0.040020955 | U46: 39.0294967 | V46: 1.561997731 | W46: 0.04781641273 | X46: 0.000577482634 | Y46: KP82_116A | Z46: 39.0294967 | AA46: 0.0200104775 | AB46: 0.04781641273 | AC46: 0.006038539918 | AD46: 163.0872777 | AE46: 6.441818928 | AF46: 90.19544528 | AG46: 28.37403971 | AH46: 163.0872777 | AI46: 6.441818928
A47: KP82_098A | B47: 0.1803472445 | C47: 0.006732763566 | D47: 0.02563403178 | E47: 0.0008621057315 | F47: 0.05102542005 | G47: 0.0005334669929 | H47: 168.3593138 | I47: 5.775343212 | J47: 163.1651181 | K47: 5.416314251 | L47: 241.9783955 | M47: 23.91740733 | N47: 67.42962231 | O47: 0.1803472445 | P47: 0.006732763566 | Q47: 0.02563403178 | R47: 0.0008621057315 | S47: 0.9619250272 | T47: 0.03363129681 | U47: 39.01064056 | V47: 1.311978432 | W47: 0.05102542005 | X47: 0.0005334669929 | Y47: KP82_098A | Z47: 39.01064056 | AA47: 0.01681564841 | AB47: 0.05102542005 | AC47: 0.005227463021 | AD47: 163.1651181 | AE47: 5.416314251 | AF47: 241.9783955 | AG47: 23.91740733 | AH47: 163.1651181 | AI47: 5.416314251
A48: KP82_034A | B48: 0.1736762109 | C48: 0.007841694697 | D48: 0.02576307112 | E48: 0.001100503251 | F48: 0.0488934134 | G48: 0.0004377990729 | H48: 162.6043392 | I48: 6.76152617 | J48: 163.9761177 | K48: 6.912411919 | L48: 142.7229294 | M48: 20.87998709 | N48: 114.891222 | O48: 0.1736762109 | P48: 0.007841694697 | Q48: 0.02576307112 | R48: 0.001100503251 | S48: 0.980751743 | T48: 0.04271630683 | U48: 38.8152482 | V48: 1.658044052 | W48: 0.0488934134 | X48: 0.0004377990729 | Y48: KP82_034A | Z48: 38.8152482 | AA48: 0.02135815342 | AB48: 0.0488934134 | AC48: 0.004477076179 | AD48: 163.9761177 | AE48: 6.912411919 | AF48: 142.7229294 | AG48: 20.87998709 | AH48: 163.9761177 | AI48: 6.912411919
A49: KP82_079A | B49: 0.1761423956 | C49: 0.00463994214 | D49: 0.02576441686 | E49: 0.0006253601902 | F49: 0.04958451113 | G49: 0.0003657849856 | H49: 164.7356722 | I49: 3.997857579 | J49: 163.9845749 | K49: 3.928877212 | L49: 175.5628428 | M49: 17.11803707 | N49: 93.40505785 | O49: 0.1761423956 | P49: 0.00463994214 | Q49: 0.02576441686 | R49: 0.0006253601902 | S49: 0.9607930157 | T49: 0.02427224313 | U49: 38.81322079 | V49: 0.9420839317 | W49: 0.04958451113 | X49: 0.0003657849856 | Y49: KP82_079A | Z49: 38.81322079 | AA49: 0.01213612157 | AB49: 0.04958451113 | AC49: 0.003688500474 | AD49: 163.9845749 | AE49: 3.928877212 | AF49: 175.5628428 | AG49: 17.11803707 | AH49: 163.9845749 | AI49: 3.928877212
A50: KP82_016A | B50: 0.1924006904 | C50: 0.004999402706 | D50: 0.02778206773 | E50: 0.0006443862441 | F50: 0.05022656487 | G50: 0.0004232658988 | H50: 178.6755972 | I50: 4.248317453 | J50: 176.6520431 | K50: 4.04042753 | L50: 205.4917108 | M50: 19.43394078 | N50: 85.96553234 | O50: 0.1924006904 | P50: 0.004999402706 | Q50: 0.02778206773 | R50: 0.0006443862441 | S50: 0.9475414055 | T50: 0.0231943227 | U50: 35.99444108 | V50: 0.8348666817 | W50: 0.05022656487 | X50: 0.0004232658988 | Y50: KP82_016A | Z50: 35.99444108 | AA50: 0.01159716135 | AB50: 0.05022656487 | AC50: 0.004213566067 | AD50: 176.6520431 | AE50: 4.04042753 | AF50: 205.4917108 | AG50: 19.43394078 | AH50: 176.6520431 | AI50: 4.04042753
A51: KP82_110A | B51: 0.1914764727 | C51: 0.00804858048 | D51: 0.02794920991 | E51: 0.001076589863 | F51: 0.0496906274 | G51: 0.0005128564535 | H51: 177.8882789 | I51: 6.835983166 | J51: 177.7003005 | K51: 6.747913573 | L51: 180.5473919 | M51: 23.87787618 | N51: 98.42307808 | O51: 0.1914764727 | P51: 0.00804858048 | Q51: 0.02794920991 | R51: 0.001076589863 | S51: 0.9709200583 | T51: 0.03851950972 | U51: 35.77918671 | V51: 1.37819673 | W51: 0.0496906274 | X51: 0.0005128564535 | Y51: KP82_110A | Z51: 35.77918671 | AA51: 0.01925975486 | AB51: 0.0496906274 | AC51: 0.00516049485 | AD51: 177.7003005 | AE51: 6.747913573 | AF51: 180.5473919 | AG51: 23.87787618 | AH51: 177.7003005 | AI51: 6.747913573
A52: KP82_074A | B52: 0.2570088081 | C52: 0.008458542851 | D52: 0.03585888307 | E52: 0.001144651209 | F52: 0.05198019803 | G52: 0.000292085936 | H52: 232.2535786 | I52: 6.809731959 | J52: 227.1131107 | K52: 7.119523687 | L52: 284.5389072 | M52: 12.80019233 | N52: 79.81794581 | O52: 0.2570088081 | P52: 0.008458542851 | Q52: 0.03585888307 | R52: 0.001144651209 | S52: 0.9854392653 | T52: 0.03192099451 | U52: 27.88709281 | V52: 0.8901837362 | W52: 0.05198019803 | X52: 0.000292085936 | Y52: KP82_074A | Z52: 27.88709281 | AA52: 0.01596049725 | AB52: 0.05198019803 | AC52: 0.002809588527 | AD52: 227.1131107 | AE52: 7.119523687 | AF52: 284.5389072 | AG52: 12.80019233 | AH52: 227.1131107 | AI52: 7.119523687
A53: KP82_109A | B53: 0.418812527 | C53: 0.01890038871 | D53: 0.05626514913 | E53: 0.002227542544 | F53: 0.05398943545 | G53: 0.0007750200502 | H53: 355.2015771 | I53: 13.43689377 | J53: 352.8718257 | K53: 13.58043638 | L53: 370.608924 | M53: 32.01038487 | N53: 95.21406605 | O53: 0.418812527 | P53: 0.01890038871 | Q53: 0.05626514913 | R53: 0.002227542544 | S53: 0.9509155267 | T53: 0.03959009401 | U53: 17.77299119 | V53: 0.7036343923 | W53: 0.05398943545 | X53: 0.0007750200502 | Y53: KP82_109A | Z53: 17.77299119 | AA53: 0.01979504701 | AB53: 0.05398943545 | AC53: 0.007177515784 | AD53: 352.8718257 | AE53: 13.58043638 | AF53: 370.608924 | AG53: 32.01038487 | AH53: 352.8718257 | AI53: 13.58043638
A54: KP82_087A | B54: 0.4469938992 | C54: 0.01427167815 | D54: 0.05652307824 | E54: 0.001654139994 | F54: 0.05735591927 | G54: 0.000531136715 | H54: 375.1720886 | I54: 9.965642043 | J54: 354.4457817 | K54: 10.08490301 | L54: 505.2446359 | M54: 20.24512595 | N54: 70.15329933 | O54: 0.4469938992 | P54: 0.01427167815 | Q54: 0.05652307824 | R54: 0.001654139994 | S54: 0.9579068387 | T54: 0.0292648604 | U54: 17.69188854 | V54: 0.5177506482 | W54: 0.05735591927 | X54: 0.000531136715 | Y54: KP82_087A | Z54: 17.69188854 | AA54: 0.0146324302 | AB54: 0.05735591927 | AC54: 0.004630182218 | AD54: 354.4457817 | AE54: 10.08490301 | AF54: 505.2446359 | AG54: 20.24512595 | AH54: 354.4457817 | AI54: 10.08490301
A55: KP82_088A | B55: 0.4686096919 | C55: 0.01480031515 | D55: 0.06096324238 | E55: 0.001668880416 | F55: 0.05575010169 | G55: 0.0006396107915 | H55: 390.2281215 | I55: 10.18158186 | J55: 381.4808362 | K55: 10.13215302 | L55: 442.4299042 | M55: 25.31564246 | N55: 86.22401708 | O55: 0.4686096919 | P55: 0.01480031515 | Q55: 0.06096324238 | R55: 0.001668880416 | S55: 0.9341223605 | T55: 0.0273751912 | U55: 16.40332701 | V55: 0.4490442131 | W55: 0.05575010169 | X55: 0.0006396107915 | Y55: KP82_088A | Z55: 16.40332701 | AA55: 0.0136875956 | AB55: 0.05575010169 | AC55: 0.005736409192 | AD55: 381.4808362 | AE55: 10.13215302 | AF55: 442.4299042 | AG55: 25.31564246 | AH55: 381.4808362 | AI55: 10.13215302
A56: KP82_077A | B56: 0.4734191492 | C56: 0.01372886488 | D56: 0.06361130267 | E56: 0.001751065388 | F56: 0.05397765159 | G56: 0.0003530920498 | H56: 393.5479025 | I56: 9.417220348 | J56: 397.5504086 | K56: 10.60426012 | L56: 370.1172768 | M56: 14.66704526 | N56: 107.4120106 | O56: 0.4734191492 | P56: 0.01372886488 | Q56: 0.06361130267 | R56: 0.001751065388 | S56: 0.9745551724 | T56: 0.0275275826 | U56: 15.72047668 | V56: 0.4327467202 | W56: 0.05397765159 | X56: 0.0003530920498 | Y56: KP82_077A | Z56: 15.72047668 | AA56: 0.0137637913 | AB56: 0.05397765159 | AC56: 0.003270724451 | AD56: 397.5504086 | AE56: 10.60426012 | AF56: 370.1172768 | AG56: 14.66704526 | AH56: 397.5504086 | AI56: 10.60426012
A57: KP82_113A | B57: 0.5112932012 | C57: 0.02539096578 | D57: 0.06474806638 | E57: 0.00275335488 | F57: 0.05727588543 | G57: 0.001004218786 | H57: 419.3183824 | I57: 16.91754869 | J57: 404.4365111 | K57: 16.64840434 | L57: 502.171652 | M57: 38.13616834 | N57: 80.53750336 | O57: 0.5112932012 | P57: 0.02539096578 | Q57: 0.06474806638 | R57: 0.00275335488 | S57: 0.9392729943 | T57: 0.04252412519 | U57: 15.44447666 | V57: 0.656762859 | W57: 0.05727588543 | X57: 0.001004218786 | Y57: KP82_113A | Z57: 15.44447666 | AA57: 0.02126206259 | AB57: 0.05727588543 | AC57: 0.008766505993 | AD57: 404.4365111 | AE57: 16.64840434 | AF57: 502.171652 | AG57: 38.13616834 | AH57: 404.4365111 | AI57: 16.64840434
A58: KP82_022A | B58: 0.5030426249 | C58: 0.01184139156 | D58: 0.06722828999 | E58: 0.001392172825 | F58: 0.05426804015 | G58: 0.0004360916374 | H58: 413.7599333 | I58: 7.968126101 | J58: 419.4353227 | K58: 8.403707333 | L58: 382.189421 | M58: 17.96107368 | N58: 109.7454036 | O58: 0.5030426249 | P58: 0.01184139156 | Q58: 0.06722828999 | R58: 0.001392172825 | S58: 0.9419864295 | T58: 0.02070813976 | U58: 14.8746904 | V58: 0.3080271678 | W58: 0.05426804015 | X58: 0.0004360916374 | Y58: KP82_022A | Z58: 14.8746904 | AA58: 0.01035406988 | AB58: 0.05426804015 | AC58: 0.004017941648 | AD58: 419.4353227 | AE58: 8.403707333 | AF58: 382.189421 | AG58: 17.96107368 | AH58: 419.4353227 | AI58: 8.403707333
A59: KP82_097A | B59: 0.7594290591 | C59: 0.02652959766 | D59: 0.09114952678 | E59: 0.002965325617 | F59: 0.06042640941 | G59: 0.0004566311527 | H59: 573.6806196 | I59: 15.19619789 | J59: 562.3320048 | K59: 17.49511778 | L59: 618.8782426 | M59: 16.22625863 | N59: 90.86310781 | O59: 0.7594290591 | P59: 0.02652959766 | Q59: 0.09114952678 | R59: 0.002965325617 | S59: 0.9774125571 | T59: 0.0325325399 | U59: 10.970984 | V59: 0.3569139748 | W59: 0.06042640941 | X59: 0.0004566311527 | Y59: KP82_097A | Z59: 10.970984 | AA59: 0.01626626995 | AB59: 0.06042640941 | AC59: 0.003778407133 | AD59: 562.3320048 | AE59: 17.49511778 | AF59: 618.8782426 | AG59: 16.22625863 | AH59: 562.3320048 | AI59: 17.49511778
A60: KP82_003A | B60: 2.334260108 | C60: 0.05368003924 | D60: 0.1614732014 | E60: 0.003412301125 | F60: 0.1048431151 | G60: 0.000561709654 | H60: 1222.775852 | I60: 16.217 | J60: 964.9585855 | K60: 18.91120411 | L60: 1711.564682 | M60: 9.822737294 | N60: 56.37873904 | O60: 2.334260108 | P60: 0.05368003924 | Q60: 0.1614732014 | R60: 0.003412301125 | S60: 0.9740431908 | T60: 0.02113230613 | U60: 6.192978099 | V60: 0.1308719091 | W60: 0.1048431151 | X60: 0.000561709654 | Y60: KP82_003A | Z60: 6.192978099 | AA60: 0.01056615307 | AB60: 0.1048431151 | AC60: 0.002678810399 | AD60: 964.9585855 | AE60: 18.91120411 | AF60: 1711.564682 | AG60: 9.822737294 | AH60: 1711.564682 | AI60: 9.822737294
A61: KP82_053A | B61: 1.670188286 | C61: 0.06114437149 | D61: 0.1652102611 | E61: 0.005634355562 | F61: 0.07331697082 | G61: 0.0005519282315 | H61: 997.2574392 | I61: 22.98893637 | J61: 985.6667356 | K61: 31.09640992 | L61: 1022.727157 | M61: 15.16088801 | N61: 96.37631397 | O61: 1.670188286 | P61: 0.06114437149 | Q61: 0.1652102611 | R61: 0.005634355562 | S61: 0.9798183256 | T61: 0.03410415022 | U61: 6.052892801 | V61: 0.2064287654 | W61: 0.07331697082 | X61: 0.0005519282315 | Y61: KP82_053A | Z61: 6.052892801 | AA61: 0.01705207511 | AB61: 0.07331697082 | AC61: 0.003763986873 | AD61: 985.6667356 | AE61: 31.09640992 | AF61: 1022.727157 | AG61: 15.16088801 | AH61: 1022.727157 | AI61: 15.16088801 | AJ61: 96.37631397
A62: KP82_047A | B62: 1.703064144 | C62: 0.062499442 | D62: 0.1656694349 | E62: 0.005624286779 | F62: 0.07455292927 | G62: 0.0006038001471 | H62: 1009.682691 | I62: 23.21007777 | J62: 988.2065704 | K62: 31.02877506 | L62: 1056.473817 | M62: 16.22219986 | N62: 93.53819799 | O62: 1.703064144 | P62: 0.062499442 | Q62: 0.1656694349 | R62: 0.005624286779 | S62: 0.9767093816 | T62: 0.0339488499 | U62: 6.036116442 | V62: 0.204919211 | W62: 0.07455292927 | X62: 0.0006038001471 | Y62: KP82_047A | Z62: 6.036116442 | AA62: 0.01697442495 | AB62: 0.07455292927 | AC62: 0.004049472992 | AD62: 988.2065704 | AE62: 31.02877506 | AF62: 1056.473817 | AG62: 16.22219986 | AH62: 1056.473817 | AI62: 16.22219986 | AJ62: 93.53819799
A63: KP82_031A | B63: 1.691008084 | C63: 0.08005148113 | D63: 0.1659463882 | E63: 0.007293956721 | F63: 0.07390699321 | G63: 0.0008486737741 | H63: 1005.143804 | I63: 29.76482279 | J63: 989.7380024 | K63: 40.20202216 | L63: 1038.928993 | M63: 23.01075843 | N63: 95.26522112 | O63: 1.691008084 | P63: 0.08005148113 | Q63: 0.1659463882 | R63: 0.007293956721 | S63: 0.9710691457 | T63: 0.04395369372 | U63: 6.026042572 | V63: 0.2648668296 | W63: 0.07390699321 | X63: 0.0008486737741 | Y63: KP82_031A | Z63: 6.026042572 | AA63: 0.02197684686 | AB63: 0.07390699321 | AC63: 0.005741498451 | AD63: 989.7380024 | AE63: 40.20202216 | AF63: 1038.928993 | AG63: 23.01075843 | AH63: 1038.928993 | AI63: 23.01075843 | AJ63: 95.26522112
A64: KP82_073A | B64: 1.770271949 | C64: 0.05730059412 | D64: 0.1709282335 | E64: 0.005371123072 | F64: 0.07511261184 | G64: 0.0004073678988 | H64: 1034.619985 | I64: 20.78803172 | J64: 1017.223505 | K64: 29.50250289 | L64: 1071.516468 | M64: 10.85748184 | N64: 94.93307246 | O64: 1.770271949 | P64: 0.05730059412 | Q64: 0.1709282335 | R64: 0.005371123072 | S64: 0.9859796736 | T64: 0.03142326439 | U64: 5.850408558 | V64: 0.1838389349 | W64: 0.07511261184 | X64: 0.0004073678988 | Y64: KP82_073A | Z64: 5.850408558 | AA64: 0.01571163219 | AB64: 0.07511261184 | AC64: 0.002711714377 | AD64: 1017.223505 | AE64: 29.50250289 | AF64: 1071.516468 | AG64: 10.85748184 | AH64: 1071.516468 | AI64: 10.85748184 | AJ64: 94.93307246
A65: KP82_041A | B65: 1.900993208 | C65: 0.08622832276 | D65: 0.1833625546 | E65: 0.007890895103 | F65: 0.07519302715 | G65: 0.0006537734812 | H65: 1081.436933 | I65: 29.74111548 | J65: 1085.318347 | K65: 42.84327676 | L65: 1073.665815 | M65: 17.36393907 | N65: 101.0853034 | O65: 1.900993208 | P65: 0.08622832276 | Q65: 0.1833625546 | R65: 0.007890895103 | S65: 0.9820213671 | T65: 0.04303438682 | U65: 5.453676201 | V65: 0.2346956112 | W65: 0.07519302715 | X65: 0.0006537734812 | Y65: KP82_041A | Z65: 5.453676201 | AA65: 0.02151719341 | AB65: 0.07519302715 | AC65: 0.004347301246 | AD65: 1085.318347 | AE65: 42.84327676 | AF65: 1073.665815 | AG65: 17.36393907 | AH65: 1073.665815 | AI65: 17.36393907 | AJ65: 101.0853034
A66: KP82_050A | B66: 2.03788794 | C66: 0.07847718206 | D66: 0.1853470317 | E66: 0.006717165029 | F66: 0.07973899569 | G66: 0.0005792001305 | H66: 1128.25559 | I66: 25.89712168 | J66: 1096.119809 | K66: 36.42764248 | L66: 1190.539804 | M66: 14.27238661 | N66: 92.06914424 | O66: 2.03788794 | P66: 0.07847718206 | Q66: 0.1853470317 | R66: 0.006717165029 | S66: 0.9829403237 | T66: 0.03624101756 | U66: 5.395284677 | V66: 0.1955306067 | W66: 0.07973899569 | X66: 0.0005792001305 | Y66: KP82_050A | Z66: 5.395284677 | AA66: 0.01812050878 | AB66: 0.07973899569 | AC66: 0.003631849921 | AD66: 1096.119809 | AE66: 36.42764248 | AF66: 1190.539804 | AG66: 14.27238661 | AH66: 1190.539804 | AI66: 14.27238661 | AJ66: 92.06914424
A67: KP82_106A | B67: 2.058514519 | C67: 0.0866038738 | D67: 0.1881778201 | E67: 0.007306777355 | F67: 0.07934400136 | G67: 0.0007752059226 | H67: 1135.126513 | I67: 28.35171592 | J67: 1111.49647 | K67: 39.52125129 | L67: 1180.729819 | M67: 19.19394973 | N67: 94.13639362 | O67: 2.058514519 | P67: 0.0866038738 | Q67: 0.1881778201 | R67: 0.007306777355 | S67: 0.9739999489 | T67: 0.03882911043 | U67: 5.314122566 | V67: 0.2063426519 | W67: 0.07934400136 | X67: 0.0007752059226 | Y67: KP82_106A | Z67: 5.314122566 | AA67: 0.01941455521 | AB67: 0.07934400136 | AC67: 0.004885094709 | AD67: 1111.49647 | AE67: 39.52125129 | AF67: 1180.729819 | AG67: 19.19394973 | AH67: 1180.729819 | AI67: 19.19394973 | AJ67: 94.13639362
A68: KP82_040A | B68: 2.033291937 | C68: 0.08984728055 | D68: 0.1889042594 | E68: 0.008004563473 | F68: 0.07806666786 | G68: 0.0005479495795 | H68: 1126.718259 | I68: 29.6392119 | J68: 1115.436535 | K68: 43.25646925 | L68: 1148.570343 | M68: 13.87826832 | N68: 97.115213 | O68: =B68 -> 2.033291937 | P68: =C68 -> 0.08984728055 | Q68: =D68 -> 0.1889042594 | R68: =E68 -> 0.008004563473 | S68: =((P68/O68)^2+(R68/Q68)^2-(G68/F68)^2)/(2*(P68/O68)*(R68/Q68)) -> 0.9877232794 | T68: =E68/D68 -> 0.04237365265 | U68: =1/D68 -> 5.293686881 | V68: =U68*T68 -> 0.2243128491 | W68: =F68 -> 0.07806666786 | X68: =G68 -> 0.0005479495795 | Y68: =A68 -> KP82_040A | Z68: =U68 -> 5.293686881 | AA68: =V68/U68/2 -> 0.02118682632 | AB68: =W68 -> 0.07806666786 | AC68: =X68/W68/2 -> 0.00350949768 | AD68: =J68 -> 1115.436535 | AE68: =K68 -> 43.25646925 | AF68: =L68 -> 1148.570343 | AG68: =M68 -> 13.87826832 | AH68: 1148.570343 | AI68: 13.87826832 | AJ68: 97.115213
A69: KP82_017A | B69: 2.342908391 | C69: 0.05553215333 | D69: 0.203221775 | E69: 0.004555837209 | F69: 0.08361351551 | G69: 0.0004462002942 | H69: 1225.406106 | I69: 16.72890201 | J69: 1192.604491 | K69: 24.36238575 | L69: 1283.575809 | M69: 10.35959485 | N69: =(1- ((L69-J69)/L69))*100 -> 92.91266494 | O69: 2.342908391 | P69: 0.05553215333 | Q69: 0.203221775 | R69: 0.004555837209 | S69: 0.9747545705 | T69: 0.02241805638 | U69: 4.920732535 | V69: 0.1103132594 | W69: 0.08361351551 | X69: 0.0004462002942 | Y69: KP82_017A | Z69: 4.920732535 | AA69: 0.01120902819 | AB69: 0.08361351551 | AC69: 0.002668230677 | AD69: 1192.604491 | AE69: 24.36238575 | AF69: 1283.575809 | AG69: 10.35959485 | AH69: 1283.575809 | AI69: 10.35959485 | AJ69: 92.91266494
A70: KP82_069A | B70: 2.579811479 | C70: 0.08407763493 | D70: 0.219977719 | E70: 0.006952550179 | F70: 0.08505423771 | G70: 0.0004736077501 | H70: 1294.928303 | I70: 23.5721614 | J70: 1281.757263 | K70: 36.63328487 | L70: 1316.775484 | M70: 10.75767338 | N70: 97.3406081 | O70: 2.579811479 | P70: 0.08407763493 | Q70: 0.219977719 | R70: 0.006952550179 | S70: 0.9854201387 | T70: 0.03160570175 | U70: 4.545914943 | V70: 0.1436768319 | W70: 0.08505423771 | X70: 0.0004736077501 | Y70: KP82_069A | Z70: 4.545914943 | AA70: 0.01580285088 | AB70: 0.08505423771 | AC70: 0.002784151401 | AD70: 1281.757263 | AE70: 36.63328487 | AF70: 1316.775484 | AG70: 10.75767338 | AH70: 1316.775484 | AI70: 10.75767338 | AJ70: 97.3406081
A71: KP82_054A | B71: 2.648830354 | C71: 0.09640919763 | D71: 0.2233554609 | E71: 0.007482309188 | F71: 0.08600697378 | G71: 0.0007190908728 | H71: 1314.318592 | I71: 26.48008871 | J71: 1299.580732 | K71: 39.30759233 | L71: 1338.339447 | M71: 16.07576992 | N71: 97.10396983 | O71: 2.648830354 | P71: 0.09640919763 | Q71: 0.2233554609 | R71: 0.007482309188 | S71: 0.974776442 | T71: 0.03349955788 | U71: 4.477168349 | V71: 0.1499831602 | W71: 0.08600697378 | X71: 0.0007190908728 | Y71: KP82_054A | Z71: 4.477168349 | AA71: 0.01674977894 | AB71: 0.08600697378 | AC71: 0.004180421896 | AD71: 1299.580732 | AE71: 39.30759233 | AF71: 1338.339447 | AG71: 16.07576992 | AH71: 1338.339447 | AI71: 16.07576992 | AJ71: 97.10396983
A72: KP82_042A | B72: 2.635261621 | C72: 0.118636312 | D72: 0.2279034883 | E72: 0.009818613887 | F72: 0.08386493588 | G72: 0.0006309985158 | H72: 1310.535697 | I72: 32.60767402 | J72: 1323.501912 | K72: 51.34209073 | L72: 1289.422658 | M72: 14.57390252 | N72: 102.6429855 | O72: 2.635261621 | P72: 0.118636312 | Q72: 0.2279034883 | R72: 0.009818613887 | S72: 0.986372765 | T72: 0.0430823326 | U72: 4.387822263 | V72: 0.1890376181 | W72: 0.08386493588 | X72: 0.0006309985158 | Y72: KP82_042A | Z72: 4.387822263 | AA72: 0.0215411663 | AB72: 0.08386493588 | AC72: 0.003761992477 | AD72: 1323.501912 | AE72: 51.34209073 | AF72: 1289.422658 | AG72: 14.57390252 | AH72: 1289.422658 | AI72: 14.57390252 | AJ72: 102.6429855
A73: KP82_057A | B73: 2.864429646 | C73: 0.1278507894 | D73: 0.2335837567 | E73: 0.009284390811 | F73: 0.0889347766 | G73: 0.001192166071 | H73: 1372.60913 | I73: 33.0491985 | J73: 1353.254191 | K73: 48.3363387 | L73: 1402.755299 | M73: 25.46575777 | N73: 96.47115157 | O73: 2.864429646 | P73: 0.1278507894 | Q73: 0.2335837567 | R73: 0.009284390811 | S73: 0.9560856469 | T73: 0.03974758752 | U73: 4.281119605 | V73: 0.1701641762 | W73: 0.0889347766 | X73: 0.001192166071 | Y73: KP82_057A | Z73: 4.281119605 | AA73: 0.01987379376 | AB73: 0.0889347766 | AC73: 0.006702474086 | AD73: 1353.254191 | AE73: 48.3363387 | AF73: 1402.755299 | AG73: 25.46575777 | AH73: 1402.755299 | AI73: 25.46575777 | AJ73: 96.47115157
A74: KP82_070A | B74: 2.985155439 | C74: 0.09880799157 | D74: 0.2378489942 | E74: 0.007696841901 | F74: 0.09102324435 | G74: 0.0004386687151 | H74: 1403.844563 | I74: 24.86838447 | J74: 1375.504859 | K74: 39.9591632 | L74: 1447.088883 | M74: 9.149280924 | N74: 95.05323926 | O74: 2.985155439 | P74: 0.09880799157 | Q74: 0.2378489942 | R74: 0.007696841901 | S74: 0.9894135058 | T74: 0.0323602037 | U74: 4.20434824 | V74: 0.1360535655 | W74: 0.09102324435 | X74: 0.0004386687151 | Y74: KP82_070A | Z74: 4.20434824 | AA74: 0.01618010185 | AB74: 0.09102324435 | AC74: 0.002409652162 | AD74: 1375.504859 | AE74: 39.9591632 | AF74: 1447.088883 | AG74: 9.149280924 | AH74: 1447.088883 | AI74: 9.149280924 | AJ74: 95.05323926
A75: KP82_026A | B75: 3.031437638 | C75: 0.07292940785 | D75: 0.241774086 | E75: 0.005475433304 | F75: 0.09093483949 | G75: 0.000515277464 | H75: 1415.568915 | I75: 18.20428863 | J75: 1395.913435 | K75: 28.36209972 | L75: 1445.238313 | M75: 10.75454346 | N75: 96.58707651 | O75: 3.031437638 | P75: 0.07292940785 | Q75: 0.241774086 | R75: 0.005475433304 | S75: 0.9723600486 | T75: 0.02264689899 | U75: 4.136092568 | V75: 0.09366967061 | W75: 0.09093483949 | X75: 0.000515277464 | Y75: KP82_026A | Z75: 4.136092568 | AA75: 0.0113234495 | AB75: 0.09093483949 | AC75: 0.002833223586 | AD75: 1395.913435 | AE75: 28.36209972 | AF75: 1445.238313 | AG75: 10.75454346 | AH75: 1445.238313 | AI75: 10.75454346 | AJ75: 96.58707651
A76: KP82_120A | B76: 3.542740526 | C76: 0.1497729834 | D76: 0.2429952235 | E76: 0.009650332838 | F76: 0.1057475235 | G76: 0.0008705748018 | H76: 1536.81319 | I76: 32.9368923 | J76: 1402.249604 | K76: 49.85521398 | L76: 1727.348586 | M76: 15.03728289 | N76: 81.17930656 | O76: 3.542740526 | P76: 0.1497729834 | Q76: 0.2429952235 | R76: 0.009650332838 | S76: 0.981770843 | T76: 0.0397140845 | U76: 4.11530723 | V76: 0.1634356591 | W76: 0.1057475235 | X76: 0.0008705748018 | Y76: KP82_120A | Z76: 4.11530723 | AA76: 0.01985704225 | AB76: 0.1057475235 | AC76: 0.004116289312 | AD76: 1402.249604 | AE76: 49.85521398 | AF76: 1727.348586 | AG76: 15.03728289 | AH76: 1727.348586 | AI76: 15.03728289 | AJ76: 81.17930656
A77: KP82_066A | B77: 3.050948949 | C77: 0.09727880413 | D77: 0.2431244032 | E77: 0.007513286916 | F77: 0.09101082856 | G77: 0.0004990402397 | H77: 1420.471302 | I77: 24.0950739 | J77: 1402.91952 | K77: 38.84404692 | L77: 1446.829122 | M77: 10.40590515 | N77: 96.9651149 | O77: 3.050948949 | P77: 0.09727880413 | Q77: 0.2431244032 | R77: 0.007513286916 | S77: 0.9852320119 | T77: 0.03090305546 | U77: 4.113120636 | V77: 0.1271079951 | W77: 0.09101082856 | X77: 0.0004990402397 | Y77: KP82_066A | Z77: 4.113120636 | AA77: 0.01545152773 | AB77: 0.09101082856 | AC77: 0.002741653095 | AD77: 1402.91952 | AE77: 38.84404692 | AF77: 1446.829122 | AG77: 10.40590515 | AH77: 1446.829122 | AI77: 10.40590515 | AJ77: 96.9651149
A78: KP82_076A | B78: 3.12925406 | C78: 0.08408381022 | D78: 0.2470334858 | E78: 0.006478614807 | F78: 0.09187290571 | G78: 0.0003722566675 | H78: 1439.911434 | I78: 20.46849896 | J78: 1423.158868 | K78: 33.40385238 | L78: 1464.760283 | M78: 7.677670979 | N78: 97.15984826 | O78: 3.12925406 | P78: 0.08408381022 | Q78: 0.2470334858 | R78: 0.006478614807 | S78: 0.9886459782 | T78: 0.02622565433 | U78: 4.048034203 | V78: 0.1061623457 | W78: 0.09187290571 | X78: 0.0003722566675 | Y78: KP82_076A | Z78: 4.048034203 | AA78: 0.01311282716 | AB78: 0.09187290571 | AC78: 0.002025932807 | AD78: 1423.158868 | AE78: 33.40385238 | AF78: 1464.760283 | AG78: 7.677670979 | AH78: 1464.760283 | AI78: 7.677670979 | AJ78: 97.15984826
A79: KP82_002A | B79: 3.813670566 | C79: 0.1212912389 | D79: 0.2655302536 | E79: 0.008070773644 | F79: 0.1041646332 | G79: 0.000591897176 | H79: 1595.633756 | I79: 25.26783642 | J79: 1518.073857 | K79: 40.98072856 | L79: 1699.613114 | M79: 10.43167605 | N79: 89.31878936 | O79: 3.813670566 | P79: 0.1212912389 | Q79: 0.2655302536 | R79: 0.008070773644 | S79: 0.9843267319 | T79: 0.03039493066 | U79: 3.766049204 | V79: 0.1144688044 | W79: 0.1041646332 | X79: 0.000591897176 | Y79: KP82_002A | Z79: 3.766049204 | AA79: 0.01519746533 | AB79: 0.1041646332 | AC79: 0.002841161909 | AD79: 1518.073857 | AE79: 40.98072856 | AF79: 1699.613114 | AG79: 10.43167605 | AH79: 1699.613114 | AI79: 10.43167605 | AJ79: 89.31878936
A80: KP82_104A | B80: 3.993201754 | C80: 0.1405788268 | D80: 0.2686233038 | E80: 0.008864969651 | F80: 0.1078131073 | G80: 0.0007714026127 | H80: 1632.814477 | I80: 28.19211557 | J80: 1533.810151 | K80: 44.8900178 | L80: 1762.783046 | M80: 13.02016293 | N80: 87.0107161 | O80: 3.993201754 | P80: 0.1405788268 | Q80: 0.2686233038 | R80: 0.008864969651 | S80: 0.9800565965 | T80: 0.03300149141 | U80: 3.72268521 | V80: 0.122854164 | W80: 0.1078131073 | X80: 0.0007714026127 | Y80: KP82_104A | Z80: 3.72268521 | AA80: 0.0165007457 | AB80: 0.1078131073 | AC80: 0.003577499213 | AD80: 1533.810151 | AE80: 44.8900178 | AF80: 1762.783046 | AG80: 13.02016293 | AH80: 1762.783046 | AI80: 13.02016293 | AJ80: 87.0107161
A81: KP82_100A | B81: 3.774944629 | C81: 0.1390751755 | D81: 0.2712972086 | E81: 0.009130475506 | F81: 0.1009158207 | G81: 0.0009559680602 | H81: 1587.431972 | I81: 29.1515728 | J81: 1547.383099 | K81: 46.13277721 | L81: 1641.022368 | M81: 17.47986621 | N81: 94.29384568 | O81: 3.774944629 | P81: 0.1390751755 | Q81: 0.2712972086 | R81: 0.009130475506 | S81: 0.967908392 | T81: 0.03365488186 | U81: 3.685994431 | V81: 0.1240517071 | W81: 0.1009158207 | X81: 0.0009559680602 | Y81: KP82_100A | Z81: 3.685994431 | AA81: 0.01682744093 | AB81: 0.1009158207 | AC81: 0.004736462794 | AD81: 1547.383099 | AE81: 46.13277721 | AF81: 1641.022368 | AG81: 17.47986621 | AH81: 1641.022368 | AI81: 17.47986621 | AJ81: 94.29384568
A82: KP82_004A | B82: 3.912605246 | C82: 0.09055975037 | D82: 0.2798979608 | E82: 0.005925382831 | F82: 0.1013811989 | G82: 0.0005691296395 | H82: 1616.291213 | I82: 18.54730198 | J82: 1590.848391 | K82: 29.77528367 | L82: 1649.557287 | M82: 10.37201652 | N82: 96.44093012 | O82: 3.912605246 | P82: 0.09055975037 | Q82: 0.2798979608 | R82: 0.005925382831 | S82: 0.9718255244 | T82: 0.02116979636 | U82: 3.572730567 | V82: 0.07563397855 | W82: 0.1013811989 | X82: 0.0005691296395 | Y82: KP82_004A | Z82: 3.572730567 | AA82: 0.01058489818 | AB82: 0.1013811989 | AC82: 0.002806879608 | AD82: 1590.848391 | AE82: 29.77528367 | AF82: 1649.557287 | AG82: 10.37201652 | AH82: 1649.557287 | AI82: 10.37201652 | AJ82: 96.44093012
A83: KP82_049A | B83: 4.169615259 | C83: 0.1544534851 | D83: 0.2879298632 | E83: 0.009837714241 | F83: 0.1050232297 | G83: 0.0008855714721 | H83: 1668.069521 | I83: 29.89241489 | J83: 1631.175969 | K83: 49.05313794 | L83: 1714.72143 | M83: 15.4244486 | N83: 95.12775315 | O83: 4.169615259 | P83: 0.1544534851 | Q83: 0.2879298632 | R83: 0.009837714241 | S83: 0.9751776355 | T83: 0.03416705072 | U83: 3.47306802 | V83: 0.1186644912 | W83: 0.1050232297 | X83: 0.0008855714721 | Y83: KP82_049A | Z83: 3.47306802 | AA83: 0.01708352536 | AB83: 0.1050232297 | AC83: 0.004216074264 | AD83: 1631.175969 | AE83: 49.05313794 | AF83: 1714.72143 | AG83: 15.4244486 | AH83: 1714.72143 | AI83: 15.4244486 | AJ83: 95.12775315
A84: KP82_071A | B84: 4.21403711 | C84: 0.1377414163 | D84: 0.2927066435 | E84: 0.009237229554 | F84: 0.1044124909 | G84: 0.0006258554487 | H84: 1676.757306 | I84: 26.47561317 | J84: 1655.040732 | K84: 45.90002299 | L84: 1703.990261 | M84: 10.99580334 | N84: 97.12735863 | O84: 4.21403711 | P84: 0.1377414163 | Q84: 0.2927066435 | R84: 0.009237229554 | S84: 0.9832015683 | T84: 0.03155797711 | U84: 3.41638983 | V84: 0.1078143521 | W84: 0.1044124909 | X84: 0.0006258554487 | Y84: KP82_071A | Z84: 3.41638983 | AA84: 0.01577898855 | AB84: 0.1044124909 | AC84: 0.002997033418 | AD84: 1655.040732 | AE84: 45.90002299 | AF84: 1703.990261 | AG84: 10.99580334 | AH84: 1703.990261 | AI84: 10.99580334 | AJ84: 97.12735863
A85: KP82_119A | B85: 4.594404416 | C85: 0.1989901968 | D85: 0.2944065076 | E85: 0.01181215503 | F85: 0.1131906131 | G85: 0.001119293482 | H85: 1748.252919 | I85: 35.48918305 | J85: 1663.511973 | K85: 58.56020175 | L85: 1851.26141 | M85: 17.77140515 | N85: 89.85829681 | O85: 4.594404416 | P85: 0.1989901968 | Q85: 0.2944065076 | R85: 0.01181215503 | S85: 0.9747916689 | T85: 0.04012192232 | U85: 3.396664049 | V85: 0.1362806911 | W85: 0.1131906131 | X85: 0.001119293482 | Y85: KP82_119A | Z85: 3.396664049 | AA85: 0.02006096116 | AB85: 0.1131906131 | AC85: 0.004944285799 | AD85: 1663.511973 | AE85: 58.56020175 | AF85: 1851.26141 | AG85: 17.77140515 | AH85: 1851.26141 | AI85: 17.77140515 | AJ85: 89.85829681
A86: KP82_038A | B86: 4.762892837 | C86: 0.2126317765 | D86: 0.3038722759 | E86: 0.01301232048 | F86: 0.1136808694 | G86: 0.0008078009714 | H86: 1778.382066 | I86: 36.78968178 | J86: 1710.481939 | K86: 64.01471078 | L86: 1859.071607 | M86: 12.77987389 | N86: 92.00731874 | O86: 4.762892837 | P86: 0.2126317765 | Q86: 0.3038722759 | R86: 0.01301232048 | S86: 0.9876616428 | T86: 0.04282167711 | U86: 3.290856321 | V86: 0.1409199868 | W86: 0.1136808694 | X86: 0.0008078009714 | Y86: KP82_038A | Z86: 3.290856321 | AA86: 0.02141083855 | AB86: 0.1136808694 | AC86: 0.003552932765 | AD86: 1710.481939 | AE86: 64.01471078 | AF86: 1859.071607 | AG86: 12.77987389 | AH86: 1859.071607 | AI86: 12.77987389 | AJ86: 92.00731874
A87: KP82_115A | B87: 4.826853888 | C87: 0.1976872019 | D87: 0.3104130913 | E87: 0.01183984189 | F87: 0.1127853576 | G87: 0.0009709082225 | H87: 1789.589494 | I87: 33.87733764 | J87: 1742.739238 | K87: 57.98307765 | L87: 1844.774153 | M87: 15.49494193 | N87: 94.46897527 | O87: 4.826853888 | P87: 0.1976872019 | Q87: 0.3104130913 | R87: 0.01183984189 | S87: 0.9788143859 | T87: 0.03814221186 | U87: 3.221513616 | V87: 0.1228756549 | W87: 0.1127853576 | X87: 0.0009709082225 | Y87: KP82_115A | Z87: 3.221513616 | AA87: 0.01907110593 | AB87: 0.1127853576 | AC87: 0.004304229923 | AD87: 1742.739238 | AE87: 57.98307765 | AF87: 1844.774153 | AG87: 15.49494193 | AH87: 1844.774153 | AI87: 15.49494193 | AJ87: 94.46897527
A88: KP82_051A | B88: 4.826987655 | C88: 0.1830625544 | D88: 0.311731654 | E88: 0.01101395841 | F88: 0.1122978345 | G88: 0.0008942160623 | H88: 1789.612804 | I88: 31.40877621 | J88: 1749.222482 | K88: 53.90135815 | L88: 1836.932197 | M88: 14.35217297 | N88: 95.22520673 | O88: 4.826987655 | P88: 0.1830625544 | Q88: 0.311731654 | R88: 0.01101395841 | S88: 0.9788488176 | T88: 0.03533153681 | U88: 3.207887256 | V88: 0.1133395867 | W88: 0.1122978345 | X88: 0.0008942160623 | Y88: KP82_051A | Z88: 3.207887256 | AA88: 0.01766576841 | AB88: 0.1122978345 | AC88: 0.003981448378 | AD88: 1749.222482 | AE88: 53.90135815 | AF88: 1836.932197 | AG88: 14.35217297 | AH88: 1836.932197 | AI88: 14.35217297 | AJ88: 95.22520673
A89: KP82_091A | B89: 4.950916134 | C89: 0.1702092189 | D89: 0.3129851521 | E89: 0.009946148655 | F89: 0.1147244093 | G89: 0.0009040024805 | H89: 1810.98155 | I89: 28.63459513 | J89: 1755.379771 | K89: 48.64896076 | L89: 1875.560326 | M89: 14.13707019 | N89: 93.59228525 | O89: 4.950916134 | P89: 0.1702092189 | Q89: 0.3129851521 | R89: 0.009946148655 | S89: 0.9746797569 | T89: 0.03177834024 | U89: 3.195039743 | V89: 0.10153306 | W89: 0.1147244093 | X89: 0.0009040024805 | Y89: KP82_091A | Z89: 3.195039743 | AA89: 0.01588917012 | AB89: 0.1147244093 | AC89: 0.003939887274 | AD89: 1755.379771 | AE89: 48.64896076 | AF89: 1875.560326 | AG89: 14.13707019 | AH89: 1875.560326 | AI89: 14.13707019 | AJ89: 93.59228525
A90: KP82_090A | B90: 4.822375006 | C90: 0.1295065625 | D90: 0.3133079942 | E90: 0.008105762504 | F90: 0.111632836 | G90: 0.0005684014724 | H90: 1788.808707 | I90: 22.33755844 | J90: 1756.964646 | K90: 39.66511242 | L90: 1826.168611 | M90: 9.20518528 | N90: 96.21042848 | O90: 4.822375006 | P90: 0.1295065625 | Q90: 0.3133079942 | R90: 0.008105762504 | S90: 0.9820394542 | T90: 0.02587154702 | U90: 3.191747477 | V90: 0.08257544494 | W90: 0.111632836 | X90: 0.0005684014724 | Y90: KP82_090A | Z90: 3.191747477 | AA90: 0.01293577351 | AB90: 0.111632836 | AC90: 0.002545852514 | AD90: 1756.964646 | AE90: 39.66511242 | AF90: 1826.168611 | AG90: 9.20518528 | AH90: 1826.168611 | AI90: 9.20518528 | AJ90: 96.21042848
A91: KP82_107A | B91: 4.845101235 | C91: 0.2100854481 | D91: 0.3139762852 | E91: 0.01274978094 | F91: 0.1119269337 | G91: 0.0009963069375 | H91: 1792.764294 | I91: 35.85448856 | J91: 1760.244139 | K91: 62.24935367 | L91: 1830.938269 | M91: 16.04627487 | N91: 96.13891243 | O91: 4.845101235 | P91: 0.2100854481 | Q91: 0.3139762852 | R91: 0.01274978094 | S91: 0.9796517874 | T91: 0.04060746475 | U91: 3.184953919 | V91: 0.129332904 | W91: 0.1119269337 | X91: 0.0009963069375 | Y91: KP82_107A | Z91: 3.184953919 | AA91: 0.02030373238 | AB91: 0.1119269337 | AC91: 0.004450702369 | AD91: 1760.244139 | AE91: 62.24935367 | AF91: 1830.938269 | AG91: 16.04627487 | AH91: 1830.938269 | AI91: 16.04627487 | AJ91: 96.13891243
A92: KP82_085A | B92: 4.862463389 | C92: 0.1342675435 | D92: 0.3142205232 | E92: 0.008406650149 | F92: 0.1122339509 | G92: 0.000539870752 | H92: 1795.775894 | I92: 22.99293025 | J92: 1761.442268 | K92: 41.10433259 | L92: 1835.901532 | M92: 8.687538687 | N92: 95.94426701 | O92: 4.862463389 | P92: 0.1342675435 | Q92: 0.3142205232 | R92: 0.008406650149 | S92: 0.9848392841 | T92: 0.02675398176 | U92: 3.182478311 | V92: 0.08514396669 | W92: 0.1122339509 | X92: 0.000539870752 | Y92: KP82_085A | Z92: 3.182478311 | AA92: 0.01337699088 | AB92: 0.1122339509 | AC92: 0.002405113371 | AD92: 1761.442268 | AE92: 41.10433259 | AF92: 1835.901532 | AG92: 8.687538687 | AH92: 1835.901532 | AI92: 8.687538687 | AJ92: 95.94426701
A93: KP82_012A | B93: 4.929165326 | C93: 0.1186129718 | D93: 0.3150525343 | E93: 0.006894478122 | F93: 0.1134701245 | G93: 0.0007017487747 | H93: 1807.263491 | I93: 20.11223279 | J93: 1765.522094 | K93: 33.70858586 | L93: 1855.719302 | M93: 11.13339266 | N93: 95.13950156 | O93: 4.929165326 | P93: 0.1186129718 | Q93: 0.3150525343 | R93: 0.006894478122 | S93: 0.9681964562 | T93: 0.02188358249 | U93: 3.174073817 | V93: 0.0694601062 | W93: 0.1134701245 | X93: 0.0007017487747 | Y93: KP82_012A | Z93: 3.174073817 | AA93: 0.01094179124 | AB93: 0.1134701245 | AC93: 0.003092218228 | AD93: 1765.522094 | AE93: 33.70858586 | AF93: 1855.719302 | AG93: 11.13339266 | AH93: 1855.719302 | AI93: 11.13339266 | AJ93: 95.13950156
A94: KP82_046A | B94: 4.887527025 | C94: 0.181060761 | D94: 0.3151924926 | E94: 0.0108973641 | F94: 0.1124577537 | G94: 0.0008462243747 | H94: 1800.107681 | I94: 30.75582449 | J94: 1766.208136 | K94: 53.19334457 | L94: 1839.509115 | M94: 13.56195373 | N94: 96.01518805 | O94: 4.887527025 | P94: 0.181060761 | Q94: 0.3151924926 | R94: 0.0108973641 | S94: 0.980280603 | T94: 0.03457367911 | U94: 3.172664399 | V94: 0.1096906808 | W94: 0.1124577537 | X94: 0.0008462243747 | Y94: KP82_046A | Z94: 3.172664399 | AA94: 0.01728683955 | AB94: 0.1124577537 | AC94: 0.003762410091 | AD94: 1766.208136 | AE94: 53.19334457 | AF94: 1839.509115 | AG94: 13.56195373 | AH94: 1839.509115 | AI94: 13.56195373 | AJ94: 96.01518805
A95: KP82_078A | B95: 5.027434622 | C95: 0.1394938366 | D95: 0.3155996763 | E95: 0.008503735649 | F95: 0.1155346723 | G95: 0.0005369648302 | H95: 1823.954393 | I95: 23.23136607 | J95: 1768.203638 | K95: 41.53405886 | L95: 1888.237726 | M95: 8.34196372 | N95: 93.64306272 | O95: 5.027434622 | P95: 0.1394938366 | Q95: 0.3155996763 | R95: 0.008503735649 | S95: 0.9859837351 | T95: 0.02694469065 | U95: 3.168571057 | V95: 0.08537616694 | W95: 0.1155346723 | X95: 0.0005369648302 | Y95: KP82_078A | Z95: 3.168571057 | AA95: 0.01347234533 | AB95: 0.1155346723 | AC95: 0.002323825478 | AD95: 1768.203638 | AE95: 41.53405886 | AF95: 1888.237726 | AG95: 8.34196372 | AH95: 1888.237726 | AI95: 8.34196372 | AJ95: 93.64306272
A96: KP82_086A | B96: 5.669550961 | C96: 0.1589553371 | D96: 0.3246838791 | E96: 0.008790490396 | F96: 0.1266456834 | G96: 0.000652635998 | H96: 1926.742687 | I96: 23.91574046 | J96: 1812.563089 | K96: 42.63654999 | L96: 2051.923331 | M96: 9.071558564 | N96: 88.33483502 | O96: 5.669550961 | P96: 0.1589553371 | Q96: 0.3246838791 | R96: 0.008790490396 | S96: 0.9831179272 | T96: 0.02707399708 | U96: 3.079918851 | V96: 0.083385714 | W96: 0.1266456834 | X96: 0.000652635998 | Y96: KP82_086A | Z96: 3.079918851 | AA96: 0.01353699854 | AB96: 0.1266456834 | AC96: 0.002576621566 | AD96: 1812.563089 | AE96: 42.63654999 | AF96: 2051.923331 | AG96: 9.071558564 | AH96: 2051.923331 | AI96: 9.071558564 | AJ96: 88.33483502
A97: KP82_061A | B97: 5.277927428 | C97: 0.168805903 | D97: 0.329262739 | E97: 0.01030208289 | F97: 0.1162538938 | G97: 0.0005291548904 | H97: 1865.299181 | I97: 26.94181203 | J97: 1834.807136 | K97: 49.76853812 | L97: 1899.400466 | M97: 8.159365492 | N97: 96.59927797 | O97: 5.277927428 | P97: 0.168805903 | Q97: 0.329262739 | R97: 0.01030208289 | S97: 0.9898896118 | T97: 0.03128833502 | U97: 3.037088263 | V97: 0.09502543508 | W97: 0.1162538938 | X97: 0.0005291548904 | Y97: KP82_061A | Z97: 3.037088263 | AA97: 0.01564416751 | AB97: 0.1162538938 | AC97: 0.002275858783 | AD97: 1834.807136 | AE97: 49.76853812 | AF97: 1899.400466 | AG97: 8.159365492 | AH97: 1899.400466 | AI97: 8.159365492 | AJ97: 96.59927797
A98: KP82_021A | B98: 5.151458293 | C98: 0.1180079192 | D98: 0.3360862028 | E98: 0.007381843378 | F98: 0.111165729 | G98: 0.0004880303987 | H98: 1844.635401 | I98: 19.29435231 | J98: 1867.813673 | K98: 35.51825103 | L98: 1818.560541 | M98: 7.947579635 | N98: 102.7083581 | O98: 5.151458293 | P98: 0.1180079192 | Q98: 0.3360862028 | R98: 0.007381843378 | S98: 0.9817321317 | T98: 0.02196413693 | U98: 2.975427113 | V98: 0.06535268854 | W98: 0.111165729 | X98: 0.0004880303987 | Y98: KP82_021A | Z98: 2.975427113 | AA98: 0.01098206847 | AB98: 0.111165729 | AC98: 0.002195057789 | AD98: 1867.813673 | AE98: 35.51825103 | AF98: 1818.560541 | AG98: 7.947579635 | AH98: 1818.560541 | AI98: 7.947579635 | AJ98: 102.7083581
A99: KP82_068A | B99: 6.268941168 | C99: 0.20271679 | D99: 0.3560538182 | E99: 0.01111969122 | F99: 0.1276924521 | G99: 0.0007525476428 | H99: 2014.124625 | I99: 27.92941712 | J99: 1963.441597 | K99: 52.6452807 | L99: 2066.446276 | M99: 10.35287075 | N99: 95.01537105 | O99: 6.268941168 | P99: 0.20271679 | Q99: 0.3560538182 | R99: 0.01111969122 | S99: 0.9834096845 | T99: 0.03123036644 | U99: 2.80856418 | V99: 0.0877124885 | W99: 0.1276924521 | X99: 0.0007525476428 | Y99: KP82_068A | Z99: 2.80856418 | AA99: 0.01561518322 | AB99: 0.1276924521 | AC99: 0.002946719365 | AD99: 1963.441597 | AE99: 52.6452807 | AF99: 2066.446276 | AG99: 10.35287075 | AH99: 2066.446276 | AI99: 10.35287075 | AJ99: 95.01537105
A100: KP82_048A | B100: 6.55252001 | C100: 0.2449993546 | D100: 0.3753104583 | E100: 0.01310885005 | F100: 0.1266175153 | G100: 0.0009573570317 | H100: 2052.983991 | I100: 32.41546348 | J100: 2054.340006 | K100: 61.15338165 | L100: 2051.530534 | M100: 13.29157198 | N100: 100.1369452 | O100: =B100 -> 6.55252001 | P100: =C100 -> 0.2449993546 | Q100: =D100 -> 0.3753104583 | R100: =E100 -> 0.01310885005 | S100: =((P100/O100)^2+(R100/Q100)^2-(G100/F100)^2)/(2*(P100/O100)*(R100/Q100)) -> 0.980433149 | T100: =E100/D100 -> 0.03492801695 | U100: =1/D100 -> 2.66446079 | V100: =U100*T100 -> 0.09306433163 | W100: =F100 -> 0.1266175153 | X100: =G100 -> 0.0009573570317 | Y100: =A100 -> KP82_048A | Z100: =U100 -> 2.66446079 | AA100: =V100/U100/2 -> 0.01746400848 | AB100: =W100 -> 0.1266175153 | AC100: =X100/W100/2 -> 0.003780507892 | AD100: =J100 -> 2054.340006 | AE100: =K100 -> 61.15338165 | AF100: =L100 -> 2051.530534 | AG100: =M100 -> 13.29157198 | AH100: 2051.530534 | AI100: 13.29157198 | AJ100: 100.1369452
A101: KP82_065A | B101: 10.49232383 | C101: 0.3567287092 | D101: 0.4321162883 | E101: 0.01445578506 | F101: 0.1760993404 | G101: 0.0007303332338 | H101: 2479.239803 | I101: 31.03882869 | J101: 2315.250747 | K101: 64.74390378 | L101: 2616.473187 | M101: 6.885431022 | N101: 88.48746315 | O101: 10.49232383 | P101: 0.3567287092 | Q101: 0.4321162883 | R101: 0.01445578506 | S101: 0.9925696668 | T101: 0.03345346022 | U101: 2.314191867 | V101: 0.07741772556 | W101: 0.1760993404 | X101: 0.0007303332338 | Y101: KP82_065A | Z101: 2.314191867 | AA101: 0.01672673011 | AB101: 0.1760993404 | AC101: 0.002073639891 | AD101: 2315.250747 | AE101: 64.74390378 | AF101: 2616.473187 | AG101: 6.885431022 | AH101: 2616.473187 | AI101: 6.885431022 | AJ101: 88.48746315
A102: KP82_036B | B102: 10.83329892 | C102: 0.487391276 | D102: 0.4367826335 | E102: 0.01880033903 | F102: 0.179888342 | G102: 0.001358830993 | H102: 2508.927755 | I102: 40.98337747 | J102: 2336.221316 | K102: 83.80439787 | L102: 2651.841252 | M102: 12.47421422 | N102: 88.09808332 | O102: 10.83329892 | P102: 0.487391276 | Q102: 0.4367826335 | R102: 0.01880033903 | S102: 0.986246571 | T102: 0.04304278052 | U102: 2.289468315 | V102: 0.0985450822 | W102: 0.179888342 | X102: 0.001358830993 | Y102: KP82_036B | Z102: 2.289468315 | AA102: 0.02152139026 | AB102: 0.179888342 | AC102: 0.003776873413 | AD102: 2336.221316 | AE102: 83.80439787 | AF102: 2651.841252 | AG102: 12.47421422 | AH102: 2651.841252 | AI102: 12.47421422 | AJ102: 88.09808332
A103: KP82_101A | B103: 10.8002814 | C103: 0.3766026405 | D103: 0.4550144461 | E103: 0.01488203025 | F103: 0.1721487533 | G103: 0.001205018503 | H103: 2506.090652 | I103: 31.8992994 | J103: 2417.50736 | K103: 65.59964476 | L103: 2578.644271 | M103: 11.64465802 | N103: 93.75109965 | O103: 10.8002814 | P103: 0.3766026405 | Q103: 0.4550144461 | R103: 0.01488203025 | S103: 0.9805696358 | T103: 0.03270672036 | U103: 2.19773242 | V103: 0.07188061971 | W103: 0.1721487533 | X103: 0.001205018503 | Y103: KP82_101A | Z103: 2.19773242 | AA103: 0.01635336018 | AB103: 0.1721487533 | AC103: 0.003499933865 | AD103: 2417.50736 | AE103: 65.59964476 | AF103: 2578.644271 | AG103: 11.64465802 | AH103: 2578.644271 | AI103: 11.64465802 | AJ103: 93.75109965
A104: KP82_063A | B104: 12.05081177 | C104: 0.3945879069 | D104: 0.4816837956 | E104: 0.01538226989 | F104: 0.1814433045 | G104: 0.0009119065479 | H104: 2608.367098 | I104: 30.24488973 | J104: 2534.595589 | K104: 66.57918176 | L104: 2666.107036 | M104: 8.300526652 | N104: 95.06728558 | O104: 12.05081177 | P104: 0.3945879069 | Q104: 0.4816837956 | R104: 0.01538226989 | S104: 0.9882349715 | T104: 0.03193437278 | U104: 2.076050739 | V104: 0.06629737821 | W104: 0.1814433045 | X104: 0.0009119065479 | Y104: KP82_063A | Z104: 2.076050739 | AA104: 0.01596718639 | AB104: 0.1814433045 | AC104: 0.002512924217 | AD104: 2534.595589 | AE104: 66.57918176 | AF104: 2666.107036 | AG104: 8.300526652 | AH104: 2666.107036 | AI104: 8.300526652 | AJ104: 95.06728558
A105: KP82_015A | B105: 11.68112339 | C105: 0.2596268417 | D105: 0.4849696283 | E105: 0.00973726249 | F105: 0.1746872444 | G105: 0.001006605824 | H105: 2579.189258 | I105: 20.57848871 | J105: 2548.87555 | K105: 42.13252684 | L105: 2603.065806 | M105: 9.570190282 | N105: 97.91821415 | O105: 11.68112339 | P105: 0.2596268417 | Q105: 0.4849696283 | R105: 0.00973726249 | S105: 0.967966912 | T105: 0.02007808721 | U105: 2.061984796 | V105: 0.04140071056 | W105: 0.1746872444 | X105: 0.001006605824 | Y105: KP82_015A | Z105: 2.061984796 | AA105: 0.0100390436 | AB105: 0.1746872444 | AC105: 0.002881165787 | AD105: 2548.87555 | AE105: 42.13252684 | AF105: 2603.065806 | AG105: 9.570190282 | AH105: 2603.065806 | AI105: 9.570190282 | AJ105: 97.91821415
A106: KP82_037A | B106: 12.4269039 | C106: 0.5531057201 | D106: 0.4854621378 | E106: 0.02065407601 | F106: 0.1856586681 | G106: 0.001399260257 | H106: 2637.214243 | I106: 40.98895984 | J106: 2551.013233 | K106: 89.01444552 | L106: 2704.080139 | M106: 12.38528647 | N106: 94.3394094 | O106: 12.4269039 | P106: 0.5531057201 | Q106: 0.4854621378 | R106: 0.02065407601 | S106: 0.9860197597 | T106: 0.04254518407 | U106: 2.059892878 | V106: 0.08763852165 | W106: 0.1856586681 | X106: 0.001399260257 | Y106: KP82_037A | Z106: 2.059892878 | AA106: 0.02127259204 | AB106: 0.1856586681 | AC106: 0.003768367704 | AD106: 2551.013233 | AE106: 89.01444552 | AF106: 2704.080139 | AG106: 12.38528647 | AH106: 2704.080139 | AI106: 12.38528647 | AJ106: 94.3394094
A107: KP82_023A | B107: 12.76393333 | C107: 0.3065184214 | D107: 0.5029299783 | E107: 0.01164117095 | F107: 0.1840638152 | G107: 0.000790989207 | H107: 2662.386804 | I107: 22.36415079 | J107: 2626.375644 | K107: 49.73928999 | L107: 2689.831537 | M107: 7.084532168 | N107: 97.64089711 | O107: 12.76393333 | P107: 0.3065184214 | Q107: 0.5029299783 | R107: 0.01164117095 | S107: 0.9840656085 | T107: 0.02314670322 | U107: 1.988348365 | V107: 0.04602370951 | W107: 0.1840638152 | X107: 0.000790989207 | Y107: KP82_023A | Z107: 1.988348365 | AA107: 0.01157335161 | AB107: 0.1840638152 | AC107: 0.002148681983 | AD107: 2626.375644 | AE107: 49.73928999 | AF107: 2689.831537 | AG107: 7.084532168 | AH107: 2689.831537 | AI107: 7.084532168 | AJ107: 97.64089711
A108: KP82_089A | B108: 13.0935252 | C108: 0.3468782251 | D108: 0.5128580898 | E108: 0.01318408324 | F108: 0.1851662505 | G108: 0.000829420805 | H108: 2686.414669 | I108: 24.68861741 | J108: 2668.819575 | K108: 55.93509958 | L108: 2699.695951 | M108: 7.376931628 | N108: 98.8563017 | O108: 13.0935252 | P108: 0.3468782251 | Q108: 0.5128580898 | R108: 0.01318408324 | S108: 0.9857220372 | T108: 0.02570707863 | U108: 1.949857124 | V108: 0.0501251304 | W108: 0.1851662505 | X108: 0.000829420805 | Y108: KP82_089A | Z108: 1.949857124 | AA108: 0.01285353931 | AB108: 0.1851662505 | AC108: 0.002239665173 | AD108: 2668.819575 | AE108: 55.93509958 | AF108: 2699.695951 | AG108: 7.376931628 | AH108: 2699.695951 | AI108: 7.376931628 | AJ108: 98.8563017
A109: KP82_018A | B109: 15.1407999 | C109: 0.3249539634 | D109: 0.5190048655 | E109: 0.01067228889 | F109: 0.2115771715 | G109: 0.0008678852385 | H109: 2824.13588 | I109: 20.23910126 | J109: 2694.958432 | K109: 45.13312639 | L109: 2917.664674 | M109: 6.625274628 | N109: 92.36696922 | O109: 15.1407999 | P109: 0.3249539634 | Q109: 0.5190048655 | R109: 0.01067228889 | S109: 0.9818526793 | T109: 0.02056298427 | U109: 1.926764211 | V109: 0.03962002216 | W109: 0.2115771715 | X109: 0.0008678852385 | Y109: KP82_018A | Z109: 1.926764211 | AA109: 0.01028149214 | AB109: 0.2115771715 | AC109: 0.002050989793 | AD109: 2694.958432 | AE109: 45.13312639 | AF109: 2917.664674 | AG109: 6.625274628 | AH109: 2917.664674 | AI109: 6.625274628 | AJ109: 92.36696922
A110: KP82_027A | B110: 14.57593241 | C110: 0.3396413443 | D110: 0.5260610605 | E110: 0.01164075268 | F110: 0.2009516635 | G110: 0.001009863214 | H110: 2787.964592 | I110: 21.90301321 | J110: 2724.834459 | K110: 48.98647668 | L110: 2833.941264 | M110: 8.172692096 | N110: 96.14999765 | O110: 14.57593241 | P110: 0.3396413443 | Q110: 0.5260610605 | R110: 0.01164075268 | S110: 0.9768454468 | T110: 0.02212813979 | U110: 1.900920017 | V110: 0.04206382386 | W110: 0.2009516635 | X110: 0.001009863214 | Y110: KP82_027A | Z110: 1.900920017 | AA110: 0.01106406989 | AB110: 0.2009516635 | AC110: 0.002512701803 | AD110: 2724.834459 | AE110: 48.98647668 | AF110: 2833.941264 | AG110: 8.172692096 | AH110: 2833.941264 | AI110: 8.172692096 | AJ110: 96.14999765

Sheet Info
A1: Appendix S1: Matrix Detrital Zircon
A3: This Supplemental Material accompanies
A4: Malone, D.H., Craddock, J.P., and Konstantinou, A., 2022, Timing and structural evolution of the Sevier thrust belt, western Wyoming, in Craddock, J.P.,
A5: Malone, D.H., Foreman, B.Z., and Konstantinou, A., eds., Tectonic Evolution of the Sevier-Laramide Hinterland, Thrust Belt, and Foreland, and
A6: Postorogenic Slab Rollback (180–20 Ma): Geological Society of America Special Paper 555, https://doi.org/10.1130/2022.2555(04).

Sheet Ephraim
A1: Table 8. Detrital Zircon data from the Ephraim Conglomerate
H2: Isotope ratios | N2: Apparent ages (Ma)
A4: Analysis | B4: U | C4: 206Pb | D4: U/Th | E4: 206Pb* | F4: ± | G4: 207Pb* | H4: ± | I4: 206Pb* | J4: ± | K4: error | L4: 206Pb* | M4: ± | N4: 207Pb* | O4: ± | P4: 206Pb* | Q4: ± | R4: Best age | S4: ± | T4: Conc
B5: (ppm) | C5: 204Pb | E5: 207Pb* | F5: (%) | G5: 235U* | H5: (%) | I5: 238U | J5: (%) | K5: corr. | L5: 238U* | M5: (Ma) | N5: 235U | O5: (Ma) | P5: 207Pb* | Q5: (Ma) | R5: (Ma) | S5: (Ma) | T5: (%)
A6: KE-88 | B6: 717.8051361 | C6: 12327 | D6: 0.8042565661 | E6: 20.37339207 | F6: 1.207446291 | G6: 0.1699031683 | H6: 1.709393633 | I6: 0.02510519192 | J6: 1.21000002 | K6: 0.7078533559 | L6: 159.8403454 | M6: 1.910287387 | N6: 159.334907 | O6: 2.52071906 | P6: 151.8311181 | Q6: 28.29029069 | R6: 159.8403454 | S6: 1.910287387
A7: KE-97 | B7: 1217.297055 | C7: 19791 | D7: 1.495155703 | E7: 20.45970318 | F7: 1.543178458 | G7: 0.170892187 | H7: 1.652119778 | I7: 0.02535830739 | J7: 0.5900000062 | K7: 0.3571169682 | L7: 161.4318755 | M7: 0.9406213506 | N7: 160.1929342 | O7: 2.448373005 | P7: 141.9197212 | Q7: 36.22300554 | R7: 161.4318755 | S7: 0.9406213506
A8: KE-16 | B8: 1001.110932 | C8: 17091 | D8: 1.821667766 | E8: 20.38015719 | F8: 2.284853828 | G8: 0.179835319 | H8: 2.628793836 | I8: 0.02658160769 | J8: 1.300000007 | K8: 0.4945233776 | L8: 169.1181643 | M8: 2.169948074 | N8: 167.9188389 | O8: 4.068575312 | P8: 151.0588573 | Q8: 53.54493104 | R8: 169.1181643 | S8: 2.169948074
A9: KE-15 | B9: 426.4557041 | C9: 12705 | D9: 1.496814574 | E9: 20.30331561 | F9: 3.385177142 | G9: 0.246321687 | H9: 3.622640549 | I9: 0.03627173594 | J9: 1.290000102 | K9: 0.3560938727 | L9: 229.6818877 | M9: 2.910734999 | N9: 223.5838583 | O9: 7.270011099 | P9: 159.8773578 | Q9: 79.22940019 | R9: 229.6818877 | S9: 2.910734999
A10: KE-43 | B10: 186.746415 | C10: 7452 | D10: 3.614962503 | E10: 19.89526353 | F10: 4.428648968 | G10: 0.2604924196 | H10: 4.456784919 | I10: 0.03758750607 | J10: 0.5000001327 | K10: 0.1121885264 | L10: 237.8618067 | M10: 1.167635008 | N10: 235.0636684 | O10: 9.352306236 | P10: 207.199512 | Q10: 102.7663907 | R10: 237.8618067 | S10: 1.167635008
A11: KE-23 | B11: 169.8905289 | C11: 5868 | D11: 1.445718678 | E11: 20.60455419 | F11: 5.078731447 | G11: 0.2519392828 | H11: 5.11061773 | I11: 0.03764938066 | J11: 0.5700004165 | K11: 0.111532587 | L11: 238.2462151 | M11: 1.333216224 | N11: 228.1502516 | O11: 10.44314343 | P11: 125.3061665 | Q11: 119.6307352 | R11: 238.2462151 | S11: 1.333216224
A12: KE-31 | B12: 148.0475886 | C12: 5859 | D12: 1.949957127 | E12: 20.23760965 | F12: 5.555510704 | G12: 0.2690979289 | H12: 5.618656434 | I12: 0.03949738064 | J12: 0.8400005573 | K12: 0.1495020326 | L12: 249.7167348 | M12: 2.057513486 | N12: 241.9722353 | O12: 12.09757035 | P12: 167.4489297 | Q12: 129.847968 | R12: 249.7167348 | S12: 2.057513486
A13: KE-95 | B13: 264.7518091 | C13: 8799 | D13: 1.693027424 | E13: 19.61521893 | F13: 2.967159385 | G13: 0.3020155336 | H13: 3.164495997 | I13: 0.04296562818 | J13: 1.100000045 | K13: 0.3476067109 | L13: 271.1891746 | M13: 2.921205488 | N13: 267.9732693 | O13: 7.453416264 | P13: 239.9518077 | Q13: 68.44074795 | R13: 271.1891746 | S13: 2.921205488
A14: KE-67 | B14: 599.2866288 | C14: 28626 | D14: 1.021285092 | E14: 18.51524119 | F14: 1.372575381 | G14: 0.4503931477 | H14: 1.514451456 | I14: 0.06048112679 | J14: 0.6400000287 | K14: 0.4225952744 | L14: 378.5508354 | M14: 2.352963271 | N14: 377.5546083 | O14: 4.775232316 | P14: 371.426754 | Q14: 30.88857759 | R14: 378.5508354 | S14: 2.352963271
A15: KE-54 | B15: 147.7884048 | C15: 6306 | D15: 0.9458925626 | E15: 18.39386498 | F15: 4.906063879 | G15: 0.4695430144 | H15: 5.127334949 | I15: 0.06263932994 | J15: 1.4900003 | K15: 0.2905993689 | L15: 391.6567109 | M15: 5.661948186 | N15: 390.873207 | O15: 16.63617726 | P15: 386.2185476 | Q15: 110.2276956 | R15: 391.6567109 | S15: 5.661948186
A16: KE-12 | B16: 235.803657 | C16: 11010 | D16: 2.742591591 | E16: 18.16047095 | F16: 3.229377079 | G16: 0.5004869407 | H16: 3.267855063 | I16: 0.06592020994 | J16: 0.5000003929 | K16: 0.1530056821 | L16: 411.5292376 | M16: 1.993344904 | N16: 412.0319669 | O16: 11.06803254 | P16: 414.8269563 | Q16: 72.17248128 | R16: 411.5292376 | S16: 1.993344904
A17: KE-55 | B17: 153.1687035 | C17: 7629 | D17: 1.25565233 | E17: 18.22972356 | F17: 3.127640237 | G17: 0.5396658196 | H17: 3.182802897 | I17: 0.07135160069 | J17: 0.5900007004 | K17: 0.1853714225 | L17: 444.2935023 | M17: 2.533042361 | N17: 438.204186 | O17: 11.32807503 | P17: 406.3154892 | Q17: 70.01619066 | R17: 444.2935023 | S17: 2.533042361
A18: KE-1 | B18: 61.03332222 | C18: 4440 | D18: 1.67069063 | E18: 17.94544583 | F18: 6.226883121 | G18: 0.639796814 | H18: 6.279345367 | I18: 0.08327124358 | J18: 0.8100029853 | K18: 0.1289948136 | L18: 515.618968 | M18: 4.013864589 | N18: 502.1803729 | O18: 24.88188242 | P18: 441.3840269 | Q18: 138.6323426 | R18: 515.618968 | S18: 4.013864589
A19: KE-89 | B19: 171.2132602 | C19: 9105 | D19: 2.279479308 | E19: 17.36321213 | F19: 1.895199777 | G19: 0.6720791494 | H19: 2.191297173 | I19: 0.084634848 | J19: 1.100000503 | K19: 0.501986 | L19: 523.7285075 | M19: 5.533206273 | N19: 521.9757849 | O19: 8.943469096 | P19: 514.3211022 | Q19: 41.64982878 | R19: 523.7285075 | S19: 5.533206273
A20: KE-94 | B20: 97.87317494 | C20: 7395 | D20: 1.793224566 | E20: 17.70726089 | F20: 4.419182411 | G20: 0.6970046957 | H20: 4.566363466 | I20: 0.08951293873 | J20: 1.150000924 | K20: 0.2518417407 | L20: 552.6559302 | M20: 6.090738406 | N20: 537.000308 | O20: 19.04600867 | P20: 471.073624 | Q20: 97.86469005 | R20: 552.6559302 | S20: 6.090738406
A21: KE-83 | B21: 42.31846255 | C21: 2835 | D21: 1.164639239 | E21: 17.95416285 | F21: 5.98942764 | G21: 0.6904558854 | H21: 6.237055219 | I21: 0.08990830726 | J21: 1.740004125 | K21: 0.2789784704 | L21: 554.9948166 | M21: 9.252916432 | N21: 533.0743232 | O21: 25.87233155 | P21: 440.3038002 | Q21: 133.3502331 | R21: 554.9948166 | S21: 9.252916432
A22: KE-42 | B22: 217.178171 | C22: 18366 | D22: 1.087368581 | E22: 16.63721106 | F22: 2.113648854 | G22: 0.7971595585 | H22: 3.072525302 | I22: 0.09618880059 | J22: 2.230000057 | K22: 0.7257873695 | L22: 592.0350492 | M22: 12.61428917 | N22: 595.2250551 | O22: 13.83919697 | P22: 607.3797213 | Q22: 45.73099556 | R22: 592.0350492 | S22: 12.61428917 | T22: 97.47362784
A23: KE-4 | B23: 639.5494955 | C23: 52659 | D23: 6.508678468 | E23: 16.70978125 | F23: 1.550418431 | G23: 0.8064663491 | H23: 2.150324937 | I23: 0.09773626545 | J23: 1.490000007 | K23: 0.6929185361 | L23: 601.1288885 | M23: 8.551896953 | N23: 600.4697606 | O23: 9.747735092 | P23: 597.9593509 | Q23: 33.60214862 | R23: 601.1288885 | S23: 8.551896953 | T23: 100.5300591
A24: KE-32 | B24: 134.6415287 | C24: 13461 | D24: 3.445665769 | E24: 16.29772338 | F24: 1.794525267 | G24: 0.9219282943 | H24: 1.862880052 | I24: 0.1089739797 | J24: 0.5000011547 | K24: 0.268402227 | L24: 666.7864318 | M24: 3.167310956 | N24: 663.3791968 | O24: 9.073739914 | P24: 651.8380697 | Q24: 38.52419834 | R24: 666.7864318 | S24: 3.167310956 | T24: 102.2932631
A25: KE-60 | B25: 180.1059466 | C25: 19911 | D25: 2.48450787 | E25: 14.30697464 | F25: 1.293628802 | G25: 1.509544406 | H25: 1.485387505 | I25: 0.1566363035 | J25: 0.7300003851 | K25: 0.4914545079 | L25: 938.0567567 | M25: 6.372899098 | N25: 934.2551913 | O25: 9.072610002 | P25: 925.2970904 | Q25: 26.59458775 | R25: 925.2970904 | S25: 26.59458775 | T25: 101.3789805
A26: KE-74 | B26: 83.64487666 | C26: 9291 | D26: 3.141306514 | E26: 14.04972955 | F26: 1.77042047 | G26: 1.618113744 | H26: 2.100307977 | I26: 0.1648829452 | J26: 1.130002194 | K26: 0.5380173796 | L26: 983.8556373 | M26: 10.31077505 | N26: 977.2595964 | O26: 13.18128723 | P26: 962.483536 | Q26: 36.16509583 | R26: 962.483536 | S26: 36.16509583 | T26: 102.220516
A27: KE-92 | B27: 116.596972 | C27: 15606 | D27: 1.552335285 | E27: 13.90336282 | F27: 1.374344352 | G27: 1.67950835 | H27: 1.798450244 | I27: 0.1693560629 | J27: 1.160000381 | K27: 0.6449999852 | L27: 1008.56228 | M27: 10.83005652 | N27: 1000.795376 | O27: 11.44652832 | P27: 983.8052434 | Q27: 27.98104689 | R27: 983.8052434 | S27: 27.98104689 | T27: 102.5164571
A28: KE-61 | B28: 99.51765163 | C28: 13335 | D28: 3.096713608 | E28: 13.90084953 | F28: 1.929296956 | G28: 1.687149375 | H28: 1.993035231 | I28: 0.170095805 | J28: 0.5000026872 | K28: 0.2508749867 | L28: 1012.639034 | M28: 4.685573999 | N28: 1003.686774 | O28: 12.70659778 | P28: 984.1896537 | Q28: 39.26929952 | R28: 984.1896537 | S28: 39.26929952 | T28: 102.89064
A29: KE-73 | B29: 110.3497481 | C29: 14430 | D29: 2.34071423 | E29: 13.84409924 | F29: 2.544461352 | G29: 1.593372014 | H29: 5.415042483 | I29: 0.1599854967 | J29: 4.780000159 | K29: 0.8827262526 | L29: 956.6962271 | M29: 42.49917145 | N29: 967.6183832 | O29: 33.79437828 | P29: 992.5303232 | Q29: 51.72090864 | R29: 992.5303232 | S29: 51.72090864 | T29: 96.38962203
A30: KE-30 | B30: 117.4728346 | C30: 16263 | D30: 4.503370601 | E30: 13.84207573 | F30: 2.742393172 | G30: 1.708146557 | H30: 2.925939392 | I30: 0.1714845808 | J30: 1.020000498 | K30: 0.3486061607 | L30: 1020.285685 | M30: 9.625147896 | N30: 1011.590063 | O30: 18.74120522 | P30: 992.813271 | Q30: 55.784028 | R30: 992.813271 | S30: 55.784028 | T30: 102.767128
A31: KE-51 | B31: 166.5300766 | C31: 23958 | D31: 2.398844993 | E31: 13.81909141 | F31: 0.9067700096 | G31: 1.61002492 | H31: 1.071042803 | I31: 0.1613655464 | J31: 0.5700007336 | K31: 0.5321923007 | L31: 964.3610504 | M31: 5.105468322 | N31: 974.1176516 | O31: 6.708586154 | P31: 996.1839275 | Q31: 18.41850802 | R31: 996.1839275 | S31: 18.41850802 | T31: 96.80552192
A32: KE-76 | B32: 87.87225422 | C32: 11268 | D32: 2.31292324 | E32: 13.80215998 | F32: 1.387317449 | G32: 1.710848596 | H32: 1.985208652 | I32: 0.1712605601 | J32: 1.420001299 | K32: 0.7152907062 | L32: 1019.052832 | M32: 13.38478537 | N32: 1012.602651 | O32: 12.72228473 | P32: 998.6577785 | Q32: 28.17413945 | R32: 998.6577785 | S32: 28.17413945 | T32: 102.0422465
A33: KE-37 | B33: 75.45824272 | C33: 11355 | D33: 2.535705546 | E33: 13.77576915 | F33: 3.000516285 | G33: 1.726519592 | H33: 3.175642868 | I33: 0.1724988056 | J33: 1.040004638 | K33: 0.3274942054 | L33: 1025.86432 | M33: 9.863419484 | N33: 1018.455522 | O33: 20.42128211 | P33: 1002.544897 | Q33: 60.93195135 | R33: 1002.544897 | S33: 60.93195135 | T33: 102.3260228
A34: KE-28 | B34: 101.537498 | C34: 15252 | D34: 3.664135048 | E34: 13.742051 | F34: 1.702366273 | G34: 1.732201427 | H34: 1.852282799 | I34: 0.1726428804 | J34: 0.730000439 | K34: 0.3941085235 | L34: 1026.656397 | M34: 6.928263491 | N34: 1020.569292 | O34: 11.92457331 | P34: 1007.51782 | Q34: 34.51528134 | R34: 1007.51782 | S34: 34.51528134 | T34: 101.899577
A35: KE-96 | B35: 393.1818633 | C35: 56640 | D35: 3.145610449 | E35: 13.64040886 | F35: 1.110495325 | G35: 1.777394077 | H35: 1.487716357 | I35: 0.1758368286 | J35: 0.9900000465 | K35: 0.6654494599 | L35: 1044.190741 | M35: 9.543694333 | N35: 1037.227096 | O35: 9.667393464 | P35: 1022.558604 | Q35: 22.49446418 | R35: 1022.558604 | S35: 22.49446418 | T35: 102.1154911
A36: KE-75 | B36: 139.2889628 | C36: 17064 | D36: 3.074319584 | E36: 13.63371289 | F36: 1.109827432 | G36: 1.746321728 | H36: 1.873984706 | I36: 0.1726780465 | J36: 1.51000058 | K36: 0.8057699589 | L36: 1026.849714 | M36: 14.33356985 | N36: 1025.803384 | O36: 12.10011102 | P36: 1023.554011 | Q36: 22.47868846 | R36: 1023.554011 | S36: 22.47868846 | T36: 100.3219862
A37: KE-68 | B37: 514.3011462 | C37: 62505 | D37: 3.166905482 | E37: 13.60339548 | F37: 2.020582354 | G37: 1.734720147 | H37: 2.365513314 | I37: 0.1711494357 | J37: 1.230000076 | K37: 0.5199717409 | L37: 1018.441194 | M37: 11.58742589 | N37: 1021.504907 | O37: 15.23717437 | P37: 1028.057149 | Q37: 40.88344178 | R37: 1028.057149 | S37: 40.88344178 | T37: 99.06464788
A38: KE-46 | B38: 107.1591058 | C38: 9486 | D38: 2.049264749 | E38: 13.56224018 | F38: 1.332307837 | G38: 1.666288542 | H38: 1.548917871 | I38: 0.1639005325 | J38: 0.7900015177 | K38: 0.5100344781 | L38: 978.4167123 | M38: 7.171513297 | N38: 995.7734134 | O38: 9.829126579 | P38: 1034.181027 | Q38: 26.93603873 | R38: 1034.181027 | S38: 26.93603873 | T38: 94.60787686
A39: KE-98 | B39: 106.5960513 | C39: 15390 | D39: 6.809364473 | E39: 13.54920146 | F39: 2.05280782 | G39: 1.848398344 | H39: 2.372787598 | I39: 0.1816385375 | J39: 1.190000438 | K39: 0.5015200007 | L39: 1075.919848 | M39: 11.7920459 | N39: 1062.859168 | O39: 15.63572221 | P39: 1036.123226 | Q39: 41.47583594 | R39: 1036.123226 | S39: 41.47583594 | T39: 103.8409158
A40: KE-45 | B40: 273.6891824 | C40: 50544 | D40: 4.108138013 | E40: 13.52427332 | F40: 2.980524288 | G40: 1.822697319 | H40: 3.184010883 | I40: 0.1787834112 | J40: 1.120000122 | K40: 0.3517576301 | L40: 1060.324894 | M40: 10.95039782 | N40: 1053.655809 | O40: 20.87929854 | P40: 1039.842583 | Q40: 60.17744489 | R40: 1039.842583 | S40: 60.17744489 | T40: 101.9697511
A41: KE-57 | B41: 103.861215 | C41: 16992 | D41: 4.078043397 | E41: 13.51267536 | F41: 1.380635096 | G41: 1.839605828 | H41: 2.29239033 | I41: 0.1802871798 | J41: 1.830000043 | K41: 0.7982933878 | L41: 1068.543314 | M41: 18.01970148 | N41: 1059.720008 | O41: 15.08054816 | P41: 1041.573604 | Q41: 27.8822346 | R41: 1041.573604 | S41: 27.8822346 | T41: 102.5893235
A42: KE-82 | B42: 109.1789522 | C42: 14700 | D42: 1.534447812 | E42: 13.49509932 | F42: 2.001575333 | G42: 1.816575126 | H42: 2.288756072 | I42: 0.1777985331 | J42: 1.110000246 | K42: 0.4849797056 | L42: 1054.936638 | M42: 10.80186764 | N42: 1051.451137 | O42: 14.98970174 | P42: 1044.198863 | Q42: 40.39908906 | R42: 1044.198863 | S42: 40.39908906 | T42: 101.0283266
A43: KE-17 | B43: 244.3567232 | C43: 34953 | D43: 4.112974047 | E43: 13.42772634 | F43: 1.910754256 | G43: 1.741686809 | H43: 3.013284265 | I43: 0.1696177389 | J43: 2.33000005 | K43: 0.7732426964 | L43: 1010.004684 | M43: 21.78226874 | N43: 1024.088292 | O43: 19.43906126 | P43: 1054.325343 | Q43: 38.49009981 | R43: 1054.325343 | S43: 38.49009981 | T43: 95.79630141
A44: KE-59 | B44: 346.4215262 | C44: 35796 | D44: 2.308154934 | E44: 13.38688418 | F44: 1.06015859 | G44: 1.832979272 | H44: 1.430222453 | I44: 0.1779654861 | J44: 0.9600000156 | K44: 0.6712242654 | L44: 1055.850353 | M44: 9.349598669 | N44: 1057.347722 | O44: 9.396368848 | P44: 1060.459129 | Q44: 21.35276975 | R44: 1060.459129 | S44: 21.35276975 | T44: 99.56539805
A45: KE-53 | B45: 65.42157251 | C45: 6573 | D45: 2.477936613 | E45: 13.30170713 | F45: 2.180529068 | G45: 1.861585943 | H45: 2.329616113 | I45: 0.1795929142 | J45: 0.8200025708 | K45: 0.3519904272 | L45: 1064.750304 | M45: 8.048050404 | N45: 1067.54937 | O45: 15.38947563 | P45: 1073.292901 | Q45: 43.81920872 | R45: 1073.292901 | S45: 43.81920872 | T45: 99.20407597
A46: KE-87 | B46: 223.2645223 | C46: 31524 | D46: 1.587737334 | E46: 13.2581337 | F46: 0.6115652627 | G46: 1.871483082 | H46: 0.9220153178 | I46: 0.1799562875 | J46: 0.6900001273 | K46: 0.748360807 | L46: 1066.735815 | M46: 6.783731388 | N46: 1071.055135 | O46: 6.101729043 | P46: 1079.840779 | Q46: 12.25151102 | R46: 1079.840779 | S46: 12.25151102 | T46: 98.7863985
A47: KE-56 | B47: 253.1779107 | C47: 36207 | D47: 2.522487502 | E47: 13.21566612 | F47: 1.010806325 | G47: 1.924333606 | H47: 1.366795372 | I47: 0.1844455356 | J47: 0.9200000871 | K47: 0.673107406 | L47: 1091.21523 | M47: 9.235478966 | N47: 1089.573669 | O47: 9.132686933 | P47: 1086.312772 | Q47: 20.24468135 | R47: 1086.312772 | S47: 20.24468135 | T47: 100.4512935
A48: KE-85 | B48: 91.87619746 | C48: 13539 | D48: 1.58788277 | E48: 13.20528352 | F48: 1.103325798 | G48: 1.92003211 | H48: 1.712725467 | I48: 0.1838886596 | J48: 1.31000027 | K48: 0.7648629601 | L48: 1088.183688 | M48: 13.1169927 | N48: 1088.07901 | O48: 11.43554565 | P48: 1087.887354 | Q48: 22.09408275 | R48: 1087.887354 | S48: 22.09408275 | T48: 100.0272394
A49: KE-10 | B49: 80.84747882 | C49: 11973 | D49: 1.756417692 | E49: 13.0766227 | F49: 2.13309932 | G49: 1.990362536 | H49: 2.335084279 | I49: 0.1887671883 | J49: 0.9500030953 | K49: 0.4068388897 | L49: 1114.693273 | M49: 9.724633728 | N49: 1112.245144 | O49: 15.78249967 | P49: 1107.445205 | Q49: 42.62959731 | R49: 1107.445205 | S49: 42.62959731 | T49: 100.6544855
A50: KE-100 | B50: 86.5405856 | C50: 9696 | D50: 1.589095764 | E50: 12.95551527 | F50: 2.64807811 | G50: 2.096345205 | H50: 2.739036812 | I50: 0.1969773158 | J50: 0.7000035613 | K50: 0.2555655908 | L50: 1159.061889 | M50: 7.42589736 | N50: 1147.608722 | O50: 18.83176374 | P50: 1126.04059 | Q50: 52.77836554 | R50: 1126.04059 | S50: 52.77836554 | T50: 102.9325141
A51: KE-36 | B51: 87.23770072 | C51: 14550 | D51: 5.312247035 | E51: 12.72749174 | F51: 1.751687126 | G51: 2.151511476 | H51: 1.987965924 | I51: 0.198602731 | J51: 0.940000387 | K51: 0.4728453217 | L51: 1167.80975 | M51: 10.04052779 | N51: 1165.540104 | O51: 13.78130318 | P51: 1161.306625 | Q51: 34.73011834 | R51: 1161.306625 | S51: 34.73011834 | T51: 100.5599835
A52: KE-7 | B52: 659.5155875 | C52: 9855 | D52: 11.79728219 | E52: 12.71223336 | F52: 1.591100621 | G52: 1.901661495 | H52: 1.934321981 | I52: 0.1753290159 | J52: 1.100000154 | K52: 0.5686747939 | L52: 1041.406104 | M52: 10.57805153 | N52: 1081.670815 | O52: 12.87266331 | P52: 1163.685591 | Q52: 31.54360802 | R52: 1163.685591 | S52: 31.54360802 | T52: 89.49205109
A53: KE-80 | B53: 66.37787145 | C53: 9042 | D53: 1.913159571 | E53: 12.49485828 | F53: 1.298742188 | G53: 2.276586682 | H53: 1.447872363 | I53: 0.2063071363 | J53: 0.640002429 | K53: 0.4420295914 | L53: 1209.11355 | M53: 7.055963977 | N53: 1205.058877 | O53: 10.21497644 | P53: 1197.816346 | Q53: 25.59342073 | R53: 1197.816346 | S53: 25.59342073 | T53: 100.94315
A54: KE-27 | B54: 594.3800109 | C54: 88614 | D54: 3.54787111 | E54: 12.47907389 | F54: 2.670093718 | G54: 2.235476129 | H54: 2.793170337 | I54: 0.2023257309 | J54: 0.8200000411 | K54: 0.2935732312 | L54: 1187.802032 | M54: 8.895314999 | N54: 1192.238511 | O54: 19.59806049 | P54: 1200.273463 | Q54: 52.63836409 | R54: 1200.273463 | S54: 52.63836409 | T54: 98.96095089
A55: KE-64 | B55: 56.84169415 | C55: 9333 | D55: 1.967844791 | E55: 12.45064383 | F55: 2.19944633 | G55: 2.326298917 | H55: 2.792126454 | I55: 0.2100661391 | J55: 1.720001738 | K55: 0.6160185672 | L55: 1229.170144 | M55: 19.24843066 | N55: 1220.34853 | O55: 19.83007915 | P55: 1204.766406 | Q55: 43.34129418 | R55: 1204.766406 | S55: 43.34129418 | T55: 102.0255991
A56: KE-48 | B56: 164.1974222 | C56: 15168 | D56: 3.261136785 | E56: 12.30862243 | F56: 2.522040254 | G56: 2.195376512 | H56: 2.57920305 | I56: 0.1959824527 | J56: 0.5400012284 | K56: 0.2093674744 | L56: 1153.701749 | M56: 5.704340581 | N56: 1179.575494 | O56: 17.9948356 | P56: 1227.330731 | Q56: 49.51210269 | R56: 1227.330731 | S56: 49.51210269 | T56: 94.00088498
A57: KE-72 | B57: 108.4997118 | C57: 15594 | D57: 1.487455485 | E57: 12.30281551 | F57: 2.040908762 | G57: 2.337593835 | H57: 2.199479282 | I57: 0.2085798207 | J57: 0.8200003287 | K57: 0.3728156639 | L57: 1221.247177 | M57: 9.12282771 | N57: 1223.790566 | O57: 15.642988 | P57: 1228.257254 | Q57: 40.06265557 | R57: 1228.257254 | S57: 40.06265557 | T57: 99.42926638
A58: KE-65 | B58: 121.4052788 | C58: 21351 | D58: 5.589462443 | E58: 12.29263825 | F58: 2.050526183 | G58: 2.355939364 | H58: 2.721903369 | I58: 0.2100428659 | J58: 1.790000089 | K58: 0.6576280811 | L58: 1229.046159 | M58: 20.02994863 | N58: 1229.356471 | O58: 19.40463523 | P58: 1229.918195 | Q58: 40.24124203 | R58: 1229.918195 | S58: 40.24124203 | T58: 99.92909801
A59: KE-9 | B59: 19.70690811 | C59: 3426 | D59: 2.238006937 | E59: 12.11030373 | F59: 2.347871703 | G59: 2.54437933 | H59: 2.934301311 | I59: 0.223478434 | J59: 1.760006434 | K59: 0.5998042626 | L59: 1300.228701 | M59: 20.72398446 | N59: 1284.828209 | O59: 21.39146493 | P59: 1259.190953 | Q59: 45.89107844 | R59: 1259.190953 | S59: 45.89107844 | T59: 103.2590568
A60: KE-22 | B60: 388.3735565 | C60: 62049 | D60: 5.171719369 | E60: 11.87031099 | F60: 0.7603484982 | G60: 2.537986789 | H60: 1.248290804 | I60: 0.2184993651 | J60: 0.9900000469 | K60: 0.7930844669 | L60: 1273.940842 | M60: 11.44402371 | N60: 1282.99524 | O60: 9.092649296 | P60: 1298.170317 | Q60: 14.78085296 | R60: 1298.170317 | S60: 14.78085296 | T60: 98.13356726
A61: KE-35 | B61: 23.10310996 | C61: 4593 | D61: 1.146274605 | E61: 11.79250548 | F61: 3.249251536 | G61: 2.702054 | H61: 3.4959652 | I61: 0.2310994096 | J61: 1.290014391 | K61: 0.3690009246 | L61: 1340.258495 | M61: 15.61059018 | N61: 1329.022491 | O61: 25.91448407 | P61: 1310.943742 | Q61: 63.05995642 | R61: 1310.943742 | S61: 63.05995642 | T61: 102.2361565
A62: KE-86 | B62: 72.77703073 | C62: 11883 | D62: 2.141258982 | E62: 11.73558859 | F62: 0.8823022054 | G62: 2.697629412 | H62: 1.538199586 | I62: 0.2296074047 | J62: 1.260000312 | K62: 0.8191396766 | L62: 1332.441162 | M62: 15.16732802 | N62: 1327.808209 | O62: 11.39514191 | P62: 1320.325095 | Q62: 17.09792925 | R62: 1320.325095 | S62: 17.09792925 | T62: 100.9176579
A63: KE-84 | B63: 193.4315702 | C63: 27933 | D63: 2.861429861 | E63: 11.56578713 | F63: 1.200655044 | G63: 2.816713832 | H63: 1.488614412 | I63: 0.2362743877 | J63: 0.8800001889 | K63: 0.5911538824 | L63: 1367.299474 | M63: 10.84184402 | N63: 1359.993704 | O63: 11.15533791 | P63: 1348.512283 | Q63: 23.17667399 | R63: 1348.512283 | S63: 23.17667399 | T63: 101.3931791
A64: KE-62 | B64: 30.57475404 | C64: 5205 | D64: 1.949369002 | E64: 11.55893172 | F64: 2.687919462 | G64: 2.841650113 | H64: 2.871414338 | I64: 0.2382248305 | J64: 1.010004585 | K64: 0.3517446339 | L64: 1377.461825 | M64: 12.52649632 | N64: 1366.606073 | O64: 21.56968934 | P64: 1349.65647 | Q64: 51.88316697 | R64: 1349.65647 | S64: 51.88316697 | T64: 102.0601802
A65: KE-34 | B65: 451.7395331 | C65: 76551 | D65: 3.387296236 | E65: 11.53510354 | F65: 1.61003342 | G65: 2.666271928 | H65: 1.802306199 | I65: 0.2230615228 | J65: 0.8100000127 | K65: 0.4494241951 | L65: 1298.031654 | M65: 9.52313424 | N65: 1319.160606 | O65: 13.30954246 | P65: 1353.637347 | Q65: 31.05672622 | R65: 1353.637347 | S65: 31.05672622 | T65: 95.89212771
A66: KE-78 | B66: 76.34304268 | C66: 14628 | D66: 1.773381749 | E66: 11.37972236 | F66: 2.282342528 | G66: 2.91540305 | H66: 2.736638422 | I66: 0.2406184891 | J66: 1.510000807 | K66: 0.5517721285 | L66: 1389.911599 | M66: 18.87936456 | N66: 1385.914885 | O66: 20.69329171 | P66: 1379.748888 | Q66: 43.86859124 | R66: 1379.748888 | S66: 43.86859124 | T66: 100.7365624
A67: KE-8 | B67: 149.6831279 | C67: 36630 | D67: 3.292795123 | E67: 11.33105054 | F67: 1.460599727 | G67: 2.857713033 | H67: 2.783927433 | I67: 0.2348483523 | J67: 2.370000082 | K67: 0.8513153231 | L67: 1359.85928 | M67: 29.05650658 | N67: 1370.842798 | O67: 20.94296168 | P67: 1387.981292 | Q67: 28.04019409 | R67: 1387.981292 | S67: 28.04019409 | T67: 97.97389117
A68: KE-24 | B68: 249.2007795 | C68: 48027 | D68: 2.185574234 | E68: 11.1018982 | F68: 1.580091157 | G68: 3.066722327 | H68: 2.380144562 | I68: 0.2469280467 | J68: 1.780000021 | K68: 0.7478537435 | L68: 1422.613788 | M68: 22.72317636 | N68: 1424.417272 | O68: 18.22677467 | P68: 1427.095313 | Q68: 30.17204854 | R68: 1427.095313 | S68: 30.17204854 | T68: 99.68596876
A69: KE-41 | B69: 68.61221478 | C69: 16899 | D69: 1.947979507 | E69: 10.90754471 | F69: 1.634582686 | G69: 3.158582227 | H69: 1.709346255 | I69: 0.2498721848 | J69: 0.5000040618 | K69: 0.2925118656 | L69: 1437.816561 | M69: 6.443831768 | N69: 1447.097736 | O69: 13.18351607 | P69: 1460.741277 | Q69: 31.071251 | R69: 1460.741277 | S69: 31.071251 | T69: 98.43061078
A70: KE-69 | B70: 36.17848709 | C70: 9357 | D70: 1.458451519 | E70: 10.76060834 | F70: 2.484462338 | G70: 3.405610914 | H70: 2.818059629 | I70: 0.2657850682 | J70: 1.330002616 | K70: 0.4719568752 | L70: 1519.371713 | M70: 18.00289881 | N70: 1505.690142 | O70: 22.1226776 | P70: 1486.475842 | Q70: 47.06613257 | R70: 1486.475842 | S70: 47.06613257 | T70: 102.2130108
A71: KE-81 | B71: 249.2722785 | C71: 29436 | D71: 2.737721091 | E71: 10.6438567 | F71: 1.440541105 | G71: 3.319989733 | H71: 1.881291881 | I71: 0.2562916665 | J71: 1.210000193 | K71: 0.6431751527 | L71: 1470.841319 | M71: 15.91287067 | N71: 1485.762325 | O71: 14.68149838 | P71: 1507.111494 | Q71: 27.21145904 | R71: 1507.111494 | S71: 27.21145904 | T71: 97.59339803
A72: KE-40 | B72: 109.2683259 | C72: 26517 | D72: 1.40411458 | E72: 10.00218753 | F72: 2.590894525 | G72: 4.016900304 | H72: 2.638699775 | I72: 0.2913967951 | J72: 0.5000020627 | K72: 0.1894880454 | L72: 1648.505525 | M72: 7.27302788 | N72: 1637.622251 | O72: 21.45557232 | P72: 1623.657945 | Q72: 48.20465989 | R72: 1623.657945 | S72: 48.20465989 | T72: 101.5303457
A73: KE-44 | B73: 80.65979398 | C73: 29496 | D73: 2.717371402 | E73: 9.834743009 | F73: 0.9514838767 | G73: 4.084937419 | H73: 1.578899259 | I73: 0.291371553 | J73: 1.260000516 | K73: 0.7980246425 | L73: 1648.379519 | M73: 18.32677433 | N73: 1651.299916 | O73: 12.87974956 | P73: 1655.00212 | Q73: 17.62854396 | R73: 1655.00212 | S73: 17.62854396 | T73: 99.59984337
A74: KE-66 | B74: 62.4454272 | C74: 15285 | D74: 2.506694717 | E74: 9.796275255 | F74: 1.793442122 | G74: 4.187387878 | H74: 1.932573576 | I74: 0.2975109099 | J74: 0.7200041539 | K74: 0.3725623505 | L74: 1678.954033 | M74: 10.64254463 | N74: 1671.554319 | O74: 15.84147627 | P74: 1662.260299 | Q74: 33.20051952 | R74: 1662.260299 | S74: 33.20051952 | T74: 101.0042792
A75: KE-19 | B75: 120.4400425 | C75: 25851 | D75: 2.541762565 | E75: 9.78668113 | F75: 1.550286498 | G75: 4.124916684 | H75: 2.049143395 | I75: 0.2927853516 | J75: 1.340000158 | K75: 0.6539318634 | L75: 1655.433218 | M75: 19.56353405 | N75: 1659.251935 | O75: 16.74827242 | P75: 1664.070549 | Q75: 28.69171184 | R75: 1664.070549 | S75: 28.69171184 | T75: 99.48095164
A76: KE-90 | B76: 738.8258381 | C76: 96966 | D76: 0.7182128875 | E76: 9.785083934 | F76: 1.400021894 | G76: 4.191128833 | H76: 1.539370434 | I76: 0.2974365202 | J76: 0.6400000232 | K76: 0.4157543947 | L76: 1678.584433 | M76: 9.458160514 | N76: 1672.286313 | O76: 12.62015294 | P76: 1664.372611 | Q76: 25.90925723 | R76: 1664.372611 | S76: 25.90925723 | T76: 100.8538846
A77: KE-63 | B77: 68.02234814 | C77: 15300 | D77: 2.38726048 | E77: 9.473819068 | F77: 1.002443409 | G77: 4.29041249 | H77: 1.888093033 | I77: 0.2947968644 | J77: 1.600000785 | K77: 0.8474162856 | L77: 1665.455738 | M77: 23.48343068 | N77: 1691.522789 | O77: 15.54879574 | P77: 1723.969773 | Q77: 18.41115541 | R77: 1723.969773 | S77: 18.41115541 | T77: 96.60585493
A78: KE-5 | B78: 375.5752379 | C78: 43188 | D78: 2.041686277 | E78: 9.346841113 | F78: 1.660036645 | G78: 4.581610705 | H78: 1.775562371 | I78: 0.3105859247 | J78: 0.6300000566 | K78: 0.354817193 | L78: 1743.589415 | M78: 9.624438183 | N78: 1745.928204 | O78: 14.79977928 | P78: 1748.712434 | Q78: 30.39700677 | R78: 1748.712434 | S78: 30.39700677 | T78: 99.70704048
A79: KE-93 | B79: 223.2466475 | C79: 54825 | D79: 4.873958155 | E79: 9.300572622 | F79: 0.5101679922 | G79: 4.610943892 | H79: 0.8341891165 | I79: 0.3110271143 | J79: 0.6600000771 | K79: 0.7911875905 | L79: 1745.759141 | M79: 10.09367051 | N79: 1751.250401 | O79: 6.960735717 | P79: 1757.79403 | Q79: 9.331133353 | R79: 1757.79403 | S79: 9.331133353 | T79: 99.31534136
A80: KE-33 | B80: 13.06643976 | C80: 3855 | D80: 0.3690785076 | E80: 9.033105345 | F80: 3.041925258 | G80: 5.012683282 | H80: 3.423207155 | I80: 0.3284022059 | J80: 1.570043934 | K80: 0.4586470707 | L80: 1830.632529 | M80: 25.02123082 | N80: 1821.466333 | O80: 28.98564549 | P80: 1810.985299 | Q80: 55.28107345 | R80: 1810.985299 | S80: 55.28107345 | T80: 101.0848917
A81: KE-21 | B81: 265.7974818 | C81: 57303 | D81: 1.334920734 | E81: 8.891060358 | F81: 1.210055173 | G81: 5.00480154 | H81: 1.615281281 | I81: 0.3227298562 | J81: 1.070000045 | K81: 0.6624233545 | L81: 1803.047052 | M81: 16.8294908 | N81: 1820.134443 | O81: 13.67075542 | P81: 1839.731218 | Q81: 21.90939709 | R81: 1839.731218 | S81: 21.90939709 | T81: 98.00600406
A82: KE-29 | B82: 252.5433572 | C82: 68484 | D82: 2.113604173 | E82: 8.831304034 | F82: 2.330036074 | G82: 5.186027087 | H82: 2.60729136 | I82: 0.3321684214 | J82: 1.170000055 | K82: 0.4487415841 | L82: 1848.883201 | M82: 18.80635057 | N82: 1850.325484 | O82: 22.19788613 | P82: 1851.932791 | Q82: 42.1277671 | R82: 1851.932791 | S82: 42.1277671 | T82: 99.83532935
A83: KE-18 | B83: 313.3711198 | C83: 39768 | D83: 4.759693569 | E83: 8.693888415 | F83: 1.260043453 | G83: 4.615503281 | H83: 3.034025308 | I83: 0.2910260408 | J83: 2.760000012 | K83: 0.9096825939 | L83: 1646.654522 | M83: 40.10788324 | N83: 1752.075154 | O83: 25.32617116 | P83: 1880.234759 | Q83: 22.70331356 | R83: 1880.234759 | S83: 22.70331356 | T83: 87.57707059
A84: KE-91 | B84: 303.656195 | C84: 49968 | D84: 2.302646487 | E84: 8.641687266 | F84: 0.6603017603 | G84: 4.357389953 | H84: 3.032754298 | I84: 0.2731012567 | J84: 2.960000037 | K84: 0.9760104993 | L84: 1556.524469 | M84: 40.93327663 | N84: 1704.297007 | O84: 25.05119289 | P84: 1891.07538 | Q84: 11.88049665 | R84: 1891.07538 | S84: 11.88049665 | T84: 82.30895951
A85: KE-13 | B85: 85.59322403 | C85: 24780 | D85: 4.253111621 | E85: 8.567011416 | F85: 1.810496778 | G85: 5.510979476 | H85: 2.004370263 | I85: 0.3424182194 | J85: 0.8600009112 | K85: 0.4290628968 | L85: 1898.292531 | M85: 14.14121875 | N85: 1902.309897 | O85: 17.22788644 | P85: 1906.678848 | Q85: 32.51858259 | R85: 1906.678848 | S85: 32.51858259 | T85: 99.56016099
A86: KE-38 | B86: 122.2900788 | C86: 39519 | D86: 4.637201052 | E86: 8.517339962 | F86: 1.370772927 | G86: 5.573505907 | H86: 1.530170023 | I86: 0.3442953626 | J86: 0.680001384 | K86: 0.444395965 | L86: 1907.300447 | M86: 11.22703079 | N86: 1912.014331 | O86: 13.17423414 | P86: 1917.116875 | Q86: 24.59023913 | R86: 1917.116875 | S86: 24.59023913 | T86: 99.48795881
A87: KE-26 | B87: 91.59913889 | C87: 27546 | D87: 6.267162619 | E87: 8.453881053 | F87: 1.660526856 | G87: 5.623473541 | H87: 1.938388774 | I87: 0.3447938527 | J87: 1.000000801 | K87: 0.5158927941 | L87: 1909.690456 | M87: 16.52811416 | N87: 1919.703444 | O87: 16.71201668 | P87: 1930.51815 | Q87: 29.74186293 | R87: 1930.51815 | S87: 29.74186293 | T87: 98.9211345
A88: KE-99 | B88: 278.2561801 | C88: 33720 | D88: 3.058575223 | E88: 8.39716523 | F88: 1.270971727 | G88: 5.07219071 | H88: 3.248918429 | I88: 0.3089064655 | J88: 2.990000306 | K88: 0.9203063638 | L88: 1735.323316 | M88: 45.48990525 | N88: 1831.46616 | O88: 27.56294029 | P88: 1942.566376 | Q88: 22.72896154 | R88: 1942.566376 | S88: 22.72896154 | T88: 89.33148117
A89: KE-79 | B89: 97.26543356 | C89: 22629 | D89: 1.006833407 | E89: 8.391880025 | F89: 1.460468164 | G89: 5.765506251 | H89: 1.543686676 | I89: 0.350909753 | J89: 0.5000012954 | K89: 0.3239007652 | L89: 1938.941219 | M89: 8.372567952 | N89: 1941.246984 | O89: 13.35830234 | P89: 1943.692381 | Q89: 26.11526064 | R89: 1943.692381 | S89: 26.11526064 | T89: 99.75555996
A90: KE-6 | B90: 162.4993212 | C90: 48012 | D90: 1.514546679 | E90: 8.118274431 | F90: 1.92024381 | G90: 6.17814131 | H90: 2.313317385 | I90: 0.3637644809 | J90: 1.2900004 | K90: 0.557640905 | L90: 1999.992758 | M90: 22.18148819 | N90: 2001.3611 | O90: 20.21940469 | P90: 2002.756559 | Q90: 34.10303887 | R90: 2002.756559 | S90: 34.10303887 | T90: 99.86200016
A91: KE-70 | B91: 41.47834946 | C91: 16560 | D91: 1.010867927 | E91: 5.323230923 | F91: 1.390268164 | G91: 13.69764444 | H91: 1.689511867 | I91: 0.5288346711 | J91: 0.9600024901 | K91: 0.5682129312 | L91: 2736.54016 | M91: 21.40679049 | N91: 2729.032075 | O91: 15.98914362 | P91: 2723.469158 | Q91: 22.90558338 | R91: 2723.469158 | S91: 22.90558338 | T91: 100.4799394
A92: KE-47 | B92: 136.1876943 | C92: 57843 | D92: 1.941143164 | E92: 5.248506392 | F92: 0.9500526428 | G92: 13.40298809 | H92: 2.187121542 | I92: 0.51019487 | J92: 1.970000156 | K92: 0.9007273343 | L92: 2657.461373 | M92: 42.90362373 | N92: 2708.468997 | O92: 20.66863692 | P92: 2746.730951 | Q92: 15.61771352 | R92: 2746.730951 | S92: 15.61771352 | T92: 96.74997009
A93: KE-3 | B93: 77.12059415 | C93: 37035 | D93: 1.1233345 | E93: 5.204556829 | F93: 2.000160565 | G93: 14.00915519 | H93: 2.327390527 | I93: 0.5288036287 | J93: 1.19000184 | K93: 0.511303035 | L93: 2736.409267 | M93: 26.53450639 | N93: 2750.327828 | O93: 22.06089867 | P93: 2760.548175 | Q93: 32.84127499 | R93: 2760.548175 | S93: 32.84127499 | T93: 99.12557553
A94: KE-50 | B94: 26.12394214 | C94: 13383 | D94: 2.690777585 | E94: 5.100608913 | F94: 1.480744751 | G94: 14.42027512 | H94: 1.562888697 | I94: 0.5334507093 | J94: 0.5000160598 | K94: 0.3199306904 | L94: 2755.974611 | M94: 11.21313558 | N94: 2777.76637 | O94: 14.84124419 | P94: 2793.619545 | Q94: 24.23989741 | R94: 2793.619545 | S94: 24.23989741 | T94: 98.6524674
A95: KE-20 | B95: 30.03851164 | C95: 16569 | D95: 95.02938492 | E95: 5.092898716 | F95: 2.620805213 | G95: 14.74995935 | H95: 2.854041486 | I95: 0.5448219396 | J95: 1.13001453 | K95: 0.395934865 | L95: 2803.601317 | M95: 25.69098124 | N95: 2799.246367 | O95: 27.14594914 | P95: 2796.095938 | Q95: 42.89766673 | R95: 2796.095938 | S95: 42.89766673 | T95: 100.2684235
A96: KE-11 | B96: 30.95906109 | C96: 14976 | D96: 1.261050919 | E96: 5.084622543 | F96: 1.72043249 | G96: 14.69808011 | H96: 2.042033136 | I96: 0.5420234222 | J96: 1.100005171 | K96: 0.5386813523 | L96: 2791.912745 | M96: 24.9254025 | N96: 2795.896247 | O96: 19.41599686 | P96: 2798.757656 | Q96: 28.15156024 | R96: 2798.757656 | S96: 28.15156024 | T96: 99.75543036
A97: KE-77 | B97: 28.22422486 | C97: 13875 | D97: 1.370675749 | E97: 4.381190968 | F97: 1.04018739 | G97: 18.7615292 | H97: 2.245461007 | I97: 0.5961549339 | J97: 1.990001338 | K97: 0.8862328637 | L97: 3014.327611 | M97: 47.91413689 | N97: 3029.636064 | O97: 21.64955222 | P97: 3039.798728 | Q97: 16.66352836 | R97: 3039.798728 | S97: 16.66352836 | T97: 99.16207884
A98: KE-58 | B98: 198.3560629 | C98: 12774 | D98: 1.967135629 | E98: 4.054853007 | F98: 0.8311503225 | G98: 15.93726336 | H98: 1.308025162 | I98: 0.4686920529 | J98: 1.01000939 | K98: 0.772163578 | L98: 2477.82269 | M98: 20.77791501 | N98: 2873.042724 | O98: 12.49794041 | P98: 3163.17083 | Q98: 13.17934799 | R98: 3163.17083 | S98: 13.17934799 | T98: 78.33350845

Sheet 10WY2HarebellPacificCreekwest
A1: TABLE 2. Detrital Zircon data table for sample 10WY2, Harebell Formation at Pacific Creek west
H2: Isotope ratios | N2: Apparent ages (Ma)
A4: Analysis | B4: U | C4: 206Pb | D4: U/Th | E4: 206Pb* | F4: ± | G4: 207Pb* | H4: ± | I4: 206Pb* | J4: ± | K4: error | L4: 206Pb* | M4: ± | N4: 207Pb* | O4: ± | P4: 206Pb* | Q4: ± | R4: Best age | S4: ± | T4: Conc
B5: (ppm) | C5: 204Pb | E5: 207Pb* | F5: (%) | G5: 235U* | H5: (%) | I5: 238U | J5: (%) | K5: corr. | L5: 238U* | M5: (Ma) | N5: 235U | O5: (Ma) | P5: 207Pb* | Q5: (Ma) | R5: (Ma) | S5: (Ma) | T5: (%)
A6: 10-WY-2-62 | B6: 352.2901733 | C6: 15972.88946 | D6: 6.358131409 | E6: 19.97607477 | F6: 12.64753517 | G6: 0.07512477178 | H6: 14.20218475 | I6: 0.01088408803 | J6: 6.460797606 | K6: 0.4549157555 | L6: 69.78425566 | M6: 4.484304523 | N6: 73.55101956 | O6: 10.07682284 | P6: 197.7679902 | Q6: 294.8252279 | R6: 69.78425566 | S6: 4.484304523 | T6: NA
A7: 10-WY-2-34 | B7: 163.7113319 | C7: 2725.283022 | D7: 2.098558582 | E7: 22.77686425 | F7: 23.94031251 | G7: 0.06907401744 | H7: 24.365057 | I7: 0.01141057092 | J7: 4.529618038 | K7: 0.1859063181 | L7: 73.14076633 | M7: 3.294273942 | N7: 67.8203478 | O7: 15.98601309 | P7: -116.0397212 | Q7: 597.2624324 | R7: 73.14076633 | S7: 3.294273942 | T7: NA
A8: 10-WY-2-96 | B8: 917.2038965 | C8: 14918.40245 | D8: 7.227727635 | E8: 21.41064243 | F8: 5.97076163 | G8: 0.08598987186 | H8: 6.618117082 | I8: 0.01335290397 | J8: 2.854729279 | K8: 0.4313506764 | L8: 85.50871676 | M8: 2.424924183 | N8: 83.76087259 | O8: 5.320958344 | P8: 34.20139588 | Q8: 143.0760221 | R8: 85.50871676 | S8: 2.424924183 | T8: NA
A9: 10-WY-2-10 | B9: 283.5078517 | C9: 289.5482975 | D9: 0.56258455 | E9: 18.3260883 | F9: 12.27594482 | G9: 0.1008581783 | H9: 16.24848589 | I9: 0.01340539513 | J9: 10.64492708 | K9: 0.6551334782 | L9: 85.84262911 | M9: 9.077318851 | N9: 97.56819587 | O9: 15.11661801 | P9: 394.5028183 | Q9: 276.2177397 | R9: 85.84262911 | S9: 9.077318851 | T9: NA
A10: 10-WY-2-1 | B10: 267.0680683 | C10: 226.7286039 | D10: 0.2426226559 | E10: 16.61720907 | F10: 10.70508206 | G10: 0.1118201391 | H10: 14.23545364 | I10: 0.01347649136 | J10: 9.383461964 | K10: 0.6591614291 | L10: 86.29486635 | M10: 8.043492975 | N10: 107.6290169 | O10: 14.53839253 | P10: 609.9802166 | Q10: 232.0084667 | R10: 86.29486635 | S10: 8.043492975 | T10: NA
A11: 10-WY-2-83 | B11: 204.7638592 | C11: 262.374705 | D11: 0.4890914351 | E11: 18.63364118 | F11: 16.12977317 | G11: 0.1007012449 | H11: 18.25801201 | I11: 0.01360915915 | J11: 8.554847752 | K11: 0.4685530793 | L11: 87.13867038 | M11: 7.404426869 | N11: 97.42343713 | O11: 16.96247336 | P11: 357.0532958 | Q11: 366.2272971 | R11: 87.13867038 | S11: 7.404426869 | T11: NA
A12: 10-WY-2-18 | B12: 296.6045385 | C12: 479.8121686 | D12: 1.081143029 | E12: 18.25757492 | F12: 11.29065238 | G12: 0.1029427609 | H12: 12.50797977 | I12: 0.01363131106 | J12: 5.38244618 | K12: 0.4303209853 | L12: 87.27955193 | M12: 4.666116613 | N12: 99.48910485 | O12: 11.85440196 | P12: 402.897102 | Q12: 253.5819306 | R12: 87.27955193 | S12: 4.666116613 | T12: NA
A13: 10-WY-2-47 | B13: 396.7518202 | C13: 347.9469304 | D13: 1.110992391 | E13: 20.20836775 | F13: 10.65692834 | G13: 0.09317472787 | H13: 10.90126156 | I13: 0.01365614422 | J13: 2.295077753 | K13: 0.2105332251 | L13: 87.43748203 | M13: 1.993210013 | N13: 90.45647279 | O13: 9.434691824 | P13: 170.826944 | Q13: 249.3912017 | R13: 87.43748203 | S13: 1.993210013 | T13: NA
A14: 10-WY-2-81 | B14: 200.5706654 | C14: 218.825856 | D14: 0.3360514704 | E14: 16.7478046 | F14: 14.6805399 | G14: 0.1128360306 | H14: 15.39898817 | I14: 0.01370580064 | J14: 4.648718613 | K14: 0.3018846799 | L14: 87.75326762 | M14: 4.051762688 | N14: 108.5563684 | O14: 15.85528357 | P14: 593.0774914 | Q14: 319.789091 | R14: 87.75326762 | S14: 4.051762688 | T14: NA
A15: 10-WY-2-57 | B15: 354.4782199 | C15: 495.0972167 | D15: 2.148232027 | E15: 20.01057525 | F15: 10.60967058 | G15: 0.09461555476 | H15: 11.81235627 | I15: 0.01373159036 | J15: 5.192942411 | K15: 0.4396195214 | L15: 87.91726891 | M15: 4.534502463 | N15: 91.79388747 | O15: 10.36770103 | P15: 193.7867416 | Q15: 247.2408964 | R15: 87.91726891 | S15: 4.534502463 | T15: NA
A16: 10-WY-2-53 | B16: 191.4149576 | C16: 200.6449441 | D16: 0.2935505925 | E16: 24.02156877 | F16: 17.79342527 | G16: 0.07913756136 | H16: 19.23325854 | I16: 0.01378741204 | J16: 7.301523902 | K16: 0.3796301021 | L16: 88.27223448 | M16: 6.401293204 | N16: 77.33377451 | O16: 14.322454 | P16: -248.8943569 | Q16: 453.0969662 | R16: 88.27223448 | S16: 6.401293204 | T16: NA
A17: 10-WY-2-36 | B17: 196.4132626 | C17: 233.116751 | D17: 0.4294353542 | E17: 24.42066504 | F17: 24.44456005 | G17: 0.0781433877 | H17: 25.15693137 | I17: 0.01384039379 | J17: 5.944298118 | K17: 0.2362886804 | L17: 88.60912301 | M17: 5.231156816 | N17: 76.3979046 | O17: 18.51618125 | P17: -290.7557269 | Q17: 631.3946712 | R17: 88.60912301 | S17: 5.231156816 | T17: NA
A18: 10-WY-2-61 | B18: 345.5862969 | C18: 354.2901956 | D18: 1.595906887 | E18: 19.76954123 | F18: 7.731874215 | G18: 0.09658046039 | H18: 8.015555325 | I18: 0.01384792133 | J18: 2.113586596 | K18: 0.26368561 | L18: 88.65698604 | M18: 1.861015697 | N18: 93.61493168 | O18: 7.168355086 | P18: 221.8885987 | Q18: 179.0615475 | R18: 88.65698604 | S18: 1.861015697 | T18: NA
A19: 10-WY-2-40 | B19: 184.5046272 | C19: 314.1786602 | D19: 0.5676582146 | E19: 16.91515038 | F19: 17.80413784 | G19: 0.1129527739 | H19: 19.79434715 | I19: 0.0138570725 | J19: 8.650367341 | K19: 0.4370120052 | L19: 88.71517221 | M19: 7.621627377 | N19: 108.6628827 | O19: 20.40091712 | P19: 571.4452212 | Q19: 390.1365752 | R19: 88.71517221 | S19: 7.621627377 | T19: NA
A20: 10-WY-2-75 | B20: 205.4981013 | C20: 300.1034735 | D20: 0.4056907119 | E20: 19.99807903 | F20: 15.97954478 | G20: 0.09609174568 | H20: 17.07933435 | I20: 0.01393712159 | J20: 6.029743803 | K20: 0.3530432557 | L20: 89.22412877 | M20: 5.342926872 | N20: 93.16230348 | O20: 15.20451199 | P20: 195.2382116 | Q20: 373.4707794 | R20: 89.22412877 | S20: 5.342926872 | T20: NA
A21: 10-WY-2-26 | B21: 219.563897 | C21: 258.9666857 | D21: 0.4047714306 | E21: 18.06444182 | F21: 12.3445679 | G21: 0.1069401836 | H21: 13.24778218 | I21: 0.01401084077 | J21: 4.807845261 | K21: 0.3629169921 | L21: 89.69280389 | M21: 4.282430764 | N21: 103.1625299 | O21: 12.99611591 | P21: 426.6640787 | Q21: 276.2396708 | R21: 89.69280389 | S21: 4.282430764 | T21: NA
A22: 10-WY-2-64 | B22: 180.9992742 | C22: 198.9644739 | D22: 0.2092525772 | E22: 19.74007385 | F22: 16.10528725 | G22: 0.09798142575 | H22: 17.92820106 | I22: 0.01402785451 | J22: 7.876554811 | K22: 0.4393388263 | L22: 89.8009652 | M22: 7.024186678 | N22: 94.91133321 | O22: 16.24622427 | P22: 225.2923199 | Q22: 374.370879 | R22: 89.8009652 | S22: 7.024186678 | T22: NA
A23: 10-WY-2-29 | B23: 150.225326 | C23: 206.8192822 | D23: 0.2436911003 | E23: 18.13048549 | F23: 13.93496451 | G23: 0.1076516369 | H23: 15.92447335 | I23: 0.01415561677 | J23: 7.707503854 | K23: 0.4840036895 | L23: 90.61312884 | M23: 6.935157364 | N23: 103.8149279 | O23: 15.71618429 | P23: 418.5196095 | Q23: 312.5420774 | R23: 90.61312884 | S23: 6.935157364 | T23: NA
A24: 10-WY-2-3 | B24: 140.2095565 | C24: 169.7114925 | D24: 0.1546387094 | E24: 19.40365868 | F24: 28.76764679 | G24: 0.1007620475 | H24: 29.30468442 | I24: 0.01418010137 | J24: 5.584534625 | K24: 0.1905679838 | L24: 90.76876171 | M24: 5.033493731 | N24: 97.47952519 | O24: 27.24424009 | P24: 264.9153509 | Q24: 672.6373189 | R24: 90.76876171 | S24: 5.033493731 | T24: NA
A25: 10-WY-2-48 | B25: 122.0101843 | C25: 176.2514547 | D25: 0.2821912842 | E25: 17.26955956 | F25: 17.62365763 | G25: 0.113341915 | H25: 18.67439529 | I25: 0.01419614847 | J25: 6.175737297 | K25: 0.3307061461 | L25: 90.87076078 | M25: 5.572572189 | N25: 109.0178467 | O25: 19.3059321 | P25: 526.2042928 | Q25: 389.0949713 | R25: 90.87076078 | S25: 5.572572189 | T25: NA
A26: 10-WY-2-19 | B26: 84.23751818 | C26: 184.6384317 | D26: 0.3116568728 | E26: 18.60198421 | F26: 37.56287996 | G26: 0.1053128945 | H26: 39.18966434 | I26: 0.01420821584 | J26: 11.17406997 | K26: 0.2851279835 | L26: 90.94746271 | M26: 10.09118965 | N26: 101.6687387 | O26: 37.93147451 | P26: 360.891064 | Q26: 875.9327329 | R26: 90.94746271 | S26: 10.09118965 | T26: NA
A27: 10-WY-2-82 | B27: 139.6952566 | C27: 173.307973 | D27: 0.2242009136 | E27: 20.04864134 | F27: 26.61537645 | G27: 0.09792143551 | H27: 27.10019297 | I27: 0.01423840832 | J27: 5.103155431 | K27: 0.1883069777 | L27: 91.13936647 | M27: 4.618260927 | N27: 94.85585436 | O27: 24.54671575 | P27: 189.3210365 | Q27: 629.0626895 | R27: 91.13936647 | S27: 4.618260927 | T27: NA
A28: 10-WY-2-93 | B28: 397.98749 | C28: 317.3073781 | D28: 1.366250525 | E28: 15.89934554 | F28: 9.140512941 | G28: 0.1235910576 | H28: 9.491234677 | I28: 0.01425164585 | J28: 2.556278321 | K28: 0.2693304305 | L28: 91.22350252 | M28: 2.315504673 | N28: 118.3224425 | O28: 10.60100834 | P28: 704.7074351 | Q28: 194.8706088 | R28: 91.22350252 | S28: 2.315504673 | T28: NA
A29: 10-WY-2-50 | B29: 173.0429121 | C29: 200.1890016 | D29: 0.231514859 | E29: 17.21593398 | F29: 16.14148567 | G29: 0.1144749175 | H29: 16.75814158 | I29: 0.01429353512 | J29: 4.504192443 | K29: 0.2687763688 | L29: 91.48973822 | M29: 4.091769841 | N29: 110.0506351 | O29: 17.47989043 | P29: 533.0186859 | Q29: 355.5244618 | R29: 91.48973822 | S29: 4.091769841 | T29: NA
A30: 10-WY-2-43 | B30: 156.9863761 | C30: 187.4126524 | D30: 0.2416605489 | E30: 16.32791096 | F30: 13.33253547 | G30: 0.1211961414 | H30: 14.87267191 | I30: 0.0143521889 | J30: 6.5908928 | K30: 0.4431545884 | L30: 91.86250572 | M30: 6.011625951 | N30: 116.1558601 | O30: 16.32538858 | P30: 647.8643317 | Q30: 287.5344868 | R30: 91.86250572 | S30: 6.011625951 | T30: NA
A31: 10-WY-2-59 | B31: 350.9383287 | C31: 764.1448063 | D31: 1.967958687 | E31: 20.51383944 | F31: 8.831987259 | G31: 0.09714334748 | H31: 9.391855199 | I31: 0.01445302461 | J31: 3.19420493 | K31: 0.3401037241 | L31: 92.50330525 | M31: 2.933646709 | N31: 94.13600551 | O31: 8.443859544 | P31: 135.7233361 | Q31: 207.8850142 | R31: 92.50330525 | S31: 2.933646709 | T31: NA
A32: 10-WY-2-74 | B32: 162.5575317 | C32: 198.37451 | D32: 0.2802393344 | E32: 19.53153747 | F32: 15.68275428 | G32: 0.1020753394 | H32: 19.91597748 | I32: 0.01445959035 | J32: 12.27588601 | K32: 0.6163838065 | L32: 92.54502759 | M32: 11.27957491 | N32: 98.6902315 | O32: 18.73226754 | P32: 249.7889616 | Q32: 362.8312785 | R32: 92.54502759 | S32: 11.27957491 | T32: NA
A33: 10-WY-2-5 | B33: 472.6793679 | C33: 381.7946831 | D33: 1.964581272 | E33: 20.82458725 | F33: 8.469664622 | G33: 0.09615590178 | H33: 9.50639296 | I33: 0.01452282395 | J33: 4.316976754 | K33: 0.4541130134 | L33: 92.94683489 | M33: 3.983705467 | N33: 93.22173383 | O33: 8.467580991 | P33: 100.2483845 | Q33: 200.6252386 | R33: 92.94683489 | S33: 3.983705467 | T33: NA
A34: 10-WY-2-78 | B34: 127.2196124 | C34: 145.9767161 | D34: 0.1996331129 | E34: 18.60965869 | F34: 18.02348485 | G34: 0.107938752 | H34: 19.92066954 | I34: 0.01456848951 | J34: 8.484519371 | K34: 0.4259153716 | L34: 93.23699346 | M34: 7.853781626 | N34: 104.0780919 | O34: 19.7083386 | P34: 359.9601418 | Q34: 409.6128095 | R34: 93.23699346 | S34: 7.853781626 | T34: NA
A35: 10-WY-2-12 | B35: 141.4542527 | C35: 141.7947091 | D35: 0.150151615 | E35: 12.21887267 | F35: 12.40104132 | G35: 0.1654440652 | H35: 14.6493214 | I35: 0.01466158955 | J35: 7.798512142 | K35: 0.5323463067 | L35: 93.82850987 | M35: 7.264236569 | N35: 155.4573653 | O35: 21.11882708 | P35: 1241.723621 | Q35: 243.9219032 | R35: 93.82850987 | S35: 7.264236569 | T35: 7.556311908
A36: 10-WY-2-86 | B36: 39.15037994 | C36: 58.8077303 | D36: 0.268575589 | E36: 23.39125251 | F36: 62.48004793 | G36: 0.0865965013 | H36: 64.37458909 | I36: 0.01469104024 | J36: 15.50262335 | K36: 0.2408189873 | L36: 94.0156152 | M36: 14.46914448 | N36: 84.327903 | O36: 52.13842247 | P36: -182.0672895 | Q36: 1722.540017 | R36: 94.0156152 | S36: 14.46914448 | T36: NA
A37: 10-WY-2-78 | B37: 181.1781891 | C37: 4195.478574 | D37: 4.765701857 | E37: 23.79001115 | F37: 26.13230067 | G37: 0.08523930892 | H37: 27.04754516 | I37: 0.0147073115 | J37: 6.976572285 | K37: 0.2579373561 | L37: 94.11898698 | M37: 6.518579298 | N37: 83.05886571 | O37: 21.57433992 | P37: -224.4482362 | Q37: 667.4327317 | R37: 94.11898698 | S37: 6.518579298 | T37: NA
A38: 10-WY-2-98 | B38: 215.974148 | C38: 208.895969 | D38: 0.2440852556 | E38: 15.14215377 | F38: 9.197192422 | G38: 0.1342362786 | H38: 10.03485629 | I38: 0.01474199574 | J38: 4.0137255 | K38: 0.3999783736 | L38: 94.33933143 | M38: 3.758950176 | N38: 127.8971845 | O38: 12.05945989 | P38: 807.648783 | Q38: 192.8505486 | R38: 94.33933143 | S38: 3.758950176 | T38: NA
A39: 10-WY-2-33 | B39: 128.6160148 | C39: 3656.955719 | D39: 2.01185753 | E39: 28.91931994 | F39: 38.44885564 | G39: 0.07029412636 | H39: 39.09192059 | I39: 0.01474367806 | J39: 7.061427258 | K39: 0.1806364884 | L39: 94.3500188 | M39: 6.613941241 | N39: 68.97851972 | O39: 26.07523721 | P39: -742.4114551 | Q39: 1110.850307 | R39: 94.3500188 | S39: 6.613941241 | T39: NA
A40: 10-WY-2-9 | B40: 99.37294923 | C40: 193.1783837 | D40: 0.223081524 | E40: 13.49795853 | F40: 16.45354119 | G40: 0.1507824821 | H40: 18.21534501 | I40: 0.01476106535 | J40: 7.815355164 | K40: 0.42905337 | L40: 94.46047498 | M40: 7.328600008 | N40: 142.602559 | O40: 24.2385949 | P40: 1043.771631 | Q40: 334.0854367 | R40: 94.46047498 | S40: 7.328600008 | T40: 9.049917832
A41: 10-WY-2-22 | B41: 294.8860925 | C41: 8892.417087 | D41: 1.323567608 | E41: 18.36628138 | F41: 13.72457265 | G41: 0.1108369758 | H41: 14.38868185 | I41: 0.01476402005 | J41: 4.320910898 | K41: 0.3002992868 | L41: 94.47924515 | M41: 4.052594396 | N41: 106.730734 | O41: 14.57857588 | P41: 389.5879891 | Q41: 309.3798503 | R41: 94.47924515 | S41: 4.052594396 | T41: NA
A42: 10-WY-2-46 | B42: 267.1033294 | C42: 14880.78809 | D42: 0.7192617532 | E42: 20.25099709 | F42: 15.25754241 | G42: 0.1005307483 | H42: 16.30640506 | I42: 0.01476536039 | J42: 5.753802696 | K42: 0.3528553766 | L42: 94.48775979 | M42: 5.396990952 | N42: 97.26614393 | O42: 15.12575264 | P42: 165.9042974 | Q42: 358.3332089 | R42: 94.48775979 | S42: 5.396990952 | T42: NA
A43: 10-WY-2-77 | B43: 75.82812356 | C43: 80.66974407 | D43: 1.937840353 | E43: 11.80847124 | F43: 25.71316094 | G43: 0.1724573987 | H43: 27.21055906 | I43: 0.014769787 | J43: 8.902127763 | K43: 0.3271571063 | L43: 94.51588031 | M43: 8.35254791 | N43: 161.5493597 | O43: 40.66157527 | P43: 1308.316349 | Q43: 507.5280571 | R43: 94.51588031 | S43: 8.35254791 | T43: 7.224237498
A44: 10-WY-2-6 | B44: 194.925005 | C44: 278.4001972 | D44: 0.393307861 | E44: 20.72461783 | F44: 19.38374151 | G44: 0.09890315537 | H44: 20.27175298 | I44: 0.01486604364 | J44: 5.934183527 | K44: 0.2927316415 | L44: 95.12733008 | M44: 5.60358508 | N44: 95.76336585 | O44: 18.52764151 | P44: 111.6508774 | Q44: 461.2443228 | R44: 95.12733008 | S44: 5.60358508 | T44: NA
A45: 10-WY-2-67 | B45: 1276.066467 | C45: 41754.68288 | D45: 2.051501884 | E45: 20.72078238 | F45: 4.570733197 | G45: 0.09899106888 | H45: 6.078472476 | I45: 0.01487650418 | J45: 4.007022047 | K45: 0.6592152985 | L45: 95.19377489 | M45: 3.786410344 | N45: 95.8445944 | O45: 5.559433703 | P45: 112.056642 | Q45: 107.9087747 | R45: 95.19377489 | S45: 3.786410344 | T45: NA
A46: 10-WY-2-65 | B46: 309.3244392 | C46: 10031.85891 | D46: 1.474366232 | E46: 26.34278965 | F46: 33.25038456 | G46: 0.07803266544 | H46: 34.50491745 | I46: 0.01490860235 | J46: 9.219612519 | K46: 0.2671970606 | L46: 95.39765666 | M46: 8.730540623 | N46: 76.2936223 | O46: 25.36563592 | P46: -487.9295799 | Q46: 903.5996327 | R46: 95.39765666 | S46: 8.730540623 | T46: NA
A47: 10-WY-2-90 | B47: 147.5672543 | C47: 180.0606148 | D47: 0.233125039 | E47: 17.44699762 | F47: 17.07500519 | G47: 0.1221950654 | H47: 19.69168123 | I47: 0.01546226441 | J47: 9.808491594 | K47: 0.4981033097 | L47: 98.91340356 | M47: 9.627866481 | N47: 117.0601077 | O47: 21.77532232 | P47: 503.7319086 | Q47: 378.2297683 | R47: 98.91340356 | S47: 9.627866481 | T47: NA
A48: 10-WY-2-23 | B48: 349.4476378 | C48: 22531.01464 | D48: 1.408006193 | E48: 23.06775801 | F48: 22.2101746 | G48: 0.09332391961 | H48: 22.53628063 | I48: 0.01561338551 | J48: 3.819959279 | K48: 0.1695026496 | L48: 99.87268759 | M48: 3.785695297 | N48: 90.59503841 | O48: 19.5348397 | P48: -147.4147159 | Q48: 556.5050371 | R48: 99.87268759 | S48: 3.785695297 | T48: NA
A49: 10-WY-2-32 | B49: 314.0587957 | C49: 7414.574406 | D49: 1.603087598 | E49: 23.9633281 | F49: 16.62582851 | G49: 0.09173083243 | H49: 16.81702622 | I49: 0.01594267504 | J49: 2.528674994 | K49: 0.15036398 | L49: 101.962452 | M49: 2.558015859 | N49: 89.11444026 | O49: 14.34854214 | P49: -242.7568419 | Q49: 422.5094598 | R49: 101.962452 | S49: 2.558015859 | T49: NA
A50: 10-WY-2-30 | B50: 565.2049449 | C50: 26898.76928 | D50: 1.081373863 | E50: 21.2358415 | F50: 7.624928556 | G50: 0.1052203403 | H50: 8.913575217 | I50: 0.01620570401 | J50: 4.616523331 | K50: 0.5179204998 | L50: 103.6312216 | M50: 4.745911036 | N50: 101.5837113 | O50: 8.616742258 | P50: 53.80408608 | Q50: 182.145192 | R50: 103.6312216 | S50: 4.745911036 | T50: NA
A51: 10-WY-2-28 | B51: 648.1631691 | C51: 19773.96902 | D51: 5.326371418 | E51: 14.11791529 | F51: 7.928807017 | G51: 0.1813668758 | H51: 8.607891939 | I51: 0.01857065702 | J51: 3.351092796 | K51: 0.3893047008 | L51: 118.6161347 | M51: 3.938590436 | N51: 169.2360638 | O51: 13.41915542 | P51: 952.5692096 | Q51: 162.4562126 | R51: 118.6161347 | S51: 3.938590436 | T51: 12.4522327
A52: 10-WY-2-52 | B52: 34.44880611 | C52: 4744.653547 | D52: 0.6576733406 | E52: 23.86241172 | F52: 47.25112399 | G52: 0.4495803822 | H52: 47.29301862 | I52: 0.07780731201 | J52: 1.990198877 | K52: 0.04208229746 | L52: 483.0215033 | M52: 9.261775884 | N52: 376.9854526 | O52: 150.0154233 | P52: -232.1041233 | Q52: 1253.596963 | R52: 483.0215033 | S52: 9.261775884 | T52: NA
A53: 10-WY-2-38 | B53: 190.7688376 | C53: 14684.30336 | D53: 1.019834544 | E53: 17.12374592 | F53: 3.381322533 | G53: 0.7006285666 | H53: 4.650902707 | I53: 0.08701324018 | J53: 3.193360913 | K53: 0.6866109902 | L53: 537.8487578 | M53: 16.47849952 | N53: 539.1662972 | O53: 19.45802215 | P53: 544.7506046 | Q53: 73.90106673 | R53: 537.8487578 | S53: 16.47849952 | T53: 98.7330263
A54: 10-WY-2-45 | B54: 104.7914148 | C54: 30437.22387 | D54: 2.005457657 | E54: 13.68542932 | F54: 2.845699478 | G54: 1.760560332 | H54: 3.639326691 | I54: 0.17474633 | J54: 2.268632462 | K54: 0.6233659834 | L54: 1038.209412 | M54: 21.75444274 | N54: 1031.054148 | O54: 23.57125065 | P54: 1015.886826 | Q54: 57.68088621 | R54: 1015.886826 | S54: 57.68088621 | T54: 102.1973497
A55: 10-WY-2-27 | B55: 454.447941 | C55: 160158.9341 | D55: 3.056996559 | E55: 13.05006532 | F55: 0.8183468066 | G55: 1.974594366 | H55: 2.020872206 | I55: 0.1868913944 | J55: 1.847764319 | K55: 0.9143400128 | L55: 1104.513235 | M55: 18.75617736 | N55: 1106.876867 | O55: 13.62212804 | P55: 1111.506392 | Q55: 16.34222778 | R55: 1111.506392 | S55: 16.34222778 | T55: 99.3708397
A56: 10-WY-2-76 | B56: 945.6260568 | C56: 538103.0478 | D56: 1.977443192 | E56: 10.1207468 | F56: 0.2888655305 | G56: 3.902989285 | H56: 1.947930678 | I56: 0.2864894568 | J56: 1.926393166 | K56: 0.9889433891 | L56: 1623.962337 | M56: 27.65465285 | N56: 1614.301749 | O56: 15.74615908 | P56: 1601.708454 | Q56: 5.38921317 | R56: 1601.708454 | S56: 5.38921317 | T56: 101.3893841
A57: 10-WY-2-37 | B57: 287.8813475 | C57: 204002.2577 | D57: 1.358210751 | E57: 9.711788825 | F57: 0.4294681003 | G57: 4.241964395 | H57: 1.671972557 | I57: 0.2987892545 | J57: 1.615874185 | K57: 0.9664477915 | L57: 1685.302097 | M57: 23.96370897 | N57: 1682.18136 | O57: 13.73910717 | P57: 1678.274902 | Q57: 7.93399657 | R57: 1678.274902 | S57: 7.93399657 | T57: 100.4187154
A58: 10-WY-2-73 | B58: 541.4805426 | C58: 355773.9045 | D58: 15.52690061 | E58: 9.589568241 | F58: 0.3158238341 | G58: 4.446081803 | H58: 1.358144132 | I58: 0.3092254486 | J58: 1.320912862 | K58: 0.9725866577 | L58: 1736.894129 | M58: 20.11196819 | N58: 1720.969097 | O58: 11.25866401 | P58: 1701.636684 | Q58: 5.815523089 | R58: 1701.636684 | S58: 5.815523089 | T58: 102.0719725
A59: 10-WY-2-20 | B59: 152.7202613 | C59: 67200.08536 | D59: 1.507860051 | E59: 9.55411189 | F59: 1.174581905 | G59: 4.315790587 | H59: 2.179114904 | I59: 0.2990538596 | J59: 1.835456105 | K59: 0.8422943195 | L59: 1686.615305 | M59: 27.23874206 | N59: 1696.381933 | O59: 17.96585371 | P59: 1708.45325 | Q59: 21.61539248 | R59: 1708.45325 | S59: 21.61539248 | T59: 98.72177098
A60: 10-WY-2-88 | B60: 135.4899847 | C60: 75911.53922 | D60: 1.872066661 | E60: 9.526878366 | F60: 1.256782895 | G60: 4.395012178 | H60: 1.999516965 | I60: 0.3036752715 | J60: 1.555173576 | K60: 0.7777746338 | L60: 1709.507865 | M60: 23.35280078 | N60: 1711.402605 | O60: 16.54097375 | P60: 1713.704846 | Q60: 23.11304405 | R60: 1713.704846 | S60: 23.11304405 | T60: 99.75509313
A61: 10-WY-2-16 | B61: 940.9165475 | C61: 566354.4634 | D61: 2.922607686 | E61: 9.470375102 | F61: 0.388880071 | G61: 4.062008885 | H61: 2.246431738 | I61: 0.2790016522 | J61: 2.212516179 | K61: 0.9849024753 | L61: 1586.332406 | M61: 31.11312992 | N61: 1646.71109 | O61: 18.30577632 | P61: 1724.637573 | Q61: 7.142212249 | R61: 1724.637573 | S61: 7.142212249 | T61: 91.98062425
A62: 10-WY-2-54 | B62: 143.9449265 | C62: 71577.51099 | D62: 1.359916331 | E62: 9.4251205 | F62: 0.8414871187 | G62: 4.476636225 | H62: 1.081041245 | I62: 0.3060112842 | J62: 0.67863805 | K62: 0.6277633282 | L62: 1721.048645 | M62: 10.25055286 | N62: 1726.64983 | O62: 8.972663668 | P62: 1733.430035 | Q62: 15.43626731 | R62: 1733.430035 | S62: 15.43626731 | T62: 99.28572889
A63: 10-WY-2-11 | B63: 75.99183647 | C63: 43537.7164 | D63: 1.742799515 | E63: 9.405572036 | F63: 1.798027478 | G63: 4.538327984 | H63: 2.935515158 | I63: 0.3095849345 | J63: 2.320419452 | K63: 0.7904641357 | L63: 1738.663936 | M63: 35.36186869 | N63: 1738.023706 | O63: 24.42953679 | P63: 1737.238132 | Q63: 32.97157634 | R63: 1737.238132 | S63: 32.97157634 | T63: 100.0820731
A64: 10-WY-2-13 | B64: 1261.470952 | C64: 314468.7363 | D64: 2.877301393 | E64: 9.403660371 | F64: 0.3272934832 | G64: 4.521916943 | H64: 3.660019137 | I64: 0.3084027499 | J64: 3.64535582 | K64: 0.9959936504 | L64: 1732.84202 | M64: 55.39181725 | N64: 1735.010481 | O64: 30.44220275 | P64: 1737.610856 | Q64: 5.999544113 | R64: 1737.610856 | S64: 5.999544113 | T64: 99.72555214
A65: 10-WY-2-79 | B65: 223.3256271 | C65: 136415.9869 | D65: 2.748065427 | E65: 9.287775258 | F65: 0.7464369168 | G65: 4.879205471 | H65: 3.947695975 | I65: 0.3286695957 | J65: 3.876484934 | K65: 0.9819613664 | L65: 1831.929976 | M65: 61.81760161 | N65: 1798.671502 | O65: 33.27817771 | P65: 1760.312054 | Q65: 13.64838321 | R65: 1760.312054 | S65: 13.64838321 | T65: 104.0684788
A66: 10-WY-2-80 | B66: 216.1297963 | C66: 123775.7617 | D66: 1.802276929 | E66: 9.159829375 | F66: 0.6236071878 | G66: 4.869632132 | H66: 1.799596665 | I66: 0.3235059432 | J66: 1.688094261 | K66: 0.9380403361 | L66: 1806.828256 | M66: 26.59951582 | N66: 1797.016767 | O66: 15.16081797 | P66: 1785.631868 | Q66: 11.36495442 | R66: 1785.631868 | S66: 11.36495442 | T66: 101.1870525
A67: 10-WY-2-56 | B67: 85.97012124 | C67: 46716.18143 | D67: 2.723994137 | E67: 9.123361337 | F67: 1.523883979 | G67: 4.733821553 | H67: 2.777497929 | I67: 0.3132315385 | J67: 2.32212669 | K67: 0.8360498368 | L67: 1756.58935 | M67: 35.7053041 | N67: 1773.246937 | O67: 23.28774855 | P67: 1792.899945 | Q67: 27.74929391 | R67: 1792.899945 | S67: 27.74929391 | T67: 97.9747562
A68: 10-WY-2-60 | B68: 196.7804712 | C68: 170448.2811 | D68: 2.76115491 | E68: 9.036652793 | F68: 0.7515426007 | G68: 5.02705058 | H68: 1.38782539 | I68: 0.3294728073 | J68: 1.166723204 | K68: 0.8406844345 | L68: 1835.825806 | M68: 18.63920429 | N68: 1823.889696 | O68: 11.75418595 | P68: 1810.271825 | Q68: 13.65545711 | R68: 1810.271825 | S68: 13.65545711 | T68: 101.4116101
A69: 10-WY-2-24 | B69: 123.1961082 | C69: 75299.99669 | D69: 1.003804424 | E69: 8.972875793 | F69: 1.098591776 | G69: 5.08371646 | H69: 2.731327422 | I69: 0.3308351926 | J69: 2.500649034 | K69: 0.915543488 | L69: 1842.428426 | M69: 40.07411751 | N69: 1833.391653 | O69: 23.17882726 | P69: 1823.128607 | Q69: 19.93116521 | R69: 1823.128607 | S69: 19.93116521 | T69: 101.0586098
A70: 10-WY-2-58 | B70: 55.27418533 | C70: 26898.02007 | D70: 2.221648963 | E70: 8.882002889 | F70: 1.736003573 | G70: 5.093516402 | H70: 2.701053785 | I70: 0.3281159516 | J70: 2.069295325 | K70: 0.7661066717 | L70: 1829.243256 | M70: 32.95610039 | N70: 1835.025964 | O70: 22.92908262 | P70: 1841.576533 | Q70: 31.42544499 | R70: 1841.576533 | S70: 31.42544499 | T70: 99.33028704
A71: 10-WY-2-21 | B71: 517.6945534 | C71: 217939.4637 | D71: 3.897384626 | E71: 8.218847971 | F71: 1.512623209 | G71: 4.142665988 | H71: 3.200787277 | I71: 0.2469389466 | J71: 2.820817296 | K71: 0.8812885869 | L71: 1422.670139 | M71: 36.0115722 | N71: 1662.762471 | O71: 26.18632732 | P71: 1980.865865 | Q71: 26.93045169 | R71: 1980.865865 | S71: 26.93045169 | T71: 71.82061963
A72: 10-WY-2-44 | B72: 27.64025981 | C72: 14503.99014 | D72: 1.98438976 | E72: 7.911299324 | F72: 3.447697104 | G72: 6.592370153 | H72: 4.118289222 | I72: 0.3782580036 | J72: 2.252485469 | K72: 0.5469468869 | L72: 2068.141083 | M72: 39.85137759 | N72: 2058.327477 | O72: 36.32420984 | P72: 2048.498415 | Q72: 60.92325481 | R72: 2048.498415 | S72: 60.92325481 | T72: 100.9588813
A73: 10-WY-2-15 | B73: 1106.458419 | C73: 888090.5676 | D73: 1.760915595 | E73: 6.179313108 | F73: 0.1334167368 | G73: 9.906273665 | H73: 1.578580526 | I73: 0.4439655259 | J73: 1.572932437 | K73: 0.9964220457 | L73: 2368.368517 | M73: 31.17626493 | N73: 2426.093506 | O73: 14.55996553 | P73: 2474.857964 | Q73: 2.251793685 | R73: 2474.857964 | S73: 2.251793685 | T73: 95.69714915
A74: 10-WY-2-4 | B74: 243.0085605 | C74: 94558.39118 | D74: 1.922165106 | E74: 6.172689815 | F74: 0.3689336448 | G74: 9.984233388 | H74: 1.019078085 | I74: 0.4469798067 | J74: 0.9499516351 | K74: 0.9321676612 | L74: 2381.811393 | M74: 18.9167437 | N74: 2433.325802 | O74: 9.405778933 | P74: 2476.667822 | Q74: 6.225698135 | R74: 2476.667822 | S74: 6.225698135 | T74: 96.16999789
A75: 10-WY-2-39 | B75: 648.5970015 | C75: 540744.7141 | D75: 3.639280902 | E75: 6.161954265 | F75: 0.2127121468 | G75: 10.80226892 | H75: 2.384714867 | I75: 0.4827610028 | J75: 2.375209157 | K75: 0.9960139008 | L75: 2539.28053 | M75: 49.85282202 | N75: 2506.261659 | O75: 22.16587241 | P75: 2479.604804 | Q75: 3.588404976 | R75: 2479.604804 | S75: 3.588404976 | T75: 102.4066628
A76: 10-WY-2-25 | B76: 163.6752756 | C76: 201925.324 | D76: 1.025288986 | E76: 5.286554888 | F76: 0.4806902813 | G76: 13.94908013 | H76: 1.606732004 | I76: 0.5348315765 | J76: 1.533142063 | K76: 0.9541989949 | L76: 2761.776973 | M76: 34.43983412 | N76: 2746.25554 | O76: 15.22428821 | P76: 2734.85465 | Q76: 7.908725686 | R76: 2734.85465 | S76: 7.908725686 | T76: 100.9844151
A77: 10-WY-2-68 | B77: 60.68917415 | C77: 37112.68668 | D77: 247.3908622 | E77: 5.205518104 | F77: 0.7741344911 | G77: 14.10034316 | H77: 1.636546091 | I77: 0.5323440064 | J77: 1.441873398 | K77: 0.8810466179 | L77: 2751.320505 | M77: 32.29126525 | N77: 2756.478113 | O77: 15.51796712 | P77: 2760.244907 | Q77: 12.71255895 | R77: 2760.244907 | S77: 12.71255895 | T77: 99.67668079
A78: 10-WY-2-87 | B78: 398.9666421 | C78: 303074.1269 | D78: 3.673358905 | E78: 5.180091574 | F78: 0.5653452736 | G78: 14.21595933 | H78: 1.923115362 | I78: 0.5340874032 | J78: 1.838139662 | K78: 0.9558135192 | L78: 2758.650628 | M78: 41.25388668 | N78: 2764.222809 | O78: 18.24562822 | P78: 2768.282621 | Q78: 9.276878118 | R78: 2768.282621 | S78: 9.276878118 | T78: 99.6520589
A79: 10-WY-2-66 | B79: 139.958308 | C79: 186610.6669 | D79: 1.202271018 | E79: 5.156217695 | F79: 0.3912941031 | G79: 14.11383524 | H79: 1.757821304 | I79: 0.5278068392 | J79: 1.713716622 | K79: 0.9749094623 | L79: 2732.204794 | M79: 38.1653151 | N79: 2757.384947 | O79: 16.66917119 | P79: 2775.860011 | Q79: 6.416289743 | R79: 2775.860011 | S79: 6.416289743 | T79: 98.42732641
A80: 10-WY-2-49 | B80: 136.269458 | C80: 121742.5442 | D80: 0.3230964526 | E80: 4.494026114 | F80: 0.2898168896 | G80: 18.39859979 | H80: 2.383720571 | I80: 0.5996793438 | J80: 2.366036756 | K80: 0.9925814229 | L80: 3028.546005 | M80: 57.17908936 | N80: 3010.814731 | O80: 22.96009369 | P80: 2998.984132 | Q80: 4.660038511 | R80: 2998.984132 | S80: 4.660038511 | T80: 100.9857295

Sheet 10WY1Harbell Buffalo Fork
A1: TABLE 1. Detrital Zircon Data Table for Sample 10WY1; Harebell Formation Matrix Buffalo Fork
H2: Isotope ratios | N2: Apparent ages (Ma)
A4: Analysis | B4: U | C4: 206Pb | D4: U/Th | E4: 206Pb* | F4: ± | G4: 207Pb* | H4: ± | I4: 206Pb* | J4: ± | K4: error | L4: 206Pb* | M4: ± | N4: 207Pb* | O4: ± | P4: 206Pb* | Q4: ± | R4: Best age | S4: ± | T4: Conc
B5: (ppm) | C5: 204Pb | E5: 207Pb* | F5: (%) | G5: 235U* | H5: (%) | I5: 238U | J5: (%) | K5: corr. | L5: 238U* | M5: (Ma) | N5: 235U | O5: (Ma) | P5: 207Pb* | Q5: (Ma) | R5: (Ma) | S5: (Ma) | T5: (%)
A6: 10-WY-1-60 | B6: 211.6699211 | C6: 5245.514705 | D6: 1.127397742 | E6: 19.89895928 | F6: 25.60315927 | G6: 0.07896812105 | H6: 26.46704215 | I6: 0.01139674663 | J6: 6.706903601 | K6: 0.2534058608 | L6: 73.05265403 | M6: 4.871914895 | N6: 77.17433207 | O6: 19.67128996 | P6: 206.7580854 | Q6: 602.496738 | R6: 73.05265403 | S6: 4.871914895 | T6: NA
A7: 10-WY-1-16 | B7: 408.5078891 | C7: 11063.40359 | D7: 1.338985823 | E7: 21.85186695 | F7: 19.21577706 | G7: 0.07381737544 | H7: 19.53207548 | I7: 0.01169892274 | J7: 3.500840533 | K7: 0.17923546 | L7: 74.97836856 | M7: 2.609667296 | N7: 72.31552027 | O7: 13.6342916 | P7: -14.84716399 | Q7: 468.1313902 | R7: 74.97836856 | S7: 2.609667296 | T7: NA
A8: 10-WY-1-96 | B8: 267.0890465 | C8: 6107.924699 | D8: 1.74222591 | E8: 29.83166149 | F8: 30.91168785 | G8: 0.05732919137 | H8: 31.5462111 | I8: 0.01240372084 | J8: 6.295314837 | K8: 0.1995585085 | L8: 79.46768705 | M8: 4.972032939 | N8: 56.60364292 | O8: 17.36941006 | P8: -830.2739775 | Q8: 899.8335373 | R8: 79.46768705 | S8: 4.972032939 | T8: NA
A9: 10-WY-1-77 | B9: 475.3279398 | C9: 5394.083062 | D9: 2.114599363 | E9: 19.76207328 | F9: 8.129340336 | G9: 0.0914440761 | H9: 11.5141245 | I9: 0.01310650227 | J9: 8.154071906 | K9: 0.7081799322 | L9: 83.94104912 | M9: 6.800245751 | N9: 88.84770256 | O9: 9.795540232 | P9: 222.7486368 | Q9: 188.2713542 | R9: 83.94104912 | S9: 6.800245751 | T9: NA
A10: 10-WY-1-24 | B10: 507.734266 | C10: 359.894882 | D10: 1.773190905 | E10: 18.92766106 | F10: 6.104322957 | G10: 0.0991343064 | H10: 6.634056509 | I10: 0.01360879425 | J10: 2.597681082 | K10: 0.3915675241 | L10: 87.13634965 | M10: 2.248295198 | N10: 95.97692621 | O10: 6.075576159 | P10: 321.6422834 | Q10: 138.8159705 | R10: 87.13634965 | S10: 2.248295198 | T10: NA
A11: 10-WY-1-67 | B11: 134.6890045 | C11: 223.9092256 | D11: 0.4377246218 | E11: 18.31994782 | F11: 16.5758048 | G11: 0.1029371035 | H11: 18.02514149 | I11: 0.01367712768 | J11: 7.081554968 | K11: 0.3928709782 | L11: 87.57092633 | M11: 6.159454084 | N11: 99.48389655 | O11: 17.08326055 | P11: 395.2540159 | Q11: 373.9650027 | R11: 87.57092633 | S11: 6.159454084 | T11: NA
A12: 10-WY-1-27 | B12: 2284.199743 | C12: 61368.85308 | D12: 3.691919606 | E12: 20.64547928 | F12: 3.275643464 | G12: 0.09217851795 | H12: 4.572273867 | I12: 0.01380236207 | J12: 3.189960534 | K12: 0.6976748608 | L12: 88.36729718 | M12: 2.799649477 | N12: 89.53073254 | O12: 3.918324441 | P12: 120.6687738 | Q12: 77.20506946 | R12: 88.36729718 | S12: 2.799649477 | T12: NA
A13: 10-WY-1-49 | B13: 892.6830459 | C13: 18858.97405 | D13: 2.501457812 | E13: 21.77142782 | F13: 4.24368986 | G13: 0.08834892859 | H13: 7.345666192 | I13: 0.01395040848 | J13: 5.995824229 | K13: 0.8162396809 | L13: 89.30860371 | M13: 5.317866207 | N13: 85.96416048 | O13: 6.054794117 | P13: -5.940387342 | Q13: 102.4459213 | R13: 89.30860371 | S13: 5.317866207 | T13: NA
A14: 10-WY-1-44 | B14: 649.0752075 | C14: 10026.56071 | D14: 2.686675274 | E14: 21.40700889 | F14: 7.007991318 | G14: 0.08990614239 | H14: 7.707360357 | I14: 0.01395867123 | J14: 3.20803076 | K14: 0.4162295016 | L14: 89.36113575 | M14: 2.846954867 | N14: 87.41593607 | O14: 6.455675483 | P14: 34.63079268 | Q14: 167.9697299 | R14: 89.36113575 | S14: 2.846954867 | T14: NA
A15: 10-WY-1-30 | B15: 357.2429276 | C15: 24492.52402 | D15: 1.310819955 | E15: 21.91089468 | F15: 14.68284214 | G15: 0.08828044459 | H15: 14.89757001 | I15: 0.01402889124 | J15: 2.520265599 | K15: 0.1691729321 | L15: 89.8075559 | M15: 2.247695903 | N15: 85.90026582 | O15: 12.27128874 | P15: -21.37305427 | Q15: 356.9761382 | R15: 89.8075559 | S15: 2.247695903 | T15: NA
A16: 10-WY-1-45 | B16: 433.7540329 | C16: 13911.12161 | D16: 2.315781727 | E16: 19.97971567 | F16: 9.46921391 | G16: 0.09775093394 | H16: 9.691967786 | I16: 0.01416475099 | J16: 2.065968899 | K16: 0.2131629969 | L16: 90.67118966 | M16: 1.860126284 | N16: 94.69815834 | O16: 8.763341898 | P16: 197.3387323 | Q16: 220.4087163 | R16: 90.67118966 | S16: 1.860126284 | T16: NA
A17: 10-WY-1-78 | B17: 1183.165408 | C17: 24893.42241 | D17: 8.957005088 | E17: 20.67510689 | F17: 3.871238693 | G17: 0.09454187936 | H17: 4.812923091 | I17: 0.01417655542 | J17: 2.859674748 | K17: 0.5941658933 | L17: 90.7462226 | M17: 2.576867108 | N17: 91.72554268 | O17: 4.221173301 | P17: 117.2527399 | Q17: 91.31598079 | R17: 90.7462226 | S17: 2.576867108 | T17: NA
A18: 10-WY-1-6 | B18: 1245.248348 | C18: 25924.94687 | D18: 1.886469776 | E18: 20.8980955 | F18: 4.215266407 | G18: 0.0936172034 | H18: 5.445557168 | I18: 0.01418930415 | J18: 3.447553043 | K18: 0.6330946379 | L18: 90.82725694 | M18: 3.109361867 | N18: 90.86737807 | O18: 4.733318278 | P18: 91.90368792 | Q18: 99.8996682 | R18: 90.82725694 | S18: 3.109361867 | T18: NA
A19: 10-WY-1-40 | B19: 483.6609407 | C19: 11506.63016 | D19: 1.752971624 | E19: 21.7630408 | F19: 13.47227459 | G19: 0.09007514998 | H19: 13.80263592 | I19: 0.01421750191 | J19: 3.001762059 | K19: 0.2174774498 | L19: 91.0064857 | M19: 2.712605823 | N19: 87.57337543 | O19: 11.58135383 | P19: -5.010292328 | Q19: 326.2859034 | R19: 91.0064857 | S19: 2.712605823 | T19: NA
A20: 10-WY-1-25 | B20: 604.807775 | C20: 23123.04507 | D20: 2.106221355 | E20: 23.26395375 | F20: 11.6964793 | G20: 0.08438738632 | H20: 11.971066 | I20: 0.01423835402 | J20: 2.549273032 | K20: 0.2129528843 | L20: 91.13902132 | M20: 2.307035796 | N20: 82.26146787 | O20: 9.459504294 | P20: -168.4601617 | Q20: 292.0580667 | R20: 91.13902132 | S20: 2.307035796 | T20: NA
A21: 10-WY-1-62 | B21: 586.7262117 | C21: 15093.97458 | D21: 2.947596331 | E21: 20.84747683 | F21: 8.489515333 | G21: 0.09435500591 | H21: 9.593605215 | I21: 0.01426649115 | J21: 4.468264811 | K21: 0.4657545012 | L21: 91.31785606 | M21: 4.05155986 | N21: 91.55216939 | O21: 8.399015369 | P21: 97.68654386 | Q21: 201.193795 | R21: 91.31785606 | S21: 4.05155986 | T21: NA
A22: 10-WY-1-28 | B22: 1123.335177 | C22: 20592.24188 | D22: 25.91746573 | E22: 17.29887454 | F22: 4.886171753 | G22: 0.1141478766 | H22: 5.685579748 | I22: 0.01432136493 | J22: 2.90708491 | K22: 0.5113084397 | L22: 91.66661013 | M22: 2.645969201 | N22: 109.7526288 | O22: 5.914725289 | P22: 522.442184 | Q22: 107.2636209 | R22: 91.66661013 | S22: 2.645969201 | T22: NA
A23: 10-WY-1-61 | B23: 323.3546102 | C23: 12809.00659 | D23: 1.398181642 | E23: 22.68270181 | F23: 9.155979107 | G23: 0.08867197239 | H23: 9.986969925 | I23: 0.0145874667 | J23: 3.988435139 | K23: 0.3993638881 | L23: 93.35757053 | M23: 3.696674158 | N23: 86.26550181 | O23: 8.259667379 | P23: -105.8396628 | Q23: 225.5965863 | R23: 93.35757053 | S23: 3.696674158 | T23: NA
A24: 10-WY-1-63 | B24: 1038.121097 | C24: 10637.49835 | D24: 2.039749257 | E24: 21.12631937 | F24: 4.983806013 | G24: 0.09701866704 | H24: 5.585609536 | I24: 0.01486544346 | J24: 2.522045106 | K24: 0.4515254942 | L24: 95.12351772 | M24: 2.381444581 | N24: 94.02060983 | O24: 5.015858797 | P24: 66.10392361 | Q24: 118.6803731 | R24: 95.12351772 | S24: 2.381444581 | T24: NA
A25: 10-WY-1-95 | B25: 500.6748409 | C25: 10041.4331 | D25: 2.995551041 | E25: 22.69431669 | F25: 15.24868068 | G25: 0.09373931948 | H25: 16.04080042 | I25: 0.01542899479 | J25: 4.978455139 | K25: 0.3103620149 | L25: 98.7021961 | M25: 4.876418371 | N25: 90.98075199 | O25: 13.96018844 | P25: -107.0986825 | Q25: 377.005047 | R25: 98.7021961 | S25: 4.876418371 | T25: NA
A26: 10-WY-1-97 | B26: 545.5456502 | C26: 8433.84776 | D26: 4.656049615 | E26: 24.11444166 | F26: 9.478655711 | G26: 0.08937011979 | H26: 10.35272509 | I26: 0.01563033464 | J26: 4.163412375 | K26: 0.4021561803 | L26: 99.9802681 | M26: 4.130477931 | N26: 86.91644155 | O26: 8.624062919 | P26: -258.6667514 | Q26: 240.712608 | R26: 99.9802681 | S26: 4.130477931 | T26: NA
A27: 10-WY-1-33 | B27: 644.6143542 | C27: 15849.61566 | D27: 2.381833252 | E27: 21.95017041 | F27: 7.714892481 | G27: 0.1006128816 | H27: 7.809699076 | I27: 0.01601733316 | J27: 1.213191521 | K27: 0.1553442084 | L27: 102.4361593 | M27: 1.232925029 | N27: 97.34191979 | O27: 7.249208405 | P27: -25.70892502 | Q27: 187.0856901 | R27: 102.4361593 | S27: 1.232925029 | T27: NA
A28: 10-WY-1-56 | B28: 244.1883078 | C28: 9717.481223 | D28: 1.529011021 | E28: 20.47173604 | F28: 12.34174967 | G28: 0.1603092277 | H28: 13.00060526 | I28: 0.02380191612 | J28: 4.086190417 | K28: 0.3143077061 | L28: 151.6394302 | M28: 6.123968095 | N28: 150.9737983 | O28: 18.2400057 | P28: 140.5109614 | Q28: 290.6803916 | R28: 151.6394302 | S28: 6.123968095 | T28: NA
A29: 10-WY-1-98 | B29: 105.8802154 | C29: 13795.81116 | D29: 1.550428006 | E29: 18.44419782 | F29: 6.978989087 | G29: 0.5882285858 | H29: 7.687198673 | I29: 0.07868729621 | J29: 3.222845756 | K29: 0.4192484015 | L29: 488.2825811 | M29: 15.15540635 | N29: 469.7357955 | O29: 28.91668606 | P29: 380.0768506 | Q29: 157.0842587 | R29: 488.2825811 | S29: 15.15540635 | T29: NA
A30: 10-WY-1-80 | B30: 117.1965638 | C30: 20512.2409 | D30: 2.66010985 | E30: 17.45652062 | F30: 4.683369773 | G30: 0.6413770287 | H30: 5.333246052 | I30: 0.08120257709 | J30: 2.551384138 | K30: 0.4783923549 | L30: 503.2968184 | M30: 12.35257014 | N30: 503.1583908 | O30: 21.16359613 | P30: 502.5086658 | Q30: 103.1387342 | R30: 503.2968184 | S30: 12.35257014 | T30: 100.1568436
A31: 10-WY-1-3 | B31: 253.8124097 | C31: 109905.7726 | D31: 1.824500474 | E31: 16.27400134 | F31: 0.9810462948 | G31: 0.9133478363 | H31: 2.446459038 | I31: 0.1078026103 | J31: 2.241140333 | K31: 0.9160751511 | L31: 659.9737174 | M31: 14.05901318 | N31: 658.8358649 | O31: 11.8585033 | P31: 654.9215365 | Q31: 21.04004418 | R31: 659.9737174 | S31: 14.05901318 | T31: 100.7714177
A32: 10-WY-1-91 | B32: 171.3861319 | C32: 44791.79716 | D32: 3.539033347 | E32: 13.6406741 | F32: 1.815441596 | G32: 1.684863989 | H32: 2.118386542 | I32: 0.1666861081 | J32: 1.091665404 | K32: 0.5153287102 | L32: 993.8265515 | M32: 10.05433809 | N32: 1002.822837 | O32: 13.49905178 | P32: 1022.519276 | Q32: 36.7630079 | R32: 1022.519276 | S32: 36.7630079 | T32: 97.19391845
A33: 10-WY-1-94 | B33: 36.58266792 | C33: 11282.29333 | D33: 1.514279339 | E33: 13.52541056 | F33: 9.6533395 | G33: 1.696482996 | H33: 10.19127701 | I33: 0.1664173848 | J33: 3.267286872 | K33: 0.320596415 | L33: 992.3415751 | M33: 30.05061248 | N33: 1007.207524 | O33: 65.19383836 | P33: 1039.672904 | Q33: 195.3005651 | R33: 1039.672904 | S33: 195.3005651 | T33: 95.44747883
A34: 10-WY-1-65 | B34: 210.1213678 | C34: 52839.33857 | D34: 1.981500562 | E34: 13.27650101 | F34: 1.746055149 | G34: 1.843078414 | H34: 2.616161977 | I34: 0.1774704991 | J34: 1.948228658 | K34: 0.7446896162 | L34: 1053.140969 | M34: 18.92934197 | N34: 1060.960972 | O34: 17.22230036 | P34: 1077.101249 | Q34: 35.0520283 | R34: 1077.101249 | S34: 35.0520283 | T34: 97.77548488
A35: 10-WY-1-12 | B35: 162.980069 | C35: 77697.14883 | D35: 2.229363869 | E35: 13.17329201 | F35: 1.467893273 | G35: 1.875975096 | H35: 2.029107324 | I35: 0.1792338827 | J35: 1.400916083 | K35: 0.690410047 | L35: 1062.787917 | M35: 13.72622605 | N35: 1072.642312 | O35: 13.44009193 | P35: 1092.709428 | Q35: 29.38428367 | R35: 1092.709428 | S35: 29.38428367 | T35: 97.26171383
A36: 10-WY-1-55 | B36: 129.6069067 | C36: 47638.3824 | D36: 1.233277593 | E36: 11.4363111 | F36: 1.816732065 | G36: 2.732379412 | H36: 3.305779401 | I36: 0.226634327 | J36: 2.761822234 | K36: 0.8354526721 | L36: 1316.835451 | M36: 32.89487746 | N36: 1337.30613 | O36: 24.57784528 | P36: 1370.209981 | Q36: 34.96361311 | R36: 1370.209981 | S36: 34.96361311 | T36: 96.10464592
A37: 10-WY-1-29 | B37: 828.4677353 | C37: 322313.235 | D37: 6.920561886 | E37: 11.40155035 | F37: 0.37805085 | G37: 2.76020819 | H37: 1.426790128 | I37: 0.228246683 | J37: 1.375793452 | K37: 0.9642577598 | L37: 1325.30341 | M37: 16.48129242 | N37: 1344.848785 | O37: 10.6349594 | P37: 1376.06531 | Q37: 7.268838441 | R37: 1376.06531 | S37: 7.268838441 | T37: 96.31108357
A38: 10-WY-1-14 | B38: 424.2930026 | C38: 149905.5678 | D38: 2.167813219 | E38: 11.40001722 | F38: 0.6448028061 | G38: 2.844100653 | H38: 2.626608243 | I38: 0.2351522803 | J38: 2.546232551 | K38: 0.9693994366 | L38: 1361.445714 | M38: 31.24988067 | N38: 1367.253567 | O38: 19.73468073 | P38: 1376.323864 | Q38: 12.39876326 | R38: 1376.323864 | S38: 12.39876326 | T38: 98.91899354
A39: 10-WY-1-8 | B39: 298.1848219 | C39: 101148.7348 | D39: 2.874326028 | E39: 11.39264171 | F39: 0.6749065902 | G39: 2.86340275 | H39: 3.675421567 | I39: 0.2365950217 | J39: 3.612924686 | K39: 0.9829959967 | L39: 1368.971167 | M39: 44.56173995 | N39: 1372.339277 | O39: 27.66667586 | P39: 1377.568057 | Q39: 12.97536687 | R39: 1377.568057 | S39: 12.97536687 | T39: 99.3759372
A40: 10-WY-1-20 | B40: 404.6500568 | C40: 119491.3419 | D40: 3.130318695 | E40: 11.37731623 | F40: 1.144534945 | G40: 2.616196058 | H40: 1.678382257 | I40: 0.2158782266 | J40: 1.227602036 | K40: 0.7314198129 | L40: 1260.058894 | M40: 14.0506124 | N40: 1305.196386 | O40: 12.32992556 | P40: 1380.155252 | Q40: 21.99580803 | R40: 1380.155252 | S40: 21.99580803 | T40: 91.29834431
A41: 10-WY-1-92 | B41: 145.0052168 | C41: 64417.86872 | D41: 1.818587466 | E41: 11.34706281 | F41: 1.673739279 | G41: 2.728601328 | H41: 2.032073732 | I41: 0.2245547624 | J41: 1.152354319 | K41: 0.5670829268 | L41: 1305.8973 | M41: 13.62225307 | N41: 1336.277793 | O41: 15.10064595 | P41: 1385.270086 | Q41: 32.14413374 | R41: 1385.270086 | S41: 32.14413374 | T41: 94.27023029
A42: 10-WY-1-79 | B42: 167.9109171 | C42: 48121.78613 | D42: 2.012923581 | E42: 11.31025139 | F42: 1.306299248 | G42: 2.835349666 | H42: 1.77896761 | I42: 0.2325828075 | J42: 1.207604253 | K42: 0.6788230693 | L42: 1348.021346 | M42: 14.68943507 | N42: 1364.939441 | O42: 13.35440837 | P42: 1391.507243 | Q42: 25.06585806 | R42: 1391.507243 | S42: 25.06585806 | T42: 96.87490686
A43: 10-WY-1-43 | B43: 105.1527426 | C43: 46712.63485 | D43: 1.126439357 | E43: 11.05451435 | F43: 1.513252475 | G43: 3.033114107 | H43: 2.279298444 | I43: 0.2431796012 | J43: 1.704484773 | K43: 0.7478111425 | L43: 1403.205751 | M43: 21.49345375 | N43: 1415.991074 | O43: 17.40691811 | P43: 1435.257713 | Q43: 28.86370346 | R43: 1435.257713 | S43: 28.86370346 | T43: 97.76681486
A44: 10-WY-1-17 | B44: 308.6247484 | C44: 125145.6028 | D44: 2.275870487 | E44: 11.04307876 | F44: 0.6856104274 | G44: 3.058412528 | H44: 1.750432382 | I44: 0.2449542385 | J44: 1.610575011 | K44: 0.9201012432 | L44: 1412.401438 | M44: 20.42829808 | N44: 1422.34035 | O44: 13.39492591 | P44: 1437.231509 | Q44: 13.07323121 | R44: 1437.231509 | S44: 13.07323121 | T44: 98.272368
A45: 10-WY-1-73 | B45: 368.9170033 | C45: 210984.1317 | D45: 4.092718992 | E45: 11.0069767 | F45: 0.6446659564 | G45: 3.189703208 | H45: 1.918034339 | I45: 0.2546343843 | J45: 1.80644998 | K45: 0.9418235864 | L45: 1462.331687 | M45: 23.63447471 | N45: 1454.66812 | O45: 14.82805458 | P45: 1443.472736 | Q45: 12.28212334 | R45: 1443.472736 | S45: 12.28212334 | T45: 101.3064985
A46: 10-WY-1-48 | B46: 690.9333328 | C46: 240601.3935 | D46: 9.786597571 | E46: 11.00335546 | F46: 1.612660379 | G46: 2.784497827 | H46: 2.310374256 | I46: 0.2222136596 | J46: 1.654435161 | K46: 0.7160896798 | L46: 1293.561255 | M46: 19.39067312 | N46: 1351.386712 | O46: 17.2620634 | P46: 1444.099605 | Q46: 30.72330964 | R46: 1444.099605 | S46: 30.72330964 | T46: 89.57562555
A47: 10-WY-1-51 | B47: 518.6025606 | C47: 124350.8622 | D47: 4.758919008 | E47: 10.90349718 | F47: 5.957741972 | G47: 2.918625555 | H47: 11.85935676 | I47: 0.2308037823 | J47: 10.2542505 | K47: 0.8646548637 | L47: 1338.710314 | M47: 123.9737574 | N47: 1386.750235 | O47: 89.92262284 | P47: 1461.446695 | Q47: 113.3275267 | R47: 1461.446695 | S47: 113.3275267 | T47: 91.60172032
A48: 10-WY-1-9 | B48: 211.6311143 | C48: 92544.77376 | D48: 2.456723382 | E48: 10.70954474 | F48: 0.5127708655 | G48: 3.343208615 | H48: 1.815701127 | I48: 0.2596768365 | J48: 1.741791211 | K48: 0.9592940077 | L48: 1488.188294 | M48: 23.14676141 | N48: 1491.205145 | O48: 14.19238363 | P48: 1495.480551 | Q48: 9.701245003 | R48: 1495.480551 | S48: 9.701245003 | T48: 99.51238036
A49: 10-WY-1-82 | B49: 171.7219618 | C49: 83643.05656 | D49: 2.476722485 | E49: 10.7030596 | F49: 0.8083518542 | G49: 3.404015924 | H49: 1.747939024 | I49: 0.2642398123 | J49: 1.549792925 | K49: 0.8866401539 | L49: 1511.497197 | M49: 20.88152382 | N49: 1505.32247 | O49: 13.7190904 | P49: 1496.626454 | Q49: 15.29122643 | R49: 1496.626454 | S49: 15.29122643 | T49: 100.9936175
A50: 10-WY-1-15 | B50: 304.7193338 | C50: 20345.08363 | D50: 1.474329557 | E50: 10.46251065 | F50: 3.540379884 | G50: 3.05583395 | H50: 9.751687457 | I50: 0.2318805864 | J50: 9.086314905 | K50: 0.9317684703 | L50: 1344.347679 | M50: 110.266635 | N50: 1421.695006 | O50: 74.73819258 | P50: 1539.499854 | Q50: 66.60858689 | R50: 1539.499854 | S50: 66.60858689 | T50: 87.32366398
A51: 10-WY-1-22 | B51: 130.4573821 | C51: 68881.0321 | D51: 1.363940822 | E51: 9.891639476 | F51: 0.888185436 | G51: 3.968337707 | H51: 1.507737809 | I51: 0.284692239 | J51: 1.218359525 | K51: 0.8080712161 | L51: 1614.95044 | M51: 17.40488873 | N51: 1627.745666 | O51: 12.22852985 | P51: 1644.306345 | Q51: 16.47987634 | R51: 1644.306345 | S51: 16.47987634 | T51: 98.21469367
A52: 10-WY-1-75 | B52: 804.2605968 | C52: 93377.80492 | D52: 29.95116604 | E52: 9.806057533 | F52: 0.4444430198 | G52: 4.038655377 | H52: 1.658677835 | I52: 0.2872301058 | J52: 1.598024581 | K52: 0.9634327701 | L52: 1627.672554 | M52: 22.98673405 | N52: 1642.015796 | O52: 13.50018382 | P52: 1660.412499 | Q52: 8.227633028 | R52: 1660.412499 | S52: 8.227633028 | T52: 98.02820414
A53: 10-WY-1-84 | B53: 147.9271525 | C53: 99946.72417 | D53: 1.324577349 | E53: 9.712009642 | F53: 0.7627382576 | G53: 4.20778732 | H53: 1.786934844 | I53: 0.2963886787 | J53: 1.615972304 | K53: 0.9043263717 | L53: 1673.376048 | M53: 23.8166391 | N53: 1675.53949 | O53: 14.66119429 | P53: 1678.232898 | Q53: 14.09104909 | R53: 1678.232898 | S53: 14.09104909 | T53: 99.71059737
A54: 10-WY-1-13 | B54: 390.7695278 | C54: 310476.7428 | D54: 2.533978049 | E54: 9.605537546 | F54: 0.3073666152 | G54: 4.25837671 | H54: 1.602756642 | I54: 0.2966637465 | J54: 1.573008143 | K54: 0.9814391665 | L54: 1674.743703 | M54: 23.20000934 | N54: 1685.355505 | O54: 13.17996535 | P54: 1698.571335 | Q54: 5.661920159 | R54: 1698.571335 | S54: 5.661920159 | T54: 98.59719566
A55: 10-WY-1-41 | B55: 137.6816357 | C55: 88228.37956 | D55: 2.622606515 | E55: 9.595473504 | F55: 1.16175229 | G55: 4.318909034 | H55: 2.102598295 | I55: 0.3005655439 | J55: 1.752498562 | K55: 0.8334918589 | L55: 1694.112514 | M55: 26.10869705 | N55: 1696.977421 | O55: 17.33723815 | P55: 1700.502698 | Q55: 21.40072955 | R55: 1700.502698 | S55: 21.40072955 | T55: 99.62421791
A56: 10-WY-1-59 | B56: 103.2168808 | C56: 45678.89933 | D56: 2.881906582 | E56: 9.564208198 | F56: 1.130366755 | G56: 4.305744232 | H56: 1.89061789 | I56: 0.2986730075 | J56: 1.515489031 | K56: 0.8015839897 | L56: 1684.725091 | M56: 22.46823319 | N56: 1694.461137 | O56: 15.58007963 | P56: 1706.50924 | Q56: 20.80669913 | R56: 1706.50924 | S56: 20.80669913 | T56: 98.72346724
A57: 10-WY-1-46 | B57: 64.62790807 | C57: 55547.66027 | D57: 3.51437626 | E57: 9.534509556 | F57: 1.404083284 | G57: 4.365758804 | H57: 3.40874127 | I57: 0.3018956269 | J57: 3.106133799 | K57: 0.9112260371 | L57: 1700.701866 | M57: 46.43297705 | N57: 1705.881913 | O57: 28.16851374 | P57: 1712.232119 | Q57: 25.82723483 | R57: 1712.232119 | S57: 25.82723483 | T57: 99.32659519
A58: 10-WY-1-10 | B58: 148.0458645 | C58: 90342.46009 | D58: 2.412564382 | E58: 9.522602286 | F58: 0.5553383752 | G58: 4.374161965 | H58: 2.045584818 | I58: 0.3020989609 | J58: 1.968760152 | K58: 0.9624436664 | L58: 1701.708607 | M58: 29.44552322 | N58: 1707.470831 | O58: 16.90719829 | P58: 1714.530473 | Q58: 10.21244746 | R58: 1714.530473 | S58: 10.21244746 | T58: 99.2521646
A59: 10-WY-1-76 | B59: 138.5542473 | C59: 114547.2569 | D59: 2.348844759 | E59: 9.522115708 | F59: 1.198188243 | G59: 4.240700149 | H59: 1.677242153 | I59: 0.2928665325 | J59: 1.173663569 | K59: 0.699757973 | L59: 1655.83801 | M59: 17.13874057 | N59: 1681.936443 | O59: 13.78163047 | P59: 1714.62444 | Q59: 22.03274258 | R59: 1714.62444 | S59: 22.03274258 | T59: 96.57146904
A60: 10-WY-1-5 | B60: 398.9237089 | C60: 171297.389 | D60: 1.347967122 | E60: 9.520337082 | F60: 0.575065241 | G60: 4.423360711 | H60: 2.317458847 | I60: 0.3054241732 | J60: 2.244975607 | K60: 0.9687229656 | L60: 1718.15004 | M60: 33.85989307 | N60: 1716.72405 | O60: 19.19453231 | P60: 1714.967955 | Q60: 10.57463854 | R60: 1714.967955 | S60: 10.57463854 | T60: 100.1855478
A61: 10-WY-1-2 | B61: 86.58682566 | C61: 62672.03021 | D61: 4.004651485 | E61: 9.499552475 | F61: 1.236757414 | G61: 4.39050423 | H61: 3.532352709 | I61: 0.3024936563 | J61: 3.308768163 | K61: 0.9367037881 | L61: 1703.662364 | M61: 49.53746139 | N61: 1710.55382 | O61: 29.22125426 | P61: 1718.985851 | Q61: 22.72960044 | R61: 1718.985851 | S61: 22.72960044 | T61: 99.10857401
A62: 10-WY-1-18 | B62: 105.9044429 | C62: 43479.747 | D62: 1.668043374 | E62: 9.499124579 | F62: 1.61027717 | G62: 4.353108083 | H62: 2.368779427 | I62: 0.2999036553 | J62: 1.737274708 | K62: 0.7334050137 | L62: 1690.830945 | M62: 25.83804334 | N62: 1703.485142 | O62: 19.56147935 | P62: 1719.068639 | Q62: 29.59355098 | R62: 1719.068639 | S62: 29.59355098 | T62: 98.35738419
A63: 10-WY-1-8 | B63: 163.1927395 | C63: 107604.5873 | D63: 1.984431524 | E63: 9.471460101 | F63: 0.6043007087 | G63: 4.593055603 | H63: 5.310622293 | I63: 0.3155130758 | J63: 5.276128295 | K63: 0.9935047165 | L63: 1767.779283 | M63: 81.57910361 | N63: 1748.00808 | O63: 44.31017362 | P63: 1724.427167 | Q63: 11.09900489 | R63: 1724.427167 | S63: 11.09900489 | T63: 102.514001
A64: 10-WY-1-19 | B64: 700.9043429 | C64: 49860.78397 | D64: 2.416543722 | E64: 9.463761055 | F64: 0.316568056 | G64: 4.555097318 | H64: 3.189753224 | I64: 0.3126512373 | J64: 3.174005403 | K64: 0.995062997 | L64: 1753.740127 | M64: 48.73544552 | N64: 1741.093509 | O64: 26.56391297 | P64: 1725.920589 | Q64: 5.813175792 | R64: 1725.920589 | S64: 5.813175792 | T64: 101.6118667
A65: 10-WY-1-1 | B65: 241.4882622 | C65: 133119.0218 | D65: 7.368664085 | E65: 9.460159508 | F65: 0.7664275551 | G65: 4.1172208 | H65: 3.346914123 | I65: 0.2824888707 | J65: 3.257978353 | K65: 0.9734275316 | L65: 1603.88474 | M65: 46.2617005 | N65: 1657.726028 | O65: 27.3495063 | P65: 1726.61952 | Q65: 14.07293502 | R65: 1726.61952 | S65: 14.07293502 | T65: 92.891614
A66: 10-WY-1-86 | B66: 128.4263666 | C66: 71306.18766 | D66: 0.9849070808 | E66: 9.458126465 | F66: 1.069048309 | G66: 4.519852265 | H66: 3.273592854 | I66: 0.3100473913 | J66: 3.094114718 | K66: 0.9451739589 | L66: 1740.939972 | M66: 47.20667969 | N66: 1734.630752 | O66: 27.22421777 | P66: 1727.014151 | Q66: 19.62714248 | R66: 1727.014151 | S66: 19.62714248 | T66: 100.8063525
A67: 10-WY-1-100 | B67: 461.7502008 | C67: 15672.66873 | D67: 1.733320144 | E67: 9.427306391 | F67: 0.4634881023 | G67: 4.540217252 | H67: 1.716612141 | I67: 0.3104294975 | J67: 1.652856927 | K67: 0.9628598608 | L67: 1742.819946 | M67: 25.24091002 | N67: 1738.370021 | O67: 14.28501107 | P67: 1733.004595 | Q67: 8.503533935 | R67: 1733.004595 | S67: 8.503533935 | T67: 100.5663777
A68: 10-WY-1-57 | B68: 157.8002524 | C68: 123152.481 | D68: 2.452328977 | E68: 9.424562504 | F68: 0.6076307736 | G68: 4.363015387 | H68: 1.17339344 | I68: 0.2982268002 | J68: 1.003811241 | K68: 0.8554771204 | L68: 1682.509805 | M68: 14.86507582 | N68: 1705.362633 | O68: 9.693139446 | P68: 1733.53865 | Q68: 11.14563584 | R68: 1733.53865 | S68: 11.14563584 | T68: 97.05637689
A69: 10-WY-1-53 | B69: 331.8840615 | C69: 129304.0097 | D69: 1.713974745 | E69: 9.401753236 | F69: 0.5674477299 | G69: 4.394341953 | H69: 2.054678464 | I69: 0.2996411276 | J69: 1.974767496 | K69: 0.961107799 | L69: 1689.5289 | M69: 29.35047628 | N69: 1711.276456 | O69: 16.99689991 | P69: 1737.982756 | Q69: 10.402667 | R69: 1737.982756 | S69: 10.402667 | T69: 97.21206351
A70: 10-WY-1-32 | B70: 112.1879614 | C70: 89804.85595 | D70: 2.73885475 | E70: 9.29131087 | F70: 0.8834672361 | G70: 4.65600643 | H70: 2.40120544 | I70: 0.3137540118 | J70: 2.232772539 | K70: 0.9298548559 | L70: 1759.153566 | M70: 34.37494692 | N70: 1759.37256 | O70: 20.0733325 | P70: 1759.616115 | Q70: 16.15543731 | R70: 1759.616115 | S70: 16.15543731 | T70: 99.97371307
A71: 10-WY-1-72 | B71: 124.4283529 | C71: 86160.9184 | D71: 2.903748119 | E71: 9.291135914 | F71: 0.875643589 | G71: 4.015699155 | H71: 4.714798858 | I71: 0.2706005703 | J71: 4.632772019 | K71: 0.9826022611 | L71: 1543.849661 | M71: 63.60523902 | N71: 1637.379118 | O71: 38.34680401 | P71: 1759.650548 | Q71: 16.01229655 | R71: 1759.650548 | S71: 16.01229655 | T71: 87.73615096
A72: 10-WY-1-21 | B72: 169.1996023 | C72: 94731.75511 | D72: 0.8034983092 | E72: 9.205770593 | F72: 0.8587730998 | G72: 4.643558588 | H72: 1.656094701 | I72: 0.3100343421 | J72: 1.416036165 | K72: 0.8550454056 | L72: 1740.87576 | M72: 21.60335979 | N72: 1757.135423 | O72: 13.83693344 | P72: 1776.511312 | Q72: 15.66917832 | R72: 1776.511312 | S72: 15.66917832 | T72: 97.99407121
A73: 10-WY-1-11 | B73: 356.8906506 | C73: 17241.78186 | D73: 1.487978166 | E73: 9.198074748 | F73: 0.9325467616 | G73: 4.29771166 | H73: 3.572635898 | I73: 0.2867034602 | J73: 3.448780045 | K73: 0.9653320806 | L73: 1625.034588 | M73: 49.53894084 | N73: 1692.922745 | O73: 29.43671015 | P73: 1778.037273 | Q73: 17.01226184 | R73: 1778.037273 | S73: 17.01226184 | T73: 91.39485503
A74: 10-WY-1-99 | B74: 250.3883001 | C74: 37024.56242 | D74: 4.017181888 | E74: 9.166472427 | F74: 0.5329289049 | G74: 4.769606022 | H74: 2.695446957 | I74: 0.3170906737 | J74: 2.642237893 | K74: 0.9802596507 | L74: 1775.505361 | M74: 41.00754538 | N74: 1779.564195 | O74: 22.62918657 | P74: 1784.310322 | Q74: 9.713679147 | R74: 1784.310322 | S74: 9.713679147 | T74: 99.50653416
A75: 10-WY-1-7 | B75: 391.9092085 | C75: 56294.70071 | D75: 1.065357594 | E75: 9.165191049 | F75: 0.4861345274 | G75: 4.305639069 | H75: 1.797624653 | I75: 0.2862054298 | J75: 1.730643699 | K75: 0.9627391883 | L75: 1622.538961 | M75: 24.8253596 | N75: 1694.441012 | O75: 14.81356732 | P75: 1784.565177 | Q75: 8.860315355 | R75: 1784.565177 | S75: 8.860315355 | T75: 90.92068933
A76: 10-WY-1-54 | B76: 67.02747769 | C76: 48870.21924 | D76: 0.6387862759 | E76: 8.893276809 | F76: 1.589778449 | G76: 5.092754362 | H76: 2.113166676 | I76: 0.3284832772 | J76: 1.392148657 | K76: 0.6587973739 | L76: 1831.025937 | M76: 22.19027613 | N76: 1834.898975 | O76: 17.93692103 | P76: 1839.279874 | Q76: 28.78579797 | R76: 1839.279874 | S76: 28.78579797 | T76: 99.5512408
A77: 10-WY-1-39 | B77: 185.5816001 | C77: 86838.17253 | D77: 2.115082748 | E77: 8.856046752 | F77: 0.7812031644 | G77: 5.040979657 | H77: 1.685568552 | I77: 0.3237826481 | J77: 1.493607364 | K77: 0.8861148737 | L77: 1808.175864 | M77: 23.55013875 | N77: 1826.233633 | O77: 14.28277335 | P77: 1846.872819 | Q77: 14.13128422 | R77: 1846.872819 | S77: 14.13128422 | T77: 97.90473093
A78: 10-WY-1-71 | B78: 94.42193002 | C78: 95246.33392 | D78: 1.694674521 | E78: 8.810945388 | F78: 1.185657696 | G78: 5.12163343 | H78: 1.702840479 | I78: 0.3272877317 | J78: 1.222244462 | K78: 0.7177680335 | L78: 1825.221986 | M78: 19.428633 | N78: 1839.700423 | O78: 14.46686515 | P78: 1856.100746 | Q78: 21.42501545 | R78: 1856.100746 | S78: 21.42501545 | T78: 98.33636399
A79: 10-WY-1-38 | B79: 162.400631 | C79: 97156.65177 | D79: 2.369740391 | E79: 8.701566521 | F79: 0.6095344334 | G79: 5.237925868 | H79: 1.52598038 | I79: 0.3305639714 | J79: 1.398958147 | K79: 0.9167602445 | L79: 1841.114527 | M79: 22.40497346 | N79: 1858.808686 | O79: 13.01133231 | P79: 1878.643978 | Q79: 10.98515235 | R79: 1878.643978 | S79: 10.98515235 | T79: 98.00231169
A80: 10-WY-1-47 | B80: 97.81946683 | C80: 34369.65823 | D80: 1.562365742 | E80: 8.468254118 | F80: 0.9452876375 | G80: 5.514347139 | H80: 2.404482653 | I80: 0.3386777841 | J80: 2.210874965 | K80: 0.919480522 | L80: 1880.30555 | M80: 36.05766255 | N80: 1902.834946 | O80: 20.6697273 | P80: 1927.474967 | Q80: 16.93557717 | R80: 1927.474967 | S80: 16.93557717 | T80: 97.55278706
A81: 10-WY-1-70 | B81: 20.23720719 | C81: 10071.93356 | D81: 0.9547016025 | E81: 8.439037891 | F81: 3.708208457 | G81: 5.193322666 | H81: 4.566784315 | I81: 0.3178607975 | J81: 2.665466004 | K81: 0.5836636504 | L81: 1779.27358 | M81: 41.44429594 | N81: 1851.522285 | O81: 38.90222443 | P81: 1933.665142 | Q81: 66.40885346 | R81: 1933.665142 | S81: 66.40885346 | T81: 92.01559986
A82: 10-WY-1-69 | B82: 96.30716603 | C82: 71702.90308 | D82: 0.8739758491 | E82: 8.424145104 | F82: 1.592793794 | G82: 5.517424612 | H82: 2.25869342 | I82: 0.3371017228 | J82: 1.601469293 | K82: 0.7090246417 | L82: 1872.711543 | M82: 26.02769476 | N82: 1903.314515 | O82: 19.41782251 | P82: 1936.827037 | Q82: 28.50513219 | R82: 1936.827037 | S82: 28.50513219 | T82: 96.6896634
A83: 10-WY-1-26 | B83: 73.32963036 | C83: 30177.37378 | D83: 0.5368469058 | E83: 8.21479498 | F83: 1.645794918 | G83: 6.043009502 | H83: 2.3012001 | I83: 0.360038324 | J83: 1.608378373 | K83: 0.6989302548 | L83: 1982.355383 | M83: 27.44774306 | N83: 1982.063832 | O83: 20.05098648 | P83: 1981.744085 | Q83: 29.29910961 | R83: 1981.744085 | S83: 29.29910961 | T83: 100.0308465
A84: 10-WY-1-4 | B84: 166.0472063 | C84: 51646.28576 | D84: 2.719623774 | E84: 7.867851047 | F84: 2.21789332 | G84: 6.42801801 | H84: 2.934080534 | I84: 0.3668022065 | J84: 1.920879435 | K84: 0.6546784972 | L84: 2014.335894 | M84: 33.23138391 | N84: 2036.106075 | O84: 25.7869176 | P84: 2058.222383 | Q84: 39.1409382 | R84: 2058.222383 | S84: 39.1409382 | T84: 97.86774798
A85: 10-WY-1-50 | B85: 106.1357984 | C85: 75754.0436 | D85: 2.695910722 | E85: 6.824211062 | F85: 0.7650701353 | G85: 8.662150218 | H85: 7.125105423 | I85: 0.4287231023 | J85: 7.083910994 | K85: 0.9942184114 | L85: 2299.958807 | M85: 137.0520535 | N85: 2303.108304 | O85: 64.94786126 | P85: 2305.886188 | Q85: 13.13703681 | R85: 2305.886188 | S85: 13.13703681 | T85: 99.74294563
A86: 10-WY-1-58 | B86: 151.7917583 | C86: 145916.1595 | D86: 2.399229515 | E86: 6.368734962 | F86: 0.7110943306 | G86: 9.241220747 | H86: 2.559101152 | I86: 0.4268558577 | J86: 2.458321289 | K86: 0.9606190388 | L86: 2291.528269 | M86: 47.40954863 | N86: 2362.208282 | O86: 23.45158465 | P86: 2423.777718 | Q86: 12.06117282 | R86: 2423.777718 | S86: 12.06117282 | T86: 94.54366427
A87: 10-WY-1-36 | B87: 287.6532323 | C87: 305557.8052 | D87: 2.509612494 | E87: 6.231939015 | F87: 0.6471648045 | G87: 9.871181766 | H87: 3.580229079 | I87: 0.4461604495 | J87: 3.521252331 | K87: 0.9835271019 | L87: 2378.160055 | M87: 70.03369291 | N87: 2422.821154 | O87: 33.02069278 | P87: 2460.540382 | Q87: 10.93556565 | R87: 2460.540382 | S87: 10.93556565 | T87: 96.65194165
A88: 10-WY-1-34 | B88: 108.0151657 | C88: 104213.5295 | D88: 0.9414275624 | E88: 5.674551036 | F88: 0.5402436271 | G88: 12.07512961 | H88: 2.882947713 | I88: 0.496960685 | J88: 2.831876469 | K88: 0.9822850608 | L88: 2600.720983 | M88: 60.60618453 | N88: 2610.257321 | O88: 27.04052539 | P88: 2617.650606 | Q88: 8.991186829 | R88: 2617.650606 | S88: 8.991186829 | T88: 99.35325127
A89: 10-WY-1-85 | B89: 222.3289453 | C89: 256929.7107 | D89: 1.169101829 | E89: 5.11254987 | F89: 0.5840297636 | G89: 15.0135105 | H89: 4.164667507 | I89: 0.5566965561 | J89: 4.123513633 | K89: 0.990118329 | L89: 2852.963634 | M89: 95.06741667 | N89: 2816.096636 | O89: 39.66676661 | P89: 2789.790559 | Q89: 9.561447865 | R89: 2789.790559 | S89: 9.561447865 | T89: 102.2644379
A90: 10-WY-1-66 | B90: 94.54407747 | C90: 145920.3556 | D90: 2.568329659 | E90: 4.551060134 | F90: 0.3381590902 | G90: 16.86479683 | H90: 1.696879817 | I90: 0.5566630731 | J90: 1.662843812 | K90: 0.9799420061 | L90: 2852.824977 | M90: 38.33297912 | N90: 2927.178879 | O90: 16.26676448 | P90: 2978.697547 | Q90: 5.446417063 | R90: 2978.697547 | S90: 5.446417063 | T90: 95.77424131
A99: 85
A100: 75
A101: 82
A102: 88
A103: 90
A104: 45
A105: 81
A106: 93
A107: =SUM(A99:A106) -> 639

Sheet 10WY3HarebellPacificCreekeast
A1: Table 3. Detrital zircon data table for sample 10WY3; Harebell Formation at Pacific Creek West.
H2: Isotope ratios | N2: Apparent ages (Ma)
A4: Analysis | B4: U | C4: 206Pb | D4: U/Th | E4: 206Pb* | F4: ± | G4: 207Pb* | H4: ± | I4: 206Pb* | J4: ± | K4: error | L4: 206Pb* | M4: ± | N4: 207Pb* | O4: ± | P4: 206Pb* | Q4: ± | R4: Best age | S4: ± | T4: Conc
B5: (ppm) | C5: 204Pb | E5: 207Pb* | F5: (%) | G5: 235U* | H5: (%) | I5: 238U | J5: (%) | K5: corr. | L5: 238U* | M5: (Ma) | N5: 235U | O5: (Ma) | P5: 207Pb* | Q5: (Ma) | R5: (Ma) | S5: (Ma) | T5: (%)
A6: 10-WY-3-13 | B6: 212.4153266 | C6: 3323.90641 | D6: 2.865251595 | E6: 30.51531312 | F6: 46.88927491 | G6: 0.04960624989 | H6: 47.56735058 | I6: 0.01097875144 | J6: 8.003045658 | K6: 0.1682466137 | L6: 70.38789651 | M6: 5.602534432 | N6: 49.1598657 | O6: 22.830848 | P6: -895.4449768 | Q6: 1423.130455 | R6: 70.38789651 | S6: 5.602534432 | T6: NA
A7: 10-WY-3-63 | B7: 546.5308263 | C7: 9174.900865 | D7: 2.047488508 | E7: 22.64351356 | F7: 9.281456895 | G7: 0.06711537781 | H7: 10.32649714 | I7: 0.01102210594 | J7: 4.526709745 | K7: 0.4383586886 | L7: 70.66433665 | M7: 3.181301414 | N7: 65.95836866 | O7: 6.594770815 | P7: -101.5879318 | Q7: 228.5168346 | R7: 70.66433665 | S7: 3.181301414 | T7: NA
A8: 10-WY-3-88 | B8: 1001.090267 | C8: 4899.348509 | D8: 2.690237566 | E8: 19.21157436 | F8: 10.27979961 | G8: 0.08657574202 | H8: 11.96261979 | I8: 0.01206307155 | J8: 6.118005572 | K8: 0.5114269016 | L8: 77.29826007 | M8: 4.700872543 | N8: 84.30850406 | O8: 9.678444859 | P8: 287.7036643 | Q8: 235.5026752 | R8: 77.29826007 | S8: 4.700872543 | T8: NA
A9: 10-WY-3-81 | B9: 83.87992947 | C9: 116.7087351 | D9: 0.4573816047 | E9: 12.25112863 | F9: 21.33600074 | G9: 0.1585208655 | H9: 25.97067226 | I9: 0.01408514297 | J9: 14.80712295 | K9: 0.57014785 | L9: 90.16515116 | M9: 13.25794888 | N9: 149.4076007 | O9: 36.09762136 | P9: 1236.555807 | Q9: 423.1378431 | R9: 90.16515116 | S9: 13.25794888 | T9: 7.291636225
A10: 10-WY-3-55 | B10: 346.7010456 | C10: 8597.87988 | D10: 4.846734586 | E10: 22.78848148 | F10: 17.27828649 | G10: 0.08593689309 | H10: 17.71311197 | I10: 0.01420344717 | J10: 3.900660407 | K10: 0.2202131626 | L10: 90.91715251 | M10: 3.521478724 | N10: 83.71133708 | O10: 14.23404342 | P10: -117.2962874 | Q10: 428.6408322 | R10: 90.91715251 | S10: 3.521478724 | T10: NA
A11: 10-WY-3-52 | B11: 808.9318993 | C11: 8529.5238 | D11: 1.880711568 | E11: 20.37574009 | F11: 6.193349374 | G11: 0.09624244013 | H11: 6.971380491 | I11: 0.01422259171 | J11: 3.200401455 | K11: 0.4590771454 | L11: 91.03883664 | M11: 2.893131385 | N11: 93.30189222 | O11: 6.214613648 | P11: 151.5579543 | Q11: 145.2061934 | R11: 91.03883664 | S11: 2.893131385 | T11: NA
A12: 10-WY-3-33 | B12: 436.3393648 | C12: 11431.86833 | D12: 2.403871621 | E12: 24.50331005 | F12: 25.95736638 | G12: 0.08119712971 | H12: 26.21575935 | I12: 0.01442992779 | J12: 3.671671108 | K12: 0.1400558747 | L12: 92.35653323 | M12: 3.366852741 | N12: 79.26981844 | O12: 19.9932901 | P12: -299.3830326 | Q12: 672.7217524 | R12: 92.35653323 | S12: 3.366852741 | T12: NA
A13: 10-WY-3-51 | B13: 976.4437718 | C13: 35982.25365 | D13: 2.02973442 | E13: 21.04714326 | F13: 5.863233484 | G13: 0.09522829141 | H13: 6.583762449 | I13: 0.0145364338 | J13: 2.994732224 | K13: 0.4548663849 | L13: 93.03331312 | M13: 2.766090943 | N13: 92.36211285 | O13: 5.812596094 | P13: 75.04645399 | Q13: 139.4294215 | R13: 93.03331312 | S13: 2.766090943 | T13: NA
A14: 10-WY-3-30 | B14: 1393.630171 | C14: 18243.88997 | D14: 1.669250246 | E14: 20.2467805 | F14: 3.006016003 | G14: 0.099810696 | H14: 6.99691211 | I14: 0.01465655101 | J14: 6.318278789 | K14: 0.9030095977 | L14: 93.79649858 | M14: 5.88341971 | N14: 96.60158445 | O14: 6.447647878 | P14: 166.3910546 | Q14: 70.26296512 | R14: 93.79649858 | S14: 5.88341971 | T14: NA
A15: 10-WY-3-22 | B15: 1233.284104 | C15: 45518.54242 | D15: 1.41128373 | E15: 20.600331 | F15: 5.624082373 | G15: 0.09823121888 | H15: 7.162499955 | I15: 0.01467649857 | J15: 4.435211727 | K15: 0.6192267721 | L15: 93.92323014 | M15: 4.135494782 | N15: 95.14230875 | O15: 6.505133783 | P15: 125.7897108 | Q15: 132.4898683 | R15: 93.92323014 | S15: 4.135494782 | T15: NA
A16: 10-WY-3-77 | B16: 382.4458629 | C16: 6062.32041 | D16: 2.986355523 | E16: 26.2034513 | F16: 19.52873535 | G16: 0.07766852526 | H16: 19.89791575 | I16: 0.01476054119 | J16: 3.815173225 | K16: 0.1917373293 | L16: 94.4571452 | M16: 3.577430631 | N16: 75.9505861 | O16: 14.56220473 | P16: -473.8649918 | Q16: 521.0824275 | R16: 94.4571452 | S16: 3.577430631 | T16: NA
A17: 10-WY-3-35 | B17: 387.2216596 | C17: 8258.0165 | D17: 2.662599975 | E17: 21.63025141 | F17: 8.60265772 | G17: 0.0945934419 | H17: 9.197122783 | I17: 0.01483957013 | J17: 3.252898344 | K17: 0.3536865192 | L17: 94.95916852 | M17: 3.066285982 | N17: 91.77337502 | O17: 8.070477419 | P17: 9.709726054 | Q17: 207.3008493 | R17: 94.95916852 | S17: 3.066285982 | T17: NA
A18: 10-WY-3-86 | B18: 405.5707687 | C18: 11219.56538 | D18: 1.73598249 | E18: 21.7201148 | F18: 12.95074293 | G18: 0.09826319581 | H18: 14.00890973 | I18: 0.01547931458 | J18: 5.341143073 | K18: 0.3812675774 | L18: 99.02164151 | M18: 5.248475305 | N18: 95.17187298 | O18: 12.72745136 | P18: -0.2497043001 | Q18: 313.2683733 | R18: 99.02164151 | S18: 5.248475305 | T18: NA
A19: 10-WY-3-89 | B19: 324.7784917 | C19: 49949.97891 | D19: 1.859035428 | E19: 18.42748325 | F19: 4.214838123 | G19: 0.5055940256 | H19: 5.294180864 | I19: 0.06757198606 | J19: 3.203668306 | K19: 0.6051301209 | L19: 421.5110272 | M19: 13.07181402 | N19: 415.4820751 | O19: 18.05379462 | P19: 382.1151412 | Q19: 94.76412264 | R19: 421.5110272 | S19: 13.07181402 | T19: NA
A20: 10-WY-3-66 | B20: 106.4542388 | C20: 11598.11356 | D20: 2.145947938 | E20: 19.45025692 | F20: 9.297947178 | G20: 0.4821904416 | H20: 9.650614001 | I20: 0.06802094555 | J20: 2.585058772 | K20: 0.2678646946 | L20: 424.221449 | M20: 10.61333601 | N20: 399.5745766 | O20: 31.88909533 | P20: 259.3771922 | Q20: 213.9848131 | R20: 424.221449 | S20: 10.61333601 | T20: NA
A21: 10-WY-3-45 | B21: 77.73828429 | C21: 5113.931972 | D21: 1.762061969 | E21: 19.51586494 | F21: 13.37751018 | G21: 0.4881005547 | H21: 13.88283878 | I21: 0.06908691981 | J21: 3.711527156 | K21: 0.2673464135 | L21: 430.652301 | M21: 15.46160219 | N21: 403.6152828 | O21: 46.26852534 | P21: 251.6792001 | Q21: 308.9458853 | R21: 430.652301 | S21: 15.46160219 | T21: NA
A22: 10-WY-3-75 | B22: 568.3925362 | C22: 67780.66428 | D22: 1.729119043 | E22: 17.71458031 | F22: 2.12260134 | G22: 0.5432773511 | H22: 4.423458943 | I22: 0.06979932016 | J22: 3.880921614 | K22: 0.8773499796 | L22: 434.9465246 | M22: 16.32310897 | N22: 440.5831397 | O22: 15.81264916 | P22: 470.1169087 | Q22: 46.98686264 | R22: 434.9465246 | S22: 16.32310897 | T22: NA
A23: 10-WY-3-38 | B23: 69.73103609 | C23: 8794.337197 | D23: 2.356758916 | E23: 17.73703361 | F23: 22.36648303 | G23: 0.5577707549 | H23: 24.73167514 | I23: 0.07175223838 | J23: 10.55443943 | K23: 0.4267579683 | L23: 446.7037229 | M23: 45.55139276 | N23: 450.0744235 | O23: 90.1518657 | P23: 467.3531979 | Q23: 500.9573967 | R23: 446.7037229 | S23: 45.55139276 | T23: NA
A24: 10-WY-3-65 | B24: 88.79611268 | C24: 8397.620491 | D24: 2.007375781 | E24: 18.80849105 | F24: 4.963469513 | G24: 0.5737353846 | H24: 6.795772157 | I24: 0.07826440997 | J24: 4.641819644 | K24: 0.6830452135 | L24: 485.7548472 | M24: 21.71936659 | N24: 460.4274959 | O24: 25.16155797 | P24: 335.9612881 | Q24: 112.520257 | R24: 485.7548472 | S24: 21.71936659 | T24: NA
A25: 10-WY-3-37 | B25: 150.5857307 | C25: 19774.87029 | D25: 1.28313878 | E25: 16.82717105 | F25: 6.363865947 | G25: 0.716513842 | H25: 7.026690083 | I25: 0.08744488672 | J25: 2.979191792 | K25: 0.4239822387 | L25: 540.4080826 | M25: 15.44346198 | N25: 548.6067908 | O25: 29.790828 | P25: 582.8217805 | Q25: 138.3079933 | R25: 540.4080826 | S25: 15.44346198 | T25: 92.72269855
A26: 10-WY-3-76 | B26: 139.2095394 | C26: 65931.23167 | D26: 0.7270240226 | E26: 14.0375882 | F26: 2.127388546 | G26: 1.588591004 | H26: 2.3479382 | I26: 0.1617347428 | J26: 0.9934947236 | K26: 0.4231349545 | L26: 966.4100301 | M26: 8.91621212 | N26: 965.7447468 | O26: 14.631717 | P26: 964.2510575 | Q26: 43.4265746 | R26: 964.2510575 | S26: 43.4265746 | T26: 100.2239015
A27: 10-WY-3-50 | B27: 89.7517005 | C27: 37716.22349 | D27: 3.953121385 | E27: 13.9512586 | F27: 3.108221268 | G27: 1.545227453 | H27: 3.454834239 | I27: 0.1563523919 | J27: 1.508257328 | K27: 0.4365643106 | L27: 936.4742051 | M27: 13.14645254 | N27: 948.5911746 | O27: 21.30034516 | P27: 976.8106147 | Q27: 63.3611678 | R27: 976.8106147 | S27: 63.3611678 | T27: 95.87060081
A28: 10-WY-3-90 | B28: 87.02975952 | C28: 18658.82025 | D28: 1.87669468 | E28: 13.57296163 | F28: 3.550099212 | G28: 1.821778956 | H28: 4.270692508 | I28: 0.1793366396 | J28: 2.373943993 | K28: 0.5558686299 | L28: 1063.349625 | M28: 23.27136174 | N28: 1053.325401 | O28: 28.00341488 | P28: 1032.584985 | Q28: 71.76229085 | R28: 1032.584985 | S28: 71.76229085 | T28: 102.9793809
A29: 10-WY-3-44 | B29: 54.20220931 | C29: 20129.49195 | D29: 1.796714852 | E29: 13.05058794 | F29: 2.722692066 | G29: 1.893095075 | H29: 3.849364884 | I29: 0.1791848256 | J29: 2.721131737 | K29: 0.7069040786 | L29: 1062.519736 | M29: 26.65566949 | N29: 1078.668721 | O29: 25.58118049 | P29: 1111.42432 | Q29: 54.3657408 | R29: 1111.42432 | S29: 54.3657408 | T29: 95.59982781
A30: 10-WY-3-2 | B30: 158.2778826 | C30: 62590.91918 | D30: 3.160250876 | E30: 12.73928675 | F30: 1.629152767 | G30: 2.185613239 | H30: 1.988423638 | I30: 0.2019375817 | J30: 1.140039398 | K30: 0.5733382846 | L30: 1185.720587 | M30: 12.34735211 | N30: 1176.468305 | O30: 13.8530703 | P30: 1159.471089 | Q30: 32.32001844 | R30: 1159.471089 | S30: 32.32001844 | T30: 102.26392
A31: 10-WY-3-32 | B31: 97.57345073 | C31: 58282.82981 | D31: 2.422587646 | E31: 12.35247364 | F31: 3.077269392 | G31: 2.092757152 | H31: 3.504709003 | I31: 0.187487145 | J31: 1.677318778 | K31: 0.4785900275 | L31: 1107.748149 | M31: 17.07172509 | N31: 1146.431411 | O31: 24.08442744 | P31: 1220.343447 | Q31: 60.50093808 | R31: 1220.343447 | S31: 60.50093808 | T31: 90.77347456
A32: 10-WY-3-74 | B32: 57.7994221 | C32: 12957.64436 | D32: 1.836440782 | E32: 11.90279834 | F32: 2.342692809 | G32: 2.520360472 | H32: 3.353148335 | I32: 0.2175757357 | J32: 2.399040258 | K32: 0.7154590308 | L32: 1269.05257 | M32: 27.63585325 | N32: 1277.923939 | O32: 24.38044627 | P32: 1292.856852 | Q32: 45.56500534 | R32: 1292.856852 | S32: 45.56500534 | T32: 98.15878442
A33: 10-WY-3-82 | B33: 181.4204567 | C33: 120527.2181 | D33: 1.875052472 | E33: 11.47101612 | F33: 1.022765965 | G33: 2.781841341 | H33: 1.601867551 | I33: 0.2314370964 | J33: 1.23285418 | K33: 0.7696355295 | L33: 1342.026485 | M33: 14.93658912 | N33: 1350.673725 | O33: 11.96480615 | P33: 1364.37429 | Q33: 19.69800141 | R33: 1364.37429 | S33: 19.69800141 | T33: 98.36204731
A34: 10-WY-3-23 | B34: 76.98504631 | C34: 32796.82489 | D34: 2.412776011 | E34: 11.42003877 | F34: 2.112336755 | G34: 2.87772834 | H34: 3.039325702 | I34: 0.2383505166 | J34: 2.185299557 | K34: 0.7190080206 | L34: 1378.116135 | M34: 27.11466557 | N34: 1376.097378 | O34: 22.90620963 | P34: 1372.949364 | Q34: 40.63804583 | R34: 1372.949364 | S34: 40.63804583 | T34: 100.3763265
A35: 10-WY-3-47 | B35: 218.1201475 | C35: 81028.18506 | D35: 2.286836945 | E35: 11.3629698 | F35: 0.75843501 | G35: 2.953208191 | H35: 3.631748617 | I35: 0.2433798627 | J35: 3.55167205 | K35: 0.977950961 | L35: 1404.244109 | M35: 44.81659654 | N35: 1395.671878 | O35: 27.55476171 | P35: 1382.579498 | Q35: 14.56971307 | R35: 1382.579498 | S35: 14.56971307 | T35: 101.5669704
A36: 10-WY-3-19 | B36: 566.1048096 | C36: 41541.3162 | D36: 1.615511328 | E36: 10.95127891 | F36: 0.8926284229 | G36: 3.128724145 | H36: 3.226059112 | I36: 0.2485025438 | J36: 3.100108367 | K36: 0.9609583272 | L36: 1430.748546 | M36: 39.77791358 | N36: 1439.781119 | O36: 24.82791097 | P36: 1453.131518 | Q36: 16.98429893 | R36: 1453.131518 | S36: 16.98429893 | T36: 98.45967332
A37: 10-WY-3-69 | B37: 180.627479 | C37: 63473.10169 | D37: 1.277815532 | E37: 10.90737407 | F37: 0.8648828362 | G37: 3.088754361 | H37: 2.052838402 | I37: 0.2443443518 | J37: 1.861752718 | K37: 0.9069163537 | L37: 1409.24265 | M37: 23.56697605 | N37: 1429.903403 | O37: 15.7475082 | P37: 1460.771012 | Q37: 16.43943718 | R37: 1460.771012 | S37: 16.43943718 | T37: 96.47252302
A38: 10-WY-3-21 | B38: 177.6388692 | C38: 133692.0664 | D38: 1.004468326 | E38: 10.83749444 | F38: 1.497743318 | G38: 3.229635642 | H38: 3.043794521 | I38: 0.2538523232 | J38: 2.649801887 | K38: 0.8705587281 | L38: 1458.31214 | M38: 34.58362634 | N38: 1464.299998 | O38: 23.60337085 | P38: 1472.977498 | Q38: 28.42305254 | R38: 1472.977498 | S38: 28.42305254 | T38: 99.00437323
A39: 10-WY-3-36 | B39: 82.66024391 | C39: 36375.17481 | D39: 1.109297722 | E39: 10.81665538 | F39: 1.836125055 | G39: 3.265098266 | H39: 2.249959288 | I39: 0.2561462338 | J39: 1.300369786 | K39: 0.5779525847 | L39: 1470.095017 | M39: 17.09361302 | N39: 1472.777805 | O39: 17.491004 | P39: 1476.628989 | Q39: 34.82851249 | R39: 1476.628989 | S39: 34.82851249 | T39: 99.55750753
A40: 10-WY-3-94 | B40: 443.8968215 | C40: 280824.2368 | D40: 3.920028481 | E40: 10.4916203 | F40: 0.6565799421 | G40: 3.597394789 | H40: 1.636602532 | I40: 0.2737344081 | J40: 1.499123286 | K40: 0.9159971691 | L40: 1559.729667 | M40: 20.76861658 | N40: 1548.956484 | O40: 13.00388662 | P40: 1534.272126 | Q40: 12.35827029 | R40: 1534.272126 | S40: 12.35827029 | T40: 101.6592585
A41: 10-WY-3-71 | B41: 142.2127419 | C41: 89779.18043 | D41: 2.189831412 | E41: 9.834724205 | F41: 1.150012678 | G41: 4.085951597 | H41: 2.248771685 | I41: 0.2914433353 | J41: 1.932471198 | K41: 0.8593452199 | L41: 1648.73784 | M41: 28.1133605 | N41: 1651.502412 | O41: 18.34609026 | P41: 1655.005663 | Q41: 21.30735217 | R41: 1655.005663 | S41: 21.30735217 | T41: 99.62128091
A42: 10-WY-3-80 | B42: 191.01307 | C42: 51336.24039 | D42: 1.215891676 | E42: 9.813742222 | F42: 0.8360561034 | G42: 4.051154373 | H42: 2.440174404 | I42: 0.2883448268 | J42: 2.292479295 | K42: 0.9394735435 | L42: 1633.252632 | M42: 33.07558122 | N42: 1644.531457 | O42: 19.87441645 | P42: 1658.961905 | Q42: 15.48183955 | R42: 1658.961905 | S42: 15.48183955 | T42: 98.45027949
A43: 10-WY-3-84 | B43: 154.0925328 | C43: 69384.11828 | D43: 1.873003448 | E43: 9.779053078 | F43: 1.119247617 | G43: 3.920008103 | H43: 3.134477247 | I43: 0.2780241319 | J43: 2.927837493 | K43: 0.93407521 | L43: 1581.403631 | M43: 41.05957836 | N43: 1617.820153 | O43: 25.36334287 | P43: 1665.513509 | Q43: 20.70943481 | R43: 1665.513509 | S43: 20.70943481 | T43: 94.94991322
A44: 10-WY-3-97 | B44: 61.39171762 | C44: 30725.83682 | D44: 1.167271796 | E44: 9.752890331 | F44: 2.321469914 | G44: 4.346959062 | H44: 2.713413646 | I44: 0.3074805266 | J44: 1.404774378 | K44: 0.5177147907 | L44: 1728.296685 | M44: 21.29652526 | N44: 1702.318119 | O44: 22.4024268 | P44: 1670.46912 | Q44: 42.93163666 | R44: 1670.46912 | S44: 42.93163666 | T44: 103.461756
A45: 10-WY-3-58 | B45: 468.4422313 | C45: 163232.001 | D45: 1.969356967 | E45: 9.745220319 | F45: 0.709917857 | G45: 4.356124183 | H45: 2.496190004 | I45: 0.3078864948 | J45: 2.393111191 | K45: 0.9587055421 | L45: 1730.297963 | M45: 36.31669023 | N45: 1704.057078 | O45: 20.61659028 | P45: 1671.923859 | Q45: 13.12403639 | R45: 1671.923859 | S45: 13.12403639 | T45: 103.4914332
A46: 10-WY-3-87 | B46: 455.174175 | C46: 37448.48154 | D46: 1.926399834 | E46: 9.728208737 | F46: 0.6620684406 | G46: 3.915289638 | H46: 4.935932073 | I46: 0.2762456837 | J46: 4.891328124 | K46: 0.990963419 | L46: 1572.426807 | M46: 68.25311005 | N46: 1616.845897 | O46: 39.9427352 | P46: 1675.153496 | Q46: 12.23430789 | R46: 1675.153496 | S46: 12.23430789 | T46: 93.86762532
A47: 10-WY-3-64 | B47: 145.0964047 | C47: 49746.05969 | D47: 1.962791938 | E47: 9.719679514 | F47: 1.300644227 | G47: 4.251341926 | H47: 1.91447024 | I47: 0.2996930739 | J47: 1.404820592 | K47: 0.7337907701 | L47: 1689.786557 | M47: 20.88221153 | N47: 1683.996191 | O47: 15.73870692 | P47: 1676.774388 | Q47: 24.03185415 | R47: 1676.774388 | S47: 24.03185415 | T47: 100.7760238
A48: 10-WY-3-56 | B48: 488.5511906 | C48: 181612.8322 | D48: 3.306016489 | E48: 9.699252078 | F48: 0.2962589169 | G48: 4.29906216 | H48: 1.229427558 | I48: 0.3024201305 | J48: 1.193198548 | K48: 0.9705318057 | L48: 1703.298453 | M48: 17.86041843 | N48: 1693.181554 | O48: 10.12795977 | P48: 1680.660839 | Q48: 5.471412167 | R48: 1680.660839 | S48: 5.471412167 | T48: 101.3469472 | V48: 70.4 | W48: 5.6
A49: 10-WY-3-1 | B49: 139.9418805 | C49: 85256.26773 | D49: 2.012845712 | E49: 9.602973767 | F49: 1.035078702 | G49: 4.466835178 | H49: 1.551128113 | I49: 0.3111031407 | J49: 1.155253437 | K49: 0.744782734 | L49: 1746.132957 | M49: 17.67112099 | N49: 1724.831062 | O49: 12.86959211 | P49: 1699.063196 | Q49: 19.07040609 | R49: 1699.063196 | S49: 19.07040609 | T49: 102.7703361 | V49: 70.7 | W49: 3.2
A50: 10-WY-3-100 | B50: 121.2414671 | C50: 38641.19344 | D50: 2.01507065 | E50: 9.595926227 | F50: 1.383052099 | G50: 4.461478017 | H50: 2.818945032 | I50: 0.3105019866 | J50: 2.456342399 | K50: 0.8713693852 | L50: 1743.176533 | M50: 37.51791656 | N50: 1723.835561 | O50: 23.38631904 | P50: 1700.415784 | Q50: 25.4782901 | R50: 1700.415784 | S50: 25.4782901 | T50: 102.5147231 | V50: 73.1 | W50: 4.9
A51: 10-WY-3-25 | B51: 575.8733459 | C51: 266071.267 | D51: 2.971757492 | E51: 9.54760558 | F51: 0.3066771802 | G51: 4.428606737 | H51: 1.140078101 | I51: 0.3066622453 | J51: 1.098056093 | K51: 0.9631411147 | L51: 1724.26096 | M51: 16.61271679 | N51: 1717.705757 | O51: 9.443995521 | P51: 1709.706854 | Q51: 5.643075579 | R51: 1709.706854 | S51: 5.643075579 | T51: 100.8512633 | V51: 75 | W51: 2.6
A52: 10-WY-3-12 | B52: 292.2393532 | C52: 153952.1553 | D52: 1.216138252 | E52: 9.53042036 | F52: 0.8576642964 | G52: 4.526627805 | H52: 1.653592732 | I52: 0.3128855947 | J52: 1.413782472 | K52: 0.8549762251 | L52: 1754.890951 | M52: 21.72006533 | N52: 1735.876356 | O52: 13.75306805 | P52: 1713.021171 | Q52: 15.77348977 | R52: 1713.021171 | S52: 15.77348977 | T52: 102.4442068 | V52: 69.8 | W52: 4.5
A53: 10-WY-3-10 | B53: 251.9322401 | C53: 204941.0969 | D53: 3.135738068 | E53: 9.508073035 | F53: 0.4174163255 | G53: 4.394306063 | H53: 0.9617817829 | I53: 0.3030271467 | J53: 0.8664801262 | K53: 0.9009113518 | L53: 1706.30222 | M53: 12.98988996 | N53: 1711.2697 | O53: 7.955547307 | P53: 1717.337916 | Q53: 7.673371756 | R53: 1717.337916 | S53: 7.673371756 | T53: 99.3573952 | V53: 73.1 | W53: 3.3
A54: 10-WY-3-67 | B54: 225.3030028 | C54: 107869.8206 | D54: 1.892852448 | E54: 9.5056395 | F54: 0.7184111119 | G54: 4.351572574 | H54: 1.974211337 | I54: 0.3000034824 | J54: 1.838857221 | K54: 0.9314388921 | L54: 1691.325984 | M54: 27.35587447 | N54: 1703.193844 | O54: 16.3014289 | P54: 1717.808462 | Q54: 13.20589555 | R54: 1717.808462 | S54: 13.20589555 | T54: 98.45835671
A55: 10-WY-3-14 | B55: 126.0898908 | C55: 72379.39223 | D55: 1.842002106 | E55: 9.499375683 | F55: 1.202174049 | G55: 4.511403439 | H55: 1.686872062 | I55: 0.3108174944 | J55: 1.183349023 | K55: 0.7015049036 | L55: 1744.728342 | M55: 18.0882032 | N55: 1733.075391 | O55: 14.02132717 | P55: 1719.020056 | Q55: 22.09382666 | R55: 1719.020056 | S55: 22.09382666 | T55: 101.4955199
A56: 10-WY-3-53 | B56: 432.5869836 | C56: 239062.7283 | D56: 3.239797603 | E56: 9.495669062 | F56: 0.7794603443 | G56: 4.361587502 | H56: 1.766856708 | I56: 0.3003785284 | J56: 1.585630537 | K56: 0.8974301817 | L56: 1693.185481 | M56: 23.61137311 | N56: 1705.092255 | O56: 14.59527699 | P56: 1719.737306 | Q56: 14.32465698 | R56: 1719.737306 | S56: 14.32465698 | T56: 98.45605344
A57: 10-WY-3-17 | B57: 177.3870282 | C57: 79583.34615 | D57: 2.064643876 | E57: 9.315014987 | F57: 0.8969077953 | G57: 4.688630506 | H57: 1.794810202 | I57: 0.3167585105 | J57: 1.554638243 | K57: 0.8661853168 | L57: 1773.879405 | M57: 24.10858579 | N57: 1765.212504 | O57: 15.02167652 | P57: 1754.955543 | Q57: 16.40895894 | R57: 1754.955543 | S57: 16.40895894 | T57: 101.07831
A58: 10-WY-3-20 | B58: 477.0120476 | C58: 195780.3037 | D58: 3.507774914 | E58: 9.255688629 | F58: 0.4241527274 | G58: 4.766516623 | H58: 1.759407314 | I58: 0.3199694931 | J58: 1.707515318 | K58: 0.970505979 | L58: 1789.580178 | M58: 26.68271229 | N58: 1779.020352 | O58: 14.76775531 | P58: 1766.637256 | Q58: 7.749326651 | R58: 1766.637256 | S58: 7.749326651 | T58: 101.2986776
A59: 10-WY-3-4 | B59: 456.0691266 | C59: 216105.3432 | D59: 2.469208529 | E59: 9.207190633 | F59: 0.2854349445 | G59: 4.712442831 | H59: 1.745138184 | I59: 0.3146820387 | J59: 1.721637063 | K59: 0.9865333748 | L59: 1763.705661 | M59: 26.56522464 | N59: 1769.453976 | O59: 14.61887545 | P59: 1776.229849 | Q59: 5.206902984 | R59: 1776.229849 | S59: 5.206902984 | T59: 99.29490053
A60: 10-WY-3-9 | B60: 311.3332564 | C60: 130201.1588 | D60: 2.077321678 | E60: 9.206569343 | F60: 0.5007961622 | G60: 4.787588828 | H60: 1.467066944 | I60: 0.3196784779 | J60: 1.378944749 | K60: 0.9399330788 | L60: 1788.158772 | M60: 21.53336743 | N60: 1782.724037 | O60: 12.32311041 | P60: 1776.352989 | Q60: 9.136821784 | R60: 1776.352989 | S60: 9.136821784 | T60: 100.664608
A61: 10-WY-3-11 | B61: 33.13186117 | C61: 607.8961147 | D61: 0.5752021076 | E61: 9.141495085 | F61: 3.730716178 | G61: 4.446311107 | H61: 4.496058307 | I61: 0.2947920738 | J61: 2.509242336 | K61: 0.558098264 | L61: 1665.431887 | M61: 36.82826901 | N61: 1721.011848 | O61: 37.28673874 | P61: 1789.283083 | Q61: 67.98703537 | R61: 1789.283083 | S61: 67.98703537 | T61: 93.07816648
A62: 10-WY-3-72 | B62: 388.99921 | C62: 158873.641 | D62: 2.775661665 | E62: 9.127938715 | F62: 0.4461886622 | G62: 4.890035605 | H62: 2.000409874 | I62: 0.3237303838 | J62: 1.95001419 | K62: 0.974807321 | L62: 1807.921348 | M62: 30.74278404 | N62: 1800.540227 | O62: 16.86486757 | P62: 1791.98644 | Q62: 8.12649246 | R62: 1791.98644 | S62: 8.12649246 | T62: 100.8892315
A63: 10-WY-3-70 | B63: 109.3553724 | C63: 118376.6217 | D63: 4.336702298 | E63: 9.113620602 | F63: 1.281606502 | G63: 4.746368164 | H63: 2.295462921 | I63: 0.3137264192 | J63: 1.904372546 | K63: 0.8296246169 | L63: 1759.018171 | M63: 29.31698268 | N63: 1775.466347 | O63: 19.25396668 | P63: 1794.845081 | Q63: 23.33094042 | R63: 1794.845081 | S63: 23.33094042 | T63: 98.00389962
A64: 10-WY-3-54 | B64: 41.42273683 | C64: 15884.39358 | D64: 1.266908541 | E64: 9.105386365 | F64: 2.405965008 | G64: 4.954073696 | H64: 2.892739338 | I64: 0.3271595234 | J64: 1.606011599 | K64: 0.555187112 | L64: 1824.59927 | M64: 25.52146445 | N64: 1811.520171 | O64: 24.44394821 | P64: 1796.49064 | Q64: 43.7983662 | R64: 1796.49064 | S64: 43.7983662 | T64: 101.564641
A65: 10-WY-3-24 | B65: 370.4875385 | C65: 227399.0164 | D65: 1.883057227 | E65: 9.066665138 | F65: 0.3518023088 | G65: 4.86831581 | H65: 3.859748882 | I65: 0.3201290197 | J65: 3.843682683 | K65: 0.9958375015 | L65: 1790.35922 | M65: 60.08789314 | N65: 1796.789032 | O65: 32.52390762 | P65: 1804.244336 | Q65: 6.397724156 | R65: 1804.244336 | S65: 6.397724156 | T65: 99.23041929
A66: 10-WY-3-26 | B66: 55.13019226 | C66: 25600.7537 | D66: 0.9937135055 | E66: 9.037750678 | F66: 2.909576809 | G66: 4.830282923 | H66: 3.166482411 | I66: 0.3166151201 | J66: 1.249389313 | K66: 0.3945669517 | L66: 1773.177374 | M66: 19.36823793 | N66: 1790.186859 | O66: 26.64339652 | P66: 1810.05106 | Q66: 52.88061928 | R66: 1810.05106 | S66: 52.88061928 | T66: 97.96283729
A67: 10-WY-3-59 | B67: 94.93646131 | C67: 32020.43575 | D67: 1.126315309 | E67: 8.873740394 | F67: 1.639974336 | G67: 5.190816608 | H67: 1.899767302 | I67: 0.3340728098 | J67: 0.9589577557 | K67: 0.5047764296 | L67: 1858.092029 | M67: 15.48032639 | N67: 1851.111339 | O67: 16.17539151 | P67: 1843.261165 | Q67: 29.68059631 | R67: 1843.261165 | S67: 29.68059631 | T67: 100.8045992
A68: 10-WY-3-42 | B68: 58.00380948 | C68: 27597.46793 | D68: 1.624790935 | E68: 8.828671798 | F68: 2.163488202 | G68: 5.191870131 | H68: 3.071647884 | I68: 0.3324435553 | J68: 2.180444799 | K68: 0.7098615733 | L68: 1850.214447 | M68: 35.07007414 | N68: 1851.284117 | O68: 26.15768948 | P68: 1852.471743 | Q68: 39.11281244 | R68: 1852.471743 | S68: 39.11281244 | T68: 99.87814684
A69: 10-WY-3-31 | B69: 176.0561128 | C69: 119247.6158 | D69: 2.601177293 | E69: 8.746594428 | F69: 0.7084644596 | G69: 5.302966736 | H69: 2.789046697 | I69: 0.3364004881 | J69: 2.697565493 | K69: 0.9671998305 | L69: 1869.329874 | M69: 43.77406412 | N69: 1869.340948 | O69: 23.83083804 | P69: 1869.336955 | Q69: 12.78250021 | R69: 1869.336955 | S69: 12.78250021 | T69: 99.99962122
A70: 10-WY-3-34 | B70: 157.9157976 | C70: 67914.54997 | D70: 1.005249805 | E70: 8.347371753 | F70: 0.6578229334 | G70: 5.852518894 | H70: 2.196120055 | I70: 0.3543164411 | J70: 2.095283342 | K70: 0.9540841528 | L70: 1955.177151 | M70: 35.33755278 | N70: 1954.222782 | O70: 19.04712832 | P70: 1953.197049 | Q70: 11.74887897 | R70: 1953.197049 | S70: 11.74887897 | T70: 100.1013775
A71: 10-WY-3-78 | B71: 165.8229307 | C71: 1783.574597 | D71: 1.36346812 | E71: 7.707157675 | F71: 5.179616649 | G71: 5.945928961 | H71: 5.557631804 | I71: 0.3323630115 | J71: 2.014656954 | K71: 0.3625027755 | L71: 1849.824762 | M71: 32.3976185 | N71: 1967.97048 | O71: 48.34338329 | P71: 2094.559386 | Q71: 91.08500021 | R71: 2094.559386 | S71: 91.08500021 | T71: 88.31569896
A72: 10-WY-3-83 | B72: 156.6147814 | C72: 126977.5274 | D72: 1.186520705 | E72: 5.933300983 | F72: 0.5222514394 | G72: 11.49013547 | H72: 2.791085369 | I72: 0.4944475779 | J72: 2.741789739 | K72: 0.9823381861 | L72: 2589.889608 | M72: 58.47952464 | N72: 2563.780444 | O72: 26.07693217 | P72: 2543.186611 | Q72: 8.75467913 | R72: 2543.186611 | S72: 8.75467913 | T72: 101.8363968
A73: 10-WY-3-46 | B73: 266.1407405 | C73: 452613.1095 | D73: 0.7855789518 | E73: 5.612914995 | F73: 0.2518103605 | G73: 11.95157287 | H73: 0.6274538508 | I73: 0.4865329457 | J73: 0.574708515 | K73: 0.9159375057 | L73: 2555.658511 | M73: 12.12562309 | N73: 2600.616579 | O73: 5.879211765 | P73: 2635.810501 | Q73: 4.183435974 | R73: 2635.810501 | S73: 4.183435974 | T73: 96.95911407
A74: 10-WY-3-6 | B74: 356.1779732 | C74: 104873.1377 | D74: 1.265621108 | E74: 5.530628738 | F74: 0.1796107772 | G74: 13.0064618 | H74: 1.664175657 | I74: 0.5217138919 | J74: 1.65445477 | K74: 0.9941587374 | L74: 2706.444868 | M74: 36.56597499 | N74: 2680.122638 | O74: 15.69258103 | P74: 2660.31204 | Q74: 2.977089177 | R74: 2660.31204 | S74: 2.977089177 | T74: 101.7341134
A75: 10-WY-3-68 | B75: 44.69256238 | C75: 46407.1178 | D75: 1.061626266 | E75: 5.343032581 | F75: 0.4781736734 | G75: 13.19289583 | H75: 1.73453659 | I75: 0.5112421835 | J75: 1.66732334 | K75: 0.9612500247 | L75: 2661.930383 | M75: 36.36095274 | N75: 2693.54881 | O75: 16.37269349 | P75: 2717.349576 | Q75: 7.883442107 | R75: 2717.349576 | S75: 7.883442107 | T75: 97.9605424
A76: 10-WY-3-49 | B76: 149.3273751 | C76: 74548.96649 | D76: 0.6666271779 | E76: 5.340883388 | F76: 0.3430807324 | G76: 13.60242509 | H76: 1.964826237 | I76: 0.526899958 | J76: 1.934641505 | K76: 0.9846374547 | L76: 2728.377171 | M76: 43.03707423 | N76: 2722.432469 | O76: 18.5863417 | P76: 2718.012843 | Q76: 5.655851473 | R76: 2718.012843 | S76: 5.655851473 | T76: 100.3813201
A77: 10-WY-3-79 | B77: 67.55671545 | C77: 34864.1867 | D77: 2.725961986 | E77: 5.325701146 | F77: 0.6953253012 | G77: 13.28043958 | H77: 2.893876083 | I77: 0.5129652762 | J77: 2.809099768 | K77: 0.9707049258 | L77: 2669.276288 | M77: 61.39846426 | N77: 2699.792597 | O77: 27.33289276 | P77: 2722.704702 | Q77: 11.45782079 | R77: 2722.704702 | S77: 11.45782079 | T77: 98.03767138
A78: 10-WY-3-57 | B78: 140.1101693 | C78: 204045.0833 | D78: 1.264945846 | E78: 5.294593539 | F78: 0.4123200385 | G78: 14.2416991 | H78: 5.758011956 | I78: 0.5468814045 | J78: 5.743230265 | K78: 0.9974328481 | L78: 2812.18957 | M78: 130.9092291 | N78: 2765.93901 | O78: 54.6827656 | P78: 2732.353478 | Q78: 6.784844457 | R78: 2732.353478 | S78: 6.784844457 | T78: 102.9218801
A79: 10-WY-3-99 | B79: 209.7893978 | C79: 116067.0951 | D79: 1.081933628 | E79: 5.279464445 | F79: 0.3454091925 | G79: 14.53686089 | H79: 2.092734907 | I79: 0.5566205411 | J79: 2.064032917 | K79: 0.9862849373 | L79: 2852.648842 | M79: 47.57942427 | N79: 2785.41435 | O79: 19.88414847 | P79: 2737.056731 | Q79: 5.680879476 | R79: 2737.056731 | S79: 5.680879476 | T79: 104.2232267
A80: 10-WY-3-41 | B80: 147.1158813 | C80: 83110.03011 | D80: 2.267221774 | E80: 5.253945463 | F80: 0.4160608156 | G80: 14.14107934 | H80: 2.29493425 | I80: 0.5388487063 | J80: 2.25690421 | K80: 0.9834287014 | L80: 2778.627194 | M80: 50.94614113 | N80: 2759.213622 | O80: 21.76669042 | P80: 2745.027784 | Q80: 6.842057228 | R80: 2745.027784 | S80: 6.842057228 | T80: 101.2240098
A81: 10-WY-3-73 | B81: 713.7764405 | C81: 593736.1048 | D81: 6.04446319 | E81: 5.226904599 | F81: 1.047820545 | G81: 9.617168525 | H81: 8.318272654 | I81: 0.3645780562 | J81: 8.252013818 | K81: 0.9920345439 | L81: 2003.837322 | M81: 142.1479745 | N81: 2398.814401 | O81: 76.65235158 | P81: 2753.510013 | Q81: 17.21800598 | R81: 2753.510013 | S81: 17.21800598 | T81: 72.77392537
A82: 10-WY-3-61 | B82: 359.7478138 | C82: 271340.7193 | D82: 1.789041661 | E82: 5.170395187 | F82: 0.1817051838 | G82: 14.27369468 | H82: 1.00025984 | I82: 0.5352527 | J82: 0.9836172905 | K82: 0.9833617735 | L82: 2763.545482 | M82: 22.10675811 | N82: 2768.068281 | O82: 9.491780603 | P82: 2771.356604 | Q82: 2.980765926 | R82: 2771.356604 | S82: 2.980765926 | T82: 99.71814808
A83: 10-WY-3-48 | B83: 79.49078082 | C83: 94429.91858 | D83: 1.407865727 | E83: 5.114516895 | F83: 0.502539686 | G83: 14.69366729 | H83: 1.679107594 | I83: 0.5450464867 | J83: 1.602141123 | K83: 0.9541622754 | L83: 2804.538265 | M83: 36.43473301 | N83: 2795.610777 | O83: 15.96430367 | P83: 2789.160541 | Q83: 8.227307172 | R83: 2789.160541 | S83: 8.227307172 | T83: 100.5513388
A84: 10-WY-3-7 | B84: 121.8659037 | C84: 114406.0175 | D84: 1.313190172 | E84: 5.110979234 | F84: 0.3267973279 | G84: 14.94408055 | H84: 1.238396671 | I84: 0.553951881 | J84: 1.194499821 | K84: 0.9645534815 | L84: 2841.587667 | M84: 27.44993966 | N84: 2811.684657 | O84: 11.78633856 | P84: 2790.293765 | Q84: 5.351938407 | R84: 2790.293765 | S84: 5.351938407 | T84: 101.8382975
A85: 10-WY-3-98 | B85: 140.5384826 | C85: 165197.3605 | D85: 0.5080181746 | E85: 5.096616948 | F85: 0.3595786047 | G85: 15.12657961 | H85: 2.94642809 | I85: 0.5591411517 | J85: 2.924404506 | K85: 0.992525328 | L85: 2863.078974 | M85: 67.60947996 | N85: 2823.240918 | O85: 28.06951054 | P85: 2794.901304 | Q85: 5.886286065 | R85: 2794.901304 | S85: 5.886286065 | T85: 102.4393588
A86: 10-WY-3-43 | B86: 183.6766914 | C86: 14836.03414 | D86: 1.301836726 | E86: 4.951543704 | F86: 0.5756427739 | G86: 10.23698235 | H86: 4.272875686 | I86: 0.367630298 | J86: 4.233922771 | K86: 0.9908836768 | L86: 2018.240339 | M86: 73.37066794 | N86: 2456.425175 | O86: 39.54503131 | P86: 2842.064639 | Q86: 9.379727714 | R86: 2842.064639 | S86: 9.379727714 | T86: 71.01317513
A87: 10-WY-3-95 | B87: 114.9656863 | C87: 125318.4812 | D87: 1.311777822 | E87: 4.029273 | F87: 0.9723850049 | G87: 21.8681425 | H87: 1.747983179 | I87: 0.6390536417 | J87: 1.452553818 | K87: 0.830988442 | L87: 3185.295907 | M87: 36.50894036 | N87: 3177.889815 | O87: 16.97417277 | P87: 3173.20521 | Q87: 15.41205682 | R87: 3173.20521 | S87: 15.41205682 | T87: 100.3810247

Sheet 10WY4PinyonGrosVentre
A1: Table 4. Detrital Zircon data table for sample 10WY4, Pinyon Formation in the Gros Ventre Range
H2: Isotope ratios | N2: Apparent ages (Ma)
A4: Analysis | B4: U | C4: 206Pb | D4: U/Th | E4: 206Pb* | F4: ± | G4: 207Pb* | H4: ± | I4: 206Pb* | J4: ± | K4: error | L4: 206Pb* | M4: ± | N4: 207Pb* | O4: ± | P4: 206Pb* | Q4: ± | R4: Best age | S4: ± | T4: Conc
B5: (ppm) | C5: 204Pb | E5: 207Pb* | F5: (%) | G5: 235U* | H5: (%) | I5: 238U | J5: (%) | K5: corr. | L5: 238U* | M5: (Ma) | N5: 235U | O5: (Ma) | P5: 207Pb* | Q5: (Ma) | R5: (Ma) | S5: (Ma) | T5: (%)
A6: 10WY-4-91 | B6: 74.56148018 | C6: 1218.094689 | D6: 1.591844493 | E6: 17.91292555 | F6: 93.90806888 | G6: 0.08136148637 | H6: 94.67279918 | I6: 0.01057022228 | J6: 12.00889267 | K6: 0.1268462829 | L6: 67.78242099 | M6: 8.097277449 | N6: 79.42415874 | O6: 72.45014433 | P6: 445.4186538 | Q6: 643.6249001 | R6: 67.78242099 | S6: 8.097277449 | T6: NA
A7: 10WY-4-31 | B7: 223.2256358 | C7: 6457.032951 | D7: 1.270205765 | E7: 39.64315115 | F7: 83.05510758 | G7: 0.03790801674 | H7: 83.53282096 | I7: 0.01089928371 | J7: 8.920834206 | K7: 0.1067943606 | L7: 69.88115782 | M7: 6.200316743 | N7: 37.77952476 | O7: 30.98803646 | P7: -1727.289547 | Q7: 1166.458956 | R7: 69.88115782 | S7: 6.200316743 | T7: NA
A8: 10WY-4-65 | B8: 889.4565251 | C8: 65190.8646 | D8: 3.417550928 | E8: 21.88367969 | F8: 8.373085888 | G8: 0.06889514605 | H8: 8.945119939 | I8: 0.01093472083 | J8: 3.147475726 | K8: 0.3518651228 | L8: 70.10713324 | M8: 2.194649643 | N8: 67.65044547 | O8: 5.854292418 | P8: -18.36540621 | Q8: 202.8093705 | R8: 70.10713324 | S8: 2.194649643 | T8: NA
A9: 10WY-4-19 | B9: 419.4697651 | C9: 9100.660577 | D9: 2.423959147 | E9: 18.27988309 | F9: 8.883042199 | G9: 0.08371277988 | H9: 10.98280489 | I9: 0.0110984902 | J9: 6.45860391 | K9: 0.5880650687 | L9: 71.15135467 | M9: 4.570117547 | N9: 81.62959303 | O9: 8.61452167 | P9: 400.1628313 | Q9: 199.3622251 | R9: 71.15135467 | S9: 4.570117547 | T9: NA
A10: 10WY-4-50 | B10: 1089.93733 | C10: 36917.96395 | D10: 2.017860165 | E10: 22.25813271 | F10: 5.680857815 | G10: 0.06950234479 | H10: 5.952164968 | I10: 0.01121984634 | J10: 1.776547856 | K10: 0.29847087 | L10: 71.92503301 | M10: 1.270680739 | N10: 68.22708225 | O10: 3.927577394 | P10: -59.56633601 | Q10: 138.5710811 | R10: 71.92503301 | S10: 1.270680739 | T10: NA
A11: 10WY-4-41 | B11: 440.4004968 | C11: 5014.122015 | D11: 1.653720342 | E11: 22.28566132 | F11: 14.25491751 | G11: 0.06942488946 | H11: 15.05717674 | I11: 0.01122120376 | J11: 4.849319335 | K11: 0.3220603317 | L11: 71.93368634 | M11: 3.468904248 | N11: 68.15354368 | O11: 9.925495589 | P11: -62.58059234 | Q11: 349.2025884 | R11: 71.93368634 | S11: 3.468904248 | T11: NA
A12: 10WY-4-70 | B12: 148.9511155 | C12: 2670.79905 | D12: 1.287518619 | E12: 24.75917925 | F12: 44.7100937 | G12: 0.0647201627 | H12: 45.43905752 | I12: 0.01162183137 | J12: 8.106507866 | K12: 0.1784039614 | L12: 74.48713368 | M12: 6.00355531 | N12: 63.67670875 | O12: 28.05264559 | P12: -326.0011387 | Q12: 1200.917079 | R12: 74.48713368 | S12: 6.00355531 | T12: NA
A13: 10WY-4-56 | B13: 245.187494 | C13: 4395.277619 | D13: 2.423981146 | E13: 26.8260437 | F13: 41.49599827 | G13: 0.06008605505 | H13: 41.7759731 | I13: 0.0116903912 | J13: 4.828463087 | K13: 0.115579907 | L13: 74.92400648 | M13: 3.596736194 | N13: 59.24769136 | O13: 24.04751711 | P13: -536.4491213 | Q13: 1154.926049 | R13: 74.92400648 | S13: 3.596736194 | T13: NA
A14: 10WY-4-49 | B14: 107.5205063 | C14: 4999.516476 | D14: 1.81082295 | E14: 3.193453726 | F14: 871.6478662 | G14: 0.5466497486 | H14: 871.7763914 | I14: 0.01266101448 | J14: 14.96910244 | K14: 0.01717080502 | L14: 81.10577922 | M14: 12.06476557 | N14: 442.7995523 | O14: 24.04751711 | P14: 3536.45718 | Q14: 472.0373926 | R14: 81.10577922 | S14: 12.06476557 | T14: NA
A15: 10WY-4-33 | B15: 312.2305657 | C15: 4353.735536 | D15: 2.211670252 | E15: 24.60664641 | F15: 23.47648901 | G15: 0.0800504657 | H15: 24.02712873 | I15: 0.01428614378 | J15: 5.114428454 | K15: 0.2128605757 | L15: 91.44276187 | M15: 4.64376156 | N15: 78.19238213 | O15: 18.08412567 | P15: -310.1484838 | Q15: 608.1391733 | R15: 91.44276187 | S15: 4.64376156 | T15: NA
A16: 10WY-4-95 | B16: 496.4206066 | C16: 6597.396945 | D16: 1.535288575 | E16: 20.78438839 | F16: 12.71158838 | G16: 0.09735660125 | H16: 17.57291013 | I16: 0.01467578628 | J16: 12.13353581 | K16: 0.6904682104 | L16: 93.91870482 | M16: 11.31306049 | N16: 94.33334821 | O16: 15.8316585 | P16: 104.8335426 | Q16: 301.4382855 | R16: 93.91870482 | S16: 11.31306049 | T16: NA
A17: 10WY-4-58 | B17: 439.9697232 | C17: 12294.27103 | D17: 2.607365524 | E17: 21.29005948 | F17: 16.77211866 | G17: 0.09545477823 | H17: 17.34789833 | I17: 0.01473917832 | J17: 4.432337099 | K17: 0.2554970645 | L17: 94.321433 | M17: 4.150208285 | N17: 92.57206644 | O17: 15.35016616 | P17: 47.72050214 | Q17: 403.048883 | R17: 94.321433 | S17: 4.150208285 | T17: NA
A18: 10WY-4-69 | B18: 250.5230157 | C18: 4645.330925 | D18: 1.235610773 | E18: 24.01300405 | F18: 20.26125928 | G18: 0.08644105672 | H18: 20.68798194 | I18: 0.01505446363 | J18: 4.180187704 | K18: 0.2020587467 | L18: 96.32405995 | M18: 3.996593576 | N18: 84.18263557 | O18: 16.7147992 | P18: -247.9924442 | Q18: 516.8829342 | R18: 96.32405995 | S18: 3.996593576 | T18: NA
A19: 10WY-4-10 | B19: 468.8471572 | C19: 9258.07995 | D19: 1.664022571 | E19: 22.63480326 | F19: 14.63101041 | G19: 0.092213832 | H19: 14.99103719 | I19: 0.0151381052 | J19: 3.265689876 | K19: 0.217842824 | L19: 96.85522948 | M19: 3.139348782 | N19: 89.56356298 | O19: 12.85207294 | P19: -100.6413161 | Q19: 361.1331171 | R19: 96.85522948 | S19: 3.139348782 | T19: NA
A20: 10WY-4-73 | B20: 990.2282528 | C20: 48927.62742 | D20: 4.028237635 | E20: 14.88629874 | F20: 21.89503381 | G20: 0.1404662831 | H20: 22.7791209 | I20: 0.01516552838 | J20: 6.284571856 | K20: 0.2758917644 | L20: 97.02937211 | M20: 6.052220097 | N20: 133.4591045 | O20: 28.49512064 | P20: 843.2477253 | Q20: 460.836902 | R20: 97.02937211 | S20: 6.052220097 | T20: NA
A21: 10WY-4-5 | B21: 456.7083902 | C21: 10906.34753 | D21: 1.559549449 | E21: 23.67618372 | F21: 10.67821011 | G21: 0.09212192248 | H21: 14.48855955 | I21: 0.01581879577 | J21: 9.792557719 | K21: 0.675882077 | L21: 101.1763586 | M21: 9.830415106 | N21: 89.47811515 | O21: 12.40990943 | P21: -212.3875267 | Q21: 268.8106042 | R21: 101.1763586 | S21: 9.830415106 | T21: NA
A22: 10WY-4-63 | B22: 236.6267662 | C22: 5898.906675 | D22: 1.848485674 | E22: 22.23915503 | F22: 15.6472442 | G22: 0.1017845576 | H22: 16.24753884 | I22: 0.01641719289 | J22: 4.375644778 | K22: 0.2693112367 | L22: 104.9726852 | M22: 4.556036913 | N22: 98.42228801 | O22: 15.24176721 | P22: -57.48680014 | Q22: 383.2983051 | R22: 104.9726852 | S22: 4.556036913 | T22: NA
A23: 10WY-4-13 | B23: 588.4187321 | C23: 22049.17732 | D23: 1.744418428 | E23: 18.68472638 | F23: 8.146611658 | G23: 0.1800323448 | H23: 9.514125132 | I23: 0.02439697637 | J23: 4.914396761 | K23: 0.5165369062 | L23: 155.385165 | M23: 7.544949502 | N23: 168.088388 | O23: 14.73960686 | P23: 350.9134488 | Q23: 184.4084488 | R23: 155.385165 | S23: 7.544949502 | T23: NA
A24: 10WY-4-34 | B24: 679.8833371 | C24: 26387.70927 | D24: 0.979763636 | E24: 19.8649056 | F24: 5.981114844 | G24: 0.173329102 | H24: 15.30134616 | I24: 0.02497219501 | J24: 14.08394333 | K24: 0.9204381874 | L24: 159.0039349 | M24: 22.12018793 | N24: 162.3040003 | O24: 22.95541649 | P24: 210.7385362 | Q24: 138.7479741 | R24: 159.0039349 | S24: 22.12018793 | T24: NA
A25: 10WY-4-57 | B25: 82.59856743 | C25: 17048.18861 | D25: 1.660429482 | E25: 18.07390983 | F25: 17.72600464 | G25: 0.5936722431 | H25: 18.14475688 | I25: 0.07782113859 | J25: 3.875688542 | K25: 0.2135982624 | L25: 483.1042001 | M25: 18.03927552 | N25: 473.2100727 | O25: 68.73714785 | P25: 425.4956024 | Q25: 398.1959053 | R25: 483.1042001 | S25: 18.03927552 | T25: NA
A26: 10WY-4-79 | B26: 1251.593557 | C26: 133478.3849 | D26: 0.1655489664 | E26: 17.60509989 | F26: 1.124315511 | G26: 0.6132236763 | H26: 1.227639428 | I26: 0.07829898519 | J26: 0.4929636873 | K26: 0.401554134 | L26: 485.9615522 | M26: 2.307544528 | N26: 485.5911667 | O26: 4.738361801 | P26: 483.8652037 | Q26: 24.82213743 | R26: 485.9615522 | S26: 2.307544528 | T26: NA
A27: 10WY-4-38 | B27: 303.8574468 | C27: 52257.62926 | D27: 84.85496728 | E27: 13.50600981 | F27: 1.217298672 | G27: 1.738708043 | H27: 3.306870361 | I27: 0.1703148236 | J27: 3.074666734 | K27: 0.9297814545 | L27: 1013.845561 | M27: 28.84489059 | N27: 1022.984507 | O27: 21.32022698 | P27: 1042.568927 | Q27: 24.58165393 | R27: 1042.568927 | S27: 24.58165393 | T27: 97.24494317
A28: 10WY-4-1 | B28: 152.3035809 | C28: 51532.03661 | D28: 2.266784954 | E28: 13.4121035 | F28: 1.299827465 | G28: 1.861127552 | H28: 2.400226022 | I28: 0.1810388407 | J28: 2.017804132 | K28: 0.8406725508 | L28: 1072.647379 | M28: 19.93912872 | N28: 1067.386705 | O28: 15.85463553 | P28: 1056.669935 | Q28: 26.17342573 | R28: 1056.669935 | S28: 26.17342573 | T28: 101.5120563
A29: 10WY-4-94 | B29: 194.0489065 | C29: 43160.76188 | D29: 2.253156128 | E29: 12.82324778 | F29: 1.567478829 | G29: 1.957596589 | H29: 5.047181411 | I29: 0.1820622724 | J29: 4.797608813 | K29: 0.9505520848 | L29: 1078.231114 | M29: 47.63548009 | N29: 1101.058004 | O29: 33.93319283 | P29: 1146.453152 | Q29: 31.16266155 | R29: 1146.453152 | S29: 31.16266155 | T29: 94.04929562
A30: 10WY-4-62 | B30: 632.3619189 | C30: 170372.4787 | D30: 2.211058698 | E30: 12.37607194 | F30: 0.4731451923 | G30: 2.334969119 | H30: 2.766129156 | I30: 0.2095862039 | J30: 2.72536312 | K30: 0.9852624249 | L30: 1226.612866 | M30: 30.44189442 | N30: 1222.991744 | O30: 19.6673568 | P30: 1216.612933 | Q30: 9.285727694 | R30: 1216.612933 | S30: 9.285727694 | T30: 100.8219486
A31: 10WY-4-39 | B31: 59.12926467 | C31: 24691.66889 | D31: 2.76763837 | E31: 11.53581342 | F31: 3.220501843 | G31: 2.830228752 | H31: 4.844358363 | I31: 0.2367927968 | J31: 3.618863886 | K31: 0.7470264615 | L31: 1370.002094 | M31: 44.66516509 | N31: 1363.582807 | O31: 36.36206986 | P31: 1353.518663 | Q31: 62.13482517 | R31: 1353.518663 | S31: 62.13482517 | T31: 101.2178207
A32: 10WY-4-6 | B32: 201.6195472 | C32: 64136.56311 | D32: 3.393159725 | E32: 11.30248642 | F32: 1.359233871 | G32: 2.910701697 | H32: 2.227828405 | I32: 0.2385999884 | J32: 1.765135317 | K32: 0.7923120618 | L32: 1379.414667 | M32: 21.91983246 | N32: 1384.694949 | O32: 16.83815351 | P32: 1392.824817 | Q32: 26.07693934 | R32: 1392.824817 | S32: 26.07693934 | T32: 99.03719763
A33: 10WY-4-44 | B33: 101.1447347 | C33: 36702.48788 | D33: 1.510275449 | E33: 11.18018403 | F33: 2.796692542 | G33: 3.180429679 | H33: 4.352978461 | I33: 0.25788939 | J33: 3.335705669 | K33: 0.766304198 | L33: 1479.034515 | M33: 44.08630695 | N33: 1452.418171 | O33: 33.6387732 | P33: 1413.66609 | Q33: 53.50884273 | R33: 1413.66609 | S33: 53.50884273 | T33: 104.6240357
A34: 10WY-4-46 | B34: 133.5594391 | C34: 48112.60828 | D34: 1.72674716 | E34: 11.0628718 | F34: 0.6125975582 | G34: 3.120852284 | H34: 2.197765826 | I34: 0.2504031674 | J34: 2.110663132 | K34: 0.9603676184 | L34: 1440.554606 | M34: 27.24767616 | N34: 1437.843334 | O34: 16.90198075 | P34: 1433.816166 | Q34: 11.68639058 | R34: 1433.816166 | S34: 11.68639058 | T34: 100.4699654
A35: 10WY-4-67 | B35: 154.205368 | C35: 71498.80744 | D35: 1.790088142 | E35: 11.04021719 | F35: 1.123054246 | G35: 3.058932335 | H35: 1.816080011 | I35: 0.2449323858 | J35: 1.427198573 | K35: 0.7858676734 | L35: 1412.288283 | M35: 18.10106791 | N35: 1422.470394 | O35: 13.89792833 | P35: 1437.725656 | Q35: 21.41339889 | R35: 1437.725656 | S35: 21.41339889 | T35: 98.23072138
A36: 10WY-4-61 | B36: 301.7013152 | C36: 85076.27315 | D36: 1.830919324 | E36: 11.02878531 | F36: 0.5994953463 | G36: 3.140188487 | H36: 1.577441583 | I36: 0.2511783049 | J36: 1.459084397 | K36: 0.9249688944 | L36: 1444.549565 | M36: 18.88264293 | N36: 1442.596654 | O36: 12.14897178 | P36: 1439.700707 | Q36: 11.42734203 | R36: 1439.700707 | S36: 11.42734203 | T36: 100.3367962
A37: 10WY-4-23 | B37: 164.1152632 | C37: 37680.73971 | D37: 1.75187725 | E37: 11.00297259 | F37: 1.222952868 | G37: 3.09465393 | H37: 3.053020285 | I37: 0.2469567187 | J37: 2.797377189 | K37: 0.9162655104 | L37: 1422.762016 | M37: 35.71438241 | N37: 1431.36742 | O37: 23.433199 | P37: 1444.165893 | Q37: 23.29803111 | R37: 1444.165893 | S37: 23.29803111 | T37: 98.51790734
A38: 10WY-4-2 | B38: 255.1205762 | C38: 142642.2869 | D38: 1.602732198 | E38: 10.8707076 | F38: 1.165839374 | G38: 3.146570547 | H38: 2.304712141 | I38: 0.2480812907 | J38: 1.988093712 | K38: 0.862621269 | L38: 1428.573116 | M38: 25.47466359 | N38: 1444.160652 | O38: 17.75985024 | P38: 1467.168578 | Q38: 22.14120959 | R38: 1467.168578 | S38: 22.14120959 | T38: 97.36939148
A39: 10WY-4-45 | B39: 665.9911428 | C39: 322063.7689 | D39: 3.432453999 | E39: 10.28172272 | F39: 1.08918167 | G39: 2.915482145 | H39: 2.95518229 | I39: 0.2174077387 | J39: 2.747141361 | K39: 0.9296013212 | L39: 1268.163054 | M39: 31.62580859 | N39: 1385.935396 | O39: 22.34649596 | P39: 1572.214503 | Q39: 20.39751623 | R39: 1572.214503 | S39: 20.39751623 | T39: 80.66094364
A40: 10WY-4-83 | B40: 325.7439973 | C40: 124508.8162 | D40: 4.319930761 | E40: 9.647655031 | F40: 0.5970738685 | G40: 4.353409964 | H40: 1.778939961 | I40: 0.3046141394 | J40: 1.675747648 | K40: 0.9419922453 | L40: 1714.148708 | M40: 25.22301612 | N40: 1703.542402 | O40: 14.68995835 | P40: 1690.505467 | Q40: 11.01324123 | R40: 1690.505467 | S40: 11.01324123 | T40: 101.3985901
A41: 10WY-4-26 | B41: 196.9790945 | C41: 122406.4984 | D41: 2.567198617 | E41: 9.626802339 | F41: 0.7521516381 | G41: 4.13058592 | H41: 2.450874448 | I41: 0.2883981302 | J41: 2.332606583 | K41: 0.9517446254 | L41: 1633.519337 | M41: 33.6593716 | N41: 1660.374541 | O41: 20.03789251 | P41: 1694.495562 | Q41: 13.86505758 | R41: 1694.495562 | S41: 13.86505758 | T41: 96.40151172
A42: 10WY-4-8 | B42: 330.3909545 | C42: 149495.6914 | D42: 3.157283228 | E42: 9.619132159 | F42: 0.7609827961 | G42: 4.350141432 | H42: 3.104884635 | I42: 0.3034855334 | J42: 3.010185008 | K42: 0.969499792 | L42: 1708.56958 | M42: 45.18042201 | N42: 1702.922269 | O42: 25.63927746 | P42: 1695.964891 | Q42: 14.02527261 | R42: 1695.964891 | S42: 14.02527261 | T42: 100.7432163
A43: 10WY-4-7 | B43: 740.705376 | C43: 391645.968 | D43: 6.010250424 | E43: 9.606180115 | F43: 0.4312927307 | G43: 4.231045006 | H43: 2.245855108 | I43: 0.2947793763 | J43: 2.204053481 | K43: 0.9813872111 | L43: 1665.36867 | M43: 32.34784113 | N43: 1680.064038 | O43: 18.44669678 | P43: 1698.448074 | Q43: 7.945588338 | R43: 1698.448074 | S43: 7.945588338 | T43: 98.05237468
A44: 10WY-4-35 | B44: 183.8090547 | C44: 67328.99494 | D44: 1.793963853 | E44: 9.603512404 | F44: 0.7376185293 | G44: 4.167088964 | H44: 2.049400016 | I44: 0.2902428964 | J44: 1.912056309 | K44: 0.9329834559 | L44: 1642.7429 | M44: 27.72756195 | N44: 1667.573201 | O44: 16.78351917 | P44: 1698.95985 | Q44: 13.58945272 | R44: 1698.95985 | S44: 13.58945272 | T44: 96.69109604
A45: 10WY-4-84 | B45: 606.9096907 | C45: 148491.3259 | D45: 2.78373332 | E45: 9.602962209 | F45: 0.2621153376 | G45: 4.351224651 | H45: 1.618033645 | I45: 0.3030508115 | J45: 1.59666165 | K45: 0.9867913782 | L45: 1706.419295 | M45: 23.93796326 | N45: 1703.127828 | O45: 13.35982722 | P45: 1699.065414 | Q45: 4.827795181 | R45: 1699.065414 | S45: 4.827795181 | T45: 100.4328192
A46: 10WY-4-52 | B46: 310.2570327 | C46: 150776.045 | D46: 3.094860535 | E46: 9.544198161 | F46: 0.5239855238 | G46: 4.571797747 | H46: 2.022533822 | I46: 0.3164646334 | J46: 1.953479519 | K46: 0.9658575288 | L46: 1772.440519 | M46: 30.27235768 | N46: 1744.141501 | O46: 16.85222479 | P46: 1710.36364 | Q46: 9.639187789 | R46: 1710.36364 | S46: 9.639187789 | T46: 103.629455
A47: 10WY-4-77 | B47: 44.60355108 | C47: 10331.69908 | D47: 4.11303934 | E47: 9.542020456 | F47: 3.223267528 | G47: 4.577023002 | H47: 4.266148495 | I47: 0.3167540405 | J47: 2.794739599 | K47: 0.6550966528 | L47: 1773.857521 | M47: 43.3394705 | N47: 1745.093285 | O47: 35.56510464 | P47: 1710.78349 | Q47: 59.31239317 | R47: 1710.78349 | S47: 59.31239317 | T47: 103.6868506
A48: 10WY-4-93 | B48: 312.7499202 | C48: 117668.5004 | D48: 2.769900148 | E48: 9.523879258 | F48: 0.386086446 | G48: 4.311656146 | H48: 1.83315285 | I48: 0.297821965 | J48: 1.792034214 | K48: 0.9775694454 | L48: 1680.499261 | M48: 26.50992845 | N48: 1695.591896 | O48: 15.11036003 | P48: 1714.283885 | Q48: 7.100165336 | R48: 1714.283885 | S48: 7.100165336 | T48: 98.02922817
A49: 10WY-4-72 | B49: 333.0805085 | C49: 156024.5721 | D49: 3.884286117 | E49: 9.507910208 | F49: 0.3755102637 | G49: 4.511295433 | H49: 1.752307767 | I49: 0.3110892943 | J49: 1.711599998 | K49: 0.9767690528 | L49: 1746.064877 | M49: 26.18036306 | N49: 1733.055492 | O49: 14.5652405 | P49: 1717.369397 | Q49: 6.902978616 | R49: 1717.369397 | S49: 6.902978616 | T49: 101.6708974
A50: 10WY-4-90 | B50: 227.1466953 | C50: 74602.06112 | D50: 1.366410154 | E50: 9.495289394 | F50: 0.7299426046 | G50: 4.271447173 | H50: 3.018703388 | I50: 0.2941588848 | J50: 2.9291217 | K50: 0.9703244487 | L50: 1662.278642 | M50: 42.91967364 | N50: 1687.876256 | O50: 24.84174912 | P50: 1719.810786 | Q50: 13.41448699 | R50: 1719.810786 | S50: 13.41448699 | T50: 96.65473988
A51: 10WY-4-89 | B51: 323.4246341 | C51: 361563.7444 | D51: 2.716662948 | E51: 9.49243736 | F51: 0.5734289733 | G51: 4.34025502 | H51: 1.862384212 | I51: 0.2988076509 | J51: 1.771906929 | K51: 0.9514185729 | L51: 1685.393405 | M51: 26.27897324 | N51: 1701.044228 | O51: 15.37041571 | P51: 1720.362833 | Q51: 10.53737681 | R51: 1720.362833 | S51: 10.53737681 | T51: 97.96732251
A52: 10WY-4-18 | B52: 408.6524778 | C52: 350673.4342 | D52: 3.484332051 | E52: 9.481222126 | F52: 0.5943339764 | G52: 4.415855587 | H52: 2.359172489 | I52: 0.3036532325 | J52: 2.28308168 | K52: 0.9677468225 | L52: 1709.398886 | M52: 34.28148067 | N52: 1715.317938 | O52: 19.53399021 | P52: 1722.53492 | Q52: 10.91854706 | R52: 1722.53492 | S52: 10.91854706 | T52: 99.23740101
A53: 10WY-4-92 | B53: 108.0790424 | C53: 10704.67782 | D53: 1.993459167 | E53: 9.477639965 | F53: 2.061614966 | G53: 4.239288952 | H53: 3.29314437 | I53: 0.291401613 | J53: 2.567984341 | K53: 0.7797970729 | L53: 1648.529574 | M53: 37.35476979 | N53: 1681.662987 | O53: 27.06226643 | P53: 1723.229103 | Q53: 37.87102036 | R53: 1723.229103 | S53: 37.87102036 | T53: 95.66514236
A54: 10WY-4-59 | B54: 309.6088228 | C54: 77435.61964 | D54: 3.150120503 | E54: 9.47464894 | F54: 0.4989630381 | G54: 4.322044114 | H54: 2.057442463 | I54: 0.2969963061 | J54: 1.996022388 | K54: 0.9701473671 | L54: 1676.396824 | M54: 29.46449124 | N54: 1697.575734 | O54: 16.96714434 | P54: 1723.808885 | Q54: 9.164986599 | R54: 1723.808885 | S54: 9.164986599 | T54: 97.24957553
A55: 10WY-4-71 | B55: 120.1674233 | C55: 49216.55168 | D55: 1.242248286 | E55: 9.462948408 | F55: 1.418243051 | G55: 4.498458974 | H55: 2.292479535 | I55: 0.3087372004 | J55: 1.80112439 | K55: 0.7856665074 | L55: 1734.489625 | M55: 27.39056815 | N55: 1730.687786 | O55: 19.04623264 | P55: 1726.078277 | Q55: 26.04066407 | R55: 1726.078277 | S55: 26.04066407 | T55: 100.4873098
A56: 10WY-4-9 | B56: 286.8199488 | C56: 101207.0432 | D56: 2.962975242 | E56: 9.461072808 | F56: 0.8878672854 | G56: 4.421703749 | H56: 2.150856801 | I56: 0.3034092044 | J56: 1.959049938 | K56: 0.9108230439 | L56: 1708.192082 | M56: 29.39779053 | N56: 1716.41378 | O56: 17.81311274 | P56: 1726.442262 | Q56: 16.30145418 | R56: 1726.442262 | S56: 16.30145418 | T56: 98.9429024
A57: 10WY-4-77 | B57: 447.8216306 | C57: 131235.0948 | D57: 2.574044796 | E57: 9.449857777 | F57: 0.4559035978 | G57: 4.446957363 | H57: 1.569971147 | I57: 0.3047803497 | J57: 1.502318645 | K57: 0.9569084426 | L57: 1714.969942 | M57: 22.62203141 | N57: 1721.132326 | O57: 13.01530519 | P57: 1728.619846 | Q57: 8.368991243 | R57: 1728.619846 | S57: 8.368991243 | T57: 99.21035826
A58: 10WY-4-17 | B58: 306.6856568 | C58: 140590.452 | D58: 4.698333623 | E58: 9.44273413 | F58: 0.4828207754 | G58: 4.415191191 | H58: 1.977126326 | I58: 0.3023750838 | J58: 1.917266963 | K58: 0.9697240575 | L58: 1703.075488 | M58: 28.69548607 | N58: 1715.193367 | O58: 16.36958512 | P58: 1730.004052 | Q58: 8.861571462 | R58: 1730.004052 | S58: 8.861571462 | T58: 98.44343925
A59: 10WY-4-16 | B59: 177.3790775 | C59: 90716.23662 | D59: 2.682557837 | E59: 9.420767484 | F59: 0.4959048985 | G59: 4.51663127 | H59: 1.814000021 | I59: 0.3086026473 | J59: 1.744899541 | K59: 0.9619071228 | L59: 1733.826826 | M59: 26.52668241 | N59: 1734.038074 | O59: 15.08133591 | P59: 1734.277488 | Q59: 9.09506605 | R59: 1734.277488 | S59: 9.09506605 | T59: 99.97401442
A60: 10WY-4-21 | B60: 654.2538451 | C60: 293559.6638 | D60: 5.378181136 | E60: 9.402613162 | F60: 0.3553891248 | G60: 4.489242109 | H60: 2.18814937 | I60: 0.3061401722 | J60: 2.159096161 | K60: 0.9867224748 | L60: 1721.684799 | M60: 32.62304036 | N60: 1728.984309 | O60: 18.17246677 | P60: 1737.815059 | Q60: 6.514553228 | R60: 1737.815059 | S60: 6.514553228 | T60: 99.07180801
A61: 10WY-4-15 | B61: 102.5565958 | C61: 49062.27271 | D61: 1.956629474 | E61: 9.376979661 | F61: 0.8125205834 | G61: 4.634713634 | H61: 1.981589068 | I61: 0.3151988358 | J61: 1.807347652 | K61: 0.9120698542 | L61: 1766.239227 | M61: 27.9225971 | N61: 1755.5428 | O61: 16.55133495 | P61: 1742.815456 | Q61: 14.88736154 | R61: 1742.815456 | S61: 14.88736154 | T61: 101.344019
A62: 10WY-4-28 | B62: 490.2211263 | C62: 182520.6662 | D62: 2.368387056 | E62: 9.367290248 | F62: 0.5003057894 | G62: 4.499670479 | H62: 1.173608966 | I62: 0.3056985741 | J62: 1.061627111 | K62: 0.9045833335 | L62: 1719.504937 | M62: 16.02291702 | N62: 1730.911487 | O62: 9.750137024 | P62: 1744.709714 | Q62: 9.163890004 | R62: 1744.709714 | S62: 9.163890004 | T62: 98.55535985
A63: 10WY-4-14 | B63: 62.73126102 | C63: 18123.31177 | D63: 5.376406447 | E63: 9.358035346 | F63: 1.245604321 | G63: 4.835845274 | H63: 4.817019842 | I63: 0.3282130186 | J63: 4.653187084 | K63: 0.9659887723 | L63: 1829.714384 | M63: 74.12691586 | N63: 1791.155118 | O63: 40.55158049 | P63: 1746.520436 | Q63: 22.81342319 | R63: 1746.520436 | S63: 22.81342319 | T63: 104.763411
A64: 10WY-4-24 | B64: 302.491981 | C64: 89451.37359 | D64: 2.819984801 | E64: 9.344325533 | F64: 0.4671923451 | G64: 4.588399073 | H64: 1.972123905 | I64: 0.310962392 | J64: 1.915986433 | K64: 0.9715345104 | L64: 1745.440889 | M64: 29.29754705 | N64: 1747.162365 | O64: 16.44280248 | P64: 1749.205301 | Q64: 8.552468489 | R64: 1749.205301 | S64: 8.552468489 | T64: 99.78479301
A65: 10WY-4-87 | B65: 182.5489549 | C65: 5233.795 | D65: 2.636454965 | E65: 9.328082781 | F65: 2.236640756 | G65: 4.457382839 | H65: 3.537537218 | I65: 0.3015581383 | J65: 2.740731234 | K65: 0.774756862 | L65: 1699.030554 | M65: 40.93529962 | N65: 1723.073911 | O65: 29.34589374 | P65: 1752.390138 | Q65: 40.93770031 | R65: 1752.390138 | S65: 40.93770031 | T65: 96.9550397
A66: 10WY-4-47 | B66: 165.3894367 | C66: 78048.27734 | D66: 2.193563404 | E66: 9.32108543 | F66: 1.547170315 | G66: 4.60929712 | H66: 5.374452375 | I66: 0.3116017713 | J66: 5.146941066 | K66: 0.9576680018 | L66: 1748.584151 | M66: 78.82917305 | N66: 1750.952349 | O66: 44.87174668 | P66: 1753.763478 | Q66: 28.31029693 | R66: 1753.763478 | S66: 28.31029693 | T66: 99.70467358
A67: 10WY-4-36 | B67: 370.6699328 | C67: 339403.6165 | D67: 14.22075678 | E67: 9.228378717 | F67: 0.5353005919 | G67: 4.732586309 | H67: 2.63541929 | I67: 0.3167544152 | J67: 2.580482146 | K67: 0.9791543064 | L67: 1773.859355 | M67: 40.01681656 | N67: 1773.028169 | O67: 22.09510718 | P67: 1772.034188 | Q67: 9.77167704 | R67: 1772.034188 | S67: 9.77167704 | T67: 100.1029984
A68: 10WY-4-74 | B68: 207.781015 | C68: 128170.1663 | D68: 3.29527277 | E68: 9.18152921 | F68: 0.5072212479 | G68: 4.623411122 | H68: 1.838582557 | I68: 0.3078763002 | J68: 1.767232986 | K68: 0.9611931641 | L68: 1730.247715 | M68: 26.81785936 | N68: 1753.504027 | O68: 15.35001509 | P68: 1781.31772 | Q68: 9.248415277 | R68: 1781.31772 | S68: 9.248415277 | T68: 97.133021
A69: 10WY-4-64 | B69: 238.9384845 | C69: 97427.37658 | D69: 3.911457026 | E69: 9.142162796 | F69: 0.3537227447 | G69: 4.992208461 | H69: 2.779353871 | I69: 0.3310094463 | J69: 2.756753191 | K69: 0.9918683693 | L69: 1843.272436 | M69: 44.19591666 | N69: 1818.002778 | O69: 23.51566098 | P69: 1789.150011 | Q69: 6.444646622 | R69: 1789.150011 | S69: 6.444646622 | T69: 103.0250356
A70: 10WY-4-12 | B70: 1055.021116 | C70: 559303.1069 | D70: 1.970524766 | E70: 9.139620289 | F70: 0.1170973412 | G70: 4.8239097 | H70: 1.604433009 | I70: 0.3197614082 | J70: 1.600154209 | K70: 0.997333139 | L70: 1788.563861 | M70: 24.99268082 | N70: 1789.076312 | O70: 13.49464937 | P70: 1789.656762 | Q70: 2.133313522 | R70: 1789.656762 | S70: 2.133313522 | T70: 99.93893233
A71: 10WY-4-82 | B71: 64.07802709 | C71: 11076.1902 | D71: 1.694539547 | E71: 9.073966794 | F71: 1.024758049 | G71: 4.951479474 | H71: 2.436735851 | I71: 0.3258598806 | J71: 2.210780982 | K71: 0.9072714963 | L71: 1818.283419 | M71: 35.02688075 | N71: 1811.077666 | O71: 20.58770397 | P71: 1802.78026 | Q71: 18.63779626 | R71: 1802.78026 | S71: 18.63779626 | T71: 100.8599583
A72: 10WY-4-51 | B72: 75.62863891 | C72: 32580.35292 | D72: 0.9436604302 | E72: 9.008252204 | F72: 1.45661377 | G72: 5.049221381 | H72: 3.393925523 | I72: 0.3298858401 | J72: 3.065453765 | K72: 0.903217747 | L72: 1837.828229 | M72: 49.01970111 | N72: 1827.617979 | O72: 28.77221981 | P72: 1815.989952 | Q72: 26.45086784 | R72: 1815.989952 | S72: 26.45086784 | T72: 101.202555
A73: 10WY-4-54 | B73: 575.9662411 | C73: 293942.8497 | D73: 2.545608958 | E73: 8.992739139 | F73: 0.2156645384 | G73: 5.067339625 | H73: 1.962610829 | I73: 0.3304994442 | J73: 1.950725525 | K73: 0.993944136 | L73: 1840.801894 | M73: 31.23732294 | N73: 1830.654644 | O73: 16.64503483 | P73: 1819.115563 | Q73: 3.913009326 | R73: 1819.115563 | S73: 3.913009326 | T73: 101.192136
A74: 10WY-4-88 | B74: 248.5186776 | C74: 107782.185 | D74: 1.028186433 | E74: 8.940796906 | F74: 0.8944755833 | G74: 4.99729017 | H74: 2.79498724 | I74: 0.3240481323 | J74: 2.647993033 | K74: 0.9474079148 | L74: 1809.468561 | M74: 41.77792573 | N74: 1818.863511 | O74: 23.65199534 | P74: 1829.624201 | Q74: 16.21465443 | R74: 1829.624201 | S74: 16.21465443 | T74: 98.8983727
A75: 10WY-4-87 | B75: 154.0710641 | C75: 49479.08523 | D75: 2.239075585 | E75: 8.904882467 | F75: 1.54351964 | G75: 4.735549161 | H75: 2.893427557 | I75: 0.3058420996 | J75: 2.447339402 | K75: 0.8458270871 | L75: 1720.213503 | M75: 36.95079313 | N75: 1773.552827 | O75: 24.26165967 | P75: 1836.918004 | Q75: 27.95599489 | R75: 1836.918004 | S75: 27.95599489 | T75: 93.64672238
A76: 10WY-4-68 | B76: 128.5668379 | C76: 128945.5821 | D76: 1.526761032 | E76: 8.858009308 | F76: 0.7652857479 | G76: 5.213522841 | H76: 1.626966626 | I76: 0.334939323 | J76: 1.435743057 | K76: 0.8824662007 | L76: 1862.277775 | M76: 23.22209625 | N76: 1854.828675 | O76: 13.86209646 | P76: 1846.471942 | Q76: 13.84397423 | R76: 1846.471942 | S76: 13.84397423 | T76: 100.8560018
A77: 10WY-4-76 | B77: 428.7758295 | C77: 269884.3747 | D77: 2.757757477 | E77: 8.719640364 | F77: 0.5547105572 | G77: 5.355341698 | H77: 1.331862159 | I77: 0.338676049 | J77: 1.210848054 | K77: 0.9091391667 | L77: 1880.297195 | M77: 19.7477765 | N77: 1877.743485 | O77: 11.39608569 | P77: 1874.903698 | Q77: 10.0016045 | R77: 1874.903698 | S77: 10.0016045 | T77: 100.2876679
A78: 10WY-4-78 | B78: 327.8901959 | C78: 140962.7707 | D78: 3.248506114 | E78: 8.587138174 | F78: 0.7192095674 | G78: 4.610036718 | H78: 2.122982314 | I78: 0.2871121431 | J78: 1.997446245 | K78: 0.9408680573 | L78: 1627.081773 | M78: 28.72310285 | N78: 1751.086221 | O78: 17.71572917 | P78: 1902.462908 | Q78: 12.92304494 | R78: 1902.462908 | S78: 12.92304494 | T78: 85.52501951
A79: 10WY-4-66 | B79: 87.04751046 | C79: 51677.20938 | D79: 1.209817993 | E79: 8.576429464 | F79: 2.027894382 | G79: 5.374188399 | H79: 2.740159895 | I79: 0.3342859568 | J79: 1.842856648 | K79: 0.6725361726 | L79: 1859.121902 | M79: 29.76336721 | N79: 1880.750138 | O79: 23.46232749 | P79: 1904.705089 | Q79: 36.43312465 | R79: 1904.705089 | S79: 36.43312465 | T79: 97.60681127
A80: 10WY-4-75 | B80: 69.82097369 | C80: 49156.98928 | D80: 1.099782135 | E80: 8.121565059 | F80: 1.313390312 | G80: 6.177529598 | H80: 1.767441196 | I80: 0.363875896 | J80: 1.182731699 | K80: 0.6691773969 | L80: 2000.519387 | M80: 20.34156287 | N80: 2001.274566 | O80: 15.44714522 | P80: 2002.036779 | Q80: 23.32703446 | R80: 2002.036779 | S80: 23.32703446 | T80: 99.92420758
A81: 10WY-4-27 | B81: 185.9343361 | C81: 399304.9289 | D81: 2.649500461 | E81: 7.681870353 | F81: 0.7152181693 | G81: 6.775282435 | H81: 3.246638175 | I81: 0.3774792666 | J81: 3.166878969 | K81: 0.9754332941 | L81: 2064.497731 | M81: 55.94594404 | N81: 2082.499653 | O81: 28.73365927 | P81: 2100.333335 | Q81: 12.55963016 | R81: 2100.333335 | S81: 12.55963016 | T81: 98.29381349
A82: 10WY-4-11 | B82: 69.54232143 | C82: 27785.03004 | D82: 64.63657343 | E82: 5.71487308 | F82: 1.484624647 | G82: 11.1230878 | H82: 3.63087477 | I82: 0.4610315857 | J82: 3.313478723 | K82: 0.9125841384 | L82: 2444.111212 | M82: 67.40456246 | N82: 2533.494154 | O82: 33.83872834 | P82: 2605.859729 | Q82: 24.73452875 | R82: 2605.859729 | S82: 24.73452875 | T82: 93.7928924
A83: 10WY-4-85 | B83: 253.3997854 | C83: 165459.0477 | D83: 1.16434175 | E83: 5.654212652 | F83: 0.3447430688 | G83: 12.05486246 | H83: 1.354230043 | I83: 0.4943483889 | J83: 1.309614915 | K83: 0.9670549859 | L83: 2589.461734 | M83: 27.92838345 | N83: 2608.682202 | O83: 12.69798918 | P83: 2623.624561 | Q83: 5.734142823 | R83: 2623.624561 | S83: 5.734142823 | T83: 98.6978767
A84: 10WY-4-29 | B84: 12.54057504 | C84: 8478.080637 | D84: 1.719737388 | E84: 5.434157495 | F84: 3.614528759 | G84: 12.59069821 | H84: 5.279801828 | I84: 0.4962274227 | J84: 3.84856976 | K84: 0.7289231462 | L84: 2597.562537 | M84: 82.28568814 | N84: 2649.525921 | O84: 49.70525284 | P84: 2689.432241 | Q84: 59.75871887 | R84: 2689.432241 | S84: 59.75871887 | T84: 96.5840484
A85: 10WY-4-96 | B85: 133.9268663 | C85: 85236.50733 | D85: 0.8550730781 | E85: 5.387615615 | F85: 0.4536532556 | G85: 13.185946 | H85: 1.383564957 | I85: 0.5152364994 | J85: 1.307077164 | K85: 0.9447168764 | L85: 2678.946218 | M85: 28.65157432 | N85: 2693.051486 | O85: 13.05889407 | P85: 2703.641226 | Q85: 7.488895775 | R85: 2703.641226 | S85: 7.488895775 | T85: 99.08660187
A86: 10WY-4-25 | B86: 38.78446303 | C86: 31143.52609 | D86: 2.026018552 | E86: 5.347269643 | F86: 1.417094465 | G86: 13.30208546 | H86: 3.269915196 | I86: 0.5158822001 | J86: 2.946894751 | K86: 0.9012144271 | L86: 2681.692698 | M86: 64.65207696 | N86: 2701.33052 | O86: 30.89019983 | P86: 2716.042625 | Q86: 23.36379962 | R86: 2716.042625 | S86: 23.36379962 | T86: 98.73529497
A87: 10WY-4-80 | B87: 70.78230722 | C87: 42991.83755 | D87: 0.9818766179 | E87: 5.322321798 | F87: 0.7071790739 | G87: 13.55825272 | H87: 1.264113898 | I87: 0.5233636785 | J87: 1.047798504 | K87: 0.8288798228 | L87: 2713.430048 | M87: 23.2058691 | N87: 2719.356278 | O87: 11.95447899 | P87: 2723.750579 | Q87: 11.64858322 | R87: 2723.750579 | S87: 11.64858322 | T87: 99.6210912
A88: 10WY-4-53 | B88: 405.7403881 | C88: 414068.4439 | D88: 1.966673868 | E88: 5.293119887 | F88: 0.3870771489 | G88: 13.87372818 | H88: 2.314602224 | I88: 0.5326030354 | J88: 2.282006734 | K88: 0.9859174552 | L88: 2752.410121 | M88: 51.12321853 | N88: 2741.124483 | O88: 21.92537901 | P88: 2732.811754 | Q88: 6.368987708 | R88: 2732.811754 | S88: 6.368987708 | T88: 100.7171503
A89: 10WY-4-3 | B89: 406.2682475 | C89: 404492.7247 | D89: 10.37274704 | E89: 5.289255453 | F89: 0.2208411079 | G89: 13.72537856 | H89: 1.779424954 | I89: 0.5265233057 | J89: 1.765667685 | K89: 0.9922686992 | L89: 2726.786788 | M89: 39.25967532 | N89: 2730.946274 | O89: 16.84252803 | P89: 2734.014029 | Q89: 3.631842716 | R89: 2734.014029 | S89: 3.631842716 | T89: 99.73565457
A90: 10WY-4-20 | B90: 164.6614452 | C90: 109945.8919 | D90: 2.283077508 | E90: 5.2397173 | F90: 0.2042457033 | G90: 13.44676819 | H90: 1.503741288 | I90: 0.5110042348 | J90: 1.489805878 | K90: 0.9907328407 | L90: 2660.9153 | M90: 32.47957828 | N90: 2711.550728 | O90: 14.21276618 | P90: 2749.486285 | Q90: 3.357372468 | R90: 2749.486285 | S90: 3.357372468 | T90: 96.77863514
A91: 10WY-4-97 | B91: 213.8940681 | C91: 217604.8436 | D91: 7.554097604 | E91: 5.22708321 | F91: 0.4197361585 | G91: 14.39187233 | H91: 3.338790396 | I91: 0.5456013506 | J91: 3.312301748 | K91: 0.9920663937 | L91: 2806.852914 | M91: 75.37821347 | N91: 2775.894399 | O91: 31.70925659 | P91: 2753.453864 | Q91: 6.897048352 | R91: 2753.453864 | S91: 6.897048352 | T91: 101.9393479
A92: 10WY-4-43 | B92: 106.662177 | C92: 87277.85884 | D92: 1.387172088 | E92: 5.125699968 | F92: 0.836661919 | G92: 14.38621672 | H92: 4.789524386 | I92: 0.534808751 | J92: 4.715881749 | K92: 0.9846242277 | L92: 2761.681103 | M92: 105.9410922 | N92: 2775.521237 | O92: 45.50170029 | P92: 2785.582616 | Q92: 13.704158 | R92: 2785.582616 | S92: 13.704158 | T92: 99.14195641
A93: 10WY-4-48 | B93: 161.3793555 | C93: 118220.662 | D93: 0.8359939399 | E93: 4.870969866 | F93: 0.568184032 | G93: 14.82640247 | H93: 4.660255536 | I93: 0.5237812567 | J93: 4.625489008 | K93: 0.9925397808 | L93: 2715.196871 | M93: 102.5037573 | N93: 2804.162652 | O93: 44.35773616 | P93: 2868.775466 | Q93: 9.239409115 | R93: 2868.775466 | S93: 9.239409115 | T93: 94.64654529

Sheet 10WY5PinyonPacificCreek
A1: Table 5. Detrital zircon data for sample 10WY5, Pinyon Formation at Pacific Creek
H2: Isotope ratios | N2: Apparent ages (Ma)
A4: Analysis | B4: U | C4: 206Pb | D4: U/Th | E4: 206Pb* | F4: ± | G4: 207Pb* | H4: ± | I4: 206Pb* | J4: ± | K4: error | L4: 206Pb* | M4: ± | N4: 207Pb* | O4: ± | P4: 206Pb* | Q4: ± | R4: Best age | S4: ± | T4: Conc
B5: (ppm) | C5: 204Pb | E5: 207Pb* | F5: (%) | G5: 235U* | H5: (%) | I5: 238U | J5: (%) | K5: corr. | L5: 238U* | M5: (Ma) | N5: 235U | O5: (Ma) | P5: 207Pb* | Q5: (Ma) | R5: (Ma) | S5: (Ma) | T5: (%)
A6: 10-WY-5-92 | B6: 451.7617541 | C6: 6154.997548 | D6: 2.189825349 | E6: 22.58671915 | F6: 11.9957155 | G6: 0.06777933059 | H6: 13.71907174 | I6: 0.0111032253 | J6: 6.657006766 | K6: 0.4852374048 | L6: 71.18154393 | M6: 4.712495384 | N6: 66.58993745 | O6: 8.842628552 | P6: -95.41848212 | Q6: 295.3624117 | R6: 71.18154393 | S6: 4.712495384 | T6: NA
A7: 10-WY-5-16 | B7: 368.7666485 | C7: 8224.192782 | D7: 1.234994073 | E7: 20.93845481 | F7: 15.2702895 | G7: 0.07510555062 | H7: 15.87892764 | I7: 0.01140552783 | J7: 4.354147643 | K7: 0.2742091747 | L7: 73.10862321 | M7: 3.165275071 | N7: 73.53286631 | O7: 11.26392695 | P7: 87.37178882 | Q7: 363.8592764 | R7: 73.10862321 | S7: 3.165275071 | T7: NA
A8: 10-WY-5-82 | B8: 303.7564831 | C8: 6260.976173 | D8: 2.017943722 | E8: 18.59473067 | F8: 21.61999335 | G8: 0.1045405781 | H8: 23.09318551 | I8: 0.01409851968 | J8: 8.11610157 | K8: 0.3514500659 | L8: 90.25018464 | M8: 7.273764387 | N8: 100.9590111 | O8: 22.19658429 | P8: 361.7705468 | Q8: 492.7910347 | R8: 90.25018464 | S8: 7.273764387 | T8: NA
A9: 10-WY-5-97 | B9: 1332.296634 | C9: 68460.55164 | D9: 1.957734483 | E9: 20.22512133 | F9: 4.96111641 | G9: 0.09693102306 | H9: 5.35084203 | I9: 0.01421846317 | J9: 2.00470307 | K9: 0.3746518882 | L9: 91.01259551 | M9: 1.81171307 | N9: 93.93948472 | O9: 4.801077918 | P9: 168.8913975 | Q9: 115.9282422 | R9: 91.01259551 | S9: 1.81171307 | T9: NA
A10: 10-WY-5-4 | B10: 2903.652174 | C10: 692066.2179 | D10: 2.930561937 | E10: 20.78894936 | F10: 2.179581652 | G10: 0.09623917058 | H10: 3.105650839 | I10: 0.01451052541 | J10: 2.212349646 | K10: 0.7123626449 | L10: 92.86868784 | M10: 2.039851565 | N10: 93.29886383 | O10: 2.768408472 | P10: 104.2889706 | Q10: 51.50743078 | R10: 92.86868784 | S10: 2.039851565 | T10: NA
A11: 10-WY-5-100 | B11: 349.7457577 | C11: 1748.09102 | D11: 1.418363844 | E11: 20.86085481 | F11: 16.65760664 | G11: 0.09615183933 | H11: 18.50211426 | I11: 0.01454750188 | J11: 8.053097111 | K11: 0.435252804 | L11: 93.10363989 | M11: 7.443845849 | N11: 93.21797072 | O11: 16.48072392 | P11: 96.16780979 | Q11: 396.6713446 | R11: 93.10363989 | S11: 7.443845849 | T11: NA
A12: 10-WY-5-8 | B12: 281.1807253 | C12: 12970.35441 | D12: 2.310809045 | E12: 19.91364153 | F12: 12.07240814 | G12: 0.1036561985 | H12: 12.96509311 | I12: 0.01497078893 | J12: 4.727642231 | K12: 0.3646439089 | L12: 95.79263628 | M12: 4.495251798 | N12: 100.1456921 | O12: 12.36483963 | P12: 205.0370089 | Q12: 280.9654667 | R12: 95.79263628 | S12: 4.495251798 | T12: NA
A13: 10-WY-5-15 | B13: 256.3247366 | C13: 8315.980644 | D13: 0.9638333087 | E13: 22.80090043 | F13: 12.35365593 | G13: 0.09668145702 | H13: 12.84726816 | I13: 0.01598799155 | J13: 3.526965314 | K13: 0.2745303725 | L13: 102.2499903 | M13: 3.57787179 | N13: 93.70844561 | O13: 11.50063863 | P13: -118.6405847 | Q13: 305.5869343 | R13: 102.2499903 | S13: 3.57787179 | T13: NA
A14: 10-WY-5-25 | B14: 585.2039296 | C14: 10279.00925 | D14: 2.35102937 | E14: 21.46895164 | F14: 3.312683703 | G14: 0.1036450912 | H14: 4.47354169 | I14: 0.01613831919 | J14: 3.006443403 | K14: 0.6720499352 | L14: 103.2037442 | M14: 3.078057601 | N14: 100.1354732 | O14: 4.265827177 | P14: 27.7132795 | Q14: 79.45056055 | R14: 103.2037442 | S14: 3.078057601 | T14: NA
A15: 10-WY-5-87 | B15: 505.7422761 | C15: 10012.60932 | D15: 3.103739104 | E15: 19.60013363 | F15: 10.92112591 | G15: 0.1140755336 | H15: 11.5374912 | I15: 0.01621624385 | J15: 3.720579546 | K15: 0.3224773463 | L15: 103.6980818 | M15: 3.827304222 | N15: 109.6866966 | O15: 11.99608049 | P15: 241.7159109 | Q15: 252.3481953 | R15: 103.6980818 | S15: 3.827304222 | T15: NA
A16: 10-WY-5-50 | B16: 257.7986142 | C16: 12294.44755 | D16: 1.842763629 | E16: 22.5792899 | F16: 14.40429806 | G16: 0.151272335 | H16: 14.72596864 | I16: 0.02477242462 | J16: 3.061102711 | K16: 0.2078710599 | L16: 157.7473855 | M16: 4.77020751 | N16: 143.0346846 | O16: 19.64940627 | P16: -94.6112235 | Q16: 355.0739067 | R16: 157.7473855 | S16: 4.77020751 | T16: NA
A17: 10-WY-5-72 | B17: 147.8300112 | C17: 10018.49103 | D17: 1.709308744 | E17: 20.99542109 | F17: 13.83090522 | G17: 0.1645743262 | H17: 15.43706922 | I17: 0.02506025007 | J17: 6.856323129 | K17: 0.4441466855 | L17: 159.5577206 | M17: 10.80552561 | N17: 154.6993299 | O17: 22.15432614 | P17: 80.8798933 | Q17: 329.6582381 | R17: 159.5577206 | S17: 10.80552561 | T17: NA
A18: 10-WY-5-28 | B18: 871.883003 | C18: 42826.29566 | D18: 2.064523048 | E18: 17.28628552 | F18: 1.188365695 | G18: 0.5500759387 | H18: 3.15423355 | I18: 0.06896409729 | J18: 2.921810443 | K18: 0.9263139195 | L18: 429.9116593 | M18: 12.15152245 | N18: 445.046375 | O18: 11.36610255 | P18: 524.0389947 | Q18: 26.07469042 | R18: 429.9116593 | S18: 12.15152245 | T18: NA
A19: 10-WY-5-90 | B19: 287.6148074 | C19: 42769.88587 | D19: 1.080112665 | E19: 17.5820047 | F19: 2.850198615 | G19: 0.6124999838 | H19: 3.357986641 | I19: 0.07810398605 | J19: 1.775511795 | K19: 0.5287429598 | L19: 484.7956799 | M19: 8.291909507 | N19: 485.1355634 | O19: 12.95205832 | P19: 486.7570207 | Q19: 62.93112703 | R19: 484.7956799 | S19: 8.291909507 | T19: NA
A20: 10-WY-5-41 | B20: 83.77094453 | C20: 9305.423962 | D20: 1.984083337 | E20: 16.66482858 | F20: 4.643219879 | G20: 0.7637509486 | H20: 6.094679934 | I20: 0.09231055003 | J20: 3.947864316 | K20: 0.6477558064 | L20: 569.1875801 | M20: 21.50736697 | N20: 576.1717642 | O20: 26.80378821 | P20: 603.7919852 | Q20: 100.5064465 | R20: 569.1875801 | S20: 21.50736697 | T20: 94.26882007
A21: 10-WY-5-83 | B21: 214.6529502 | C21: 26932.82636 | D21: 1.444781407 | E21: 16.1671887 | F21: 1.666572041 | G21: 0.9077360055 | H21: 3.426760771 | I21: 0.1064370416 | J21: 2.994198893 | K21: 0.8737694556 | L21: 652.0224348 | M21: 18.5680433 | N21: 655.8533803 | O21: 16.55745084 | P21: 669.0338954 | Q21: 35.65888961 | R21: 652.0224348 | S21: 18.5680433 | T21: 97.4573096
A22: 10-WY-5-38 | B22: 287.6342699 | C22: 62125.21568 | D22: 2.938216662 | E22: 13.40788617 | F22: 1.116802458 | G22: 1.84648526 | H22: 2.008480155 | I22: 0.1795580518 | J22: 1.669354607 | K22: 0.8311531496 | L22: 1064.559781 | M22: 16.3814864 | N22: 1062.176972 | O22: 13.22997237 | P22: 1057.304906 | Q22: 22.48541031 | R22: 1057.304906 | S22: 22.48541031 | T22: 100.6861667
A23: 10-WY-5-68 | B23: 209.7789307 | C23: 79958.61379 | D23: 1.910458669 | E23: 13.10634762 | F23: 1.528475899 | G23: 1.835573972 | H23: 2.608605922 | I23: 0.1744826701 | J23: 2.113903092 | K23: 0.8103573921 | L23: 1036.762417 | M23: 20.24465559 | N23: 1058.277277 | O23: 17.14788576 | P23: 1102.905034 | Q23: 30.5464844 | R23: 1102.905034 | S23: 30.5464844 | T23: 94.00287284
A24: 10-WY-5-44 | B24: 58.22797428 | C24: 21774.6902 | D24: 1.250115586 | E24: 13.0665747 | F24: 5.261706476 | G24: 1.948544148 | H24: 5.699827319 | I24: 0.184659107 | J24: 2.191455322 | K24: 0.3844774937 | L24: 1092.377501 | M24: 22.02063555 | N24: 1097.945412 | O24: 38.26482635 | P24: 1108.979535 | Q24: 105.2083156 | R24: 1108.979535 | S24: 105.2083156 | T24: 98.50294489
A25: 10-WY-5-61 | B25: 101.8649265 | C25: 54695.80916 | D25: 1.076623603 | E25: 13.05486216 | F25: 2.438353184 | G25: 1.999396205 | H25: 3.378593261 | I25: 0.1893083975 | J25: 2.338659054 | K25: 0.6921990526 | L25: 1117.627459 | M25: 23.99730755 | N25: 1115.307918 | O25: 22.87200792 | P25: 1110.771505 | Q25: 48.68959664 | R25: 1110.771505 | S25: 48.68959664 | T25: 100.6172245
A26: 10-WY-5-23 | B26: 70.67805555 | C26: 39273.03419 | D26: 3.145339065 | E26: 12.48941558 | F26: 4.076803668 | G26: 2.15621395 | H26: 4.941771525 | I26: 0.1953136937 | J26: 2.792987228 | K26: 0.565179352 | L26: 1150.096091 | M26: 29.41988488 | N26: 1167.054061 | O26: 34.29280971 | P26: 1198.677207 | Q26: 80.3975534 | R26: 1198.677207 | S26: 80.3975534 | T26: 95.94710607
A27: 10-WY-5-76 | B27: 229.3999153 | C27: 23903.71628 | D27: 2.529534669 | E27: 11.63010744 | F27: 1.470077483 | G27: 2.481388181 | H27: 2.095623373 | I27: 0.2093038232 | J27: 1.493489041 | K27: 0.7126705401 | L27: 1225.10776 | M27: 16.66337425 | N27: 1266.620416 | O27: 15.16762924 | P27: 1337.798584 | Q27: 28.4191434 | R27: 1337.798584 | S27: 28.4191434 | T27: 91.57639832
A28: 10-WY-5-73 | B28: 245.6915961 | C28: 66124.84247 | D28: 2.655991876 | E28: 11.33158758 | F28: 0.4467887091 | G28: 2.877880705 | H28: 1.810561311 | I28: 0.2365169513 | J28: 1.754568925 | K28: 0.9690745703 | L28: 1368.564171 | M28: 21.6347792 | N28: 1376.137274 | O28: 13.6441859 | P28: 1387.890315 | Q28: 8.576616493 | R28: 1387.890315 | S28: 8.576616493 | T28: 98.60751643
A29: 10-WY-5-77 | B29: 203.5838131 | C29: 38926.85343 | D29: 2.642515866 | E29: 11.28521044 | F29: 1.322557431 | G29: 2.918185847 | H29: 1.962813229 | I29: 0.2388478487 | J29: 1.450337069 | K29: 0.7389073233 | L29: 1380.70455 | M29: 18.02567961 | N29: 1386.636292 | O29: 14.84457411 | P29: 1395.758636 | Q29: 25.36170798 | R29: 1395.758636 | S29: 25.36170798 | T29: 98.9214406
A30: 10-WY-5-35 | B30: 169.8228403 | C30: 83132.40523 | D30: 2.602309269 | E30: 10.97673727 | F30: 1.006775245 | G30: 3.157574166 | H30: 1.467129172 | I30: 0.2513770092 | J30: 1.067179279 | K30: 0.7273928563 | L30: 1445.573263 | M30: 13.81954162 | N30: 1446.851572 | O30: 11.31435478 | P30: 1448.712161 | Q30: 19.16772171 | R30: 1448.712161 | S30: 19.16772171 | T30: 99.78333182
A31: 10-WY-5-66 | B31: 173.8219117 | C31: 50582.6159 | D31: 1.967049864 | E31: 10.92651398 | F31: 1.252451766 | G31: 3.016593792 | H31: 2.750638136 | I31: 0.2390546435 | J31: 2.448953803 | K31: 0.8903220569 | L31: 1381.780529 | M31: 30.45851702 | N31: 1411.823352 | O31: 20.97896616 | P31: 1457.437838 | Q31: 23.81739233 | R31: 1457.437838 | S31: 23.81739233 | T31: 94.80888264
A32: 10-WY-5-62 | B32: 374.3109684 | C32: 140814.0906 | D32: 0.9787101846 | E32: 10.62784398 | F32: 0.5447146729 | G32: 3.391405136 | H32: 3.514512786 | I32: 0.2614108257 | J32: 3.472043498 | K32: 0.9879160239 | L32: 1497.055906 | M32: 46.38503332 | N32: 1502.410776 | O32: 27.56626246 | P32: 1509.9549 | Q32: 10.28419235 | R32: 1509.9549 | S32: 10.28419235 | T32: 99.1457365
A33: 10-WY-5-22 | B33: 95.41031821 | C33: 55323.35766 | D33: 1.052110468 | E33: 9.704999142 | F33: 1.007960619 | G33: 4.192916462 | H33: 2.457925718 | I33: 0.2951280147 | J33: 2.241743568 | K33: 0.9120469149 | L33: 1667.104228 | M33: 32.93105577 | N33: 1672.635912 | O33: 20.15396804 | P33: 1679.566791 | Q33: 18.61668747 | R33: 1679.566791 | S33: 18.61668747 | T33: 99.2579894
A34: 10-WY-5-6 | B34: 139.499764 | C34: 108862.1475 | D34: 2.098168791 | E34: 9.67128329 | F34: 0.8882203481 | G34: 4.079718758 | H34: 1.755354084 | I34: 0.2861627202 | J34: 1.514045103 | K34: 0.8625297406 | L34: 1622.324898 | M34: 21.7157983 | N34: 1650.257296 | O34: 14.31574576 | P34: 1685.992248 | Q34: 16.39312423 | R34: 1685.992248 | S34: 16.39312423 | T34: 96.223746
A35: 10-WY-5-45 | B35: 209.5101592 | C35: 70826.50485 | D35: 4.429551588 | E35: 9.649529688 | F35: 0.941045397 | G35: 4.312150595 | H35: 4.91269322 | I35: 0.3017857933 | J35: 4.821720465 | K35: 0.9814821012 | L35: 1700.157995 | M35: 72.06055237 | N35: 1695.686411 | O35: 40.51384656 | P35: 1690.147081 | Q35: 17.35724065 | R35: 1690.147081 | S35: 17.35724065 | T35: 100.5923102
A36: 10-WY-5-21 | B36: 255.4667229 | C36: 102290.1996 | D36: 2.295711391 | E36: 9.625117994 | F36: 0.6142852815 | G36: 3.728675857 | H36: 2.959597777 | I36: 0.2602911596 | J36: 2.895146386 | K36: 0.9782229221 | L36: 1491.331335 | M36: 38.54627695 | N36: 1577.545025 | O36: 23.7004477 | P36: 1694.818145 | Q36: 11.32280184 | R36: 1694.818145 | S36: 11.32280184 | T36: 87.99359032
A37: 10-WY-5-10 | B37: 538.4550975 | C37: 284805.6938 | D37: 1.479554898 | E37: 9.623956879 | F37: 0.3400644113 | G37: 4.216663148 | H37: 2.700117733 | I37: 0.294321035 | J37: 2.678617548 | K37: 0.9920373157 | L37: 1663.086288 | M37: 39.26572122 | N37: 1677.268573 | O37: 22.1644877 | P37: 1695.040544 | Q37: 6.268960836 | R37: 1695.040544 | S37: 6.268960836 | T37: 98.11483821
A38: 10-WY-5-5 | B38: 278.7018062 | C38: 113030.2419 | D38: 1.97367751 | E38: 9.623488299 | F38: 0.5781803167 | G38: 4.188489418 | H38: 2.215247083 | I38: 0.292340288 | J38: 2.138463739 | K38: 0.9653386996 | L38: 1653.213547 | M38: 31.18424764 | N38: 1671.769913 | O38: 18.15995941 | P38: 1695.130302 | Q38: 10.6567603 | R38: 1695.130302 | S38: 10.6567603 | T38: 97.52722519
A39: 10-WY-5-64 | B39: 1781.599284 | C39: 117605.8252 | D39: 22.03534111 | E39: 9.611857663 | F39: 0.5478551139 | G39: 4.285479058 | H39: 2.751760177 | I39: 0.2987482936 | J39: 2.696671809 | K39: 0.9799806799 | L39: 1685.098789 | M39: 39.98824224 | N39: 1690.575479 | O39: 22.65831403 | P39: 1697.359252 | Q39: 10.09487958 | R39: 1697.359252 | S39: 10.09487958 | T39: 99.27767424
A40: 10-WY-5-91 | B40: 119.2646024 | C40: 62112.11043 | D40: 2.030031173 | E40: 9.585732511 | F40: 1.252887308 | G40: 4.111866943 | H40: 1.550974765 | I40: 0.2858663811 | J40: 0.9142188546 | K40: 0.5894479235 | L40: 1620.839437 | M40: 13.10195849 | N40: 1656.663135 | O40: 12.66825181 | P40: 1702.373545 | Q40: 23.07434787 | R40: 1702.373545 | S40: 23.07434787 | T40: 95.21056306
A41: 10-WY-5-49 | B41: 136.1125968 | C41: 83641.3572 | D41: 2.390034376 | E41: 9.54921527 | F41: 1.396312345 | G41: 4.314863779 | H41: 2.980675927 | I41: 0.2988364019 | J41: 2.633389606 | K41: 0.8834873935 | L41: 1685.536104 | M41: 39.05869094 | N41: 1696.204886 | O41: 24.57561609 | P41: 1709.396645 | Q41: 25.69345055 | R41: 1709.396645 | S41: 25.69345055 | T41: 98.60415421
A42: 10-WY-5-7 | B42: 134.2511687 | C42: 83543.59323 | D42: 2.530854257 | E42: 9.543921065 | F42: 0.7946525193 | G42: 4.437507751 | H42: 2.679802528 | I42: 0.307160021 | J42: 2.559271178 | K42: 0.9550223016 | L42: 1726.716267 | M42: 38.76820372 | N42: 1719.369266 | O42: 22.20962325 | P42: 1710.417058 | Q42: 14.61925379 | R42: 1710.417058 | S42: 14.61925379 | T42: 100.9529377
A43: 10-WY-5-19 | B43: 133.0577106 | C43: 133792.6531 | D43: 1.956511687 | E43: 9.523489522 | F43: 0.6927108229 | G43: 4.441013791 | H43: 2.343064844 | I43: 0.3067446207 | J43: 2.23832629 | K43: 0.9552984824 | L43: 1724.667346 | M43: 33.87129741 | N43: 1720.023762 | O43: 19.42090521 | P43: 1714.359142 | Q43: 12.73725177 | R43: 1714.359142 | S43: 12.73725177 | T43: 100.6012862
A44: 10-WY-5-14 | B44: 446.3292748 | C44: 176636.8577 | D44: 2.634876902 | E44: 9.515540574 | F44: 0.2997758598 | G44: 4.389463887 | H44: 2.660564852 | I44: 0.3029309669 | J44: 2.64362247 | K44: 0.9936320358 | L44: 1705.826376 | M44: 39.62281932 | N44: 1710.357837 | O44: 22.00582536 | P44: 1715.894575 | Q44: 5.511776732 | R44: 1715.894575 | S44: 5.511776732 | T44: 99.41323907
A45: 10-WY-5-96 | B45: 201.2566908 | C45: 80024.659 | D45: 1.159952736 | E45: 9.509247468 | F45: 0.5559992969 | G45: 4.378847448 | H45: 2.516535719 | I45: 0.3019984335 | J45: 2.454346513 | K45: 0.9752877715 | L45: 1701.210899 | M45: 36.69889633 | N45: 1708.355711 | O45: 20.80483941 | P45: 1717.110861 | Q45: 10.22127288 | R45: 1717.110861 | S45: 10.22127288 | T45: 99.07402817
A46: 10-WY-5-52 | B46: 147.1665982 | C46: 111907.7214 | D46: 5.185816689 | E46: 9.505508105 | F46: 1.033346318 | G46: 4.501067781 | H46: 2.784616846 | I46: 0.3103056011 | J46: 2.585785444 | K46: 0.9285964956 | L46: 1742.210432 | M46: 39.47599978 | N46: 1731.169432 | O46: 23.13870669 | P46: 1717.833872 | Q46: 18.99349514 | R46: 1717.833872 | S46: 18.99349514 | T46: 101.419029
A47: 10-WY-5-47 | B47: 183.6991707 | C47: 94528.89937 | D47: 2.989388742 | E47: 9.501810622 | F47: 0.9576460698 | G47: 4.445202831 | H47: 3.44589767 | I47: 0.3063350411 | J47: 3.310154794 | K47: 0.9606073977 | L47: 1722.646497 | M47: 50.04000367 | N47: 1720.805205 | O47: 28.5709318 | P47: 1718.548999 | Q47: 17.60031365 | R47: 1718.548999 | S47: 17.60031365 | T47: 100.2384278
A48: 10-WY-5-98 | B48: 524.4797598 | C48: 122401.6252 | D48: 0.9395055878 | E48: 9.473618038 | F48: 0.3187785259 | G48: 4.203092868 | H48: 1.897236332 | I48: 0.2887909517 | J48: 1.870263605 | K48: 0.9857831484 | L48: 1635.484494 | M48: 27.0162256 | N48: 1674.623781 | O48: 15.56297998 | P48: 1724.008748 | Q48: 5.855176018 | R48: 1724.008748 | S48: 5.855176018 | T48: 94.8652085
A49: 10-WY-5-34 | B49: 91.23628574 | C49: 58614.16393 | D49: 1.7477684 | E49: 9.470755737 | F49: 1.473186308 | G49: 4.401012495 | H49: 2.953316938 | I49: 0.3022984793 | J49: 2.559649006 | K49: 0.8667031207 | L49: 1702.696305 | M49: 38.30267996 | N49: 1712.531284 | O49: 24.44000244 | P49: 1724.563757 | Q49: 27.05486441 | R49: 1724.563757 | S49: 27.05486441 | T49: 98.73200095
A50: 10-WY-5-53 | B50: 222.9784858 | C50: 98694.54419 | D50: 2.069940251 | E50: 9.468004753 | F50: 0.6248641455 | G50: 4.502800326 | H50: 5.923928846 | I50: 0.3092002821 | J50: 5.8908809 | K50: 0.994421279 | L50: 1736.770212 | M50: 89.69335371 | N50: 1731.489174 | O50: 49.25827325 | P50: 1725.097302 | Q50: 11.47572649 | R50: 1725.097302 | S50: 11.47572649 | T50: 100.6766522
A51: 10-WY-5-56 | B51: 164.7233165 | C51: 73034.11809 | D51: 2.109987111 | E51: 9.463278415 | F51: 0.9226993404 | G51: 4.421407031 | H51: 2.605567021 | I51: 0.3034595715 | J51: 2.436720219 | K51: 0.9351976748 | L51: 1708.441184 | M51: 36.57057646 | N51: 1716.358208 | O51: 21.57973081 | P51: 1726.01424 | Q51: 16.9419902 | R51: 1726.01424 | S51: 16.9419902 | T51: 98.9818707
A52: 10-WY-5-89 | B52: 138.3360876 | C52: 96247.34723 | D52: 2.251860318 | E52: 9.453673141 | F52: 0.7888294981 | G52: 4.351867808 | H52: 1.449883595 | I52: 0.2983836366 | J52: 1.216515705 | K52: 0.8390437065 | L52: 1683.288537 | M52: 18.02225068 | N52: 1703.249858 | O52: 11.97163554 | P52: 1727.878807 | Q52: 14.48021703 | R52: 1727.878807 | S52: 14.48021703 | T52: 97.41936361
A53: 10-WY-5-31 | B53: 137.7677356 | C53: 61230.86368 | D53: 6.279437823 | E53: 9.439838646 | F53: 1.042128554 | G53: 4.516332565 | H53: 3.274935015 | I53: 0.309206924 | J53: 3.10470086 | K53: 0.9480190739 | L53: 1736.802916 | M53: 47.27011602 | N53: 1733.983093 | O53: 27.23153839 | P53: 1730.566907 | Q53: 19.12432 | R53: 1730.566907 | S53: 19.12432 | T53: 100.3603449
A54: 10-WY-5-75 | B54: 219.3460173 | C54: 70384.43275 | D54: 1.847343066 | E54: 9.430986241 | F54: 0.8160933564 | G54: 4.27622202 | H54: 1.424830218 | I54: 0.2924934076 | J54: 1.167960951 | K54: 0.8197193859 | L54: 1653.977288 | M54: 17.03865406 | N54: 1688.795568 | O54: 11.72598994 | P54: 1732.288558 | Q54: 14.97250786 | R54: 1732.288558 | S54: 14.97250786 | T54: 95.47931729
A55: 10-WY-5-3 | B55: 111.7295309 | C55: 49060.76297 | D55: 1.916795388 | E55: 9.40732734 | F55: 1.016658806 | G55: 4.416199586 | H55: 1.823920889 | I55: 0.3013100893 | J55: 1.514295968 | K55: 0.8302421326 | L55: 1697.801889 | M55: 22.60287214 | N55: 1715.38243 | O55: 15.10156517 | P55: 1736.895944 | Q55: 18.64208115 | R55: 1736.895944 | S55: 18.64208115 | T55: 97.7491999
A56: 10-WY-5-37 | B56: 106.8165233 | C56: 64110.69389 | D56: 1.222144032 | E56: 9.387635772 | F56: 1.79278121 | G56: 4.771643997 | H56: 2.593904736 | I56: 0.3248800107 | J56: 1.874640582 | K56: 0.7227098805 | L56: 1813.517469 | M56: 29.63368922 | N56: 1779.922792 | O56: 21.77805146 | P56: 1740.737532 | Q56: 32.86095869 | R56: 1740.737532 | S56: 32.86095869 | T56: 104.1809828
A57: 10-WY-5-74 | B57: 175.458629 | C57: 96269.30427 | D57: 3.19876376 | E57: 9.380095931 | F57: 0.3897789037 | G57: 4.513363574 | H57: 2.375787516 | I57: 0.3070480367 | J57: 2.343595256 | K57: 0.9864498575 | L57: 1726.16398 | M57: 35.49114245 | N57: 1733.436448 | O57: 19.75040294 | P57: 1742.206553 | Q57: 7.141227047 | R57: 1742.206553 | S57: 7.141227047 | T57: 99.07918073
A58: 10-WY-5-33 | B58: 190.6440804 | C58: 65037.68685 | D58: 1.59820672 | E58: 9.367143798 | F58: 0.9909200358 | G58: 4.439767371 | H58: 2.715062955 | I58: 0.3016241615 | J58: 2.527774581 | K58: 0.931018773 | L58: 1699.357548 | M58: 37.76087427 | N58: 1719.791133 | O58: 22.50405617 | P58: 1744.738356 | Q58: 18.15225781 | R58: 1744.738356 | S58: 18.15225781 | T58: 97.39899063
A59: 10-WY-5-24 | B59: 1254.051407 | C59: 67179.54759 | D59: 8.389734112 | E59: 9.363979768 | F59: 0.212725771 | G59: 4.157990438 | H59: 4.585013515 | I59: 0.2823856856 | J59: 4.580076056 | K59: 0.998923131 | L59: 1603.36606 | M59: 65.01740588 | N59: 1665.783676 | O59: 37.54666493 | P59: 1745.357251 | Q59: 3.895069337 | R59: 1745.357251 | S59: 3.895069337 | T59: 91.86463453
A60: 10-WY-5-70 | B60: 99.68496661 | C60: 58263.63418 | D60: 5.318734735 | E60: 9.315353921 | F60: 1.31895764 | G60: 4.485265183 | H60: 3.205271353 | I60: 0.3030304077 | J60: 2.921320796 | K60: 0.9114113827 | L60: 1706.318353 | M60: 43.79613615 | N60: 1728.248403 | O60: 26.61856764 | P60: 1754.88897 | Q60: 24.1319348 | R60: 1754.88897 | S60: 24.1319348 | T60: 97.23226839
A61: 10-WY-5-26 | B61: 243.0561787 | C61: 278926.031 | D61: 1.593787533 | E61: 9.315219153 | F61: 0.6669334417 | G61: 4.611123777 | H61: 3.029105553 | I61: 0.3115290725 | J61: 2.95477245 | K61: 0.975460379 | L61: 1748.226833 | M61: 45.24494222 | N61: 1751.282953 | O61: 25.28080949 | P61: 1754.915441 | Q61: 12.20286425 | R61: 1754.915441 | S61: 12.20286425 | T61: 99.61886439
A62: 10-WY-5-99 | B62: 548.5879309 | C62: 318577.3033 | D62: 6.501687045 | E62: 9.304526646 | F62: 0.2892285529 | G62: 4.610660613 | H62: 2.751759626 | I62: 0.3111402272 | J62: 2.736517473 | K62: 0.9944609434 | L62: 1746.315301 | M62: 41.86292391 | N62: 1751.199136 | O62: 22.96484948 | P62: 1757.016572 | Q62: 5.290570682 | R62: 1757.016572 | S62: 5.290570682 | T62: 99.3909408
A63: 10-WY-5-57 | B63: 291.1247991 | C63: 110368.7127 | D63: 2.016450452 | E63: 9.213247156 | F63: 0.6044445705 | G63: 4.469817696 | H63: 1.06282384 | I63: 0.2986766404 | J63: 0.8742089428 | K63: 0.8225341868 | L63: 1684.743124 | M63: 12.96087327 | N63: 1725.384869 | O63: 8.818994607 | P63: 1775.029776 | Q63: 11.03006002 | R63: 1775.029776 | S63: 11.03006002 | T63: 94.91351339
A64: 10-WY-5-51 | B64: 206.1319534 | C64: 108722.8017 | D64: 4.016057893 | E64: 9.20390213 | F64: 0.6233593808 | G64: 4.712589615 | H64: 2.375878236 | I64: 0.3145794429 | J64: 2.292644865 | K64: 0.9649673244 | L64: 1763.202573 | M64: 35.36737703 | N64: 1769.480067 | O64: 19.90381409 | P64: 1776.881707 | Q64: 11.37268998 | R64: 1776.881707 | S64: 11.37268998 | T64: 99.23016072
A65: 10-WY-5-11 | B65: 131.8722423 | C65: 77828.15928 | D65: 2.313600794 | E65: 9.189942536 | F65: 1.166203193 | G65: 4.704911148 | H65: 2.839313716 | I65: 0.3135905359 | J65: 2.58875887 | K65: 0.9117551386 | L65: 1758.351362 | M65: 39.83990289 | N65: 1768.114341 | O65: 23.78073254 | P65: 1779.650831 | Q65: 21.27129311 | R65: 1779.650831 | S65: 21.27129311 | T65: 98.8031658
A66: 10-WY-5-94 | B66: 343.7703038 | C66: 112100.8876 | D66: 3.698747175 | E66: 9.178951999 | F66: 0.5652541878 | G66: 4.69927392 | H66: 2.157089976 | I66: 0.3128402215 | J66: 2.081712004 | K66: 0.9650557127 | L66: 1754.66816 | M66: 31.97813454 | N66: 1767.110508 | O66: 18.06155772 | P66: 1781.829683 | Q66: 10.30613218 | R66: 1781.829683 | S66: 10.30613218 | T66: 98.47563864
A67: 10-WY-5-36 | B67: 85.8268708 | C67: 90923.44705 | D67: 0.3417105079 | E67: 9.164519696 | F67: 1.323930154 | G67: 4.6412932 | H67: 1.784859929 | I67: 0.3084945094 | J67: 1.197052177 | K67: 0.6706700942 | L67: 1733.294097 | M67: 18.19315306 | N67: 1756.727756 | O67: 14.9116466 | P67: 1784.698715 | Q67: 24.13362181 | R67: 1784.698715 | S67: 24.13362181 | T67: 97.11970334
A68: 10-WY-5-60 | B68: 412.2916627 | C68: 382040.2166 | D68: 3.607789688 | E68: 9.150067875 | F68: 0.4295604256 | G68: 4.752895901 | H68: 1.448919178 | I68: 0.315414274 | J68: 1.38377911 | K68: 0.9550423039 | L68: 1767.295106 | M68: 21.38973294 | N68: 1776.619143 | O68: 12.1553258 | P68: 1787.575134 | Q68: 7.826086972 | R68: 1787.575134 | S68: 7.826086972 | T68: 98.86550061
A69: 10-WY-5-80 | B69: 696.6909312 | C69: 321569.6576 | D69: 2.536933115 | E69: 9.144821432 | F69: 0.2896460679 | G69: 4.83731203 | H69: 2.39495742 | I69: 0.3208322797 | J69: 2.377378009 | K69: 0.9926598233 | L69: 1793.792444 | M69: 37.22645295 | N69: 1791.410288 | O69: 20.15468116 | P69: 1788.620231 | Q69: 5.277542838 | R69: 1788.620231 | S69: 5.277542838 | T69: 100.2891733
A70: 10-WY-5-29 | B70: 195.3620132 | C70: 7779.101509 | D70: 2.448058796 | E70: 9.127203355 | F70: 1.739104284 | G70: 4.861787884 | H70: 3.345169486 | I70: 0.3218343972 | J70: 2.857564554 | K70: 0.8542361055 | L70: 1798.681494 | M70: 44.85146914 | N70: 1795.658889 | O70: 28.17898981 | P70: 1792.133171 | Q70: 31.67246057 | R70: 1792.133171 | S70: 31.67246057 | T70: 100.3653926
A71: 10-WY-5-85 | B71: 386.1309888 | C71: 123817.1841 | D71: 1.971147538 | E71: 9.106858487 | F71: 0.3673874118 | G71: 4.724358942 | H71: 1.521422535 | I71: 0.3120399502 | J71: 1.476398666 | K71: 0.970406729 | L71: 1750.737405 | M71: 22.63532712 | N71: 1771.569851 | O71: 12.75024734 | P71: 1796.196361 | Q71: 6.687784613 | R71: 1796.196361 | S71: 6.687784613 | T71: 97.46915439
A72: 10-WY-5-84 | B72: 493.4231882 | C72: 362295.8904 | D72: 2.392093731 | E72: 9.088662465 | F72: 0.3633823071 | G72: 4.616028999 | H72: 3.296246509 | I72: 0.3042756709 | J72: 3.276155422 | K72: 0.993904859 | L72: 1712.476037 | M72: 49.27072969 | N72: 1752.170209 | O72: 27.51661941 | P72: 1799.836358 | Q72: 6.611905943 | R72: 1799.836358 | S72: 6.611905943 | T72: 95.14620753
A73: 10-WY-5-79 | B73: 72.56262094 | C73: 33569.54381 | D73: 0.9257671091 | E73: 9.080218765 | F73: 2.079017336 | G73: 4.773623818 | H73: 3.356735957 | I73: 0.3143715446 | J73: 2.6354057 | K73: 0.7851096224 | L73: 1762.183004 | M73: 40.63464958 | N73: 1780.271034 | O73: 28.18761573 | P73: 1801.527386 | Q73: 37.82124638 | R73: 1801.527386 | S73: 37.82124638 | T73: 97.81605418
A74: 10-WY-5-86 | B74: 206.2701471 | C74: 102395.8986 | D74: 2.307939915 | E74: 9.061593158 | F74: 0.7010259421 | G74: 4.74314945 | H74: 1.310243737 | I74: 0.3117238947 | J74: 1.106933277 | K74: 0.844830046 | L74: 1749.18435 | M74: 16.95775337 | N74: 1774.897441 | O74: 10.98792399 | P74: 1805.261872 | Q74: 12.74522533 | R74: 1805.261872 | S74: 12.74522533 | T74: 96.89366274
A75: 10-WY-5-27 | B75: 286.1825581 | C75: 127625.978 | D75: 2.411635485 | E75: 9.043427701 | F75: 0.5121933412 | G75: 4.820004136 | H75: 2.097840307 | I75: 0.3161398239 | J75: 2.034352953 | K75: 0.969736803 | L75: 1770.849808 | M75: 31.50105818 | N75: 1788.395159 | O75: 17.6429075 | P75: 1808.909839 | Q75: 9.3073616 | R75: 1808.909839 | S75: 9.3073616 | T75: 97.89596858
A76: 10-WY-5-59 | B76: 55.81733556 | C76: 37422.99811 | D76: 1.172190794 | E76: 8.97158494 | F76: 1.737941474 | G76: 5.033815177 | H76: 2.074365689 | I76: 0.3275406182 | J76: 1.13249832 | K76: 0.545949215 | L76: 1826.450096 | M76: 18.01251056 | N76: 1825.028695 | O76: 17.57372617 | P76: 1823.38964 | Q76: 31.53016794 | R76: 1823.38964 | S76: 31.53016794 | T76: 100.1678443
A77: 10-WY-5-1 | B77: 56.06639074 | C77: 25512.86171 | D77: 0.8953790127 | E77: 8.565945319 | F77: 2.487276679 | G77: 5.386145993 | H77: 4.135545404 | I77: 0.3346201919 | J77: 3.303965877 | K77: 0.7989190189 | L77: 1860.736509 | M77: 53.40207666 | N77: 1882.653151 | O77: 35.43057452 | P77: 1906.90238 | Q77: 44.67799657 | R77: 1906.90238 | S77: 44.67799657 | T77: 97.57901235
A78: 10-WY-5-48 | B78: 291.716964 | C78: 349203.5281 | D78: 4.277001544 | E78: 8.141387367 | F78: 0.61143375 | G78: 6.162317184 | H78: 3.114165478 | I78: 0.3638657621 | J78: 3.053551276 | K78: 0.9805359726 | L78: 2000.471489 | M78: 52.51732487 | N78: 1999.120229 | O78: 27.21235039 | P78: 1997.710045 | Q78: 10.86357717 | R78: 1997.710045 | S78: 10.86357717 | T78: 100.1382304
A79: 10-WY-5-9 | B79: 76.36957132 | C79: 87331.73592 | D79: 0.7690439113 | E79: 7.781786428 | F79: 1.049370649 | G79: 6.591118921 | H79: 2.147424931 | I79: 0.3719950664 | J79: 1.873567473 | K79: 0.8724716966 | L79: 2038.781198 | M79: 32.74733102 | N79: 2058.160127 | O79: 18.93440182 | P79: 2077.607052 | Q79: 18.47634225 | R79: 2077.607052 | S79: 18.47634225 | T79: 98.13122246
A80: 10-WY-5-93 | B80: 150.2586446 | C80: 96966.69854 | D80: 2.020123266 | E80: 7.780136245 | F80: 0.9277295221 | G80: 6.634714791 | H80: 2.018586171 | I80: 0.3743761606 | J80: 1.792765479 | K80: 0.8881292783 | L80: 2049.959238 | M80: 31.48094144 | N80: 2063.974801 | O80: 17.81357956 | P80: 2077.980492 | Q80: 16.33355857 | R80: 2077.980492 | S80: 16.33355857 | T80: 98.65151504
A81: 10-WY-5-2 | B81: 37.99303981 | C81: 22236.79733 | D81: 0.598912909 | E81: 7.748762041 | F81: 2.320225039 | G81: 6.574167005 | H81: 3.856236361 | I81: 0.3694637057 | J81: 3.080116011 | K81: 0.7987363125 | L81: 2026.876439 | M81: 53.56936909 | N81: 2055.890114 | O81: 33.99864997 | P81: 2085.092615 | Q81: 40.82283384 | R81: 2085.092615 | S81: 40.82283384 | T81: 97.20798126
A82: 10-WY-5-30 | B82: 61.35689287 | C82: 32001.51711 | D82: 0.8544992053 | E82: 7.719179623 | F82: 1.39409217 | G82: 6.579389162 | H82: 2.546063423 | I82: 0.3683455668 | J82: 2.130480222 | K82: 0.8367742149 | L82: 2021.610924 | M82: 36.97090925 | N82: 2056.589949 | O82: 22.44508354 | P82: 2091.819687 | Q82: 24.50550072 | R82: 2091.819687 | S82: 24.50550072 | T82: 96.64365131
A83: 10-WY-5-32 | B83: 273.9198332 | C83: 160684.2338 | D83: 2.663359431 | E83: 6.850917177 | F83: 2.441228595 | G83: 7.967705982 | H83: 3.700664011 | I83: 0.3958956613 | J83: 2.781243799 | K83: 0.7515526377 | L83: 2150.112879 | M83: 50.85036305 | N83: 2227.374626 | O83: 33.39781724 | P83: 2299.181068 | Q83: 41.95722171 | R83: 2299.181068 | S83: 41.95722171 | T83: 93.51646589
A84: 10-WY-5-20 | B84: 107.4452835 | C84: 57261.18035 | D84: 2.039655783 | E84: 6.277185005 | F84: 0.5712110694 | G84: 9.52326297 | H84: 5.328030633 | I84: 0.4335602227 | J84: 5.297322752 | K84: 0.994236542 | L84: 2321.747084 | M84: 103.2869111 | N84: 2389.793702 | O84: 48.99693128 | P84: 2448.305906 | Q84: 9.666568629 | R84: 2448.305906 | S84: 9.666568629 | T84: 94.83075943
A85: 10-WY-5-55 | B85: 385.6945133 | C85: 266296.6393 | D85: 4.487820358 | E85: 6.204599633 | F85: 0.4287271195 | G85: 10.2426232 | H85: 2.090318925 | I85: 0.4609180167 | J85: 2.045880316 | K85: 0.9787407515 | L85: 2443.610099 | M85: 41.61043925 | N85: 2456.934759 | O85: 19.33920044 | P85: 2467.962994 | Q85: 7.238133808 | R85: 2467.962994 | S85: 7.238133808 | T85: 99.01323905
A86: 10-WY-5-17 | B86: 884.2224169 | C86: 898211.8386 | D86: 2.63047627 | E86: 6.129584347 | F86: 0.2227142423 | G86: 10.83518109 | H86: 2.309060581 | I86: 0.4816881084 | J86: 2.298294832 | K86: 0.9953376064 | L86: 2534.614353 | M86: 48.16606386 | N86: 2509.089246 | O86: 21.46798139 | P86: 2488.486163 | Q86: 3.753758691 | R86: 2488.486163 | S86: 3.753758691 | T86: 101.8536647
A87: 10-WY-5-81 | B87: 875.6521469 | C87: 773513.4948 | D87: 21.54793539 | E87: 6.113488236 | F87: 0.8582756965 | G87: 10.40827193 | H87: 7.455383488 | I87: 0.4614944009 | J87: 7.405815673 | K87: 0.9933514064 | L87: 2446.152938 | M87: 150.7785529 | N87: 2471.786262 | O87: 69.17191077 | P87: 2492.916954 | Q87: 14.45968827 | R87: 2492.916954 | S87: 14.45968827 | T87: 98.12412461
A88: 10-WY-5-46 | B88: 195.2766351 | C88: 134348.2021 | D88: 1.106333835 | E88: 5.822860852 | F88: 0.3705774922 | G88: 11.36959523 | H88: 1.764611601 | I88: 0.4801535465 | J88: 1.725261263 | K88: 0.9777002836 | L88: 2527.93444 | M88: 36.07870844 | N88: 2553.933558 | O88: 16.47049472 | P88: 2574.629161 | Q88: 6.193116726 | R88: 2574.629161 | S88: 6.193116726 | T88: 98.18635157
A89: 10-WY-5-71 | B89: 229.8324697 | C89: 284843.1186 | D89: 1.906492717 | E89: 5.788744395 | F89: 0.3624897772 | G89: 11.28040258 | H89: 6.237114026 | I89: 0.4735956425 | J89: 6.226571491 | K89: 0.9983097095 | L89: 2499.309779 | M89: 129.0192568 | N89: 2546.585475 | O89: 58.23732826 | P89: 2584.444868 | Q89: 6.05210425 | R89: 2584.444868 | S89: 6.05210425 | T89: 96.70586554
A90: 10-WY-5-88 | B90: 9.978180984 | C90: 8514.97539 | D90: 0.752466272 | E90: 5.339771795 | F90: 3.769190069 | G90: 13.44714935 | H90: 6.188726278 | I90: 0.5207768263 | J90: 4.908517004 | K90: 0.7931384881 | L90: 2702.473968 | M90: 108.366632 | N90: 2711.577517 | O90: 58.55450283 | P90: 2718.355983 | Q90: 62.15302445 | R90: 2718.355983 | S90: 62.15302445 | T90: 99.41574925
A91: 10-WY-5-65 | B91: 89.31105754 | C91: 56955.15278 | D91: 1.606223111 | E91: 5.29126632 | F91: 0.8419300854 | G91: 13.83205863 | H91: 2.758719845 | I91: 0.5308174207 | J91: 2.627106567 | K91: 0.9522919015 | L91: 2744.895114 | M91: 58.72589993 | N91: 2738.275841 | O91: 26.1287566 | P91: 2733.38833 | Q91: 13.85677333 | R91: 2733.38833 | S91: 13.85677333 | T91: 100.4209714
A92: 10-WY-5-18 | B92: 186.39839 | C92: 260053.1851 | D92: 0.9645513136 | E92: 5.278885837 | F92: 0.2704131811 | G92: 14.19972672 | H92: 2.656846569 | I92: 0.5436519893 | J92: 2.643049452 | K92: 0.9948069573 | L92: 2798.717361 | M92: 60.00778865 | N92: 2763.139005 | O92: 25.20750138 | P92: 2737.237102 | Q92: 4.44662925 | R92: 2737.237102 | S92: 4.44662925 | T92: 102.2460699
A93: 10-WY-5-78 | B93: 32.57468292 | C93: 37648.14918 | D93: 0.4817706578 | E93: 5.238713179 | F93: 1.65289903 | G93: 13.52512559 | H93: 2.790911665 | I93: 0.5138834759 | J93: 2.248802508 | K93: 0.8057591129 | L93: 2673.18735 | M93: 49.20963711 | N93: 2717.043153 | O93: 26.39339205 | P93: 2749.801321 | Q93: 27.16756404 | R93: 2749.801321 | S93: 27.16756404 | T93: 97.21383614
A94: 10-WY-5-63 | B94: 61.91167682 | C94: 122381.5419 | D94: 1.841166279 | E94: 5.183224333 | F94: 0.6493257257 | G94: 13.73433862 | H94: 2.235166686 | I94: 0.5163051792 | J94: 2.138772128 | K94: 0.9568736603 | L94: 2683.491201 | M94: 46.9472613 | N94: 2731.563923 | O94: 21.15825188 | P94: 2767.290505 | Q94: 10.6559459 | R94: 2767.290505 | S94: 10.6559459 | T94: 96.9717923
A95: 10-WY-5-12 | B95: 77.52147088 | C95: 143519.0215 | D95: 2.081335617 | E95: 4.838494717 | F95: 3.019044708 | G95: 13.31282792 | H95: 3.707219354 | I95: 0.4671746995 | J95: 2.151474933 | K95: 0.5803473515 | L95: 2471.159248 | M95: 44.1630212 | N95: 2702.0929 | O95: 35.02638192 | P95: 2879.647885 | Q95: 49.05200049 | R95: 2879.647885 | S95: 49.05200049 | T95: 85.81463244

Sheet 10WYPASSPEAK
A1: Table 6. Detrital Zircon Data for sample 10WYPass Peak, Pass Peak Formation at Pass Peak
H2: Isotope ratios | N2: Apparent ages (Ma)
A4: Analysis | B4: U | C4: 206Pb | D4: U/Th | E4: 206Pb* | F4: ± | G4: 207Pb* | H4: ± | I4: 206Pb* | J4: ± | K4: error | L4: 206Pb* | M4: ± | N4: 207Pb* | O4: ± | P4: 206Pb* | Q4: ± | R4: Best age | S4: ± | T4: Conc
B5: (ppm) | C5: 204Pb | E5: 207Pb* | F5: (%) | G5: 235U* | H5: (%) | I5: 238U | J5: (%) | K5: corr. | L5: 238U* | M5: (Ma) | N5: 235U | O5: (Ma) | P5: 207Pb* | Q5: (Ma) | R5: (Ma) | S5: (Ma) | T5: (%)
A6: 10-WY-PPM-39 | B6: 319.4526839 | C6: 239.784713 | D6: 1.344595343 | E6: 17.68612799 | F6: 9.035970787 | G6: 0.08203006895 | H6: 9.912042355 | I6: 0.01052215186 | J6: 4.074287124 | K6: 0.4110441601 | L6: 67.47577312 | M6: 2.734819011 | N6: 80.05175427 | O6: 7.63018348 | P6: 473.707311 | Q6: 200.2256724 | R6: 67.47577312 | S6: 2.734819011 | T6: NA
A7: 10-WY-PPM-54 | B7: 140.0236716 | C7: 155.704435 | D7: 1.031619069 | E7: 10.86410689 | F7: 15.73599287 | G7: 0.1367605106 | H7: 17.42004661 | I7: 0.01077589792 | J7: 7.472385987 | K7: 0.4289532717 | L7: 69.09428969 | M7: 5.135422574 | N7: 130.154399 | O7: 21.28308376 | P7: 1468.321976 | Q7: 300.6398874 | R7: 69.09428969 | S7: 5.135422574 | T7: 4.705663392
A8: 10-WY-PPM-26 | B8: 236.0305 | C8: 6383.940366 | D8: 3.122169268 | E8: 37.01341009 | F8: 58.03846907 | G8: 0.04136628082 | H8: 58.22830945 | I8: 0.01110463531 | J8: 4.69809851 | K8: 0.08068409602 | L8: 71.19053359 | M8: 3.326201551 | N8: 41.15711278 | O8: 23.49008153 | P8: -1493.118318 | Q8: 377.1531411 | R8: 71.19053359 | S8: 3.326201551 | T8: NA
A9: 10-WY-PPM-18 | B9: 191.1141114 | C9: 11523.77052 | D9: 1.044462559 | E9: 24.77092816 | F9: 22.91465228 | G9: 0.06271976499 | H9: 23.94773188 | I9: 0.01126796339 | J9: 6.957914406 | K9: 0.2905458622 | L9: 72.23176655 | M9: 4.997773301 | N9: 61.76721132 | O9: 14.35188291 | P9: -327.219942 | Q9: 595.2924714 | R9: 72.23176655 | S9: 4.997773301 | T9: NA
A10: 10-WY-PPM-45 | B10: 106.9236076 | C10: 132.4181553 | D10: 0.2293352822 | E10: 18.30351203 | F10: 27.31057635 | G10: 0.1036039854 | H10: 31.18247407 | I10: 0.0137533855 | J10: 15.04922284 | K10: 0.4826179863 | L10: 88.05586475 | M10: 13.16164524 | N10: 100.0976541 | O10: 29.73225045 | P10: 397.2672592 | Q10: 622.7009281 | R10: 88.05586475 | S10: 13.16164524 | T10: NA
A11: 10-WY-PPM-16 | B11: 389.2414599 | C11: 6168.782716 | D11: 2.717611414 | E11: 21.97359009 | F11: 11.20902099 | G11: 0.09143422846 | H11: 11.95390449 | I11: 0.01457164387 | J11: 4.153755035 | K11: 0.3474810293 | L11: 93.25703575 | M11: 3.84578469 | N11: 88.83854116 | O11: 10.16870026 | P11: -28.29298821 | Q11: 272.3626525 | R11: 93.25703575 | S11: 3.84578469 | T11: NA
A12: 10-WY-PPM-21 | B12: 172.974252 | C12: 4694.611109 | D12: 2.112441915 | E12: 25.65197783 | F12: 26.95701653 | G12: 0.08352894308 | H12: 27.23344752 | I12: 0.01554019869 | J12: 3.870390604 | K12: 0.1421190102 | L12: 99.40813136 | M12: 3.817969909 | N12: 81.45733281 | O12: 21.32027593 | P12: -417.8658635 | Q12: 716.2942749 | R12: 99.40813136 | S12: 3.817969909 | T12: NA
A13: 10-WY-PPM-31 | B13: 435.3380909 | C13: 119477.4273 | D13: 0.9981653479 | E13: 17.64332415 | F13: 3.043023204 | G13: 0.6021394356 | H13: 3.375905138 | I13: 0.07705063279 | J13: 1.461761019 | K13: 0.4329982507 | L13: 478.4941813 | M13: 6.741163021 | N13: 478.5905299 | O13: 12.88368838 | P13: 479.0315648 | Q13: 67.26654805 | R13: 478.4941813 | S13: 6.741163021 | T13: NA
A14: 10-WY-PPM-52 | B14: 689.7769555 | C14: 91536.84768 | D14: 1.657927029 | E14: 17.49253678 | F14: 0.4219066633 | G14: 0.6117161628 | H14: 7.435706048 | I14: 0.07760710385 | J14: 7.423726773 | K14: 0.9983889526 | L14: 481.823938 | M14: 34.46556116 | N14: 484.6418753 | O14: 28.66347614 | P14: 497.9691607 | Q14: 9.294277628 | R14: 481.823938 | S14: 34.46556116 | T14: NA
A15: 10-WY-PPM-43 | B15: 34.19110943 | C15: 6207.876394 | D15: 2.000727454 | E15: 18.82462288 | F15: 15.32462598 | G15: 0.5831685778 | H15: 16.92782022 | I15: 0.07961944122 | J15: 7.190753514 | K15: 0.4247890998 | L15: 493.8508287 | M15: 34.18574963 | N15: 466.4956774 | O15: 63.39597879 | P15: 334.0200564 | Q15: 349.2081695 | R15: 493.8508287 | S15: 34.18574963 | T15: NA
A16: 10-WY-PPM-32 | B16: 337.9829056 | C16: 159894.6111 | D16: 12.9373708 | E16: 11.44082332 | F16: 0.4494231371 | G16: 2.769174593 | H16: 2.274142394 | I16: 0.2297768876 | J16: 2.229291921 | K16: 0.9802780721 | L16: 1333.329642 | M16: 26.85144581 | N16: 1347.267134 | O16: 16.96649232 | P16: 1369.450876 | Q16: 8.65033744 | R16: 1369.450876 | S16: 8.65033744 | T16: 97.3623564
A17: 10-WY-PPM-48 | B17: 259.987648 | C17: 123224.162 | D17: 1.53317174 | E17: 11.42965228 | F17: 0.9658924967 | G17: 2.935094438 | H17: 3.034082494 | I17: 0.2433065624 | J17: 2.876231609 | K17: 0.9479740957 | L17: 1403.864066 | M17: 36.28459194 | N17: 1391.008662 | O17: 22.98255837 | P17: 1371.330621 | Q17: 18.58504266 | R17: 1371.330621 | S17: 18.58504266 | T17: 102.3723998
A18: 10-WY-PPM-27 | B18: 273.342212 | C18: 74679.33506 | D18: 2.628073997 | E18: 11.4074583 | F18: 1.017758273 | G18: 2.769799681 | H18: 2.163633164 | I18: 0.2291585028 | J18: 1.909313114 | K18: 0.8824569457 | L18: 1330.087292 | M18: 22.9469665 | N18: 1347.435513 | O18: 16.14285018 | P18: 1375.069209 | Q18: 19.57299978 | R18: 1375.069209 | S18: 19.57299978 | T18: 96.72875249
A19: 10-WY-PPM-7 | B19: 261.960971 | C19: 122841.9143 | D19: 1.65964304 | E19: 11.37728838 | F19: 0.8833271093 | G19: 2.793137096 | H19: 1.422674741 | I19: 0.230478142 | J19: 1.11522941 | K19: 0.7838962609 | L19: 1337.004527 | M19: 13.46600874 | N19: 1353.701992 | O19: 10.63763619 | P19: 1380.159956 | Q19: 16.97601096 | R19: 1380.159956 | S19: 16.97601096 | T19: 96.8731574
A20: 10-WY-PPM-33 | B20: 570.5013301 | C20: 154950.7939 | D20: 16.91109242 | E20: 11.37004079 | F20: 0.2733439806 | G20: 2.827427808 | H20: 1.602201815 | I20: 0.2331590478 | J20: 1.578712679 | K20: 0.9853394651 | L20: 1351.034381 | M20: 19.2422464 | N20: 1362.840013 | O20: 12.01854595 | P20: 1381.384367 | Q20: 5.25179593 | R20: 1381.384367 | S20: 5.25179593 | T20: 97.80292969
A21: 10-WY-PPM-35 | B21: 342.932834 | C21: 32742.08616 | D21: 2.281846929 | E21: 11.36777589 | F21: 0.7323973548 | G21: 2.78279153 | H21: 3.379725104 | I21: 0.2294324809 | J21: 3.299414478 | K21: 0.976237527 | L21: 1331.524031 | M21: 39.69271338 | N21: 1350.928809 | O21: 25.25044665 | P21: 1381.767118 | Q21: 14.07107205 | R21: 1381.767118 | S21: 14.07107205 | T21: 96.36385276
A22: 10-WY-PPM-41 | B22: 193.9717721 | C22: 74197.85871 | D22: 3.940477253 | E22: 11.36292823 | F22: 1.157073595 | G22: 2.821693885 | H22: 2.084634836 | I22: 0.232540652 | J22: 1.734036647 | K22: 0.8318179364 | L22: 1347.800869 | M22: 21.08995534 | N22: 1361.317713 | O22: 15.6296121 | P22: 1382.586526 | Q22: 22.22941268 | R22: 1382.586526 | S22: 22.22941268 | T22: 97.4840159
A23: 10-WY-PPM-17 | B23: 258.1949468 | C23: 124061.2328 | D23: 2.895605158 | E23: 11.36027454 | F23: 1.190590828 | G23: 2.98804389 | H23: 1.99992506 | I23: 0.2461923333 | J23: 1.606920572 | K23: 0.8034903929 | L23: 1418.809148 | M23: 20.46461245 | N23: 1404.580248 | O23: 15.21609405 | P23: 1383.035192 | Q23: 22.87193759 | R23: 1383.035192 | S23: 22.87193759 | T23: 102.5866266
A24: 10-WY-PPM-46 | B24: 584.8012604 | C24: 292876.1469 | D24: 10.22225137 | E24: 11.36027139 | F24: 0.4883782539 | G24: 2.911585592 | H24: 1.581605125 | I24: 0.2398926784 | J24: 1.50431428 | K24: 0.9511313893 | L24: 1386.139089 | M24: 18.76250875 | N24: 1384.924419 | O24: 11.95431686 | P24: 1383.035724 | Q24: 9.381199609 | R24: 1383.035724 | S24: 9.381199609 | T24: 100.2243879
A25: 10-WY-PPM-22 | B25: 401.50095 | C25: 165866.2444 | D25: 5.153693102 | E25: 11.33844196 | F25: 0.5567656164 | G25: 2.798716873 | H25: 2.013889887 | I25: 0.2301500495 | J25: 1.935397769 | K25: 0.9610246229 | L25: 1335.285437 | M25: 23.34228267 | N25: 1355.194542 | O25: 15.0667487 | P25: 1386.729422 | Q25: 10.68946996 | R25: 1386.729422 | S25: 10.68946996 | T25: 96.29026516
A26: 10-WY-PPM-19 | B26: 308.892981 | C26: 70451.49174 | D26: 3.265098707 | E26: 11.32982697 | F26: 0.7716174162 | G26: 2.978536443 | H26: 1.117974177 | I26: 0.2447512512 | J26: 0.8089949459 | K26: 0.7236257893 | L26: 1411.350277 | M26: 10.25431677 | N26: 1402.156698 | O26: 8.49867853 | P26: 1388.188585 | Q26: 14.81161005 | R26: 1388.188585 | S26: 14.81161005 | T26: 101.6684831
A27: 10-WY-PPM-37 | B27: 246.0892713 | C27: 196746.1331 | D27: 3.70520901 | E27: 11.32195387 | F27: 0.7682637135 | G27: 2.936636377 | H27: 2.303690711 | I27: 0.2411405686 | J27: 2.17181071 | K27: 0.9427527312 | L27: 1392.623821 | M27: 27.20145047 | N27: 1391.406455 | O27: 17.45105602 | P27: 1389.522806 | Q27: 14.74454759 | R27: 1389.522806 | S27: 14.74454759 | T27: 100.2231712
A28: 10-WY-PPM-40 | B28: 281.0763595 | C28: 141381.9718 | D28: 5.234473116 | E28: 11.31711303 | F28: 0.6333640276 | G28: 2.882879998 | H28: 3.040378987 | I28: 0.2366251725 | J28: 2.973676915 | K28: 0.9780612639 | L28: 1369.128343 | M28: 36.68086215 | N28: 1377.445444 | O28: 22.92471857 | P28: 1390.343504 | Q28: 12.15413142 | R28: 1390.343504 | S28: 12.15413142 | T28: 98.4741065
A29: 10-WY-PPM-4 | B29: 114.7644394 | C29: 5821.736541 | D29: 1.567113709 | E29: 11.25844004 | F29: 2.784551147 | G29: 2.663892985 | H29: 11.04398584 | I29: 0.2175172574 | J29: 10.68718383 | K29: 0.9676926412 | L29: 1268.742951 | M29: 123.0985285 | N29: 1318.501538 | O29: 81.70822068 | P29: 1400.311365 | Q29: 53.37314822 | R29: 1400.311365 | S29: 53.37314822 | T29: 90.6043458
A30: 10-WY-PPM-53 | B30: 252.3795357 | C30: 2418.608797 | D30: 5.143968983 | E30: 10.86682467 | F30: 8.923556038 | G30: 3.013136147 | H30: 11.88110922 | I30: 0.2374762272 | J30: 7.844163692 | K30: 0.6602214948 | L30: 1373.563287 | M30: 97.04673671 | N30: 1410.948893 | O30: 90.81921375 | P30: 1467.847013 | Q30: 169.7859563 | R30: 1467.847013 | S30: 169.7859563 | T30: 93.57673349
A31: 10-WY-PPM-55 | B31: 377.3151113 | C31: 354663.4173 | D31: 3.626542988 | E31: 9.421405917 | F31: 0.3019437687 | G31: 4.683515647 | H31: 3.796907279 | I31: 0.3200268496 | J31: 3.784882408 | K31: 0.9968329828 | L31: 1789.860287 | M31: 59.15431607 | N31: 1764.299125 | O31: 31.780198 | P31: 1734.153178 | Q31: 5.538892276 | R31: 1734.153178 | S31: 5.538892276 | T31: 103.2123523
A32: 10-WY-PPM-34 | B32: 157.5270977 | C32: 162799.9188 | D32: 2.088874258 | E32: 9.344416095 | F32: 0.55629489 | G32: 4.637862907 | H32: 2.021810313 | I32: 0.3143176733 | J32: 1.943772862 | K32: 0.9614021894 | L32: 1761.918784 | M32: 29.9664503 | N32: 1756.110145 | O32: 16.88938221 | P32: 1749.187556 | Q32: 10.1839614 | R32: 1749.187556 | S32: 10.1839614 | T32: 100.7278366
A33: 10-WY-PPM-42 | B33: 134.4912369 | C33: 48891.551 | D33: 1.812568719 | E33: 9.120232573 | F33: 0.6709439215 | G33: 4.819786083 | H33: 3.419620996 | I33: 0.3188103425 | J33: 3.353154039 | K33: 0.9805630633 | L33: 1783.916677 | M33: 52.25541246 | N33: 1788.357116 | O33: 28.76370164 | P33: 1793.524555 | Q33: 12.21774553 | R33: 1793.524555 | S33: 12.21774553 | T33: 99.46430186
A34: 10-WY-PPM-36 | B34: 165.7543887 | C34: 75037.85643 | D34: 2.21444354 | E34: 9.060443084 | F34: 1.027009468 | G34: 4.636939234 | H34: 2.154845972 | I34: 0.30470499 | J34: 1.894363406 | K34: 0.8791177796 | L34: 1714.597608 | M34: 28.52013506 | N34: 1755.943777 | O34: 18.00029763 | P34: 1805.49266 | Q34: 18.67253752 | R34: 1805.49266 | S34: 18.67253752 | T34: 94.9656371
A35: 10-WY-PPM-2 | B35: 128.6964332 | C35: 116561.5606 | D35: 1.066497971 | E35: 8.693744364 | F35: 0.7617391846 | G35: 5.337576205 | H35: 1.98430828 | I35: 0.3365500656 | J35: 1.832275297 | K35: 0.9233823774 | L35: 1870.051353 | M35: 29.74243092 | N35: 1874.901146 | O35: 16.97072461 | P35: 1880.264614 | Q35: 13.72370132 | R35: 1880.264614 | S35: 13.72370132 | T35: 99.45681789
A36: 10-WY-PPM-60 | B36: 375.2234235 | C36: 139908.4871 | D36: 2.46654774 | E36: 6.279835534 | F36: 0.8276112637 | G36: 9.909006838 | H36: 4.207032742 | I36: 0.4513122516 | J36: 4.124825341 | K36: 0.9804595289 | L36: 2401.083953 | M36: 82.69206757 | N36: 2426.347935 | O36: 38.82060065 | P36: 2447.59147 | Q36: 14.00677543 | R36: 2447.59147 | S36: 14.00677543 | T36: 98.09986605
A37: 10-WY-PPM-57 | B37: 292.1965483 | C37: 218323.8734 | D37: 2.215348765 | E37: 6.260858542 | F37: 0.4041364565 | G37: 9.917434981 | H37: 1.837948804 | I37: 0.4503311395 | J37: 1.792966684 | K37: 0.9755259125 | L37: 2396.724593 | M37: 35.88886462 | N37: 2427.132102 | O37: 16.95440009 | P37: 2452.71213 | Q37: 6.836063742 | R37: 2452.71213 | S37: 6.836063742 | T37: 97.7173213
A38: 10-WY-PPM-10 | B38: 240.5588853 | C38: 148423.5834 | D38: 2.43038165 | E38: 6.176933506 | F38: 0.3356948464 | G38: 10.67996147 | H38: 2.427030835 | I38: 0.4784552644 | J38: 2.403702902 | K38: 0.9903882835 | L38: 2520.533779 | M38: 50.14653189 | N38: 2495.684296 | O38: 22.53745085 | P38: 2475.508021 | Q38: 5.66546275 | R38: 2475.508021 | S38: 5.66546275 | T38: 101.8188492
A39: 10-WY-PPM-12 | B39: 749.01677 | C39: 511033.9417 | D39: 3.175544166 | E39: 6.16644644 | F39: 0.4065540579 | G39: 10.83174775 | H39: 4.246179462 | I39: 0.4844313341 | J39: 4.226671719 | K39: 0.9954058129 | L39: 2546.538333 | M39: 88.92346595 | N39: 2508.794645 | O39: 39.4908781 | P39: 2478.37534 | Q39: 6.859352347 | R39: 2478.37534 | S39: 6.859352347 | T39: 102.7503095
A40: 10-WY-PPM-23 | B40: 144.0280288 | C40: 275226.6412 | D40: 2.404585961 | E40: 6.154428448 | F40: 0.5332007119 | G40: 10.3429086 | H40: 2.234123788 | I40: 0.4616673262 | J40: 2.169563574 | K40: 0.9711026692 | L40: 2446.915638 | M40: 44.17514505 | N40: 2465.951928 | O40: 20.68785609 | P40: 2481.666211 | Q40: 8.993151492 | R40: 2481.666211 | S40: 8.993151492 | T40: 98.59970803
A41: 10-WY-PPM-9 | B41: 141.832565 | C41: 294866.8585 | D41: 2.880286838 | E41: 6.141669754 | F41: 0.6478600284 | G41: 10.60095997 | H41: 2.612288686 | I41: 0.4722047812 | J41: 2.530677688 | K41: 0.9687588137 | L41: 2493.222423 | M41: 52.3271084 | N41: 2488.793066 | O41: 24.24291608 | P41: 2485.165741 | Q41: 10.92320173 | R41: 2485.165741 | S41: 10.92320173 | T41: 100.3241909
A42: 10-WY-PPM-44 | B42: 674.3908559 | C42: 72116.3787 | D42: 8.770639578 | E42: 6.080443643 | F42: 0.3558088364 | G42: 9.543294793 | H42: 3.787384994 | I42: 0.4208548459 | J42: 3.770634584 | K42: 0.9955773152 | L42: 2264.359031 | M42: 72.00013817 | N42: 2391.724723 | O42: 34.82263039 | P42: 2502.043597 | Q42: 5.988829562 | R42: 2502.043597 | S42: 5.988829562 | T42: 90.50038272
A43: 10-WY-PPM-49 | B43: 441.9739827 | C43: 219126.394 | D43: 3.125117251 | E43: 5.674447457 | F43: 0.3287702399 | G43: 11.393505 | H43: 3.407299799 | I43: 0.4688993725 | J43: 3.391401193 | K43: 0.9953339573 | L43: 2478.732597 | M43: 69.79140604 | N43: 2555.894344 | O43: 31.81599865 | P43: 2617.680984 | Q43: 5.471625336 | R43: 2617.680984 | S43: 5.471625336 | T43: 94.69192818
A44: 10-WY-PPM-30 | B44: 141.0350489 | C44: 182601.596 | D44: 1.439783815 | E44: 5.508782388 | F44: 0.3043944356 | G44: 12.29318703 | H44: 0.9922838873 | I44: 0.4911552958 | J44: 0.9444423437 | K44: 0.9517864351 | L44: 2575.672431 | M44: 20.05353833 | N44: 2627.05148 | O44: 9.317800646 | P44: 2666.870257 | Q44: 5.042238168 | R44: 2666.870257 | S44: 5.042238168 | T44: 96.5803426
A45: 10-WY-PPM-38 | B45: 1251.889165 | C45: 27917.65031 | D45: 3.291861836 | E45: 5.467164945 | F45: 0.2129806028 | G45: 12.95675118 | H45: 3.697536288 | I45: 0.5137561346 | J45: 3.691397278 | K45: 0.9983397026 | L45: 2672.645083 | M45: 80.76678973 | N45: 2676.512511 | O45: 34.86782029 | P45: 2679.424483 | Q45: 3.523745899 | R45: 2679.424483 | S45: 3.523745899 | T45: 99.74698297
A46: 10-WY-PPM-20 | B46: 122.5258931 | C46: 42089.69325 | D46: 1.585851661 | E46: 5.45223622 | F46: 0.9038432917 | G46: 12.96085746 | H46: 2.481260961 | I46: 0.5125156403 | J46: 2.310784123 | K46: 0.9312942729 | L46: 2667.360203 | M46: 50.47701971 | N46: 2676.811208 | O46: 23.393803 | P46: 2683.947461 | Q46: 14.94492235 | R46: 2683.947461 | S46: 14.94492235 | T46: 99.38198278
A47: 10-WY-PPM-1 | B47: 205.8738845 | C47: 212062.7877 | D47: 1.582294242 | E47: 5.411713615 | F47: 0.6649350525 | G47: 13.84873944 | H47: 5.476839023 | I47: 0.543555351 | J47: 5.436324775 | K47: 0.9926026221 | L47: 2798.31378 | M47: 123.4236058 | N47: 2739.417145 | O47: 51.91091543 | P47: 2696.271381 | Q47: 10.98108667 | R47: 2696.271381 | S47: 10.98108667 | T47: 103.7845745
A48: 10-WY-PPM-28 | B48: 162.4252308 | C48: 221566.4889 | D48: 1.840714093 | E48: 5.224097286 | F48: 0.2647507068 | G48: 14.29304708 | H48: 2.58367724 | I48: 0.5415453181 | J48: 2.570076875 | K48: 0.9947360434 | L48: 2789.913725 | M48: 58.20424093 | N48: 2769.353999 | O48: 24.52355358 | P48: 2754.392742 | Q48: 4.349953035 | R48: 2754.392742 | S48: 4.349953035 | T48: 101.2896121
A49: 10-WY-PPM-13 | B49: 88.33734826 | C49: 74519.00566 | D49: 1.359799918 | E49: 5.157810421 | F49: 0.8149212458 | G49: 14.49757391 | H49: 2.786197762 | I49: 0.5423247591 | J49: 2.664357583 | K49: 0.9562700895 | L49: 2793.172357 | M49: 60.39583984 | N49: 2782.84357 | O49: 26.47109085 | P49: 2775.353567 | Q49: 13.36023252 | R49: 2775.353567 | S49: 13.36023252 | T49: 100.6420368
A50: 10-WY-PPM-25 | B50: 198.9234127 | C50: 119931.0328 | D50: 1.380022257 | E50: 5.133046316 | F50: 0.5288547042 | G50: 14.53942017 | H50: 1.816933917 | I50: 0.5412787725 | J50: 1.73826395 | K50: 0.9567018007 | L50: 2788.798992 | M50: 39.3531157 | N50: 2785.581593 | O50: 17.26327398 | P50: 2783.24294 | Q50: 8.66282999 | R50: 2783.24294 | S50: 8.66282999 | T50: 100.1996251

Sheet McDougal Gap
A1: MacDougal Gap U-Pb geochronologic analyses.
H2: Isotope ratios | N2: Apparent ages (Ma)
A3: Analysis | B3: U | C3: 206Pb | D3: U/Th | E3: 206Pb* | F3: ± | G3: 207Pb* | H3: ± | I3: 206Pb* | J3: ± | K3: error | L3: 206Pb* | M3: ± | N3: 207Pb* | O3: ± | P3: 206Pb* | Q3: ± | R3: Best age | S3: ± | T3: Conc
B4: (ppm) | C4: 204Pb | E4: 207Pb* | F4: (%) | G4: 235U* | H4: (%) | I4: 238U | J4: (%) | K4: corr. | L4: 238U* | M4: (Ma) | N4: 235U | O4: (Ma) | P4: 207Pb* | Q4: (Ma) | R4: (Ma) | S4: (Ma) | T4: (%)
A5: -Spot 19 | B5: 288.6299056 | C5: 23459.68348 | D5: 2.481042269 | E5: 17.8856207 | F5: 0.8669753131 | G5: 0.5329314578 | H5: 1.527405596 | I5: 0.0691612967 | J5: 1.257506128 | K5: 0.8232954828 | L5: 431.1007656 | M5: 5.243826445 | N5: 433.7532495 | O5: 5.391839922 | P5: 447.8412968 | Q5: 19.27632575 | R5: 431.1007656 | S5: 5.243826445 | T5: 96.26195008
A6: -Spot 39 | B6: 133.5310895 | C6: 32976.78903 | D6: 2.097727568 | E6: 17.89643784 | F6: 0.7410982595 | G6: 0.5373884322 | H6: 1.344854112 | I6: 0.06978187978 | J6: 1.122232575 | K6: 0.8344641735 | L6: 434.8414312 | M6: 4.718984824 | N6: 436.7011764 | O6: 4.773236903 | P6: 446.4978563 | Q6: 16.49262887 | R6: 434.8414312 | S6: 4.718984824 | T6: 97.38936596
A7: -Spot 129 | B7: 359.198318 | C7: 29603.15916 | D7: 1.742156274 | E7: 17.85207859 | F7: 0.6441290373 | G7: 0.5432327067 | H7: 1.201953186 | I7: 0.07036593363 | J7: 1.014785319 | K7: 0.8442802358 | L7: 438.3599295 | M7: 4.300536336 | N7: 440.553766 | O7: 4.296101623 | P7: 452.0102778 | Q7: 14.32337905 | R7: 438.3599295 | S7: 4.300536336 | T7: 96.9800801
A8: -Spot 25 | B8: 281.8223255 | C8: 126206.0931 | D8: 3.126530361 | E8: 17.75386762 | F8: 0.6422450788 | G8: 0.5675039856 | H8: 1.112221603 | I8: 0.07310543197 | J8: 0.9080518443 | K8: 0.8164306845 | L8: 454.8378268 | M8: 3.987825629 | N8: 456.3989807 | O8: 4.08868682 | P8: 464.26782 | Q8: 14.23014072 | R8: 454.8378268 | S8: 3.987825629 | T8: 97.96884627
A9: -Spot 41 | B9: 368.9860378 | C9: 46556.6704 | D9: 3.892968694 | E9: 17.5405747 | F9: 0.7447599107 | G9: 0.5750972338 | H9: 1.222432952 | I9: 0.07319355672 | J9: 0.9693683498 | K9: 0.7929828366 | L9: 455.3671926 | M9: 4.261886694 | N9: 461.3057888 | O9: 4.532019322 | P9: 490.965118 | Q9: 16.43043187 | R9: 455.3671926 | S9: 4.261886694 | T9: 92.74939825
A10: -Spot 55 | B10: 701.0328719 | C10: 204767.7057 | D10: 2.76346773 | E10: 17.62627533 | F10: 0.8081888378 | G10: 0.5725010941 | H10: 1.272331199 | I10: 0.07321914028 | J10: 0.9826787282 | K10: 0.7723450693 | L10: 455.520865 | M10: 4.321813695 | N10: 459.6308122 | O10: 4.703471951 | P10: 480.2054096 | Q10: 17.83662226 | R10: 455.520865 | S10: 4.321813695 | T10: 94.85958631
A11: -Spot 93 | B11: 528.838199 | C11: 39906.10704 | D11: 20.9316661 | E11: 17.16206093 | F11: 0.5392393367 | G11: 0.6785110387 | H11: 0.9370538676 | I11: 0.0844917123 | J11: 0.7663490644 | K11: 0.8178281857 | L11: 522.8777393 | M11: 3.848865748 | N11: 525.8741067 | O11: 3.846176954 | P11: 538.882846 | Q11: 11.77439571 | R11: 522.8777393 | S11: 3.848865748 | T11: 97.02994688
A12: -Spot 91 | B12: 136.2415148 | C12: 19162.59851 | D12: 2.893558962 | E12: 14.45328246 | F12: 0.8418261959 | G12: 1.511301197 | H12: 1.38774496 | I12: 0.1584912429 | J12: 1.103251889 | K12: 0.7949961417 | L12: 948.3868225 | M12: 9.729840723 | N12: 934.9657553 | O12: 8.480117884 | P12: 903.446159 | Q12: 17.36014734 | R12: 903.446159 | S12: 17.36014734 | T12: 104.9743599
A13: -Spot 94 | B13: 45.81536902 | C13: 337977.458 | D13: 2.703920956 | E13: 14.26191003 | F13: 0.9732410059 | G13: 1.558371561 | H13: 1.382923399 | I13: 0.1612636409 | J13: 0.9824861685 | K13: 0.7104414962 | L13: 963.7953769 | M13: 8.795297873 | N13: 953.8213402 | O13: 8.553536316 | P13: 930.8783698 | Q13: 19.9853192 | R13: 930.8783698 | S13: 19.9853192 | T13: 103.5361233
A14: -Spot 6 | B14: 110.6581451 | C14: 38238.27696 | D14: 3.229589944 | E14: 14.036852 | F14: 0.7132874624 | G14: 1.530411203 | H14: 1.398353887 | I14: 0.155871104 | J14: 1.202752921 | K14: 0.8601205549 | L14: 933.7905711 | M14: 10.4556542 | N14: 942.6631674 | O14: 8.587651151 | P14: 963.4683651 | Q14: 14.56383572 | R14: 963.4683651 | S14: 14.56383572 | T14: 96.91969191
A15: -Spot 44 | B15: 47.98860155 | C15: 4057.559192 | D15: 4.130325222 | E15: 14.0290283 | F15: 0.6610910106 | G15: 1.57453838 | H15: 1.180083518 | I15: 0.1602760376 | J15: 0.9775253373 | K15: 0.8283526737 | L15: 958.3106541 | M15: 8.704699163 | N15: 960.2175439 | O15: 7.328314123 | P15: 964.5922373 | Q15: 13.49575474 | R15: 964.5922373 | S15: 13.49575474 | T15: 99.34878356
A16: -Spot 28 | B16: 87.28815073 | C16: 33046.69586 | D16: 3.573715535 | E16: 13.98696299 | F16: 0.8446850355 | G16: 1.504177 | H16: 1.267932518 | I16: 0.1526546803 | J16: 0.9456003713 | K16: 0.7457813074 | L16: 915.8272345 | M16: 8.073037553 | N16: 932.0811675 | O16: 7.733362526 | P16: 970.7343674 | Q16: 17.2318432 | R16: 970.7343674 | S16: 17.2318432 | T16: 94.34375306
A17: -Spot 59 | B17: 97.23610782 | C17: 93401.58801 | D17: 1.65077898 | E17: 13.70861487 | F17: 0.6365572513 | G17: 1.753919478 | H17: 0.944458524 | I17: 0.1744580368 | J17: 0.6977082266 | K17: 0.738738874 | L17: 1036.62721 | M17: 6.681064764 | N17: 1028.608582 | O17: 6.107682499 | P17: 1011.574082 | Q17: 12.90476882 | R17: 1011.574082 | S17: 12.90476882 | T17: 102.4766478
A18: -Spot 107 | B18: 193.435357 | C18: 129177.4563 | D18: 3.055746131 | E18: 13.69795449 | F18: 0.7655262916 | G18: 1.663882796 | H18: 1.264982563 | I18: 0.1653736092 | J18: 1.007050337 | K18: 0.7960981965 | L18: 986.5703802 | M18: 9.212355864 | N18: 994.8568374 | O18: 8.022894949 | P18: 1013.151745 | Q18: 15.51505344 | R18: 1013.151745 | S18: 15.51505344 | T18: 97.37636884
A19: -Spot 66 | B19: 53.19109804 | C19: 40041.82162 | D19: 0.9252114016 | E19: 13.66784476 | F19: 0.8440557021 | G19: 1.720701851 | H19: 1.185428748 | I19: 0.1706449411 | J19: 0.8323528628 | K19: 0.7021534312 | L19: 1015.663682 | M19: 7.82157333 | N19: 1016.286623 | O19: 7.612690559 | P19: 1017.611113 | Q19: 17.09498935 | R19: 1017.611113 | S19: 17.09498935 | T19: 99.80862719
A20: -Spot 84 | B20: 304.4930706 | C20: 67913.00021 | D20: 11.61278157 | E20: 13.66649168 | F20: 0.4560753441 | G20: 1.715779129 | H20: 1.124748021 | I20: 0.1701399013 | J20: 1.028131019 | K20: 0.9140989798 | L20: 1012.881969 | M20: 9.636856203 | N20: 1014.447768 | O20: 7.215383066 | P20: 1017.811486 | Q20: 9.236838207 | R20: 1017.811486 | S20: 9.236838207 | T20: 99.51567482
A21: -Spot 65 | B21: 430.8401632 | C21: 53891.92294 | D21: 2.922463432 | E21: 13.5601819 | F21: 0.4612812535 | G21: 1.784482892 | H21: 0.9957200289 | I21: 0.1755762052 | J21: 0.8824273234 | K21: 0.8862203208 | L21: 1042.761739 | M21: 8.495956408 | N21: 1039.815383 | O21: 6.479490889 | P21: 1033.607583 | Q21: 9.339185824 | R21: 1033.607583 | S21: 9.339185824 | T21: 100.8856511
A22: -Spot 99 | B22: 133.2336897 | C22: 28228.59357 | D22: 3.824771834 | E22: 13.5520123 | F22: 0.7085882543 | G22: 1.760399633 | H22: 1.120799322 | I22: 0.1731022891 | J22: 0.8683857469 | K22: 0.7747914636 | L22: 1029.181427 | M22: 8.26034257 | N22: 1030.995039 | O22: 7.257791282 | P22: 1034.824635 | Q22: 14.3336125 | R22: 1034.824635 | S22: 14.3336125 | T22: 99.45467007
A23: -Spot 126 | B23: 125.791057 | C23: 193638.7588 | D23: 2.012754359 | E23: 13.52610817 | F23: 0.6784536233 | G23: 1.817827586 | H23: 1.20770431 | I23: 0.1784075793 | J23: 0.9991248078 | K23: 0.8272925744 | L23: 1058.269254 | M23: 9.751154836 | N23: 1051.902552 | O23: 7.911112999 | P23: 1038.689624 | Q23: 13.71559878 | R23: 1038.689624 | S23: 13.71559878 | T23: 101.8850318
A24: -Spot 105 | B24: 20.87798265 | C24: 9823.699902 | D24: 1.150383336 | E24: 13.4690883 | F24: 0.8989611083 | G24: 1.890303157 | H24: 1.376152317 | I24: 0.1847385005 | J24: 1.041952075 | K24: 0.7571487993 | L24: 1092.809512 | M24: 10.47372685 | N24: 1077.688374 | O24: 9.138947993 | P24: 1047.251742 | Q24: 18.14646362 | R24: 1047.251742 | S24: 18.14646362 | T24: 104.3502215
A25: -Spot 114 | B25: 147.3276906 | C25: 18003.91534 | D25: 3.648341227 | E25: 13.45826628 | F25: 0.8070051571 | G25: 1.740968788 | H25: 1.272999165 | I25: 0.1700074121 | J25: 0.9845148812 | K25: 0.7733821891 | L25: 1012.152032 | M25: 9.221891964 | N25: 1023.822339 | O25: 8.210212338 | P25: 1048.87098 | Q25: 16.28683299 | R25: 1048.87098 | S25: 16.28683299 | T25: 96.49919307
A26: -Spot 90 | B26: 651.4274724 | C26: 202919.9258 | D26: 2.535009695 | E26: 13.42362153 | F26: 0.493285369 | G26: 1.836967834 | H26: 1.171879103 | I26: 0.1789200477 | J26: 1.063000554 | K26: 0.9070906298 | L26: 1061.072075 | M26: 10.39984162 | N26: 1058.776278 | O26: 7.70492111 | P26: 1054.065088 | Q26: 9.936476955 | R26: 1054.065088 | S26: 9.936476955 | T26: 100.6647585
